Workbook

Sheet Use
B1: Programm zur Einschätzung der Arbeitsweise eines Flammenfresser
B2: Program for estimating the operation of a flame licker engine
B3: Hinweise zur Nutzung - Note for use
A5: 1. | B5: Es handelt sich um ein einfaches Modell für diesen Motor, das nur wesentliche Einflussgrößen in einfacher Weise berücksichtigt aber viele kleine Einflussgrößen nicht erfasst.
B6: It is a simple model for this engine, which considers only essential, influencing variables in a simple way, but does not cover many small influencing variables..
A7: 2. | B7: Das Programm eignet sich nicht für die Auslegung eines Motors. Dazu sind der Aufbau (Geometrie, Kinetik, Material) und das damit zusammenhängende Zusammenspiel unterschiedlicher physikalischen Gesetzmäßigkeiten zu komplex. Es kann nur ein einschätzender Vergleich für unterschiedliche Bedingungen vorgenommen werden.
B8: The program is not suitable for the design of an einginge. For this purpose, the structure (geometry, kinetics, material) and the related interplay of different physical laws are too complex. Only one judgmental comparison can be made for different conditions.
A9: 3. | B9: Die Berechnung funktioniert nur bei Eingabe sinnvollerer Eingabedaten, die eine Funktion des Motors auf Basis der für das Modell gemachten Annahmen zulassen. Manchmal ist das Fenster für die festzulegenden Parameter sehr klein, sodass eine Variation der Eingabewerte erforderlich ist.
B10: The calculation works only when you enter more meaningful input data that allows a function of the engine based on the assumptions made for the model. Sometimes the window for the parameters to be set is very small, so that a variation of the input values is required.
A11: 4. | B11: Wesentliche Eingabedaten sind die Drehzahl (Winkelgeschwindigkeit) n (w) und die Wärmeduchgangszahl k . Das Zusammenspiel (die richtige Wahl) dieser im Zusammenhang stehenden Größen ist entscheidend für die Berechnung und Ergebnis. Die Berechnung beinhaltet einen Algorythmus, der die Temperatur am Anfang eines Arbeitsspiels (j=0°) mit der Temperatur am Ende des Arbeitsspiels (j=360°) zur Übereinstimmung bringt, so dass ein zyklischer, geschlossener Temperaturverlauf entsteht. Wird keine Übereinstimmung dieser Temperaturen erreicht, so ist auch keine zyklische Arbeit des Motors vorhanden, weil die Eingabedaten nicht mit einander harmonieren. Die wesentlichen, zu ändernden Einflussgrößen sind n und k sowie die Starttemperatur für den Iterationsprozess.
B12: Essential input data are the speed (angular speed) n (w) and the heat transfer coefficient k. The interplay (the right choice) of these related variables is crucial to the calculation. The calculation includes an algorithm that is designed to match the temperature at the beginning of a working cycle (j=0 °) with the temperature at the end of the working cycle (j=360 °) so that a cyclic temperature profile is created. If no match of these temperatures is reached, then there is no cyclic work of the engine, because the input data do not harmonize with each other. The main influencing variables to be changed are n and k as well as the starting temperature for the iteration process.
A13: 5. | B13: Es ist dauf zu achten, dass das Ergebnis nicht zu einer negativen Arbeit / Leistung führt, obwohl ein zyklischer Temperaturverlauf ermittelt wurde. In diesem Fall ist die Öffnung für das Ansaugen und Herausdrücken der Luft zu klein (der Luftwiderstand zu groß), und die Öffnung muß vergrößert werden.
A14: 6. | B14: It is important to ensure that the result does not lead to a negative work / performance, although a cyclical temperature profile was determined. In this case, the opening for sucking and pushing out the air is too small (the air resistance too large), and the opening must be increased.
A15: 7. | B15: Die Theorie zum Programm ist zu finden unter - The theory of the program can be found at https://www.jbladt.de/technik/heissluftmotoren-hot-air-engines/flammenfresser/
B16: Autor kann über diese Web-Site kontaktiert werden. | Author can be contacted via this web-site.
B17: https://www.jbladt.de/
B26: =TODAY() -> 2019-05-21

Sheet Input
B1: Klaus-Jürgen Bladt, 18119 Rostock, Germany www.jbladt.de | C1: Berechnung eines Flammenfresser-Motors Calculation of a flame licker engine (flame gulper)
F2: B
B3: Eingabe / Input | E3: Input ▼ | F3: Example
B4: cylinder diameter / inside (piston diameter) | C4: Di [mm] | D4: D | E4: 26 | F4: 26
B5: cylinder diameter / outside (is not needed) | C5: Da [mm] | E5: 28 | F5: 28
B6: cylinder material | C6: .-. | D6: Ms [1], Alu [2], St [3] | E6: 1 | F6: 1
B7: Valve bore diameter | C7: d [mm] | D7: d/D >=15% | E7: 5 | F7: 5
B8: Crank radius | C8: r [mm] | E8: 14 | F8: 14
B9: Rod length | C9: l [mm] | E9: 54 | F9: 54
B10: Dead room length | C10: x0 [mm] | D10: 0 < x0 < 0,4 r | E10: 1 | F10: 1
B11: Number of steps for one iteration cycle 2p | C11: n2p [-] | D11: fix value: 2p (integer =720) | E11: 720 | F11: 720
B12: Closing angle of the Phase I (integer / ganzezahlig) | C12: jI [ -°] | D12: 90° < jZ <= 180° | E12: 135 | F12: 135
B14: Speed ► | C14: n [min-1] | D14: n ≥ 120 | E14: 1000 | F14: 800
B15: Environment pressure (extern) | C15: patm [bar] | E15: 1.01325 | F15: 1.01325
B16: Flame temperature | C16: TF [°C] | E16: 1200 | F16: 1200
B17: Environment temperature (air / extern) | C17: Tatm [°C] | D17: Tatm = Text | E17: 20 | F17: 20
B18: Cylinder temperature (air around the cylinder) | C18: Tcyl [°C] | D18: recommended: Tatm=Tcyl | E18: 20 | F18: 20
B20: Spezific heat capacity / p=const, T=20°C | C20: cp [m²/s²/K] | E20: 1001 | F20: 1001
B21: Spezific heat capacity / V=const | C21: cv [m²/s²/K] | E21: 714 | F21: 714
B22: spezific gas constant of air | C22: RS [kg/s³/K] | D22: Rs = cp - cv | E22: 287 | F22: 287
B23: adiabatic coefficient | C23: g [-] | D23: cp / cv | E23: 1.4 | F23: 1.4
B24: Heat transfer coefficient | C24: k [kg/s³/K] | D24: recommended | E24: 20 | F24: 20
B25: Heat transfer coefficient ► | C25: k [kg/s³/K] | D25: ='k-trans'!E14 -> 20.25600952 | E25: 20 | F25: 20
B26: Coefficient of heat transfer at the piston | C26: u [-] | D26: 0 ≤ u ≤ 1,0 | E26: 0 | F26: 0
B28: Start temperature 1. Iterationszyklus | C28: T0 =T0 [°C] | D28: =Val!D17 -> 590 | E28: =Val!D17 -> 590 | F28: 590
B29: Start temperature 1. Iterationszyklus ► | C29: T0 =T0 [°C] | D29: =Input!E28 -> 590 | E29: 600 | F29: 600
B31: Ergebnisse | E31: Results ▼ | F31: Results ▼
B32: Start temperature 25.of iteration cycle | C32: T0 [°C] | D32: T0 ≈ T360 | E32: =Res!K10-273 -> 571.273842 | F32: 498.2214998
B33: Endtemperatur 3. Iterationszyklus | C33: T02 [°C] | D33: > Tatm | E33: =ROUND(#REF!,0)-273 -> 
B35: Final temperature 25. of iteration cacle | C35: T360 [°C] | D35: T360 > Tatm | E35: =Res!K730-273 -> 571.2738405 | F35: 498.2214952
B36: Opening angle 25.Iterationszyklus | C36: φ II [-°] | D36: 180°< φII < 270° | E36: =Res!Q6 -> 247 | F36: 250
B37: Minimal pressure of 25. Iterationszyklus | C37: pmin [bar] | D37: < patm | E37: =Res!J738/10^5 -> 0.8346719957 | F37: 0.823120263
B38: Maximum temperature of 25. iteration cycle | C38: Tmax [°C] | E38: =Res!K739-273 -> 978.6485158 | F38: 938.2953147
B39: mean work | C39: Wm [Nm] | D39: > 0 | E39: 0.005399324674 | F39: 0.01947561829
B40: mean power | C40: Pm [Nm/s] | D40: > 0 | E40: 0.5654159577 | F40: 1.631585583
B41: efficiency | C41: h [%] | D41: 0 < h < 10% | E41: 0.001282911745 | F41: 0.004627523062
B42: Diagramm
B43: Cylinder volume | C43: dim.-less | D43: V/V0 | E43: 0.03448275862
B44: Crank angle | C44: dim.-less | D44: j | E44: 0
B45: Start-temperature | C45: dim.-less | D45: T/TF | E45: 0.57316622
B46: pressure | C46: dim.-less | D46: (p-pext)/(pext-pmin) | E46: 0

Sheet Val (hidden)
A2: cylinder diameter / inside (piston diameter) | B2: Di [m] | C2: D | D2: =Input!E4/1000 -> 0.026
A3: cyliner diameter / outside | B3: Da [m] | D3: =Input!E5/1000 -> 0.028
A4: Valve bore diameter (is not needed) | B4: d [m] | D4: =Input!E7/1000 -> 0.005
A5: Crank radius | B5: r [m] | D5: =Input!E8/1000 -> 0.014
A6: Piston rod length | B6: l [m] | D6: =Input!E9/1000 -> 0.054
A7: Dead room length | B7: x0 [m] | C7: > 0 | D7: =Input!E10/1000 -> 0.001
A8: angle difference | B8: Dj [rad] | C8: for calculation | D8: =2*PI()/Input!$E$11 -> 0.00872664626
A10: chosen angle speed | B10: w [s-1] | C10: =Input!E14 -> 1000 | D10: =PI()/30*Input!E14 -> 104.7197551
A11: time difference | B11: Dt [s] | D11: =D8/D10/D10 -> 7.957747155e-07
A12: Angle of closing the valve for Phase I | B12: jI [rad] | C12: =Input!E12 -> 135 | D12: =PI()/180*Input!E12 -> 2.35619449
A13: Environment pressure | B13: pext [kg/m/s²] | D13: =Input!E15*10^5 -> 101325
A14: Flame temperature | B14: TF [K] | D14: =Input!E16+273 -> 1473
A15: Environment temperature | B15: Tatm [K] | D15: =Input!E17+273 -> 293
A16: Cylinder material temperature (heat transfer) | B16: Tcyl [K] | C16: irrelevant | D16: =Input!E18+273 -> 293
A17: Medium of start temperatuter(suggestion) | B17: T0 [K] | C17: < 1/2·(TF-Text)+Text | D17: =1/2*(D14-D15) -> 590
A18: Medium of start temperature (chosen) | B18: T0 [K] | D18: =Input!E29+273 -> 873
A20: Spezific heat capacity of air /p=const | B20: cp [m²/s²/K] | D20: =Input!E20 -> 1001
A21: Spezific heat capacity of air / V=const | B21: cV [m²/s²/K] | D21: =Input!E21 -> 714
A22: spezific gas constant of air | B22: RS [m²/s²/K] | C22: RS=cp-cv | D22: =D20-D21 -> 287
A23: adibatic exponent (isotropic exponent) | B23: g [-] | C23: only for info, not used | D23: =(D20/D21) -> 1.401960784
A25: Heat transfer coefficient | B25: k [kg/m²/s] | C25: Suggestion | D25: ='k-trans'!E14 -> 20.25600952
A26: Heat transfer coefficient | B26: k [kg/m²/s] | C26: gewählt | D26: =Input!E25 -> 20
A29: Relation of piston rod | B29: λ [-] | C29: r/l | D29: =D5/D6 -> 0.2592592593
A30: Relation of valve bore diameter (is not needed) | B30: [-] | C30: Di/d | D30: =D2/D4 -> 5.2
A31: Dim.-less length of dead room | B31: x [-] | C31: x0/r | D31: =D7/D5 -> 0.07142857143
A32: Dim.-less length of cylinder | B32: d [-] | C32: 2 +x0/r | D32: =1+D7/D5 -> 1.071428571
A34: Cylinder cross area (cylinder bore section) | B34: ACyl [m²] | C34: π Di²/4 | D34: =PI()*D2^2/4 -> 0.0005309291585
A35: Medium cylinder circumference | B35: UCyl [m] | C35: π· (Da+Di)/2 | D35: =PI()*(D2+D3)/2 -> 0.08482300165
A36: Start volume / dead room volune | B36: V0 [m³] | C36: AC·x0 | D36: =D34*D7 -> 5.309291585e-07
A37: Maximom volume | B37: Vmax [m³] | C37: ACyl·(2·r+x0) | D37: =D34*(D7+2*D5) -> 1.53969456e-05
A39: Final temperature | B39: Tend [K] | D39: =Res!K730 -> 844.2738405
A40: Starting mass | B40: m0 [kg] | C40: pext* V0 / (Rs*T0) | D40: =D13*D36/(D22*D18) -> 2.147123619e-07
A41: Starting heat | B41: Q0 [kgm²/s²] | C41: cp·m0·T0 | D41: =D18*D40*D18 -> 0.1636385176
A43: Drag of valve bore / suck in (is not needed) | B43: ζin [-] | C43: ζ | D43: =(0.00594*($D$30^2)^4-0.113164*($D$30^2)^3+3.434483*($D$30^2)^2-4.6503938*($D$30^2)+1.823135) -> 3325.425175
A44: Drag of valve bore / press out (is not neede) | B44: ζout [-] | C44: ζ | D44: =(0.00594*($D$30^2)^4-0.113164*($D$30^2)^3+3.434483*($D$30^2)^2-4.6503938*($D$30^2)+1.823135) -> 3325.425175
A45: coefficient (is not needed) | B45: a0 [ ] | C45: ζ / (2*RS) | D45: =D43/(2*D22) -> 5.79342365
A51: https://docs.microsoft.com/de-de/dotnet/visual-basic/language-reference/statements/exit-statement
K729: T [k]

Sheet Res
B3: Di | C3: Da | D3: Dd | E3: r | F3: L | G3: Acyl | H3: j1 | I3: lamb | J3: zeta | K3: delta | L3: Tatm | M3: TF | N3: Tcyl | O3: Tstart | P3: patm | Q3: i2
B4: 0.026 | C4: 0.028 | D4: 0.005 | E4: 0.014 | F4: 0.054 | G4: 0.0005309291585 | H4: 135 | I4: 0.2592592593 | J4: 3325.425175 | K4: 1.071428571 | L4: 293 | M4: 1473 | N4: 293 | O4: 873 | P4: 101325 | Q4: 494
B5: cp | C5: cv | D5: Rs | E5: gamma | F5: k | G5: df | H5: dt | I5: x(0) | J5: p(0) | K5: T(0) | L5: m(0) | M5: Q(0) | N5: Omega | O5: u | P5: h | Q5: j2
B6: 1001 | C6: 714 | D6: 287 | E6: 1.401960784 | F6: 20 | G6: 0.008726646261 | H6: 8.333333334e-05 | I6: 0.001 | J6: 101325 | K6: 873 | L6: 2.147123619e-07 | M6: 0.1876313358 | N6: 104.7197551 | O6: 0 | P6: 0.001282911745 | Q6: 247
B9: i | C9: f(i) [rad] | D9: df | E9: x(i) | F9: dx(i) | G9: vx(i) | H9: OF(i) | I9: V(i) | J9: p(i) | K9: T(i) | L9: m(i) | M9: Q(i) | N9: dW(i) | O9: dP(i) | P9: Q*dx | Q9: f(i)
B10: 0 | C10: 0 | D10: 0.008726646261 | E10: 0.001 | F10: 0 | G10: 0 | H10: 8.482300166e-05 | I10: 5.309291585e-07 | J10: 101325 | K10: 844.273842 | L10: 2.220178837e-07 | M10: 0.1876313358 | N10: 0 | O10: 0 | Q10: 0
B11: 1 | C11: 0.008726646261 | D11: 0.008726646261 | E11: 0.00100067128 | F11: 1.342545508e-06 | G11: 0.01611054609 | H11: 8.487994161e-05 | I11: 5.323547224e-07 | J11: 101324.8966 | K11: 844.2209381 | L11: 2.226277331e-07 | M11: 0.1881349407 | N11: -7.372840293e-11 | O11: -7.7208203e-09 | Q11: 0.5
B12: 2 | C12: 0.01745329252 | D12: 0.008726646261 | E12: 0.001002685036 | F12: 2.68492563e-06 | G12: 0.03221910756 | H12: 8.505075446e-05 | I12: 5.341365125e-07 | J12: 101324.5863 | K12: 842.2294498 | L12: 2.23900357e-07 | M12: 0.1887640499 | N12: -5.897164354e-10 | O12: -6.17549607e-08 | Q12: 1
B13: 3 | C13: 0.02617993878 | D13: 0.008726646261 | E13: 0.001006041021 | F13: 4.026975015e-06 | G13: 0.04832370018 | H13: 8.533541916e-05 | I13: 5.366307115e-07 | J13: 101324.0694 | K13: 841.2977561 | L13: 2.251938471e-07 | M13: 0.1896445333 | N13: -1.989669943e-09 | O13: -2.083577492e-07 | Q13: 1.5
B14: 4 | C14: 0.03490658504 | D14: 0.008726646261 | E14: 0.001010738821 | F14: 5.368528373e-06 | G14: 0.06442234047 | H14: 8.573390065e-05 | I14: 5.39837012e-07 | J14: 101323.3461 | K14: 840.8528433 | L14: 2.266576004e-07 | M14: 0.1907762735 | N14: -4.714187935e-09 | O14: -4.936686061e-07 | Q14: 2
B15: 5 | C15: 0.04363323131 | D15: 0.008726646261 | E15: 0.001016777857 | F15: 6.70942051e-06 | G15: 0.08051304611 | H15: 8.624614985e-05 | I15: 5.437550192e-07 | J15: 101322.4167 | K15: 840.8864545 | L15: 2.282914073e-07 | M15: 0.1921591193 | N15: -9.202210982e-09 | O15: -9.636532806e-07 | Q15: 2.5
B16: 6 | C16: 0.05235987757 | D16: 0.008726646261 | E16: 0.001024157386 | F16: 8.04948636e-06 | G16: 0.09659383631 | H16: 8.687210366e-05 | I16: 5.483842506e-07 | J16: 101321.2818 | K16: 841.3883436 | L16: 2.300950422e-07 | M16: 0.1937928857 | N16: -1.589047181e-08 | O16: -1.664046316e-06 | Q16: 3
B17: 7 | C17: 0.06108652383 | D17: 0.008726646261 | E17: 0.001032876499 | F17: 9.388561014e-06 | G17: 0.1126627322 | H17: 8.761168501e-05 | I17: 5.537241363e-07 | J17: 101319.9419 | K17: 842.3464158 | L17: 2.320682661e-07 | M17: 0.195677354 | N17: -2.521294877e-08 | O17: -2.640293821e-06 | Q17: 3.5
B18: 8 | C18: 0.06981317009 | D18: 0.008726646261 | E18: 0.001042934123 | F18: 1.072647976e-05 | G18: 0.1287177571 | H18: 8.846480283e-05 | I18: 5.597740187e-07 | J18: 101318.3977 | K18: 843.7468826 | L18: 2.342108295e-07 | M18: 0.1978122719 | N18: -3.7600323e-08 | O18: -3.937496617e-06 | Q18: 4
B19: 9 | C19: 0.07853981635 | D19: 0.008726646261 | E19: 0.001054329019 | F19: 1.206307809e-05 | G19: 0.1447569371 | H19: 8.94313521e-05 | I19: 5.665331533e-07 | J19: 101316.6499 | K19: 845.5744291 | L19: 2.36522474e-07 | M19: 0.2001973533 | N19: -5.34794398e-08 | O19: -5.60035384e-06 | Q19: 4.5
B20: 10 | C20: 0.08726646261 | D20: 0.008726646261 | E20: 0.001067059784 | F20: 1.339819178e-05 | G20: 0.1607783013 | H20: 9.051121384e-05 | I20: 5.740007083e-07 | J20: 101314.6995 | K20: 847.812389 | L20: 2.390029346e-07 | M20: 0.2028322786 | N20: -7.32727752e-08 | O20: -7.673107076e-06 | Q20: 5
B21: 11 | C21: 0.09599310887 | D21: 0.008726646261 | E21: 0.001081124853 | F21: 1.473165687e-05 | G21: 0.1767798824 | H21: 9.170425517e-05 | I21: 5.82175765e-07 | J21: 101312.5474 | K21: 850.4429263 | L21: 2.41651941e-07 | M21: 0.205716695 | N21: -9.739790812e-08 | O21: -1.019948509e-05 | Q21: 5.5
B22: 12 | C22: 0.1047197551 | D22: 0.008726646261 | E22: 0.001096522494 | F22: 1.606330971e-05 | G22: 0.1927597165 | H22: 9.301032931e-05 | I22: 5.910573177e-07 | J22: 101310.1947 | K22: 853.4472178 | L22: 2.444692188e-07 | M22: 0.2088502162 | N22: -1.262669991e-07 | O22: -1.322264922e-05 | Q22: 6
B23: 13 | C23: 0.1134464014 | D23: 0.008726646261 | E23: 0.001113250814 | F23: 1.739298702e-05 | G23: 0.2087158443 | H23: 9.442927561e-05 | I23: 6.006442744e-07 | J23: 101307.6426 | K23: 856.8056359 | L23: 2.474544908e-07 | M23: 0.2122324227 | N23: -1.602862759e-07 | O23: -1.678513956e-05 | Q23: 6.5
B24: 14 | C24: 0.1221730477 | D24: 0.008726646261 | E24: 0.001131307755 | F24: 1.87205259e-05 | G24: 0.2246463107 | H24: 9.596091958e-05 | I24: 6.109354566e-07 | J24: 101304.8923 | K24: 860.4979279 | L24: 2.506074772e-07 | M24: 0.2158628621 | N24: -1.998555274e-07 | O24: -2.092882189e-05 | Q24: 7
B25: 15 | C25: 0.1308996939 | D25: 0.008726646261 | E25: 0.001150691098 | F25: 2.004576383e-05 | G25: 0.2405491659 | H25: 9.760507295e-05 | I25: 6.219295996e-07 | J25: 101301.9454 | K25: 864.5033902 | L25: 2.539278964e-07 | M25: 0.2197410488 | N25: -2.453676051e-07 | O25: -2.569483552e-05 | Q25: 7.5
B26: 16 | C26: 0.1396263402 | D26: 0.008726646261 | E26: 0.001171398462 | F26: 2.136853876e-05 | G26: 0.2564224651 | H26: 9.936153366e-05 | I26: 6.336253527e-07 | J26: 101298.8032 | K26: 868.8010338 | L26: 2.574154647e-07 | M26: 0.2238664647 | N26: -2.972079345e-07 | O26: -3.112354212e-05 | Q26: 8
B27: 17 | C27: 0.1483529864 | D27: 0.008726646261 | E27: 0.001193427301 | F27: 2.268868911e-05 | G27: 0.2722642693 | H27: 0.0001012300859 | I27: 6.460212798e-07 | J27: 101295.4673 | K27: 873.3697423 | L27: 2.610698967e-07 | M27: 0.228238559 | N27: -3.557540356e-07 | O27: -3.72544755e-05 | Q27: 8.5
B28: 18 | C28: 0.1570796327 | D28: 0.008726646261 | E28: 0.001216774911 | F28: 2.40060538e-05 | G28: 0.2880726455 | H28: 0.0001032105003 | I28: 6.591158592e-07 | J28: 101291.9393 | K28: 878.1884176 | L28: 2.648909044e-07 | M28: 0.2328567483 | N28: -4.213750544e-07 | O28: -4.412629252e-05 | Q28: 9
B29: 19 | C29: 0.165806279 | D29: 0.008726646261 | E29: 0.001241438427 | F29: 2.532047227e-05 | G29: 0.3038456672 | H29: 0.0001053025337 | I29: 6.729074842e-07 | J29: 101288.2212 | K29: 883.2361151 | L29: 2.68878197e-07 | M29: 0.2377204171 | N29: -4.944313044e-07 | O29: -5.177672512e-05 | Q29: 9.5
B30: 20 | C30: 0.1745329252 | D30: 0.008726646261 | E30: 0.001267414821 | F30: 2.663178455e-05 | G30: 0.3195814146 | H30: 0.0001075059294 | I30: 6.873944632e-07 | J30: 101284.3147 | K30: 888.4921661 | L30: 2.730314804e-07 | M30: 0.2428289177 | N30: -5.752738202e-07 | O30: -6.024253358e-05 | Q30: 10
B31: 21 | C31: 0.1832595715 | D31: 0.008726646261 | E31: 0.001294700907 | F31: 2.793983125e-05 | G31: 0.3352779749 | H31: 0.0001098204172 | I31: 7.025750203e-07 | J31: 101280.2217 | K31: 893.9362876 | L31: 2.773504561e-07 | M31: 0.2481815707 | N31: -6.642439233e-07 | O31: -6.955946099e-05 | Q31: 10.5
B32: 22 | C32: 0.1919862177 | D32: 0.008726646261 | E32: 0.001323293342 | F32: 2.924445361e-05 | G32: 0.3509334432 | H32: 0.0001122457133 | I32: 7.184472955e-07 | J32: 101275.9444 | K32: 899.5486792 | L32: 2.818348207e-07 | M32: 0.2537776648 | N32: -7.616728e-07 | O32: -7.97621891e-05 | Q32: 11
B33: 23 | C33: 0.200712864 | D33: 0.008726646261 | E33: 0.00135318862 | F33: 3.054549352e-05 | G33: 0.3665459222 | H33: 0.0001147815206 | I33: 7.350093448e-07 | J33: 101271.4849 | K33: 905.3101068 | L33: 2.864842646e-07 | M33: 0.2596164573 | N33: -8.678810928e-07 | O33: -9.088429551e-05 | Q33: 11.5
B34: 24 | C34: 0.2094395103 | D34: 0.008726646261 | E34: 0.001384383082 | F34: 3.184279356e-05 | G34: 0.3821135227 | H34: 0.0001174275285 | I34: 7.52259141e-07 | J34: 101266.8453 | K34: 911.2019747 | L34: 2.912984715e-07 | M34: 0.2656971742 | N34: -9.831785054e-07 | O34: -0.0001029582123 | Q34: 12
B35: 25 | C35: 0.2181661565 | D35: 0.008726646261 | E35: 0.001416872908 | F35: 3.313619704e-05 | G35: 0.3976343644 | H35: 0.0001201834131 | I35: 7.70194574e-07 | J35: 101262.0281 | K35: 917.2063844 | L35: 2.962771171e-07 | M35: 0.2720190106 | N35: -1.107863422e-06 | O35: -0.0001160151862 | Q35: 12.5
B36: 26 | C36: 0.2268928028 | D36: 0.008726646261 | E36: 0.001450654125 | F36: 3.442554798e-05 | G36: 0.4131065757 | H36: 0.0001230488373 | I36: 7.888134508e-07 | J36: 101257.0355 | K36: 923.3061828 | L36: 3.014198682e-07 | M36: 0.2785811307 | N36: -1.242222539e-06 | O36: -0.0001300852401 | Q36: 13
B37: 27 | C37: 0.2356194491 | D37: 0.008726646261 | E37: 0.001485722602 | F37: 3.571069121e-05 | G37: 0.4285282945 | H37: 0.0001260234507 | I37: 8.081134965e-07 | J37: 101251.8702 | K37: 929.4849991 | L37: 3.067263819e-07 | M37: 0.2853826684 | N37: -1.386530519e-06 | O37: -0.0001451971364 | Q37: 13.5
B38: 28 | C38: 0.2443460953 | D38: 0.008726646261 | E38: 0.001522074054 | F38: 3.699147235e-05 | G38: 0.4438976681 | H38: 0.00012910689 | I38: 8.280923542e-07 | J38: 101246.5346 | K38: 935.7272721 | L38: 3.121963045e-07 | M38: 0.292422727 | N38: -1.541049647e-06 | O38: -0.0001613783417 | Q38: 14
B39: 29 | C39: 0.2530727416 | D39: 0.008726646261 | E39: 0.001559704041 | F39: 3.826773784e-05 | G39: 0.459212854 | H39: 0.0001322987785 | I39: 8.48747586e-07 | J39: 101241.0313 | K39: 942.0182675 | L39: 3.178292707e-07 | M39: 0.2997003799 | N39: -1.706029518e-06 | O39: -0.0001786549934 | Q39: 14.5
B40: 30 | C40: 0.2617993878 | D40: 0.008726646261 | E40: 0.001598607973 | F40: 3.9539335e-05 | G40: 0.4744720199 | H40: 0.0001355987268 | I40: 8.700766729e-07 | J40: 101235.3633 | K40: 948.3440877 | L40: 3.236249029e-07 | M40: 0.307214671 | N40: -1.88170673e-06 | O40: -0.000197051868 | Q40: 15
B41: 31 | C41: 0.2705260341 | D41: 0.008726646261 | E41: 0.001638781105 | F41: 4.080611203e-05 | G41: 0.4896733442 | H41: 0.0001390063324 | I41: 8.920770157e-07 | J41: 101229.5331 | K41: 954.6916737 | L41: 3.2958281e-07 | M41: 0.3149646145 | N41: -2.068304595e-06 | O41: -0.0002165923507 | Q41: 15.5
B42: 32 | C42: 0.2792526804 | D42: 0.008726646261 | E42: 0.00168021854 | F42: 4.206791805e-05 | G42: 0.5048150165 | H42: 0.00014252118 | I42: 9.147459352e-07 | J42: 101223.5438 | K42: 961.0488004 | L42: 3.357025873e-07 | M42: 0.3229491953 | N42: -2.266032872e-06 | O42: -0.0002372984075 | Q42: 16
B43: 33 | C43: 0.2879793266 | D43: 0.008726646261 | E43: 0.001722915234 | F43: 4.332460313e-05 | G43: 0.5198952375 | H43: 0.0001461428417 | I43: 9.380806732e-07 | J43: 101217.3982 | K43: 967.4040659 | L43: 3.419838153e-07 | M43: 0.3311673699 | N43: -2.475087514e-06 | O43: -0.0002591905584 | Q43: 16.5
B44: 34 | C44: 0.2967059729 | D44: 0.008726646261 | E44: 0.00176686599 | F44: 4.457601831e-05 | G44: 0.5349122196 | H44: 0.0001498708768 | I44: 9.620783922e-07 | J44: 101211.0995 | K44: 973.7468762 | L44: 3.484260594e-07 | M44: 0.3396180657 | N44: -2.695650429e-06 | O44: -0.0002822878528 | Q44: 17
B45: 35 | C45: 0.3054326191 | D45: 0.008726646261 | E45: 0.001812065464 | F45: 4.582201563e-05 | G45: 0.5498641875 | H45: 0.0001537048319 | I45: 9.867361767e-07 | J45: 101204.6506 | K45: 980.0674253 | L45: 3.550288695e-07 | M45: 0.3483001822 | N45: -2.927889267e-06 | O45: -0.000306607847 | Q45: 17.5
B46: 36 | C46: 0.3141592654 | D46: 0.008726646261 | E46: 0.001858508166 | F46: 4.706244816e-05 | G46: 0.5647493779 | H46: 0.0001576442413 | I46: 1.012051034e-06 | J46: 101198.0548 | K46: 986.3566721 | L46: 3.617917789e-07 | M46: 0.3572125908 | N46: -3.171957215e-06 | O46: -0.0003321665828 | Q46: 18
B47: 37 | C47: 0.3228859117 | D47: 0.008726646261 | E47: 0.001906188457 | F47: 4.829717004e-05 | G47: 0.5795660403 | H47: 0.0001616886267 | I47: 1.038019892e-06 | J47: 101191.3153 | K47: 992.606314 | L47: 3.687143049e-07 | M47: 0.3663541352 | N47: -3.42799282e-06 | O47: -0.0003589785687 | Q47: 18.5
B48: 38 | C48: 0.3316125579 | D48: 0.008726646261 | E48: 0.001955100554 | F48: 4.952603646e-05 | G48: 0.5943124374 | H48: 0.0001658374976 | I48: 1.064639606e-06 | J48: 101184.4354 | K48: 998.8087584 | L48: 3.757959474e-07 | M48: 0.375723632 | N48: -3.696119825e-06 | O48: -0.000387056763 | Q48: 19
B49: 39 | C49: 0.3403392042 | D49: 0.008726646261 | E49: 0.00200523853 | F49: 5.074890375e-05 | G49: 0.6089868449 | H49: 0.0001700903512 | I49: 1.091906951e-06 | J49: 101177.4185 | K49: 1004.957093 | L49: 3.830361895e-07 | M49: 0.3853198705 | N49: -3.976447021e-06 | O49: -0.0004164125582 | Q49: 19.5
B50: 40 | C50: 0.3490658504 | D50: 0.008726646261 | E50: 0.002056596315 | F50: 5.196562937e-05 | G50: 0.6235875523 | H50: 0.0001744466726 | I50: 1.119818629e-06 | J50: 101170.2679 | K50: 1011.045054 | L50: 3.904344967e-07 | M50: 0.3951416137 | N50: -4.269068122e-06 | O50: -0.0004470557684 | Q50: 20
B51: 41 | C51: 0.3577924967 | D51: 0.008726646261 | E51: 0.002109167695 | F51: 5.317607192e-05 | G51: 0.638112863 | H51: 0.0001789059349 | I51: 1.148371268e-06 | J51: 101162.9873 | K51: 1017.066994 | L51: 3.97990317e-07 | M51: 0.405187598 | N51: -4.574061663e-06 | O51: -0.0004789946172 | Q51: 20.5
B52: 42 | C52: 0.366519143 | D52: 0.008726646261 | E52: 0.002162946317 | F52: 5.438009122e-05 | G52: 0.6525610945 | H52: 0.0001834675991 | I52: 1.17756142e-06 | J52: 101155.58 | K52: 1023.017849 | L52: 4.057030805e-07 | M52: 0.4154565342 | N52: -4.891490902e-06 | O52: -0.0005122357294 | Q52: 21
B53: 43 | C53: 0.3752457892 | D53: 0.008726646261 | E53: 0.00221792569 | F53: 5.557754827e-05 | G53: 0.6669305792 | H53: 0.0001881311145 | I53: 1.207385564e-06 | J53: 101148.0497 | K53: 1028.893107 | L53: 4.135721999e-07 | M53: 0.4259471072 | N53: -5.221403756e-06 | O53: -0.0005467841227 | Q53: 21.5
B54: 44 | C54: 0.3839724355 | D54: 0.008726646261 | E54: 0.002274099181 | F54: 5.676830533e-05 | G54: 0.6812196639 | H54: 0.0001928959186 | I54: 1.237840107e-06 | J54: 101140.4001 | K54: 1034.688773 | L54: 4.215970697e-07 | M54: 0.4366579767 | N54: -5.563832751e-06 | O54: -0.0005826432032 | Q54: 22
B55: 45 | C55: 0.3926990818 | D55: 0.008726646261 | E55: 0.002331460022 | F55: 5.795222592e-05 | G55: 0.6954267109 | H55: 0.0001977614373 | I55: 1.268921384e-06 | J55: 101132.6348 | K55: 1040.401342 | L55: 4.297770668e-07 | M55: 0.4475877777 | N55: -5.918794986e-06 | O55: -0.0006198147615 | Q55: 22.5
B56: 46 | C56: 0.401425728 | D56: 0.008726646261 | E56: 0.002390001308 | F56: 5.912917482e-05 | G56: 0.7095500978 | H56: 0.0002027270849 | I56: 1.300625656e-06 | J56: 101124.7575 | K56: 1046.02776 | L56: 4.381115501e-07 | M56: 0.4587351204 | N56: -6.286292119e-06 | O56: -0.0006582989713 | Q56: 23
B57: 47 | C57: 0.4101523743 | D57: 0.008726646261 | E57: 0.002449716003 | F57: 6.029901816e-05 | G57: 0.7235882179 | H57: 0.0002077922646 | I57: 1.332949117e-06 | J57: 101116.7722 | K57: 1051.565402 | L57: 4.46599861e-07 | M57: 0.4700985912 | N57: -6.666310378e-06 | O57: -0.0006980943904 | Q57: 23.5
B58: 48 | C58: 0.4188790205 | D58: 0.008726646261 | E58: 0.002510596932 | F58: 6.146162338e-05 | G58: 0.7375394805 | H58: 0.0002129563677 | I58: 1.365887888e-06 | J58: 101108.6826 | K58: 1057.012034 | L58: 4.55241323e-07 | M58: 0.4816767525 | N58: -7.058820579e-06 | O58: -0.0007391979625 | Q58: 24
B59: 49 | C59: 0.4276056668 | D59: 0.008726646261 | E59: 0.002572636793 | F59: 6.261685928e-05 | G59: 0.7514023112 | H59: 0.000218218775 | I59: 1.399438022e-06 | J59: 101100.4925 | K59: 1062.365793 | L59: 4.640352423e-07 | M59: 0.4934681433 | N59: -7.46377817e-06 | O59: -0.0007816050222 | Q59: 24.5
B60: 50 | C60: 0.4363323131 | D60: 0.008726646261 | E60: 0.002635828151 | F60: 6.376459604e-05 | G60: 0.7651751523 | H60: 0.0002235788556 | I60: 1.433595504e-06 | J60: 101092.2059 | K60: 1067.625152 | L60: 4.729809078e-07 | M60: 0.5054712797 | N60: -7.881123293e-06 | O60: -0.0008253093013 | Q60: 25
B61: 51 | C61: 0.4450589593 | D61: 0.008726646261 | E61: 0.002700163442 | F61: 6.490470524e-05 | G61: 0.7788564627 | H61: 0.0002290359682 | I61: 1.468356251e-06 | J61: 101083.8268 | K61: 1072.788898 | L61: 4.820775908e-07 | M61: 0.517684655 | N61: -8.310780862e-06 | O61: -0.0008703029367 | Q61: 25.5
B62: 52 | C62: 0.4537856056 | D62: 0.008726646261 | E62: 0.002765634977 | F62: 6.603705989e-05 | G62: 0.7924447186 | H62: 0.0002345894602 | I62: 1.503716111e-06 | J62: 101075.3591 | K62: 1077.856109 | L62: 4.91324546e-07 | M62: 0.5301067405 | N62: -8.75266066e-06 | O62: -0.000916576481 | Q62: 26
B63: 53 | C63: 0.4625122518 | D63: 0.008726646261 | E63: 0.002832234936 | F63: 6.716153446e-05 | G63: 0.8059384135 | H63: 0.0002402386686 | I63: 1.539670868e-06 | J63: 101066.8068 | K63: 1082.826124 | L63: 5.007210112e-07 | M63: 0.5427359854 | N63: -9.206657454e-06 | O63: -0.000964118914 | Q63: 26.5
B64: 54 | C64: 0.4712388981 | D64: 0.008726646261 | E64: 0.002899955377 | F64: 6.827800487e-05 | G64: 0.8193360583 | H64: 0.0002459829198 | I64: 1.57621624e-06 | J64: 101058.174 | K64: 1087.698526 | L64: 5.102662075e-07 | M64: 0.5555708175 | N64: -9.672651127e-06 | O64: -0.001012917657 | Q64: 27
B65: 55 | C65: 0.4799655444 | D65: 0.008726646261 | E65: 0.002968788236 | F65: 6.938634853e-05 | G65: 0.8326361822 | H65: 0.0002518215295 | I65: 1.61334788e-06 | J65: 101049.4648 | K65: 1092.47312 | L65: 5.199593398e-07 | M65: 0.5686096436 | N65: -1.015050683e-05 | O65: -0.001062958589 | Q65: 27.5
B66: 56 | C66: 0.4886921906 | D66: 0.008726646261 | E66: 0.003038725325 | F66: 7.048644436e-05 | G66: 0.8458373322 | H66: 0.0002577538033 | I66: 1.651061377e-06 | J66: 101040.6832 | K66: 1097.149911 | L66: 5.297995967e-07 | M66: 0.5818508497 | N66: -1.064007514e-05 | O66: -0.001114226063 | Q66: 28
B67: 57 | C67: 0.4974188369 | D67: 0.008726646261 | E67: 0.003109758336 | F67: 7.157817283e-05 | G67: 0.8589380739 | H67: 0.0002637790365 | I67: 1.689352256e-06 | J67: 101031.8334 | K67: 1101.729087 | L67: 5.397861513e-07 | M67: 0.5952928017 | N67: -1.114119225e-05 | O67: -0.001166702924 | Q67: 28.5
B68: 58 | C68: 0.5061454831 | D68: 0.008726646261 | E68: 0.003181878842 | F68: 7.266141594e-05 | G68: 0.8719369912 | H68: 0.0002698965143 | I68: 1.728215983e-06 | J68: 101022.9195 | K68: 1106.211002 | L68: 5.499181608e-07 | M68: 0.6089338453 | N68: -1.165368019e-05 | O68: -0.001220370536 | Q68: 29
B69: 59 | C69: 0.5148721294 | D69: 0.008726646261 | E69: 0.003255078301 | F69: 7.373605728e-05 | G69: 0.8848326872 | H69: 0.0002761055121 | I69: 1.767647959e-06 | J69: 101013.9457 | K69: 1110.596159 | L69: 5.601947672e-07 | M69: 0.622772307 | N69: -1.217734699e-05 | O69: -0.001275208795 | Q69: 29.5
B70: 60 | C70: 0.5235987757 | D70: 0.008726646261 | E70: 0.003329348051 | F70: 7.480198199e-05 | G70: 0.8976237838 | H70: 0.0002824052953 | I70: 1.807643527e-06 | J70: 101004.9162 | K70: 1114.885194 | L70: 5.706150977e-07 | M70: 0.636806494 | N70: -1.271198696e-05 | O70: -0.001331196162 | Q70: 30
B71: 61 | C71: 0.5323254219 | D71: 0.008726646261 | E71: 0.003404679321 | F71: 7.585907687e-05 | G71: 0.9103089224 | H71: 0.0002887951197 | I71: 1.848197969e-06 | J71: 100995.835 | K71: 1119.078862 | L71: 5.811782644e-07 | M71: 0.6510346949 | N71: -1.325738093e-05 | O71: -0.001388309684 | Q71: 30.5
B72: 62 | C72: 0.5410520682 | D72: 0.008726646261 | E72: 0.003481063225 | F72: 7.690723032e-05 | G72: 0.9228867638 | H72: 0.0002952742317 | I72: 1.889306507e-06 | J72: 100986.7066 | K72: 1123.178026 | L72: 5.918833654e-07 | M72: 0.6654551801 | N72: -1.381329647e-05 | O72: -0.001446525024 | Q72: 31
B73: 63 | C73: 0.5497787145 | D73: 0.008726646261 | E73: 0.003558490765 | F73: 7.794633238e-05 | G73: 0.9353559885 | H73: 0.000301841868 | I73: 1.930964309e-06 | J73: 100977.5349 | K73: 1127.183642 | L73: 6.027294842e-07 | M73: 0.6800662019 | N73: -1.437948824e-05 | O73: -0.001505816488 | Q73: 31.5
B74: 64 | C74: 0.5585053607 | D74: 0.008726646261 | E74: 0.003636952836 | F74: 7.897627477e-05 | G74: 0.9477152971 | H74: 0.0003084972564 | I74: 1.973166482e-06 | J74: 100968.3243 | K74: 1131.09675 | L74: 6.137156909e-07 | M74: 0.6948659952 | N74: -1.495569822e-05 | O74: -0.001566157055 | Q74: 32
B75: 65 | C75: 0.567232007 | D75: 0.008726646261 | E75: 0.003716440225 | F75: 7.999695087e-05 | G75: 0.9599634103 | H75: 0.0003152396154 | I75: 2.015908078e-06 | J75: 100959.079 | K75: 1134.918462 | L75: 6.248410417e-07 | M75: 0.7098527778 | N75: -1.554165601e-05 | O75: -0.001627518412 | Q75: 32.5
B76: 66 | C76: 0.5759586532 | D76: 0.008726646261 | E76: 0.003796943614 | F76: 8.100825577e-05 | G76: 0.9720990691 | H76: 0.0003220681545 | I76: 2.059184095e-06 | J76: 100949.8032 | K76: 1138.649954 | L76: 6.361045798e-07 | M76: 0.7250247508 | N76: -1.613707922e-05 | O76: -0.001689870984 | Q76: 33
B77: 67 | C77: 0.5846852995 | D77: 0.008726646261 | E77: 0.003878453579 | F77: 8.201008627e-05 | G77: 0.9841210351 | H77: 0.0003289820744 | I77: 2.102989475e-06 | J77: 100940.5012 | K77: 1142.292454 | L77: 6.475053354e-07 | M77: 0.740380099 | N77: -1.674167371e-05 | O77: -0.001753183971 | Q77: 33.5
B78: 68 | C78: 0.5934119458 | D78: 0.008726646261 | E78: 0.003960960595 | F78: 8.30023409e-05 | G78: 0.9960280906 | H78: 0.0003359805671 | I78: 2.147319109e-06 | J78: 100931.177 | K78: 1145.847239 | L78: 6.59042326e-07 | M78: 0.7559169914 | N78: -1.735513398e-05 | O78: -0.001817425381 | Q78: 34
B79: 69 | C79: 0.602138592 | D79: 0.008726646261 | E79: 0.004044455035 | F79: 8.398491992e-05 | G79: 1.007819039 | H79: 0.0003430628162 | I79: 2.192167831e-06 | J79: 100921.835 | K79: 1149.315623 | L79: 6.707145569e-07 | M79: 0.7716335813 | N79: -1.797714354e-05 | O79: -0.00188256207 | Q79: 34.5
B80: 70 | C80: 0.6108652383 | D80: 0.008726646261 | E80: 0.004128927177 | F80: 8.495772536e-05 | G80: 1.019492704 | H80: 0.0003502279967 | I80: 2.237530429e-06 | J80: 100912.4794 | K80: 1152.698952 | L80: 6.825210212e-07 | M80: 0.7875280071 | N80: -1.860737524e-05 | O80: -0.001948559778 | Q80: 35
B81: 71 | C81: 0.6195918845 | D81: 0.008726646261 | E81: 0.004214367196 | F81: 8.592066104e-05 | G81: 1.031047932 | H81: 0.0003574752757 | I81: 2.283401637e-06 | J81: 100903.1143 | K81: 1155.998599 | L81: 6.944607005e-07 | M81: 0.8035983924 | N81: -1.924549164e-05 | O81: -0.002015383171 | Q81: 35.5
B82: 72 | C82: 0.6283185308 | D82: 0.008726646261 | E82: 0.004300765177 | F82: 8.687363253e-05 | G82: 1.04248359 | H82: 0.0003648038118 | I82: 2.329776139e-06 | J82: 100893.7439 | K82: 1159.215956 | L82: 7.065325647e-07 | M82: 0.8198428465 | N82: -1.989114543e-05 | O82: -0.002082995879 | Q82: 36
B83: 73 | C83: 0.6370451771 | D83: 0.008726646261 | E83: 0.004388111109 | F83: 8.781654723e-05 | G83: 1.053798567 | H83: 0.0003722127559 | I83: 2.376648572e-06 | J83: 100884.3725 | K83: 1162.352432 | L83: 7.187355728e-07 | M83: 0.8362594648 | N83: -2.054397982e-05 | O83: -0.002151360536 | Q83: 36.5
B84: 74 | C84: 0.6457718233 | D84: 0.008726646261 | E84: 0.004476394889 | F84: 8.874931434e-05 | G84: 1.064991772 | H84: 0.0003797012511 | I84: 2.424013525e-06 | J84: 100875.004 | K84: 1165.409443 | L84: 7.310686729e-07 | M84: 0.8528463292 | N84: -2.120362891e-05 | O84: -0.002220438827 | Q84: 37
B85: 75 | C85: 0.6544984696 | D85: 0.008726646261 | E85: 0.004565606326 | F85: 8.96718449e-05 | G85: 1.076062139 | H85: 0.0003872684329 | I85: 2.471865539e-06 | J85: 100865.6428 | K85: 1168.388415 | L85: 7.435308025e-07 | M85: 0.8696015083 | N85: -2.186971815e-05 | O85: -0.002290191529 | Q85: 37.5
B86: 76 | C86: 0.6632251158 | D86: 0.008726646261 | E86: 0.004655735138 | F86: 9.058405177e-05 | G86: 1.087008621 | H86: 0.0003949134293 | I86: 2.520199111e-06 | J86: 100856.2929 | K86: 1171.290774 | L86: 7.561208888e-07 | M86: 0.8865230582 | N86: -2.254186472e-05 | O86: -0.002360578553 | Q86: 38
B87: 77 | C87: 0.6719517621 | D87: 0.008726646261 | E87: 0.004746770959 | F87: 9.148584968e-05 | G87: 1.097830196 | H87: 0.000402635361 | I87: 2.569008692e-06 | J87: 100846.9584 | K87: 1174.117946 | L87: 7.688378492e-07 | M87: 0.9036090225 | N87: -2.321967798e-05 | O87: -0.002431558992 | Q87: 38.5
B88: 78 | C88: 0.6806784084 | D88: 0.008726646261 | E88: 0.00483870334 | F88: 9.237715521e-05 | G88: 1.108525862 | H88: 0.0004104333414 | I88: 2.61828869e-06 | J88: 100837.6434 | K88: 1176.871353 | L88: 7.816805912e-07 | M88: 0.9208574329 | N88: -2.390275991e-05 | O88: -0.002503091165 | Q88: 39
B89: 79 | C89: 0.6894050546 | D89: 0.008726646261 | E89: 0.004931521745 | F89: 9.325788681e-05 | G89: 1.119094642 | H89: 0.0004183064772 | I89: 2.66803347e-06 | J89: 100828.3518 | K89: 1179.552412 | L89: 7.946480131e-07 | M89: 0.9382663094 | N89: -2.459070554e-05 | O89: -0.002575132662 | Q89: 39.5
B90: 80 | C90: 0.6981317009 | D90: 0.008726646261 | E90: 0.005025215562 | F90: 9.412796483e-05 | G90: 1.129535578 | H90: 0.0004262538679 | I90: 2.718237354e-06 | J90: 100819.0878 | K90: 1182.162527 | L90: 8.077390039e-07 | M90: 0.9558336609 | N90: -2.528310338e-05 | O90: -0.002647640395 | Q90: 40
B91: 81 | C91: 0.7068583471 | D91: 0.008726646261 | E91: 0.005119774098 | F91: 9.49873115e-05 | G91: 1.139847738 | H91: 0.0004342746068 | I91: 2.768894624e-06 | J91: 100809.8553 | K91: 1184.703094 | L91: 8.209524437e-07 | M91: 0.9735574854 | N91: -2.597953591e-05 | O91: -0.002720570639 | Q91: 40.5
B92: 82 | C92: 0.7155849934 | D92: 0.008726646261 | E92: 0.005215186583 | F92: 9.583585094e-05 | G92: 1.150030211 | H92: 0.0004423677801 | I92: 2.819999523e-06 | J92: 100800.6583 | K92: 1187.175496 | L92: 8.342872042e-07 | M92: 0.9914357704 | N92: -2.667958002e-05 | O92: -0.002793879086 | Q92: 41
B93: 83 | C93: 0.7243116397 | D93: 0.008726646261 | E93: 0.005311442172 | F93: 9.667350922e-05 | G93: 1.16008211 | H93: 0.0004505324682 | I93: 2.871546255e-06 | J93: 100791.5006 | K93: 1189.581097 | L93: 8.477421487e-07 | M93: 1.009466494 | N93: -2.738280745e-05 | O93: -0.00286752089 | Q93: 41.5
B94: 84 | C94: 0.7330382859 | D94: 0.008726646261 | E94: 0.00540852995 | F94: 9.750021429e-05 | G94: 1.170002571 | H94: 0.0004587677449 | I94: 2.923528986e-06 | J94: 100782.3862 | K94: 1191.92125 | L94: 8.613161323e-07 | M94: 1.027647622 | N94: -2.808878526e-05 | O94: -0.002941450714 | Q94: 42
B95: 85 | C95: 0.7417649322 | D95: 0.008726646261 | E95: 0.005506438927 | F95: 9.831589605e-05 | G95: 1.179790752 | H95: 0.0004670726782 | I95: 2.975941844e-06 | J95: 100773.3189 | K95: 1194.197288 | L95: 8.750080024e-07 | M95: 1.045977115 | N95: -2.879707634e-05 | O95: -0.003015622782 | Q95: 42.5
B96: 86 | C96: 0.7504915785 | D96: 0.008726646261 | E96: 0.005605158045 | F96: 9.912048633e-05 | G96: 1.189445836 | H96: 0.0004754463301 | I96: 3.028778924e-06 | J96: 100764.3025 | K96: 1196.410524 | L96: 8.888165988e-07 | M96: 1.064452922 | N96: -2.950723981e-05 | O96: -0.003089990927 | Q96: 43
B97: 87 | C97: 0.7592182247 | D97: 0.008726646261 | E97: 0.00570467618 | F97: 9.991391891e-05 | G97: 1.198967027 | H97: 0.0004838877571 | I97: 3.082034284e-06 | J97: 100755.3408 | K97: 1198.562253 | L97: 9.027407539e-07 | M97: 1.083072983 | N97: -3.021883153e-05 | O97: -0.003164508638 | Q97: 43.5
B98: 88 | C98: 0.767944871 | D98: 0.008726646261 | E98: 0.005804982142 | F98: 0.0001006961295 | G98: 1.208353554 | H98: 0.0004923960099 | I98: 3.135701949e-06 | J98: 100746.4375 | K98: 1200.65375 | L98: 9.167792932e-07 | M98: 1.101835231 | N98: -3.093140457e-05 | O98: -0.003239129113 | Q98: 44
B99: 89 | C99: 0.7766715172 | D99: 0.008726646261 | E99: 0.005906064678 | F99: 0.0001014670558 | G99: 1.217604669 | H99: 0.0005009701339 | I99: 3.189775913e-06 | J99: 100737.5962 | K99: 1202.686268 | L99: 9.309310352e-07 | M99: 1.12073759 | N99: -3.164450966e-05 | O99: -0.003313805303 | Q99: 44.5
B100: 90 | C100: 0.7853981635 | D100: 0.008726646261 | E100: 0.006007912472 | F100: 0.0001022266374 | G100: 1.226719649 | H100: 0.0005096091696 | I100: 3.244250137e-06 | J100: 100728.8206 | K100: 1204.661037 | L100: 9.451947918e-07 | M100: 1.139777978 | N100: -3.235769568e-05 | O100: -0.003388489967 | Q100: 45
B101: 91 | C101: 0.7941248098 | D101: 0.008726646261 | E101: 0.006110514151 | F101: 0.000102974816 | G101: 1.235697791 | H101: 0.000518312152 | I101: 3.29911855e-06 | J101: 100720.1143 | K101: 1206.579269 | L101: 9.595693686e-07 | M101: 1.158954304 | N101: -3.307051009e-05 | O101: -0.003463135719 | Q101: 45.5
B102: 92 | C102: 0.802851456 | D102: 0.008726646261 | E102: 0.006213858284 | F102: 0.000103711535 | G102: 1.24453842 | H102: 0.0005270781115 | I102: 3.354375055e-06 | J102: 100711.4808 | K102: 1208.442149 | L102: 9.74053565e-07 | M102: 1.178264471 | N102: -3.378249948e-05 | O102: -0.003537695073 | Q102: 46
B103: 93 | C103: 0.8115781023 | D103: 0.008726646261 | E103: 0.006317933383 | F103: 0.0001044367401 | G103: 1.253240881 | H103: 0.0005359060738 | I103: 3.410013524e-06 | J103: 100702.9236 | K103: 1210.250842 | L103: 9.886461745e-07 | M103: 1.197706375 | N103: -3.449320993e-05 | O103: -0.003612120497 | Q103: 46.5
B104: 94 | C104: 0.8203047485 | D104: 0.008726646261 | E104: 0.006422727909 | F104: 0.0001051503788 | G104: 1.261804546 | H104: 0.0005447950601 | I104: 3.466027803e-06 | J104: 100694.4461 | K104: 1212.00649 | L104: 1.003345985e-06 | M104: 1.217277908 | N104: -3.520218756e-05 | O104: -0.003686364461 | Q104: 47
B105: 95 | C105: 0.8290313948 | D105: 0.008726646261 | E105: 0.006528230269 | F105: 0.0001058524006 | G105: 1.270228807 | H105: 0.0005537440869 | I105: 3.522411712e-06 | J105: 100686.0516 | K105: 1213.710212 | L105: 1.018151778e-06 | M105: 1.236976952 | N105: -3.590897894e-05 | O105: -0.003760379482 | Q105: 47.5
B106: 96 | C106: 0.8377580411 | D106: 0.008726646261 | E106: 0.006634428822 | F106: 0.000106542757 | G106: 1.278513084 | H106: 0.0005627521669 | I106: 3.579159043e-06 | J106: 100677.7436 | K106: 1215.363103 | L106: 1.033062332e-06 | M106: 1.256801387 | N106: -3.661313158e-05 | O106: -0.003834118173 | Q106: 48
B107: 97 | C107: 0.8464846873 | D107: 0.008726646261 | E107: 0.006741311879 | F107: 0.0001072214015 | G107: 1.286656817 | H107: 0.0005718183087 | I107: 3.636263568e-06 | J107: 100669.5252 | K107: 1216.966237 | L107: 1.048076417e-06 | M107: 1.276749086 | N107: -3.731419433e-05 | O107: -0.003907533292 | Q107: 48.5
B108: 98 | C108: 0.8552113336 | D108: 0.008726646261 | E108: 0.006848867706 | F108: 0.0001078882894 | G108: 1.294659473 | H108: 0.0005809415168 | I108: 3.693719032e-06 | J108: 100661.3996 | K108: 1218.520663 | L108: 1.063192801e-06 | M108: 1.296817918 | N108: -3.801171789e-05 | O108: -0.003980577789 | Q108: 49
B109: 99 | C109: 0.8639379799 | D109: 0.008726646261 | E109: 0.006957084525 | F109: 0.0001085433784 | G109: 1.302520541 | H109: 0.0005901207922 | I109: 3.751519162e-06 | J109: 100653.3701 | K109: 1220.027409 | L109: 1.078410246e-06 | M109: 1.317005748 | N109: -3.870525522e-05 | O109: -0.004053204849 | Q109: 49.5
B110: 100 | C110: 0.8726646261 | D110: 0.008726646261 | E110: 0.007065950516 | F110: 0.0001091866278 | G110: 1.310239534 | H110: 0.0005993551323 | I110: 3.809657659e-06 | J110: 100645.4396 | K110: 1221.48748 | L110: 1.093727509e-06 | M110: 1.337310434 | N110: -3.939436198e-05 | O110: -0.00412536794 | Q110: 50
B111: 101 | C111: 0.8813912724 | D111: 0.008726646261 | E111: 0.007175453821 | F111: 0.0001098179991 | G111: 1.317815989 | H111: 0.0006086435313 | I111: 3.868128209e-06 | J111: 100637.6113 | K111: 1222.90186 | L111: 1.109143345e-06 | M111: 1.357729833 | N111: -4.007859696e-05 | O111: -0.00419702086 | Q111: 50.5
B112: 102 | C112: 0.8901179186 | D112: 0.008726646261 | E112: 0.007285582543 | F112: 0.0001104374557 | G112: 1.325249468 | H112: 0.0006179849801 | I112: 3.926924475e-06 | J112: 100629.888 | K112: 1224.271509 | L112: 1.124656502e-06 | M112: 1.378261798 | N112: -4.075752251e-05 | O112: -0.004268117777 | Q112: 51
B113: 103 | C113: 0.8988445649 | D113: 0.008726646261 | E113: 0.007396324749 | F113: 0.000111044963 | G113: 1.332539555 | H113: 0.0006273784664 | I113: 3.986040106e-06 | J113: 100622.2726 | K113: 1225.597366 | L113: 1.140265725e-06 | M113: 1.398904176 | N113: -4.143070495e-05 | O113: -0.004338613277 | Q113: 51.5
B114: 104 | C114: 0.9075712112 | D114: 0.008726646261 | E114: 0.007507668474 | F114: 0.0001116404884 | G114: 1.33968586 | H114: 0.0006368229755 | I114: 4.04546873e-06 | J114: 100614.768 | K114: 1226.880348 | L114: 1.155969757e-06 | M114: 1.419654815 | N114: -4.209771498e-05 | O114: -0.004408462404 | Q114: 52
B115: 105 | C115: 0.9162978574 | D115: 0.008726646261 | E115: 0.007619601722 | F115: 0.0001122240013 | G115: 1.346688015 | H115: 0.0006463174895 | I115: 4.105203964e-06 | J115: 100607.377 | K115: 1228.121353 | L115: 1.171767334e-06 | M115: 1.440511556 | N115: -4.27581281e-05 | O115: -0.004477620704 | Q115: 52.5
B116: 106 | C116: 0.9250245037 | D116: 0.008726646261 | E116: 0.007732112463 | F116: 0.0001127954731 | G116: 1.353545677 | H116: 0.0006558609883 | I116: 4.165239406e-06 | J116: 100600.1022 | K116: 1229.321256 | L116: 1.187657191e-06 | M116: 1.461472242 | N116: -4.341152499e-05 | O116: -0.004546044266 | Q116: 53
B117: 107 | C117: 0.9337511499 | D117: 0.008726646261 | E117: 0.007845188645 | F117: 0.0001133548771 | G117: 1.360258525 | H117: 0.0006654524494 | I117: 4.225568643e-06 | J117: 100592.9462 | K117: 1230.480912 | L117: 1.203638058e-06 | M117: 1.48253471 | N117: -4.405749187e-05 | O117: -0.00461368976 | Q117: 53.5
B118: 108 | C118: 0.9424777962 | D118: 0.008726646261 | E118: 0.007958818187 | F118: 0.0001139021887 | G118: 1.366826264 | H118: 0.0006750908482 | I118: 4.286185248e-06 | J118: 100585.9117 | K118: 1231.601156 | L118: 1.219708665e-06 | M118: 1.503696797 | N118: -4.469562094e-05 | O118: -0.00468051448 | Q118: 54
B119: 109 | C119: 0.9512044425 | D119: 0.008726646261 | E119: 0.008072988984 | F119: 0.0001144373852 | G119: 1.373248622 | H119: 0.000684775158 | I119: 4.347082784e-06 | J119: 100579.0011 | K119: 1232.682805 | L119: 1.235867735e-06 | M119: 1.524956339 | N119: -4.532551068e-05 | O119: -0.00474647638 | Q119: 54.5
B120: 110 | C120: 0.9599310887 | D120: 0.008726646261 | E120: 0.008187688912 | F120: 0.0001149604458 | G120: 1.37952535 | H120: 0.0006945043501 | I120: 4.408254803e-06 | J120: 100572.2168 | K120: 1233.726653 | L120: 1.252113991e-06 | M120: 1.546311169 | N120: -4.594676626e-05 | O120: -0.004811534111 | Q120: 55
B121: 111 | C121: 0.968657735 | D121: 0.008726646261 | E121: 0.008302905824 | F121: 0.0001154713519 | G121: 1.385656222 | H121: 0.0007042773945 | I121: 4.469694845e-06 | J121: 100565.5611 | K121: 1234.733477 | L121: 1.268446152e-06 | M121: 1.567759121 | N121: -4.655899984e-05 | O121: -0.004875647061 | Q121: 55.5
B122: 112 | C122: 0.9773843812 | D122: 0.008726646261 | E122: 0.008418627558 | F122: 0.0001159700865 | G122: 1.391641038 | H122: 0.0007140932593 | I122: 4.531396447e-06 | J122: 100559.0365 | K122: 1235.704038 | L122: 1.284862934e-06 | M122: 1.589298026 | N122: -4.716183094e-05 | O122: -0.004938775387 | Q122: 56
B123: 113 | C123: 0.9861110275 | D123: 0.008726646261 | E123: 0.008534841935 | F123: 0.0001164566349 | G123: 1.397479619 | H123: 0.0007239509116 | I123: 4.593353133e-06 | J123: 100552.6449 | K123: 1236.639074 | L123: 1.301363052e-06 | M123: 1.610925716 | N123: -4.775488676e-05 | O123: -0.005000880048 | Q123: 56.5
B124: 114 | C124: 0.9948376738 | D124: 0.008726646261 | E124: 0.008651536762 | F124: 0.0001169309843 | G124: 1.403171811 | H124: 0.0007338493171 | I124: 4.655558424e-06 | J124: 100546.3887 | K124: 1237.539309 | L124: 1.317945217e-06 | M124: 1.632640022 | N124: -4.833780251e-05 | O124: -0.005061922841 | Q124: 57
B125: 115 | C125: 1.00356432 | D125: 0.008726646261 | E125: 0.008768699834 | F125: 0.0001173931235 | G125: 1.408717482 | H125: 0.0007437874405 | I125: 4.718005835e-06 | J125: 100540.2697 | K125: 1238.405447 | L125: 1.33460814e-06 | M125: 1.654438777 | N125: -4.891022166e-05 | O125: -0.005121866435 | Q125: 57.5
B126: 116 | C126: 1.012290966 | D126: 0.008726646261 | E126: 0.008886318936 | F126: 0.0001178430437 | G126: 1.414116524 | H126: 0.0007537642458 | I126: 4.780688876e-06 | J126: 100534.2901 | K126: 1239.238177 | L126: 1.351350529e-06 | M126: 1.676319811 | N126: -4.94717963e-05 | O126: -0.005180674393 | Q126: 58
B127: 117 | C127: 1.021017613 | D127: 0.008726646261 | E127: 0.009004381846 | F127: 0.0001182807378 | G127: 1.419368853 | H127: 0.0007637786962 | I127: 4.843601055e-06 | J127: 100528.4518 | K127: 1240.038171 | L127: 1.368171088e-06 | M127: 1.698280958 | N127: -5.002218737e-05 | O127: -0.005238311212 | Q127: 58.5
B128: 118 | C128: 1.029744259 | D128: 0.008726646261 | E128: 0.009122876334 | F128: 0.0001187062005 | G128: 1.424474406 | H128: 0.0007738297544 | I128: 4.906735877e-06 | J128: 100522.7565 | K128: 1240.806083 | L128: 1.385068523e-06 | M128: 1.72032005 | N128: -5.056106499e-05 | O128: -0.005294742344 | Q128: 59
B129: 119 | C129: 1.038470905 | D129: 0.008726646261 | E129: 0.009241790168 | F129: 0.0001191194287 | G129: 1.429433145 | H129: 0.0007839163828 | I129: 4.970086846e-06 | J129: 100517.206 | K129: 1241.542553 | L129: 1.402041535e-06 | M129: 1.742434921 | N129: -5.108810863e-05 | O129: -0.005349934225 | Q129: 59.5
B130: 120 | C130: 1.047197551 | D130: 0.008726646261 | E130: 0.009361111113 | F130: 0.0001195204211 | G130: 1.434245053 | H130: 0.0007940375435 | I130: 5.033647465e-06 | J130: 100511.802 | K130: 1242.248206 | L130: 1.419088826e-06 | M130: 1.764623408 | N130: -5.160300743e-05 | O130: -0.005403854301 | Q130: 60
B131: 121 | C131: 1.055924198 | D131: 0.008726646261 | E131: 0.009480826932 | F131: 0.0001199091781 | G131: 1.438910137 | H131: 0.0008041921986 | I131: 5.097411239e-06 | J131: 100506.5461 | K131: 1242.92365 | L131: 1.436209094e-06 | M131: 1.786883348 | N131: -5.210546041e-05 | O131: -0.005456471054 | Q131: 60.5
B132: 122 | C132: 1.064650844 | D132: 0.008726646261 | E132: 0.009600925392 | F132: 0.0001202857023 | G132: 1.443428427 | H132: 0.0008143793104 | I132: 5.161371674e-06 | J132: 100501.4398 | K132: 1243.56948 | L132: 1.453401039e-06 | M132: 1.809212579 | N132: -5.259517668e-05 | O132: -0.005507754022 | Q132: 61
B133: 123 | C133: 1.07337749 | D133: 0.008726646261 | E133: 0.00972139426 | F133: 0.0001206499979 | G133: 1.447799974 | H133: 0.0008245978415 | I133: 5.22552228e-06 | J133: 100496.4847 | K133: 1244.186275 | L133: 1.470663356e-06 | M133: 1.831608942 | N133: -5.307187565e-05 | O133: -0.005557673822 | Q133: 61.5
B134: 124 | C134: 1.082104136 | D134: 0.008726646261 | E134: 0.009842221313 | F134: 0.0001210020711 | G134: 1.452024853 | H134: 0.0008348467548 | I134: 5.289856568e-06 | J134: 100491.682 | K134: 1244.774602 | L134: 1.487994742e-06 | M134: 1.854070281 | N134: -5.353528725e-05 | O134: -0.005606202171 | Q134: 62
B135: 125 | C135: 1.090830783 | D135: 0.008726646261 | E135: 0.009963394331 | F135: 0.00012134193 | G135: 1.45610316 | H135: 0.0008451250139 | I135: 5.354368057e-06 | J135: 100487.0331 | K135: 1245.335013 | L135: 1.505393892e-06 | M135: 1.876594442 | N135: -5.398515207e-05 | O135: -0.005653311905 | Q135: 62.5
B136: 126 | C136: 1.099557429 | D136: 0.008726646261 | E136: 0.0100849011 | F136: 0.0001216695844 | G136: 1.460035013 | H136: 0.0008554315831 | I136: 5.419050271e-06 | J136: 100482.5392 | K136: 1245.868047 | L136: 1.522859499e-06 | M136: 1.899179273 | N136: -5.442122157e-05 | O136: -0.005698976996 | Q136: 63
B137: 127 | C137: 1.108284075 | D137: 0.008726646261 | E137: 0.01020672944 | F137: 0.0001219850462 | G137: 1.463820554 | H137: 0.0008657654279 | I137: 5.483896738e-06 | J137: 100478.2015 | K137: 1246.374231 | L137: 1.540390257e-06 | M137: 1.921822626 | N137: -5.484325821e-05 | O137: -0.00574317257 | Q137: 63.5
B138: 128 | C138: 1.117010721 | D138: 0.008726646261 | E138: 0.01032886714 | F138: 0.0001222883287 | G138: 1.467459945 | H138: 0.0008761255143 | I138: 5.548900997e-06 | J138: 100474.021 | K138: 1246.854079 | L138: 1.557984858e-06 | M138: 1.944522355 | N138: -5.525103561e-05 | O138: -0.00578587492 | Q138: 64
B139: 129 | C139: 1.125737368 | D139: 0.008726646261 | E139: 0.01045130204 | F139: 0.0001225794474 | G139: 1.470953369 | H139: 0.0008865108102 | I139: 5.614056594e-06 | J139: 100469.9988 | K139: 1247.308091 | L139: 1.575641994e-06 | M139: 1.967276318 | N139: -5.564433867e-05 | O139: -0.00582706152 | Q139: 64.5
B140: 130 | C140: 1.134464014 | D140: 0.008726646261 | E140: 0.01057402198 | F140: 0.0001228584195 | G140: 1.474301033 | H140: 0.0008969202842 | I140: 5.679357085e-06 | J140: 100466.1356 | K140: 1247.736757 | L140: 1.593360356e-06 | M140: 1.990082378 | N140: -5.60229637e-05 | O140: -0.005866711039 | Q140: 65
B141: 131 | C141: 1.14319066 | D141: 0.008726646261 | E141: 0.01069701483 | F141: 0.0001231252637 | G141: 1.477503164 | H141: 0.0009073529071 | I141: 5.744796037e-06 | J141: 100462.4325 | K141: 1248.140556 | L141: 1.611138635e-06 | M141: 2.012938399 | N141: -5.638671849e-05 | O141: -0.005904803352 | Q141: 65.5
B142: 132 | C142: 1.151917306 | D142: 0.008726646261 | E142: 0.01082026848 | F142: 0.0001233800008 | G142: 1.48056001 | H142: 0.0009178076508 | I142: 5.810367026e-06 | J142: 100458.8902 | K142: 1248.519954 | L142: 1.628975522e-06 | M142: 2.035842252 | N142: -5.673542246e-05 | O142: -0.005941319546 | Q142: 66
B143: 133 | C143: 1.160643953 | D143: 0.008726646261 | E143: 0.01094377081 | F143: 0.0001236226533 | G143: 1.48347184 | H143: 0.0009282834894 | I143: 5.876063645e-06 | J143: 100455.5094 | K143: 1248.875406 | L143: 1.646869707e-06 | M143: 2.05879181 | N143: -5.706890668e-05 | O143: -0.005976241933 | Q143: 66.5
B144: 134 | C144: 1.169370599 | D144: 0.008726646261 | E144: 0.01106750976 | F144: 0.0001238532454 | G144: 1.486238944 | H144: 0.0009387793989 | I144: 5.941879495e-06 | J144: 100452.2906 | K144: 1249.207359 | L144: 1.664819881e-06 | M144: 2.081784952 | N144: -5.738701399e-05 | O144: -0.006009554052 | Q144: 67
B145: 135 | C145: 1.178097245 | D145: 0.008726646261 | E145: 0.01119147329 | F145: 0.0001240718028 | G145: 1.488861634 | H145: 0.0009492943572 | I145: 6.007808196e-06 | J145: 100449.2345 | K145: 1249.516245 | L145: 1.682824734e-06 | M145: 2.10481956 | N145: -5.768959901e-05 | O145: -0.006041240681 | Q145: 67.5
B146: 136 | C146: 1.186823892 | D146: 0.008726646261 | E146: 0.01131564937 | F146: 0.0001242783534 | G146: 1.49134024 | H146: 0.0009598273449 | I146: 6.073843379e-06 | J146: 100446.3415 | K146: 1249.802491 | L146: 1.700882957e-06 | M146: 2.127893524 | N146: -5.797652819e-05 | O146: -0.006071287835 | Q146: 68
B147: 137 | C147: 1.195550538 | D147: 0.008726646261 | E147: 0.011440026 | F147: 0.0001244729263 | G147: 1.493675115 | H147: 0.0009703773445 | I147: 6.139978693e-06 | J147: 100443.612 | K147: 1250.06651 | L147: 1.718993239e-06 | M147: 2.151004735 | N147: -5.824767987e-05 | O147: -0.006099682772 | Q147: 68.5
B148: 138 | C148: 1.204277184 | D148: 0.008726646261 | E148: 0.01156459124 | F148: 0.0001246555526 | G148: 1.495866631 | H148: 0.0009809433415 | I148: 6.206207805e-06 | J148: 100441.0463 | K148: 1250.308708 | L148: 1.737154272e-06 | M148: 2.174151092 | N148: -5.850294424e-05 | O148: -0.006126413994 | Q148: 69
B149: 139 | C149: 1.21300383 | D149: 0.008726646261 | E149: 0.01168933314 | F149: 0.0001248262649 | G149: 1.497915178 | H149: 0.0009915243239 | I149: 6.272524398e-06 | J149: 100438.6447 | K149: 1250.52948 | L149: 1.755364747e-06 | M149: 2.1973305 | N149: -5.874222339e-05 | O149: -0.006151471249 | Q149: 69.5
B150: 140 | C150: 1.221730477 | D150: 0.008726646261 | E150: 0.01181423981 | F150: 0.0001249850974 | G150: 1.499821169 | H150: 0.001002119283 | I150: 6.338922175e-06 | J150: 100436.4074 | K150: 1250.729214 | L150: 1.773623354e-06 | M150: 2.220540867 | N150: -5.89654313e-05 | O150: -0.006174845526 | Q150: 70
B151: 141 | C151: 1.230457123 | D151: 0.008726646261 | E151: 0.01193929938 | F151: 0.0001251320862 | G151: 1.501585035 | H151: 0.001012727211 | I151: 6.405394855e-06 | J151: 100434.3345 | K151: 1250.908287 | L151: 1.791928787e-06 | M151: 2.243780109 | N151: -5.917249378e-05 | O151: -0.006196529058 | Q151: 70.5
B152: 142 | C152: 1.239183769 | D152: 0.008726646261 | E152: 0.01206450004 | F152: 0.0001252672688 | G152: 1.503207225 | H152: 0.001023347107 | I152: 6.471936183e-06 | J152: 100432.4261 | K152: 1251.067069 | L152: 1.810279738e-06 | M152: 2.267046148 | N152: -5.936334847e-05 | O152: -0.006216515314 | Q152: 71
B153: 143 | C153: 1.247910415 | D153: 0.008726646261 | E153: 0.01218983 | F153: 0.0001253906842 | G153: 1.504688211 | H153: 0.00103397797 | I153: 6.538539921e-06 | J153: 100430.682 | K153: 1251.205921 | L153: 1.8286749e-06 | M153: 2.290336911 | N153: -5.953794478e-05 | O153: -0.006234798998 | Q153: 71.5
B154: 144 | C154: 1.256637062 | D154: 0.008726646261 | E154: 0.0123152775 | F154: 0.0001255023733 | G154: 1.506028479 | H154: 0.001044618804 | I154: 6.605199854e-06 | J154: 100429.1022 | K154: 1251.325195 | L154: 1.847112967e-06 | M154: 2.313650332 | N154: -5.969624386e-05 | O154: -0.006251376039 | Q154: 72
B155: 145 | C155: 1.265363708 | D155: 0.008726646261 | E155: 0.01244083085 | F155: 0.0001256023781 | G155: 1.507228537 | H155: 0.001055268616 | I155: 6.671909791e-06 | J155: 100427.6865 | K155: 1251.425237 | L155: 1.865592633e-06 | M155: 2.336984352 | N155: -5.983821851e-05 | O155: -0.006266243589 | Q155: 72.5
B156: 146 | C156: 1.274090354 | D156: 0.008726646261 | E156: 0.01256647838 | F156: 0.0001256907426 | G156: 1.508288911 | H156: 0.001065926416 | I156: 6.738663563e-06 | J156: 100426.4347 | K156: 1251.506384 | L156: 1.884112595e-06 | M156: 2.36033692 | N156: -5.996385309e-05 | O156: -0.006279400012 | Q156: 73
B157: 147 | C157: 1.282817 | D157: 0.008726646261 | E157: 0.01269220847 | F157: 0.000125767512 | G157: 1.509210144 | H157: 0.00107659122 | I157: 6.805455026e-06 | J157: 100425.3464 | K157: 1251.568966 | L157: 1.902671549e-06 | M157: 2.383705989 | N157: -6.007314346e-05 | O157: -0.006290844873 | Q157: 73.5
B158: 148 | C158: 1.291543647 | D158: 0.008726646261 | E158: 0.01281800955 | F158: 0.0001258327332 | G158: 1.509992798 | H158: 0.001087262046 | I158: 6.872278062e-06 | J158: 100424.4214 | K158: 1251.613306 | L158: 1.921268194e-06 | M158: 2.407089521 | N158: -6.016609688e-05 | O158: -0.006300578931 | Q158: 74
B159: 149 | C159: 1.300270293 | D159: 0.008726646261 | E159: 0.0129438701 | F159: 0.0001258864544 | G159: 1.510637453 | H159: 0.001097937915 | I159: 6.939126578e-06 | J159: 100423.6591 | K159: 1251.63972 | L159: 1.939901227e-06 | M159: 2.430485486 | N159: -6.024273185e-05 | O159: -0.006308604127 | Q159: 74.5
B160: 150 | C160: 1.308996939 | D160: 0.008726646261 | E160: 0.01306977864 | F160: 0.0001259287255 | G160: 1.511144705 | H160: 0.001108617856 | I160: 7.005994509e-06 | J160: 100423.0591 | K160: 1251.648516 | L160: 1.95856935e-06 | M160: 2.45389186 | N160: -6.030307807e-05 | O160: -0.006314923569 | Q160: 75
B161: 151 | C161: 1.317723585 | D161: 0.008726646261 | E161: 0.01319572375 | F161: 0.0001259595975 | G161: 1.511515169 | H161: 0.001119300898 | I161: 7.072875816e-06 | J161: 100422.6207 | K161: 1251.639996 | L161: 1.977271263e-06 | M161: 2.477306628 | N161: -6.034717626e-05 | O161: -0.00631954152 | Q161: 75.5
B162: 152 | C162: 1.326450232 | D162: 0.008726646261 | E162: 0.01332169406 | F162: 0.0001259791231 | G162: 1.511749477 | H162: 0.001129986077 | I162: 7.13976449e-06 | J162: 100422.3434 | K162: 1251.614456 | L162: 1.996005671e-06 | M162: 2.500727782 | N162: -6.037507801e-05 | O162: -0.006322463384 | Q162: 76
B163: 153 | C163: 1.335176878 | D163: 0.008726646261 | E163: 0.01344767824 | F163: 0.0001259873563 | G163: 1.511848275 | H163: 0.001140672433 | I163: 7.20665455e-06 | J163: 100422.2265 | K163: 1251.572186 | L163: 2.014771277e-06 | M163: 2.524153323 | N163: -6.038684566e-05 | O163: -0.00632369569 | Q163: 76.5
B164: 154 | C164: 1.343903524 | D164: 0.008726646261 | E164: 0.01357366502 | F164: 0.0001259843525 | G164: 1.511812229 | H164: 0.001151359011 | I164: 7.273540044e-06 | J164: 100422.2692 | K164: 1251.513468 | L164: 2.033566788e-06 | M164: 2.547581259 | N164: -6.038255216e-05 | O164: -0.006323246075 | Q164: 77
B165: 155 | C165: 1.35263017 | D165: 0.008726646261 | E165: 0.01369964321 | F165: 0.0001259701684 | G165: 1.51164202 | H165: 0.001162044859 | I165: 7.340415052e-06 | J165: 100422.4706 | K165: 1251.438579 | L165: 2.052390912e-06 | M165: 2.571009608 | N165: -6.036228083e-05 | O165: -0.006321123267 | Q165: 77.5
B166: 156 | C166: 1.361356817 | D166: 0.008726646261 | E166: 0.01382560165 | F166: 0.0001259448621 | G166: 1.511338345 | H166: 0.001172729032 | I166: 7.407273685e-06 | J166: 100422.83 | K166: 1251.347792 | L166: 2.071242357e-06 | M166: 2.594436394 | N166: -6.032612529e-05 | O166: -0.006317337067 | Q166: 78
B167: 157 | C167: 1.370083463 | D167: 0.008726646261 | E167: 0.01395152925 | F167: 0.000125908493 | G167: 1.510901916 | H167: 0.001183410589 | I167: 7.474110086e-06 | J167: 100423.3463 | K167: 1251.241371 | L167: 2.090119836e-06 | M167: 2.617859653 | N167: -6.027418916e-05 | O167: -0.006311898329 | Q167: 78.5
B168: 158 | C168: 1.378810109 | D168: 0.008726646261 | E168: 0.01407741497 | F168: 0.0001258611218 | G168: 1.510333461 | H168: 0.001194088594 | I168: 7.540918428e-06 | J168: 100424.0186 | K168: 1251.119576 | L168: 2.109022062e-06 | M168: 2.641277428 | N168: -6.020658599e-05 | O168: -0.006304818942 | Q168: 79
B169: 159 | C169: 1.387536756 | D169: 0.008726646261 | E169: 0.01420324785 | F169: 0.0001258028104 | G169: 1.509633724 | H169: 0.001204762116 | I169: 7.607692921e-06 | J169: 100424.8458 | K169: 1250.982663 | L169: 2.127947751e-06 | M169: 2.664687771 | N169: -6.012343897e-05 | O169: -0.006296111806 | Q169: 79.5
B170: 160 | C170: 1.396263402 | D170: 0.008726646261 | E170: 0.01432901697 | F170: 0.000125733622 | G170: 1.508803464 | H170: 0.00121543023 | I170: 7.674427807e-06 | J170: 100425.8269 | K170: 1250.830881 | L170: 2.14689562e-06 | M170: 2.688088743 | N170: -6.002488076e-05 | O170: -0.006285790815 | Q170: 80
B171: 161 | C171: 1.404990048 | D171: 0.008726646261 | E171: 0.01445471149 | F171: 0.000125653621 | G171: 1.507843452 | H171: 0.001226092016 | I171: 7.741117362e-06 | J171: 100426.9606 | K171: 1250.664474 | L171: 2.165864389e-06 | M171: 2.711478416 | N171: -5.99110533e-05 | O171: -0.006273870831 | Q171: 80.5
B172: 162 | C172: 1.413716694 | D172: 0.008726646261 | E172: 0.01458032063 | F172: 0.0001255628731 | G172: 1.506754478 | H172: 0.001236746561 | I172: 7.807755898e-06 | J172: 100428.2458 | K172: 1250.483682 | L172: 2.184852779e-06 | M172: 2.734854871 | N172: -5.978210755e-05 | O172: -0.006260367663 | Q172: 81
B173: 163 | C173: 1.422443341 | D173: 0.008726646261 | E173: 0.01470583367 | F173: 0.0001254614451 | G173: 1.505537341 | H173: 0.001247392954 | I173: 7.874337762e-06 | J173: 100429.6812 | K173: 1250.288739 | L173: 2.203859517e-06 | M173: 2.758216197 | N173: -5.963820329e-05 | O173: -0.006245298045 | Q173: 81.5
B174: 164 | C174: 1.431169987 | D174: 0.008726646261 | E174: 0.01483123998 | F174: 0.0001253494048 | G174: 1.504192858 | H174: 0.001258030293 | I174: 7.94085734e-06 | J174: 100431.2655 | K174: 1250.079876 | L174: 2.222883328e-06 | M174: 2.781560495 | N174: -5.94795089e-05 | O174: -0.006228679606 | Q174: 82
B175: 165 | C175: 1.439896633 | D175: 0.008726646261 | E175: 0.01495652897 | F175: 0.0001252268214 | G175: 1.502721857 | H175: 0.001268657682 | I175: 8.007309051e-06 | J175: 100432.9973 | K175: 1249.857317 | L175: 2.241922942e-06 | M175: 2.804885876 | N175: -5.930620109e-05 | O175: -0.006210530855 | Q175: 82.5
B176: 166 | C176: 1.448623279 | D176: 0.008726646261 | E176: 0.01508169013 | F176: 0.0001250937651 | G176: 1.501125181 | H176: 0.001279274227 | I176: 8.073687354e-06 | J176: 100434.8752 | K176: 1249.621283 | L176: 2.260977091e-06 | M176: 2.828190458 | N176: -5.91184647e-05 | O176: -0.006190871147 | Q176: 83
B177: 167 | C177: 1.457349926 | D177: 0.008726646261 | E177: 0.01520671303 | F177: 0.0001249503071 | G177: 1.499403685 | H177: 0.001289879045 | I177: 8.139986746e-06 | J177: 100436.8977 | K177: 1249.371991 | L177: 2.280044512e-06 | M177: 2.851472374 | N177: -5.891649244e-05 | O177: -0.00616972066 | Q177: 83.5
B178: 168 | C178: 1.466076572 | D178: 0.008726646261 | E178: 0.0153315873 | F178: 0.0001247965197 | G178: 1.497558236 | H178: 0.001300471255 | I178: 8.206201761e-06 | J178: 100439.0634 | K178: 1249.109652 | L178: 2.29912394e-06 | M178: 2.874729764 | N178: -5.870048461e-05 | O178: -0.006147100374 | Q178: 84
B179: 169 | C179: 1.474803218 | D179: 0.008726646261 | E179: 0.01545630265 | F179: 0.0001246324763 | G179: 1.495589716 | H179: 0.001311049986 | I179: 8.272326975e-06 | J179: 100441.3707 | K179: 1248.834476 | L179: 2.318214119e-06 | M179: 2.897960781 | N179: -5.847064891e-05 | O179: -0.006123032036 | Q179: 84.5
B180: 170 | C180: 1.483529864 | D180: 0.008726646261 | E180: 0.01558084886 | F180: 0.0001244582514 | G180: 1.493499016 | H180: 0.001321614369 | I180: 8.338357002e-06 | J180: 100443.818 | K180: 1248.546666 | L180: 2.337313791e-06 | M180: 2.921163586 | N180: -5.822720013e-05 | O180: -0.006097538139 | Q180: 85
B181: 171 | C181: 1.492256511 | D181: 0.008726646261 | E181: 0.01570521579 | F181: 0.0001242739202 | G181: 1.491287042 | H181: 0.001332163545 | I181: 8.404286496e-06 | J181: 100446.4036 | K181: 1248.246422 | L181: 2.356421703e-06 | M181: 2.944336354 | N181: -5.797035991e-05 | O181: -0.006070641894 | Q181: 85.5
B182: 172 | C182: 1.500983157 | D182: 0.008726646261 | E182: 0.01582939336 | F182: 0.000124079559 | G182: 1.488954708 | H182: 0.001342696659 | I182: 8.470110152e-06 | J182: 100449.1259 | K182: 1247.93394 | L182: 2.375536607e-06 | M182: 2.96747727 | N182: -5.770035647e-05 | O182: -0.0060423672 | Q182: 86
B183: 173 | C183: 1.509709803 | D183: 0.008726646261 | E183: 0.01595337159 | F183: 0.0001238752452 | G183: 1.486502942 | H183: 0.001353212865 | I183: 8.535822708e-06 | J183: 100451.9832 | K183: 1247.609412 | L183: 2.394657256e-06 | M183: 2.990584528 | N183: -5.741742434e-05 | O183: -0.006012738617 | Q183: 86.5
B184: 174 | C184: 1.518436449 | D184: 0.008726646261 | E184: 0.01607714056 | F184: 0.0001236610568 | G184: 1.483932682 | H184: 0.00136371132 | I184: 8.60141894e-06 | J184: 100454.9737 | K184: 1247.273028 | L184: 2.413782407e-06 | M184: 3.013656337 | N184: -5.712180413e-05 | O184: -0.00598178134 | Q184: 87
B185: 175 | C185: 1.527163096 | D185: 0.008726646261 | E185: 0.01620069044 | F185: 0.000123437073 | G185: 1.481244876 | H185: 0.001374191192 | I185: 8.666893671e-06 | J185: 100458.0956 | K185: 1246.924972 | L185: 2.432910821e-06 | M185: 3.036690915 | N185: -5.681374219e-05 | O185: -0.00594952117 | Q185: 87.5
B186: 176 | C186: 1.535889742 | D186: 0.008726646261 | E186: 0.01632401146 | F186: 0.0001232033736 | G186: 1.478440483 | H186: 0.001384651652 | I186: 8.732241762e-06 | J186: 100461.3471 | K186: 1246.565427 | L186: 2.452041262e-06 | M186: 3.059686493 | N186: -5.64934904e-05 | O186: -0.005915984481 | Q186: 88
B187: 177 | C187: 1.544616388 | D187: 0.008726646261 | E187: 0.01644709397 | F187: 0.0001229600395 | G187: 1.475520473 | H187: 0.001395091879 | I187: 8.797458121e-06 | J187: 100464.7263 | K187: 1246.19457 | L187: 2.4711725e-06 | M187: 3.082641313 | N187: -5.616130587e-05 | O187: -0.005881198198 | Q187: 88.5
B188: 178 | C188: 1.553343034 | D188: 0.008726646261 | E188: 0.01656992836 | F188: 0.000122707152 | G188: 1.472485824 | H188: 0.001405511061 | I188: 8.862537696e-06 | J188: 100468.2314 | K188: 1245.812577 | L188: 2.490303306e-06 | M188: 3.105553629 | N188: -5.581745066e-05 | O188: -0.005845189765 | Q188: 89
B189: 179 | C189: 1.562069681 | D189: 0.008726646261 | E189: 0.01669250512 | F189: 0.0001224447937 | G189: 1.469337525 | H189: 0.001415908389 | I189: 8.927475482e-06 | J189: 100471.8604 | K189: 1245.419618 | L189: 2.509432456e-06 | M189: 3.128421707 | N189: -5.546219151e-05 | O189: -0.005807987114 | Q189: 89.5
B190: 180 | C190: 1.570796327 | D190: 0.008726646261 | E190: 0.01681481482 | F190: 0.0001221730476 | G190: 1.466076572 | H190: 0.001426283065 | I190: 8.992266516e-06 | J190: 100475.6112 | K190: 1245.015863 | L190: 2.528558731e-06 | M190: 3.151243827 | N190: -5.509579958e-05 | O190: -0.005769618641 | Q190: 90
B191: 181 | C191: 1.579522973 | D191: 0.008726646261 | E191: 0.01693684811 | F191: 0.0001218919976 | G191: 1.462703971 | H191: 0.001436634295 | I191: 9.056905882e-06 | J191: 100479.4821 | K191: 1244.601477 | L191: 2.547680915e-06 | M191: 3.174018277 | N191: -5.471855015e-05 | O191: -0.005730113173 | Q191: 90.5
B192: 182 | C192: 1.58824962 | D192: 0.008726646261 | E192: 0.01705859574 | F192: 0.0001216017282 | G192: 1.459220738 | H192: 0.001446961295 | I192: 9.121388706e-06 | J192: 100483.4709 | K192: 1244.176622 | L192: 2.566797797e-06 | M192: 3.196743363 | N192: -5.433072236e-05 | O192: -0.005689499941 | Q192: 91
B193: 183 | C193: 1.596976266 | D193: 0.008726646261 | E193: 0.01718004852 | F193: 0.0001213023245 | G193: 1.455627894 | H193: 0.001457263284 | I193: 9.185710163e-06 | J193: 100487.5755 | K193: 1243.741458 | L193: 2.58590817e-06 | M193: 3.219417399 | N193: -5.393259891e-05 | O193: -0.005647808551 | Q193: 91.5
B194: 184 | C194: 1.605702912 | D194: 0.008726646261 | E194: 0.01730119737 | F194: 0.0001209938726 | G194: 1.451926471 | H194: 0.001467539493 | I194: 9.24986547e-06 | J194: 100491.794 | K194: 1243.296141 | L194: 2.605010832e-06 | M194: 3.242038714 | N194: -5.352446583e-05 | O194: -0.005605068955 | Q194: 92
B195: 185 | C195: 1.614429558 | D195: 0.008726646261 | E195: 0.01742203328 | F195: 0.000120676459 | G195: 1.448117507 | H195: 0.001477789158 | I195: 9.313849894e-06 | J195: 100496.1242 | K195: 1242.840824 | L195: 2.624104586e-06 | M195: 3.26460565 | N195: -5.310661217e-05 | O195: -0.005561311422 | Q195: 92.5
B196: 186 | C196: 1.623156205 | D196: 0.008726646261 | E196: 0.01754254733 | F196: 0.0001203501706 | G196: 1.444202048 | H196: 0.001488011521 | I196: 9.377658745e-06 | J196: 100500.564 | K196: 1242.375658 | L196: 2.643188238e-06 | M196: 3.28711656 | N196: -5.267932973e-05 | O196: -0.005516566509 | Q196: 93
B197: 187 | C197: 1.631882851 | D197: 0.008726646261 | E197: 0.01766273069 | F197: 0.0001200150954 | G197: 1.440181145 | H197: 0.001498205835 | I197: 9.441287381e-06 | J197: 100505.1112 | K197: 1241.900793 | L197: 2.6622606e-06 | M197: 3.309569812 | N197: -5.224291281e-05 | O197: -0.005470865036 | Q197: 93.5
B198: 188 | C198: 1.640609497 | D198: 0.008726646261 | E198: 0.01778257462 | F198: 0.0001196713215 | G198: 1.436055858 | H198: 0.001508371357 | I198: 9.504731209e-06 | J198: 100509.7638 | K198: 1241.416371 | L198: 2.681320489e-06 | M198: 3.331963788 | N198: -5.179765791e-05 | O198: -0.005424238052 | Q198: 94
B199: 189 | C199: 1.649336143 | D199: 0.008726646261 | E199: 0.01790207047 | F199: 0.0001193189377 | G199: 1.431827252 | H199: 0.001518507353 | I199: 9.56798568e-06 | J199: 100514.5195 | K199: 1240.922538 | L199: 2.700366728e-06 | M199: 3.354296879 | N199: -5.134386351e-05 | O199: -0.005376716813 | Q199: 94.5
B200: 190 | C200: 1.65806279 | D200: 0.008726646261 | E200: 0.01802120966 | F200: 0.0001189580332 | G200: 1.427496399 | H200: 0.001528613097 | I200: 9.631046294e-06 | J200: 100519.3761 | K200: 1240.419432 | L200: 2.719398143e-06 | M200: 3.376567495 | N200: -5.088182975e-05 | O200: -0.005328332751 | Q200: 95
B201: 191 | C201: 1.666789436 | D201: 0.008726646261 | E201: 0.01813998372 | F201: 0.000118588698 | G201: 1.423064376 | H201: 0.001538687869 | I201: 9.693908599e-06 | J201: 100524.3313 | K201: 1239.907192 | L201: 2.738413568e-06 | M201: 3.398774055 | N201: -5.041185821e-05 | O201: -0.005279117447 | Q201: 95.5
B202: 192 | C202: 1.675516082 | D202: 0.008726646261 | E202: 0.01825838427 | F202: 0.0001182110221 | G202: 1.418532265 | H202: 0.00154873096 | I202: 9.756568191e-06 | J202: 100529.3831 | K202: 1239.385952 | L202: 2.757411839e-06 | M202: 3.420914994 | N202: -4.993425163e-05 | O202: -0.005229102603 | Q202: 96
B203: 193 | C203: 1.684242728 | D203: 0.008726646261 | E203: 0.01837640302 | F203: 0.0001178250963 | G203: 1.413901155 | H203: 0.001558741664 | I203: 9.819020713e-06 | J203: 100534.5291 | K203: 1238.855846 | L203: 2.7763918e-06 | M203: 3.44298876 | N203: -4.944931367e-05 | O203: -0.005178320019 | Q203: 96.5
B204: 194 | C204: 1.692969375 | D204: 0.008726646261 | E204: 0.01849403175 | F204: 0.0001174310115 | G204: 1.409172138 | H204: 0.001568719286 | I204: 9.881261859e-06 | J204: 100539.7671 | K204: 1238.317004 | L204: 2.7953523e-06 | M204: 3.464993816 | N204: -4.895734865e-05 | O204: -0.005126801562 | Q204: 97
... 531 more rows

Sheet Omega (hidden)
A1: Zylinderdurchmesser / innen | B1: D [m] | D1: =Val!D2 -> 0.026 | E1: 0.02
A2: Ventilöffnungsdurchmesser | B2: d [m] | D2: =Val!D4 -> 0.005 | E2: 0.003
A3: Kurbelradius | B3: r [m] | D3: =Val!D5 -> 0.014 | E3: 0.01
A4: Pleuellänge | B4: l [m] | D4: =Val!D6 -> 0.054 | E4: 0.06
A5: Totraumlänge des Zylinders | B5: x0 [m] | D5: =Val!D7 -> 0.001 | E5: 0.02
A6: Spezifische Wärme der Luft | B6: cV [m²/s²/K] | D6: =Input!E20 -> 1001 | E6: 740
A7: Wärmedurchgangszahl | B7: k [kg/m²/s] | D7: 2 | E7: 150
A8: spezifische Gaskonstante der Luft | B8: RS [m²/s²/K] | D8: =Input!E26 -> 0 | E8: 287
A9: Flammentemperatur | B9: TF [K] | D9: =Input!E16+273 -> 1473 | E9: 1073
A10: Umgebungstemperatur | B10: Text [K] | D10: =Val!D15 -> 293 | E10: 293
A11: Umgebungstemperatur | B11: T'ext [K] | C11: Text/TF | D11: =D10/D9 -> 0.1989137814 | E11: 0.273
A12: Umgebungsdruck | B12: pext [kg/m/s²] | D12: =Val!D13 -> 101325 | E12: 101300
A13: Maximaler Hub | B13: h [m] | C13: 2·r | D13: =2*D3 -> 0.028 | E13: 0.02
A14: Dimesionslos Totraumlänge | B14: d [-] | C14: x0/r | D14: =D5/D3 -> 0.07142857143 | E14: 0.2
A15: Zylinderqueschittsfläche | B15: AC [m²] | C15: π·D²/4 | D15: =PI()*(D1^2)/4 -> 0.0005309291585 | E15: 0.00314
A16: Maximales Volumen | B16: V*=Vmax [m³] | C16: (2·r+x0)·AC | D16: =(2*D3+D5)*D15 -> 1.53969456e-05 | E16: 6.911503838e-06
A17: Temperatur zu Beginn der Phase II | B17: T* [k] | C17: [2·(TF-Text)/3+Text] | D17: =(2*(D9-D10)/3+D10) -> 1079.666667 | E17: 813
A18: Temperatur zu Beginn der Phase II | B18: T'* [k] | C18: [2·(TF-Text)/3+Text]/TF | D18: =D17/D9 -> 0.7329712605 | E18: 0.7576887232
A19: Masse zu Beginn der Phase II (108°) | B19: m* [kg] | C19: pext·V*/(RS·T*) | D19: =D12*D16/(D8*D17) ->  | E19: 3e-06
A20: Wärmeverhältnis | B20: QII**/QI* [-] | C20: 0,70…0,90 | D20: 0.7 | E20: 0.85
A21: Ventilschliesswinkel (Info) | B21: φ* [-°] | C21: 180 | D21: =0.8*PI() -> 2.513274123 | E21: 180
A22: Ventilöffnungswinkel (info) | B22: φ** [-°] | C22: 270 | D22: =3/2*PI() -> 4.71238898 | E22: 270
A24: geschätzte Winkelgeschwindigkeit | B24: w [rad/s] | D24: =-(PI()^2)/2*D1*D3*D7*(D14+D3/D4/4)/(D6*D19*LN((D20*D17-D11)/(D17-D11))) -> 
A25: geschätzte Drehzahl | B25: n [1/min] | D25: =30/PI()*D24 -> 
A34: Rohr | D34: Calculation | E34: Lit.
A35: Luft ruhend | B35: ar [W/(m²K)] | C35: 5 … 25 | D35: 95 | E35: HBM 21. Aufl.
A36: Luft bewegt | B36: aV [W/(m²K)] | C36: 12 … 290 | D36: 290 | E36: HBM 21. Aufl.
A37: Lamda Messing | B37: lMs [W/(mK)] | C37: 120 | D37: 120 | E37: HBM 21. Aufl.
A38: Lamda Alu | B38: lAlu [W/(mK)] | C38: 220 | D38: 220 | E38: HBM 21. Aufl.
A39: Lamda Stahl | B39: lSt [W/(mK)] | C39: 50 | D39: 50 | E39: HBM 21. Aufl.
A40: Lamda gewählt | B40: lgew [W/(mK)] | D40: =IF(Input!E6=1,Omega!D37,IF(Input!E6=2,Omega!D38,IF(Input!E6=3,Omega!D39,IF(Input!E6>3,100)))) -> 120
A41: Außendurchmesser / Zylinder | B41: Da [mm] | D41: =0.01*Input!E5 -> 0.28
A42: Innendurchmesser Rohr / Zylinder | B42: Di [mm] | D42: =0.01*Input!E4 -> 0.26
A43: Wärmedurchgangszahl | B43: k [kg/m²/s] | C43: 180… 220 | D43: =1/(1/(D36*D42)+1/(2*D40)*LN(D41/D42)+1/(D35*D41)) -> 19.54447014

Sheet dm
B5: i | C5: j(i) [-°] | D5: x(i)/(2r+xo) | E5: dx(i) [m] | F5: (p(i)-pext)/(pext-pmin) | G5: T(i)/TF | H5: m(i)/mmax | I5: Q(i)/Qmax
B6: =Res!B10 -> 0 | C6: =Res!C10*180/PI() -> 0 | D6: =Res!E10/(2*Val!$D$5+Val!$D$7) -> 0.03448275862 | E6: =Res!F10 -> 0 | F6: =(Res!J10-Val!$D$13)/(Val!$D$13-Res!$J$738) -> 0 | G6: =Res!K10/Val!$D$14 -> 0.57316622 | H6: =Res!L10/Res!$L$739 -> 0.05363569729 | I6: =Res!M10/Res!$M$739 -> 0.03886090694
B7: =Res!B11 -> 1 | C7: =Res!C11*180/PI() -> 0.5000000001 | D7: =Res!E11/(2*Val!$D$5+Val!$D$7) -> 0.03450590619 | E7: =Res!F11 -> 1.342545508e-06 | F7: =(Res!J11-Val!$D$13)/(Val!$D$13-Res!$J$738) -> -5.792169579e-06 | G7: =Res!K11/Val!$D$14 -> 0.5731303042 | H7: =Res!L11/Res!$L$739 -> 0.05378302641 | I7: =Res!M11/Res!$M$739 -> 0.0389652101
B8: =Res!B12 -> 2 | C8: =Res!C12*180/PI() -> 1 | D8: =Res!E12/(2*Val!$D$5+Val!$D$7) -> 0.03457534607 | E8: =Res!F12 -> 2.68492563e-06 | F8: =(Res!J12-Val!$D$13)/(Val!$D$13-Res!$J$738) -> -2.316575338e-05 | G8: =Res!K12/Val!$D$14 -> 0.5717783094 | H8: =Res!L12/Res!$L$739 -> 0.05409047043 | I8: =Res!M12/Res!$M$739 -> 0.03909550687
B9: =Res!B13 -> 3 | C9: =Res!C13*180/PI() -> 1.5 | D9: =Res!E13/(2*Val!$D$5+Val!$D$7) -> 0.03469106968 | E9: =Res!F13 -> 4.026975015e-06 | F9: =(Res!J13-Val!$D$13)/(Val!$D$13-Res!$J$738) -> -5.211197847e-05 | G9: =Res!K13/Val!$D$14 -> 0.571145795 | H9: =Res!L13/Res!$L$739 -> 0.05440295536 | I9: =Res!M13/Res!$M$739 -> 0.03927786651
B10: =Res!B14 -> 4 | C10: =Res!C14*180/PI() -> 2 | D10: =Res!E14/(2*Val!$D$5+Val!$D$7) -> 0.03485306278 | E10: =Res!F14 -> 5.368528373e-06 | F10: =(Res!J14-Val!$D$13)/(Val!$D$13-Res!$J$738) -> -9.261622957e-05 | G10: =Res!K14/Val!$D$14 -> 0.5708437497 | H10: =Res!L14/Res!$L$739 -> 0.05475657297 | I10: =Res!M14/Res!$M$739 -> 0.03951226472
B11: =Res!B15 -> 5 | C11: =Res!C15*180/PI() -> 2.5 | D11: =Res!E15/(2*Val!$D$5+Val!$D$7) -> 0.03506130541 | E11: =Res!F15 -> 6.70942051e-06 | F11: =(Res!J15-Val!$D$13)/(Val!$D$13-Res!$J$738) -> -0.0001446580584 | G11: =Res!K15/Val!$D$14 -> 0.5708665679 | H11: =Res!L15/Res!$L$739 -> 0.05515127258 | I11: =Res!M15/Res!$M$739 -> 0.03979867019
B12: =Res!B16 -> 6 | C12: =Res!C16*180/PI() -> 3 | D12: =Res!E16/(2*Val!$D$5+Val!$D$7) -> 0.03531577194 | E12: =Res!F16 -> 8.04948636e-06 | F12: =(Res!J16-Val!$D$13)/(Val!$D$13-Res!$J$738) -> -0.000208211197 | G12: =Res!K16/Val!$D$14 -> 0.5712072937 | H12: =Res!L16/Res!$L$739 -> 0.05558699969 | I12: =Res!M16/Res!$M$739 -> 0.04013704461
B13: =Res!B17 -> 7 | C13: =Res!C17*180/PI() -> 3.5 | D13: =Res!E17/(2*Val!$D$5+Val!$D$7) -> 0.03561643101 | E13: =Res!F17 -> 9.388561014e-06 | F13: =(Res!J17-Val!$D$13)/(Val!$D$13-Res!$J$738) -> -0.0002832435741 | G13: =Res!K17/Val!$D$14 -> 0.5718577161 | H13: =Res!L17/Res!$L$739 -> 0.05606369661 | I13: =Res!M17/Res!$M$739 -> 0.04052734269
B14: =Res!B18 -> 8 | C14: =Res!C18*180/PI() -> 4.000000001 | D14: =Res!E18/(2*Val!$D$5+Val!$D$7) -> 0.03596324562 | E14: =Res!F18 -> 1.072647976e-05 | F14: =(Res!J18-Val!$D$13)/(Val!$D$13-Res!$J$738) -> -0.0003697173365 | G14: =Res!K18/Val!$D$14 -> 0.5728084743 | H14: =Res!L18/Res!$L$739 -> 0.05658130302 | I14: =Res!M18/Res!$M$739 -> 0.04096951214
B15: =Res!B19 -> 9 | C15: =Res!C19*180/PI() -> 4.500000001 | D15: =Res!E19/(2*Val!$D$5+Val!$D$7) -> 0.03635617306 | E15: =Res!F19 -> 1.206307809e-05 | F15: =(Res!J19-Val!$D$13)/(Val!$D$13-Res!$J$738) -> -0.0004675888726 | G15: =Res!K19/Val!$D$14 -> 0.5740491711 | H15: =Res!L19/Res!$L$739 -> 0.05713975654 | I15: =Res!M19/Res!$M$739 -> 0.04146349372
B16: =Res!B20 -> 10 | C16: =Res!C20*180/PI() -> 5.000000001 | D16: =Res!E20/(2*Val!$D$5+Val!$D$7) -> 0.03679516497 | E16: =Res!F20 -> 1.339819178e-05 | F16: =(Res!J20-Val!$D$13)/(Val!$D$13-Res!$J$738) -> -0.0005768088408 | G16: =Res!K20/Val!$D$14 -> 0.5755684922 | H16: =Res!L20/Res!$L$739 -> 0.0577389931 | I16: =Res!M20/Res!$M$739 -> 0.04200922127
B17: =Res!B21 -> 11 | C17: =Res!C21*180/PI() -> 5.500000001 | D17: =Res!E21/(2*Val!$D$5+Val!$D$7) -> 0.03728016734 | E17: =Res!F21 -> 1.473165687e-05 | F17: =(Res!J21-Val!$D$13)/(Val!$D$13-Res!$J$738) -> -0.000697322201 | G17: =Res!K21/Val!$D$14 -> 0.5773543288 | H17: =Res!L21/Res!$L$739 -> 0.05837894742 | I17: =Res!M21/Res!$M$739 -> 0.04260662168
B18: =Res!B22 -> 12 | C18: =Res!C22*180/PI() -> 6.000000001 | D18: =Res!E22/(2*Val!$D$5+Val!$D$7) -> 0.03781112048 | E18: =Res!F22 -> 1.606330971e-05 | F18: =(Res!J22-Val!$D$13)/(Val!$D$13-Res!$J$738) -> -0.0008290682497 | G18: =Res!K22/Val!$D$14 -> 0.5793939021 | H18: =Res!L22/Res!$L$739 -> 0.05905955322 | I18: =Res!M22/Res!$M$739 -> 0.04325561496
B19: =Res!B23 -> 13 | C19: =Res!C23*180/PI() -> 6.500000001 | D19: =Res!E23/(2*Val!$D$5+Val!$D$7) -> 0.03838795909 | E19: =Res!F23 -> 1.739298702e-05 | F19: =(Res!J23-Val!$D$13)/(Val!$D$13-Res!$J$738) -> -0.0009719806591 | G19: =Res!K23/Val!$D$14 -> 0.5816738872 | H19: =Res!L23/Res!$L$739 -> 0.05978074352 | I19: =Res!M23/Res!$M$739 -> 0.04395611422
B20: =Res!B24 -> 14 | C20: =Res!C24*180/PI() -> 7.000000001 | D20: =Res!E24/(2*Val!$D$5+Val!$D$7) -> 0.03901061224 | E20: =Res!F24 -> 1.87205259e-05 | F20: =(Res!J24-Val!$D$13)/(Val!$D$13-Res!$J$738) -> -0.001125987519 | G20: =Res!K24/Val!$D$14 -> 0.5841805349 | H20: =Res!L24/Res!$L$739 -> 0.06054245074 | I20: =Res!M24/Res!$M$739 -> 0.04470802576
B21: =Res!B25 -> 15 | C21: =Res!C25*180/PI() -> 7.500000001 | D21: =Res!E25/(2*Val!$D$5+Val!$D$7) -> 0.03967900339 | E21: =Res!F25 -> 2.004576383e-05 | F21: =(Res!J25-Val!$D$13)/(Val!$D$13-Res!$J$738) -> -0.001291011385 | G21: =Res!K25/Val!$D$14 -> 0.5868997897 | H21: =Res!L25/Res!$L$739 -> 0.06134460684 | I21: =Res!M25/Res!$M$739 -> 0.04551124902
B22: =Res!B26 -> 16 | C22: =Res!C26*180/PI() -> 8.000000001 | D22: =Res!E26/(2*Val!$D$5+Val!$D$7) -> 0.0403930504 | E22: =Res!F26 -> 2.136853876e-05 | F22: =(Res!J26-Val!$D$13)/(Val!$D$13-Res!$J$738) -> -0.001466969323 | G22: =Res!K26/Val!$D$14 -> 0.5898174025 | H22: =Res!L26/Res!$L$739 -> 0.0621871433 | I22: =Res!M26/Res!$M$739 -> 0.04636567668
B23: =Res!B27 -> 17 | C23: =Res!C27*180/PI() -> 8.500000001 | D23: =Res!E27/(2*Val!$D$5+Val!$D$7) -> 0.04115266555 | E23: =Res!F27 -> 2.268868911e-05 | F23: =(Res!J27-Val!$D$13)/(Val!$D$13-Res!$J$738) -> -0.001653772967 | G23: =Res!K27/Val!$D$14 -> 0.5929190375 | H23: =Res!L27/Res!$L$739 -> 0.06306999113 | I23: =Res!M27/Res!$M$739 -> 0.04727119466
B24: =Res!B28 -> 18 | C24: =Res!C28*180/PI() -> 9.000000001 | D24: =Res!E28/(2*Val!$D$5+Val!$D$7) -> 0.04195775556 | E24: =Res!F28 -> 2.40060538e-05 | F24: =(Res!J28-Val!$D$13)/(Val!$D$13-Res!$J$738) -> -0.001851328574 | G24: =Res!K28/Val!$D$14 -> 0.5961903718 | H24: =Res!L28/Res!$L$739 -> 0.06399308078 | I24: =Res!M28/Res!$M$739 -> 0.04822768215
B25: =Res!B29 -> 19 | C25: =Res!C29*180/PI() -> 9.500000001 | D25: =Res!E29/(2*Val!$D$5+Val!$D$7) -> 0.04280822161 | E25: =Res!F29 -> 2.532047227e-05 | F25: =(Res!J29-Val!$D$13)/(Val!$D$13-Res!$J$738) -> -0.002059537081 | G25: =Res!K29/Val!$D$14 -> 0.5996171861 | H25: =Res!L29/Res!$L$739 -> 0.06495634201 | I25: =Res!M29/Res!$M$739 -> 0.04923501166
B26: =Res!B30 -> 20 | C26: =Res!C30*180/PI() -> 10 | D26: =Res!E30/(2*Val!$D$5+Val!$D$7) -> 0.04370395933 | E26: =Res!F30 -> 2.663178455e-05 | F26: =(Res!J30-Val!$D$13)/(Val!$D$13-Res!$J$738) -> -0.002278294172 | G26: =Res!K30/Val!$D$14 -> 0.6031854488 | H26: =Res!L30/Res!$L$739 -> 0.06595970375 | I26: =Res!M30/Res!$M$739 -> 0.05029304905
B27: =Res!B31 -> 21 | C27: =Res!C31*180/PI() -> 10.5 | D27: =Res!E31/(2*Val!$D$5+Val!$D$7) -> 0.04464485887 | E27: =Res!F31 -> 2.793983125e-05 | F27: =(Res!J31-Val!$D$13)/(Val!$D$13-Res!$J$738) -> -0.002507490341 | G27: =Res!K31/Val!$D$14 -> 0.6068813901 | H27: =Res!L31/Res!$L$739 -> 0.0670030939 | I27: =Res!M31/Res!$M$739 -> 0.05140165358
B28: =Res!B32 -> 22 | C28: =Res!C32*180/PI() -> 11 | D28: =Res!E32/(2*Val!$D$5+Val!$D$7) -> 0.04563080488 | E28: =Res!F32 -> 2.924445361e-05 | F28: =(Res!J32-Val!$D$13)/(Val!$D$13-Res!$J$738) -> -0.002747010964 | G28: =Res!K32/Val!$D$14 -> 0.6106915677 | H28: =Res!L32/Res!$L$739 -> 0.06808643916 | I28: =Res!M32/Res!$M$739 -> 0.05256067795
B29: =Res!B33 -> 23 | C29: =Res!C33*180/PI() -> 11.5 | D29: =Res!E33/(2*Val!$D$5+Val!$D$7) -> 0.04666167656 | E29: =Res!F33 -> 3.054549352e-05 | F29: =(Res!J33-Val!$D$13)/(Val!$D$13-Res!$J$738) -> -0.002996736367 | G29: =Res!K33/Val!$D$14 -> 0.6146029238 | H29: =Res!L33/Res!$L$739 -> 0.06920966474 | I29: =Res!M33/Res!$M$739 -> 0.05376996834
B30: =Res!B34 -> 24 | C30: =Res!C34*180/PI() -> 12 | D30: =Res!E34/(2*Val!$D$5+Val!$D$7) -> 0.04773734765 | E30: =Res!F34 -> 3.184279356e-05 | F30: =(Res!J34-Val!$D$13)/(Val!$D$13-Res!$J$738) -> -0.003256541908 | G30: =Res!K34/Val!$D$14 -> 0.6186028341 | H30: =Res!L34/Res!$L$739 -> 0.07037269422 | I30: =Res!M34/Res!$M$739 -> 0.05502936445
B31: =Res!B35 -> 25 | C31: =Res!C35*180/PI() -> 12.5 | D31: =Res!E35/(2*Val!$D$5+Val!$D$7) -> 0.0488576865 | E31: =Res!F35 -> 3.313619704e-05 | F31: =(Res!J35-Val!$D$13)/(Val!$D$13-Res!$J$738) -> -0.00352629805 | G31: =Res!K35/Val!$D$14 -> 0.6226791476 | H31: =Res!L35/Res!$L$739 -> 0.07157544926 | I31: =Res!M35/Res!$M$739 -> 0.05633869956
B32: =Res!B36 -> 26 | C32: =Res!C36*180/PI() -> 13 | D32: =Res!E36/(2*Val!$D$5+Val!$D$7) -> 0.05002255604 | E32: =Res!F36 -> 3.442554798e-05 | F32: =(Res!J36-Val!$D$13)/(Val!$D$13-Res!$J$738) -> -0.003805870445 | G32: =Res!K36/Val!$D$14 -> 0.6268202191 | H32: =Res!L36/Res!$L$739 -> 0.07281784937 | I32: =Res!M36/Res!$M$739 -> 0.05769780058
B33: =Res!B37 -> 27 | C33: =Res!C37*180/PI() -> 13.5 | D33: =Res!E37/(2*Val!$D$5+Val!$D$7) -> 0.05123181386 | E33: =Res!F37 -> 3.571069121e-05 | F33: =(Res!J37-Val!$D$13)/(Val!$D$13-Res!$J$738) -> -0.004095120017 | G33: =Res!K37/Val!$D$14 -> 0.6310149349 | H33: =Res!L37/Res!$L$739 -> 0.07409981169 | I33: =Res!M37/Res!$M$739 -> 0.0591064881
B34: =Res!B38 -> 28 | C34: =Res!C38*180/PI() -> 14 | D34: =Res!E38/(2*Val!$D$5+Val!$D$7) -> 0.05248531219 | E34: =Res!F38 -> 3.699147235e-05 | F34: =(Res!J38-Val!$D$13)/(Val!$D$13-Res!$J$738) -> -0.004393903051 | G34: =Res!K38/Val!$D$14 -> 0.6352527305 | H34: =Res!L38/Res!$L$739 -> 0.0754212508 | I34: =Res!M38/Res!$M$739 -> 0.06056457644
B35: =Res!B39 -> 29 | C35: =Res!C39*180/PI() -> 14.5 | D35: =Res!E39/(2*Val!$D$5+Val!$D$7) -> 0.05378289798 | E35: =Res!F39 -> 3.826773784e-05 | F35: =(Res!J39-Val!$D$13)/(Val!$D$13-Res!$J$738) -> -0.004702071282 | G35: =Res!K39/Val!$D$14 -> 0.6395236032 | H35: =Res!L39/Res!$L$739 -> 0.07678207843 | I35: =Res!M39/Res!$M$739 -> 0.06207187368
B36: =Res!B40 -> 30 | C36: =Res!C40*180/PI() -> 15 | D36: =Res!E40/(2*Val!$D$5+Val!$D$7) -> 0.05512441287 | E36: =Res!F40 -> 3.9539335e-05 | F36: =(Res!J40-Val!$D$13)/(Val!$D$13-Res!$J$738) -> -0.005019471988 | G36: =Res!K40/Val!$D$14 -> 0.6438181179 | H36: =Res!L40/Res!$L$739 -> 0.07818220335 | I36: =Res!M40/Res!$M$739 -> 0.06362818177
B37: =Res!B41 -> 31 | C37: =Res!C41*180/PI() -> 15.5 | D37: =Res!E41/(2*Val!$D$5+Val!$D$7) -> 0.05650969326 | E37: =Res!F41 -> 4.080611203e-05 | F37: =(Res!J41-Val!$D$13)/(Val!$D$13-Res!$J$738) -> -0.005345948082 | G37: =Res!K41/Val!$D$14 -> 0.6481274092 | H37: =Res!L41/Res!$L$739 -> 0.07962153111 | I37: =Res!M41/Res!$M$739 -> 0.06523329655
B38: =Res!B42 -> 32 | C38: =Res!C42*180/PI() -> 16 | D38: =Res!E42/(2*Val!$D$5+Val!$D$7) -> 0.05793857035 | E38: =Res!F42 -> 4.206791805e-05 | F38: =(Res!J42-Val!$D$13)/(Val!$D$13-Res!$J$738) -> -0.005681338215 | G38: =Res!K42/Val!$D$14 -> 0.6524431775 | H38: =Res!L42/Res!$L$739 -> 0.08109996391 | I38: =Res!M42/Res!$M$739 -> 0.06688700782
B39: =Res!B43 -> 33 | C39: =Res!C43*180/PI() -> 16.5 | D39: =Res!E43/(2*Val!$D$5+Val!$D$7) -> 0.05941087013 | E39: =Res!F43 -> 4.332460313e-05 | F39: =(Res!J43-Val!$D$13)/(Val!$D$13-Res!$J$738) -> -0.006025476871 | G39: =Res!K43/Val!$D$14 -> 0.6567576822 | H39: =Res!L43/Res!$L$739 -> 0.08261740042 | I39: =Res!M43/Res!$M$739 -> 0.0685890994
B40: =Res!B44 -> 34 | C40: =Res!C44*180/PI() -> 17 | D40: =Res!E44/(2*Val!$D$5+Val!$D$7) -> 0.06092641344 | E40: =Res!F44 -> 4.457601831e-05 | F40: =(Res!J44-Val!$D$13)/(Val!$D$13-Res!$J$738) -> -0.006378194472 | G40: =Res!K44/Val!$D$14 -> 0.6610637313 | H40: =Res!L44/Res!$L$739 -> 0.08417373567 | I40: =Res!M44/Res!$M$739 -> 0.07033934919
B41: =Res!B45 -> 35 | C41: =Res!C45*180/PI() -> 17.5 | D41: =Res!E45/(2*Val!$D$5+Val!$D$7) -> 0.06248501601 | E41: =Res!F45 -> 4.582201563e-05 | F41: =(Res!J45-Val!$D$13)/(Val!$D$13-Res!$J$738) -> -0.006739317482 | G41: =Res!K45/Val!$D$14 -> 0.6653546676 | H41: =Res!L45/Res!$L$739 -> 0.08576886087 | I41: =Res!M45/Res!$M$739 -> 0.07213752922
B42: =Res!B46 -> 36 | C42: =Res!C46*180/PI() -> 18 | D42: =Res!E46/(2*Val!$D$5+Val!$D$7) -> 0.06408648849 | E42: =Res!F46 -> 4.706244816e-05 | F42: =(Res!J46-Val!$D$13)/(Val!$D$13-Res!$J$738) -> -0.007108668514 | G42: =Res!K46/Val!$D$14 -> 0.6696243531 | H42: =Res!L46/Res!$L$739 -> 0.08740266333 | I42: =Res!M46/Res!$M$739 -> 0.07398340575
B43: =Res!B47 -> 37 | C43: =Res!C47*180/PI() -> 18.5 | D43: =Res!E47/(2*Val!$D$5+Val!$D$7) -> 0.06573063645 | E43: =Res!F47 -> 4.829717004e-05 | F43: =(Res!J47-Val!$D$13)/(Val!$D$13-Res!$J$738) -> -0.007486066438 | G43: =Res!K47/Val!$D$14 -> 0.6738671514 | H43: =Res!L47/Res!$L$739 -> 0.08907502639 | I43: =Res!M47/Res!$M$739 -> 0.07587673932
B44: =Res!B48 -> 38 | C44: =Res!C48*180/PI() -> 19 | D44: =Res!E48/(2*Val!$D$5+Val!$D$7) -> 0.06741726049 | E44: =Res!F48 -> 4.952603646e-05 | F44: =(Res!J48-Val!$D$13)/(Val!$D$13-Res!$J$738) -> -0.007871326492 | G44: =Res!K48/Val!$D$14 -> 0.678077908 | H44: =Res!L48/Res!$L$739 -> 0.09078582927 | I44: =Res!M48/Res!$M$739 -> 0.0778172848
B45: =Res!B49 -> 39 | C45: =Res!C49*180/PI() -> 19.5 | D45: =Res!E49/(2*Val!$D$5+Val!$D$7) -> 0.06914615622 | E45: =Res!F49 -> 5.074890375e-05 | F45: =(Res!J49-Val!$D$13)/(Val!$D$13-Res!$J$738) -> -0.008264260396 | G45: =Res!K49/Val!$D$14 -> 0.6822519301 | H45: =Res!L49/Res!$L$739 -> 0.09253494707 | I45: =Res!M49/Res!$M$739 -> 0.07980479148
B46: =Res!B50 -> 40 | C46: =Res!C50*180/PI() -> 20 | D46: =Res!E50/(2*Val!$D$5+Val!$D$7) -> 0.0709171143 | E46: =Res!F50 -> 5.196562937e-05 | F46: =(Res!J50-Val!$D$13)/(Val!$D$13-Res!$J$738) -> -0.008664676465 | G46: =Res!K50/Val!$D$14 -> 0.6863849653 | H46: =Res!L50/Res!$L$739 -> 0.09432225068 | I46: =Res!M50/Res!$M$739 -> 0.08183900312
B47: =Res!B51 -> 41 | C47: =Res!C51*180/PI() -> 20.5 | D47: =Res!E51/(2*Val!$D$5+Val!$D$7) -> 0.07272992051 | E47: =Res!F51 -> 5.317607192e-05 | F47: =(Res!J51-Val!$D$13)/(Val!$D$13-Res!$J$738) -> -0.009072379725 | G47: =Res!K51/Val!$D$14 -> 0.6904731797 | H47: =Res!L51/Res!$L$739 -> 0.09614760674 | I47: =Res!M51/Res!$M$739 -> 0.08391965805
B48: =Res!B52 -> 42 | C48: =Res!C52*180/PI() -> 21 | D48: =Res!E52/(2*Val!$D$5+Val!$D$7) -> 0.07458435577 | E48: =Res!F52 -> 5.438009122e-05 | F48: =(Res!J52-Val!$D$13)/(Val!$D$13-Res!$J$738) -> -0.009487172033 | G48: =Res!K52/Val!$D$14 -> 0.6945131356 | H48: =Res!L52/Res!$L$739 -> 0.0980108776 | I48: =Res!M52/Res!$M$739 -> 0.08604648921
B49: =Res!B53 -> 43 | C49: =Res!C53*180/PI() -> 21.5 | D49: =Res!E53/(2*Val!$D$5+Val!$D$7) -> 0.0764801962 | E49: =Res!F53 -> 5.557754827e-05 | F49: =(Res!J53-Val!$D$13)/(Val!$D$13-Res!$J$738) -> -0.009908852193 | G49: =Res!K53/Val!$D$14 -> 0.6985017696 | H49: =Res!L53/Res!$L$739 -> 0.09991192132 | I49: =Res!M53/Res!$M$739 -> 0.08821922426
B50: =Res!B54 -> 44 | C50: =Res!C54*180/PI() -> 22 | D50: =Res!E54/(2*Val!$D$5+Val!$D$7) -> 0.07841721312 | E50: =Res!F54 -> 5.676830533e-05 | F50: =(Res!J54-Val!$D$13)/(Val!$D$13-Res!$J$738) -> -0.01033721608 | G50: =Res!K54/Val!$D$14 -> 0.7024363702 | H50: =Res!L54/Res!$L$739 -> 0.1018505917 | I50: =Res!M54/Res!$M$739 -> 0.09043758562
B51: =Res!B55 -> 45 | C51: =Res!C55*180/PI() -> 22.5 | D51: =Res!E55/(2*Val!$D$5+Val!$D$7) -> 0.08039517316 | E51: =Res!F55 -> 5.795222592e-05 | F51: =(Res!J55-Val!$D$13)/(Val!$D$13-Res!$J$738) -> -0.01077205676 | G51: =Res!K55/Val!$D$14 -> 0.7063145566 | H51: =Res!L55/Res!$L$739 -> 0.1038267381 | I51: =Res!M55/Res!$M$739 -> 0.09270129054
B52: =Res!B56 -> 46 | C52: =Res!C56*180/PI() -> 23 | D52: =Res!E56/(2*Val!$D$5+Val!$D$7) -> 0.08241383822 | E52: =Res!F56 -> 5.912917482e-05 | F52: =(Res!J56-Val!$D$13)/(Val!$D$13-Res!$J$738) -> -0.01121316461 | G52: =Res!K56/Val!$D$14 -> 0.7101342569 | H52: =Res!L56/Res!$L$739 -> 0.1058402057 | I52: =Res!M56/Res!$M$739 -> 0.09501005122
B53: =Res!B57 -> 47 | C53: =Res!C57*180/PI() -> 23.5 | D53: =Res!E57/(2*Val!$D$5+Val!$D$7) -> 0.08447296561 | E53: =Res!F57 -> 6.029901816e-05 | F53: =(Res!J57-Val!$D$13)/(Val!$D$13-Res!$J$738) -> -0.01166032746 | G53: =Res!K57/Val!$D$14 -> 0.7138936876 | H53: =Res!L57/Res!$L$739 -> 0.1078908355 | I53: =Res!M57/Res!$M$739 -> 0.09736357484
B54: =Res!B58 -> 48 | C54: =Res!C58*180/PI() -> 24 | D54: =Res!E58/(2*Val!$D$5+Val!$D$7) -> 0.086572308 | E54: =Res!F58 -> 6.146162338e-05 | F54: =(Res!J58-Val!$D$13)/(Val!$D$13-Res!$J$738) -> -0.01211333069 | G54: =Res!K58/Val!$D$14 -> 0.7175913336 | H54: =Res!L58/Res!$L$739 -> 0.1099784639 | I54: =Res!M58/Res!$M$739 -> 0.09976156367
B55: =Res!B59 -> 49 | C55: =Res!C59*180/PI() -> 24.5 | D55: =Res!E59/(2*Val!$D$5+Val!$D$7) -> 0.08871161355 | E55: =Res!F59 -> 6.261685928e-05 | F55: =(Res!J59-Val!$D$13)/(Val!$D$13-Res!$J$738) -> -0.01257195739 | G55: =Res!K59/Val!$D$14 -> 0.7212259286 | H55: =Res!L59/Res!$L$739 -> 0.1121029233 | I55: =Res!M59/Res!$M$739 -> 0.1022037151
B56: =Res!B60 -> 50 | C56: =Res!C60*180/PI() -> 25 | D56: =Res!E60/(2*Val!$D$5+Val!$D$7) -> 0.09089062589 | E56: =Res!F60 -> 6.376459604e-05 | F56: =(Res!J60-Val!$D$13)/(Val!$D$13-Res!$J$738) -> -0.01303598844 | G56: =Res!K60/Val!$D$14 -> 0.724796437 | H56: =Res!L60/Res!$L$739 -> 0.1142640421 | I56: =Res!M60/Res!$M$739 -> 0.1046897219
B57: =Res!B61 -> 51 | C57: =Res!C61*180/PI() -> 25.5 | D57: =Res!E61/(2*Val!$D$5+Val!$D$7) -> 0.09310908422 | E57: =Res!F61 -> 6.490470524e-05 | F57: =(Res!J61-Val!$D$13)/(Val!$D$13-Res!$J$738) -> -0.01350520269 | G57: =Res!K61/Val!$D$14 -> 0.7283020355 | H57: =Res!L61/Res!$L$739 -> 0.116461644 | I57: =Res!M61/Res!$M$739 -> 0.1072192719
B58: =Res!B62 -> 52 | C58: =Res!C62*180/PI() -> 26 | D58: =Res!E62/(2*Val!$D$5+Val!$D$7) -> 0.09536672333 | E58: =Res!F62 -> 6.603705989e-05 | F58: =(Res!J62-Val!$D$13)/(Val!$D$13-Res!$J$738) -> -0.01397937707 | G58: =Res!K62/Val!$D$14 -> 0.7317420969 | H58: =Res!L62/Res!$L$739 -> 0.1186955492 | I58: =Res!M62/Res!$M$739 -> 0.1097920484
B59: =Res!B63 -> 53 | C59: =Res!C63*180/PI() -> 26.5 | D59: =Res!E63/(2*Val!$D$5+Val!$D$7) -> 0.09766327364 | E59: =Res!F63 -> 6.716153446e-05 | F59: =(Res!J63-Val!$D$13)/(Val!$D$13-Res!$J$738) -> -0.0144582867 | G59: =Res!K63/Val!$D$14 -> 0.7351161735 | H59: =Res!L63/Res!$L$739 -> 0.1209655733 | I59: =Res!M63/Res!$M$739 -> 0.1124077305
B60: =Res!B64 -> 54 | C60: =Res!C64*180/PI() -> 27 | D60: =Res!E64/(2*Val!$D$5+Val!$D$7) -> 0.09999846129 | E60: =Res!F64 -> 6.827800487e-05 | F60: =(Res!J64-Val!$D$13)/(Val!$D$13-Res!$J$738) -> -0.01494170505 | G60: =Res!K64/Val!$D$14 -> 0.7384239822 | H60: =Res!L64/Res!$L$739 -> 0.1232715284 | I60: =Res!M64/Res!$M$739 -> 0.1150659923
B61: =Res!B65 -> 55 | C61: =Res!C65*180/PI() -> 27.5 | D61: =Res!E65/(2*Val!$D$5+Val!$D$7) -> 0.1023720082 | E61: =Res!F65 -> 6.938634853e-05 | F61: =(Res!J65-Val!$D$13)/(Val!$D$13-Res!$J$738) -> -0.01542940404 | G61: =Res!K65/Val!$D$14 -> 0.7416653901 | H61: =Res!L65/Res!$L$739 -> 0.1256132222 | I61: =Res!M65/Res!$M$739 -> 0.1177665039
B62: =Res!B66 -> 56 | C62: =Res!C66*180/PI() -> 28 | D62: =Res!E66/(2*Val!$D$5+Val!$D$7) -> 0.1047836319 | E62: =Res!F66 -> 7.048644436e-05 | F62: =(Res!J66-Val!$D$13)/(Val!$D$13-Res!$J$738) -> -0.01592115421 | G62: =Res!K66/Val!$D$14 -> 0.7448404009 | H62: =Res!L66/Res!$L$739 -> 0.1279904588 | I62: =Res!M66/Res!$M$739 -> 0.1205089311
B63: =Res!B67 -> 57 | C63: =Res!C67*180/PI() -> 28.5 | D63: =Res!E67/(2*Val!$D$5+Val!$D$7) -> 0.1072330461 | E63: =Res!F67 -> 7.157817283e-05 | F63: =(Res!J67-Val!$D$13)/(Val!$D$13-Res!$J$738) -> -0.0164167248 | G63: =Res!K67/Val!$D$14 -> 0.7479491425 | H63: =Res!L67/Res!$L$739 -> 0.1304030384 | I63: =Res!M67/Res!$M$739 -> 0.1232929354
B64: =Res!B68 -> 58 | C64: =Res!C68*180/PI() -> 29 | D64: =Res!E68/(2*Val!$D$5+Val!$D$7) -> 0.1097199601 | E64: =Res!F68 -> 7.266141594e-05 | F64: =(Res!J68-Val!$D$13)/(Val!$D$13-Res!$J$738) -> -0.01691588393 | G64: =Res!K68/Val!$D$14 -> 0.7509918549 | H64: =Res!L68/Res!$L$739 -> 0.1328507574 | I64: =Res!M68/Res!$M$739 -> 0.1261181742
B65: =Res!B69 -> 59 | C65: =Res!C69*180/PI() -> 29.5 | D65: =Res!E69/(2*Val!$D$5+Val!$D$7) -> 0.1122440793 | E65: =Res!F69 -> 7.373605728e-05 | F65: =(Res!J69-Val!$D$13)/(Val!$D$13-Res!$J$738) -> -0.01741839869 | G65: =Res!K69/Val!$D$14 -> 0.7539688792 | H65: =Res!L69/Res!$L$739 -> 0.1353334086 | I65: =Res!M69/Res!$M$739 -> 0.1289843008
B66: =Res!B70 -> 60 | C66: =Res!C70*180/PI() -> 30 | D66: =Res!E70/(2*Val!$D$5+Val!$D$7) -> 0.1148051052 | E66: =Res!F70 -> 7.480198199e-05 | F66: =(Res!J70-Val!$D$13)/(Val!$D$13-Res!$J$738) -> -0.01792403532 | G66: =Res!K70/Val!$D$14 -> 0.7568806474 | H66: =Res!L70/Res!$L$739 -> 0.137850781 | I66: =Res!M70/Res!$M$739 -> 0.1318909648
B67: =Res!B71 -> 61 | C67: =Res!C71*180/PI() -> 30.5 | D67: =Res!E71/(2*Val!$D$5+Val!$D$7) -> 0.1174027352 | E67: =Res!F71 -> 7.585907687e-05 | F67: =(Res!J71-Val!$D$13)/(Val!$D$13-Res!$J$738) -> -0.01843255927 | G67: =Res!K71/Val!$D$14 -> 0.7597276726 | H67: =Res!L71/Res!$L$739 -> 0.1404026601 | I67: =Res!M71/Res!$M$739 -> 0.1348378115
B68: =Res!B72 -> 62 | C68: =Res!C72*180/PI() -> 31 | D68: =Res!E72/(2*Val!$D$5+Val!$D$7) -> 0.1200366629 | E68: =Res!F72 -> 7.690723032e-05 | F68: =(Res!J72-Val!$D$13)/(Val!$D$13-Res!$J$738) -> -0.01894373542 | G68: =Res!K72/Val!$D$14 -> 0.7625105401 | H68: =Res!L72/Res!$L$739 -> 0.1429888282 | I68: =Res!M72/Res!$M$739 -> 0.1378244829
B69: =Res!B73 -> 63 | C69: =Res!C73*180/PI() -> 31.5 | D69: =Res!E73/(2*Val!$D$5+Val!$D$7) -> 0.1227065781 | E69: =Res!F73 -> 7.794633238e-05 | F69: =(Res!J73-Val!$D$13)/(Val!$D$13-Res!$J$738) -> -0.01945732811 | G69: =Res!K73/Val!$D$14 -> 0.7652298994 | H69: =Res!L73/Res!$L$739 -> 0.1456090637 | I69: =Res!M73/Res!$M$739 -> 0.1408506168
B70: =Res!B74 -> 64 | C70: =Res!C74*180/PI() -> 32 | D70: =Res!E74/(2*Val!$D$5+Val!$D$7) -> 0.1254121668 | E70: =Res!F74 -> 7.897627477e-05 | F70: =(Res!J74-Val!$D$13)/(Val!$D$13-Res!$J$738) -> -0.01997310136 | G70: =Res!K74/Val!$D$14 -> 0.7678864562 | H70: =Res!L74/Res!$L$739 -> 0.148263142 | I70: =Res!M74/Res!$M$739 -> 0.1439158478
B71: =Res!B75 -> 65 | C71: =Res!C75*180/PI() -> 32.5 | D71: =Res!E75/(2*Val!$D$5+Val!$D$7) -> 0.1281531112 | E71: =Res!F75 -> 7.999695087e-05 | F71: =(Res!J75-Val!$D$13)/(Val!$D$13-Res!$J$738) -> -0.02049081895 | G71: =Res!K75/Val!$D$14 -> 0.7704809655 | H71: =Res!L75/Res!$L$739 -> 0.1509508352 | I71: =Res!M75/Res!$M$739 -> 0.1470198068
B72: =Res!B76 -> 66 | C72: =Res!C76*180/PI() -> 33 | D72: =Res!E76/(2*Val!$D$5+Val!$D$7) -> 0.1309290901 | E72: =Res!F76 -> 8.100825577e-05 | F72: =(Res!J76-Val!$D$13)/(Val!$D$13-Res!$J$738) -> -0.02101024454 | G72: =Res!K76/Val!$D$14 -> 0.7730142251 | H72: =Res!L76/Res!$L$739 -> 0.153671912 | I72: =Res!M76/Res!$M$739 -> 0.1501621211
B73: =Res!B77 -> 67 | C73: =Res!C77*180/PI() -> 33.5 | D73: =Res!E77/(2*Val!$D$5+Val!$D$7) -> 0.1337397786 | E73: =Res!F77 -> 8.201008627e-05 | F73: =(Res!J77-Val!$D$13)/(Val!$D$13-Res!$J$738) -> -0.02153114184 | G73: =Res!K77/Val!$D$14 -> 0.7754870699 | H73: =Res!L77/Res!$L$739 -> 0.1564261383 | I73: =Res!M77/Res!$M$739 -> 0.1533424148
B74: =Res!B78 -> 68 | C74: =Res!C78*180/PI() -> 34 | D74: =Res!E78/(2*Val!$D$5+Val!$D$7) -> 0.1365848481 | E74: =Res!F78 -> 8.30023409e-05 | F74: =(Res!J78-Val!$D$13)/(Val!$D$13-Res!$J$738) -> -0.02205327471 | G74: =Res!K78/Val!$D$14 -> 0.7779003658 | H74: =Res!L78/Res!$L$739 -> 0.1592132765 | I74: =Res!M78/Res!$M$739 -> 0.1565603087
B75: =Res!B79 -> 69 | C75: =Res!C79*180/PI() -> 34.5 | D75: =Res!E79/(2*Val!$D$5+Val!$D$7) -> 0.1394639667 | E75: =Res!F79 -> 8.398491992e-05 | F75: =(Res!J79-Val!$D$13)/(Val!$D$13-Res!$J$738) -> -0.02257640728 | G75: =Res!K79/Val!$D$14 -> 0.7802550052 | H75: =Res!L79/Res!$L$739 -> 0.1620330865 | I75: =Res!M79/Res!$M$739 -> 0.1598154203
B76: =Res!B80 -> 70 | C76: =Res!C80*180/PI() -> 35 | D76: =Res!E80/(2*Val!$D$5+Val!$D$7) -> 0.1423767992 | E76: =Res!F80 -> 8.495772536e-05 | F76: =(Res!J80-Val!$D$13)/(Val!$D$13-Res!$J$738) -> -0.02310030409 | G76: =Res!K80/Val!$D$14 -> 0.7825519022 | H76: =Res!L80/Res!$L$739 -> 0.1648853249 | I76: =Res!M80/Res!$M$739 -> 0.163107364
B77: =Res!B81 -> 71 | C77: =Res!C81*180/PI() -> 35.5 | D77: =Res!E81/(2*Val!$D$5+Val!$D$7) -> 0.1453230068 | E77: =Res!F81 -> 8.592066104e-05 | F77: =(Res!J81-Val!$D$13)/(Val!$D$13-Res!$J$738) -> -0.02362473021 | G77: =Res!K81/Val!$D$14 -> 0.7847919885 | H77: =Res!L81/Res!$L$739 -> 0.1677697458 | I77: =Res!M81/Res!$M$739 -> 0.1664357513
B78: =Res!B82 -> 72 | C78: =Res!C82*180/PI() -> 36 | D78: =Res!E82/(2*Val!$D$5+Val!$D$7) -> 0.1483022475 | E78: =Res!F82 -> 8.687363253e-05 | F78: =(Res!J82-Val!$D$13)/(Val!$D$13-Res!$J$738) -> -0.02414945136 | G78: =Res!K82/Val!$D$14 -> 0.7869762093 | H78: =Res!L82/Res!$L$739 -> 0.1706861003 | I78: =Res!M82/Res!$M$739 -> 0.1698001905
B79: =Res!B83 -> 73 | C79: =Res!C83*180/PI() -> 36.5 | D79: =Res!E83/(2*Val!$D$5+Val!$D$7) -> 0.1513141762 | E79: =Res!F83 -> 8.781654723e-05 | F79: =(Res!J83-Val!$D$13)/(Val!$D$13-Res!$J$738) -> -0.02467423404 | G79: =Res!K83/Val!$D$14 -> 0.7891055204 | H79: =Res!L83/Res!$L$739 -> 0.173634137 | I79: =Res!M83/Res!$M$739 -> 0.1732002871
B80: =Res!B84 -> 74 | C80: =Res!C84*180/PI() -> 37 | D80: =Res!E84/(2*Val!$D$5+Val!$D$7) -> 0.1543584445 | E80: =Res!F84 -> 8.874931434e-05 | F80: =(Res!J84-Val!$D$13)/(Val!$D$13-Res!$J$738) -> -0.02519884563 | G80: =Res!K84/Val!$D$14 -> 0.7911808845 | H80: =Res!L84/Res!$L$739 -> 0.1766136016 | I80: =Res!M84/Res!$M$739 -> 0.176635644
B81: =Res!B85 -> 75 | C81: =Res!C85*180/PI() -> 37.5 | D81: =Res!E85/(2*Val!$D$5+Val!$D$7) -> 0.1574347009 | E81: =Res!F85 -> 8.96718449e-05 | F81: =(Res!J85-Val!$D$13)/(Val!$D$13-Res!$J$738) -> -0.02572305454 | G81: =Res!K85/Val!$D$14 -> 0.7932032685 | H81: =Res!L85/Res!$L$739 -> 0.1796242374 | I81: =Res!M85/Res!$M$739 -> 0.180105861
B82: =Res!B86 -> 76 | C82: =Res!C86*180/PI() -> 38 | D82: =Res!E86/(2*Val!$D$5+Val!$D$7) -> 0.160542591 | E82: =Res!F86 -> 9.058405177e-05 | F82: =(Res!J86-Val!$D$13)/(Val!$D$13-Res!$J$738) -> -0.0262466303 | G82: =Res!K86/Val!$D$14 -> 0.7951736412 | H82: =Res!L86/Res!$L$739 -> 0.1826657855 | I82: =Res!M86/Res!$M$739 -> 0.1836105356
B83: =Res!B87 -> 77 | C83: =Res!C87*180/PI() -> 38.50000001 | D83: =Res!E87/(2*Val!$D$5+Val!$D$7) -> 0.1636817572 | E83: =Res!F87 -> 9.148584968e-05 | F83: =(Res!J87-Val!$D$13)/(Val!$D$13-Res!$J$738) -> -0.02676934371 | G83: =Res!K87/Val!$D$14 -> 0.7970929707 | H83: =Res!L87/Res!$L$739 -> 0.1857379841 | I83: =Res!M87/Res!$M$739 -> 0.1871492626
B84: =Res!B88 -> 78 | C84: =Res!C88*180/PI() -> 39.00000001 | D84: =Res!E88/(2*Val!$D$5+Val!$D$7) -> 0.1668518393 | E84: =Res!F88 -> 9.237715521e-05 | F84: =(Res!J88-Val!$D$13)/(Val!$D$13-Res!$J$738) -> -0.02729096692 | G84: =Res!K88/Val!$D$14 -> 0.7989622223 | H84: =Res!L88/Res!$L$739 -> 0.1888405694 | I84: =Res!M88/Res!$M$739 -> 0.1907216343
B85: =Res!B89 -> 79 | C85: =Res!C89*180/PI() -> 39.50000001 | D85: =Res!E89/(2*Val!$D$5+Val!$D$7) -> 0.170052474 | E85: =Res!F89 -> 9.325788681e-05 | F85: =(Res!J89-Val!$D$13)/(Val!$D$13-Res!$J$738) -> -0.02781127354 | G85: =Res!K89/Val!$D$14 -> 0.800782357 | H85: =Res!L89/Res!$L$739 -> 0.1919732752 | I85: =Res!M89/Res!$M$739 -> 0.1943272406
B86: =Res!B90 -> 80 | C86: =Res!C90*180/PI() -> 40.00000001 | D86: =Res!E90/(2*Val!$D$5+Val!$D$7) -> 0.1732832952 | E86: =Res!F90 -> 9.412796483e-05 | F86: =(Res!J90-Val!$D$13)/(Val!$D$13-Res!$J$738) -> -0.02833003879 | G86: =Res!K90/Val!$D$14 -> 0.8025543294 | H86: =Res!L90/Res!$L$739 -> 0.1951358332 | I86: =Res!M90/Res!$M$739 -> 0.1979656691
B87: =Res!B91 -> 81 | C87: =Res!C91*180/PI() -> 40.50000001 | D87: =Res!E91/(2*Val!$D$5+Val!$D$7) -> 0.1765439344 | E87: =Res!F91 -> 9.49873115e-05 | F87: =(Res!J91-Val!$D$13)/(Val!$D$13-Res!$J$738) -> -0.02884703959 | G87: =Res!K91/Val!$D$14 -> 0.8042790865 | H87: =Res!L91/Res!$L$739 -> 0.1983279727 | I87: =Res!M91/Res!$M$739 -> 0.2016365053
B88: =Res!B92 -> 82 | C88: =Res!C92*180/PI() -> 41.00000001 | D88: =Res!E92/(2*Val!$D$5+Val!$D$7) -> 0.1798340201 | E88: =Res!F92 -> 9.583585094e-05 | F88: =(Res!J92-Val!$D$13)/(Val!$D$13-Res!$J$738) -> -0.02936205467 | G88: =Res!K92/Val!$D$14 -> 0.8059575666 | H88: =Res!L92/Res!$L$739 -> 0.2015494212 | I88: =Res!M92/Res!$M$739 -> 0.2053393323
B89: =Res!B93 -> 83 | C89: =Res!C93*180/PI() -> 41.50000001 | D89: =Res!E93/(2*Val!$D$5+Val!$D$7) -> 0.1831531784 | E89: =Res!F93 -> 9.667350922e-05 | F89: =(Res!J93-Val!$D$13)/(Val!$D$13-Res!$J$738) -> -0.02987486465 | G89: =Res!K93/Val!$D$14 -> 0.8075906974 | H89: =Res!L93/Res!$L$739 -> 0.2047999041 | I89: =Res!M93/Res!$M$739 -> 0.2090737312
B90: =Res!B94 -> 84 | C90: =Res!C94*180/PI() -> 42.00000001 | D90: =Res!E94/(2*Val!$D$5+Val!$D$7) -> 0.1865010328 | E90: =Res!F94 -> 9.750021429e-05 | F90: =(Res!J94-Val!$D$13)/(Val!$D$13-Res!$J$738) -> -0.03038525219 | G90: =Res!K94/Val!$D$14 -> 0.809179396 | H90: =Res!L94/Res!$L$739 -> 0.2080791447 | I90: =Res!M94/Res!$M$739 -> 0.2128392811
B91: =Res!B95 -> 85 | C91: =Res!C95*180/PI() -> 42.50000001 | D91: =Res!E95/(2*Val!$D$5+Val!$D$7) -> 0.1898772044 | E91: =Res!F95 -> 9.831589605e-05 | F91: =(Res!J95-Val!$D$13)/(Val!$D$13-Res!$J$738) -> -0.03089300207 | G91: =Res!K95/Val!$D$14 -> 0.8107245674 | H91: =Res!L95/Res!$L$739 -> 0.2113868648 | I91: =Res!M95/Res!$M$739 -> 0.2166355591
B92: =Res!B96 -> 86 | C92: =Res!C96*180/PI() -> 43.00000001 | D92: =Res!E96/(2*Val!$D$5+Val!$D$7) -> 0.1932813119 | E92: =Res!F96 -> 9.912048633e-05 | F92: =(Res!J96-Val!$D$13)/(Val!$D$13-Res!$J$738) -> -0.03139790127 | G92: =Res!K96/Val!$D$14 -> 0.8122271037 | H92: =Res!L96/Res!$L$739 -> 0.2147227838 | I92: =Res!M96/Res!$M$739 -> 0.2204621406
B93: =Res!B97 -> 87 | C93: =Res!C97*180/PI() -> 43.50000001 | D93: =Res!E97/(2*Val!$D$5+Val!$D$7) -> 0.1967129717 | E93: =Res!F97 -> 9.991391891e-05 | F93: =(Res!J97-Val!$D$13)/(Val!$D$13-Res!$J$738) -> -0.03189973913 | G93: =Res!K97/Val!$D$14 -> 0.813687884 | H93: =Res!L97/Res!$L$739 -> 0.2180866199 | I93: =Res!M97/Res!$M$739 -> 0.2243185991
B94: =Res!B98 -> 88 | C94: =Res!C98*180/PI() -> 44.00000001 | D94: =Res!E98/(2*Val!$D$5+Val!$D$7) -> 0.200171798 | E94: =Res!F98 -> 0.0001006961295 | F94: =(Res!J98-Val!$D$13)/(Val!$D$13-Res!$J$738) -> -0.03239830736 | G94: =Res!K98/Val!$D$14 -> 0.8151077733 | H94: =Res!L98/Res!$L$739 -> 0.2214780893 | I94: =Res!M98/Res!$M$739 -> 0.2282045064
B95: =Res!B99 -> 89 | C95: =Res!C99*180/PI() -> 44.50000001 | D95: =Res!E99/(2*Val!$D$5+Val!$D$7) -> 0.2036574027 | E95: =Res!F99 -> 0.0001014670558 | F95: =(Res!J99-Val!$D$13)/(Val!$D$13-Res!$J$738) -> -0.03289340022 | G95: =Res!K99/Val!$D$14 -> 0.8164876223 | H95: =Res!L99/Res!$L$739 -> 0.2248969064 | I95: =Res!M99/Res!$M$739 -> 0.2321194325
B96: =Res!B100 -> 90 | C96: =Res!C100*180/PI() -> 45.00000001 | D96: =Res!E100/(2*Val!$D$5+Val!$D$7) -> 0.2071693956 | E96: =Res!F100 -> 0.0001022266374 | F96: =(Res!J100-Val!$D$13)/(Val!$D$13-Res!$J$738) -> -0.03338481455 | G96: =Res!K100/Val!$D$14 -> 0.8178282671 | H96: =Res!L100/Res!$L$739 -> 0.2283427844 | I96: =Res!M100/Res!$M$739 -> 0.2360629462
B97: =Res!B101 -> 91 | C97: =Res!C101*180/PI() -> 45.50000001 | D97: =Res!E101/(2*Val!$D$5+Val!$D$7) -> 0.2107073845 | E97: =Res!F101 -> 0.000102974816 | F97: =(Res!J101-Val!$D$13)/(Val!$D$13-Res!$J$738) -> -0.03387234989 | G97: =Res!K101/Val!$D$14 -> 0.8191305288 | H97: =Res!L101/Res!$L$739 -> 0.2318154346 | I97: =Res!M101/Res!$M$739 -> 0.2400346144
B98: =Res!B102 -> 92 | C98: =Res!C102*180/PI() -> 46.00000001 | D98: =Res!E102/(2*Val!$D$5+Val!$D$7) -> 0.2142709753 | E98: =Res!F102 -> 0.000103711535 | F98: =(Res!J102-Val!$D$13)/(Val!$D$13-Res!$J$738) -> -0.03435580856 | G98: =Res!K102/Val!$D$14 -> 0.8203952132 | H98: =Res!L102/Res!$L$739 -> 0.235314567 | I98: =Res!M102/Res!$M$739 -> 0.2440340029
B99: =Res!B103 -> 93 | C99: =Res!C103*180/PI() -> 46.50000001 | D99: =Res!E103/(2*Val!$D$5+Val!$D$7) -> 0.2178597718 | E99: =Res!F103 -> 0.0001044367401 | F99: =(Res!J103-Val!$D$13)/(Val!$D$13-Res!$J$738) -> -0.03483499574 | G99: =Res!K103/Val!$D$14 -> 0.8216231109 | H99: =Res!L103/Res!$L$739 -> 0.2388398902 | I99: =Res!M103/Res!$M$739 -> 0.248060676
B100: =Res!B104 -> 94 | C100: =Res!C104*180/PI() -> 47.00000001 | D100: =Res!E104/(2*Val!$D$5+Val!$D$7) -> 0.2214733762 | E100: =Res!F104 -> 0.0001051503788 | F100: =(Res!J104-Val!$D$13)/(Val!$D$13-Res!$J$738) -> -0.03530971957 | G100: =Res!K104/Val!$D$14 -> 0.8228149969 | H100: =Res!L104/Res!$L$739 -> 0.2423911112 | I100: =Res!M104/Res!$M$739 -> 0.2521141966
B101: =Res!B105 -> 95 | C101: =Res!C105*180/PI() -> 47.50000001 | D101: =Res!E105/(2*Val!$D$5+Val!$D$7) -> 0.2251113886 | E101: =Res!F105 -> 0.0001058524006 | F101: =(Res!J105-Val!$D$13)/(Val!$D$13-Res!$J$738) -> -0.03577979121 | G101: =Res!K105/Val!$D$14 -> 0.8239716307 | H101: =Res!L105/Res!$L$739 -> 0.2459679359 | I101: =Res!M105/Res!$M$739 -> 0.2561941267
B102: =Res!B106 -> 96 | C102: =Res!C106*180/PI() -> 48.00000001 | D102: =Res!E106/(2*Val!$D$5+Val!$D$7) -> 0.2287734076 | E102: =Res!F106 -> 0.000106542757 | F102: =(Res!J106-Val!$D$13)/(Val!$D$13-Res!$J$738) -> -0.03624502495 | G102: =Res!K106/Val!$D$14 -> 0.8250937563 | H102: =Res!L106/Res!$L$739 -> 0.2495700688 | I102: =Res!M106/Res!$M$739 -> 0.2603000268
B103: =Res!B107 -> 97 | C103: =Res!C107*180/PI() -> 48.50000001 | D103: =Res!E107/(2*Val!$D$5+Val!$D$7) -> 0.2324590303 | E103: =Res!F107 -> 0.0001072214015 | F103: =(Res!J107-Val!$D$13)/(Val!$D$13-Res!$J$738) -> -0.03670523822 | G103: =Res!K107/Val!$D$14 -> 0.8261821022 | H103: =Res!L107/Res!$L$739 -> 0.2531972133 | I103: =Res!M107/Res!$M$739 -> 0.2644314566
B104: =Res!B108 -> 98 | C104: =Res!C108*180/PI() -> 49.00000001 | D104: =Res!E108/(2*Val!$D$5+Val!$D$7) -> 0.2361678519 | E104: =Res!F108 -> 0.0001078882894 | F104: =(Res!J108-Val!$D$13)/(Val!$D$13-Res!$J$738) -> -0.03716025174 | G104: =Res!K108/Val!$D$14 -> 0.8272373812 | H104: =Res!L108/Res!$L$739 -> 0.2568490713 | I104: =Res!M108/Res!$M$739 -> 0.2685879746
B105: =Res!B109 -> 99 | C105: =Res!C109*180/PI() -> 49.50000001 | D105: =Res!E109/(2*Val!$D$5+Val!$D$7) -> 0.2398994664 | E105: =Res!F109 -> 0.0001085433784 | F105: =(Res!J109-Val!$D$13)/(Val!$D$13-Res!$J$738) -> -0.03760988956 | G105: =Res!K109/Val!$D$14 -> 0.8282602911 | H105: =Res!L109/Res!$L$739 -> 0.2605253439 | I105: =Res!M109/Res!$M$739 -> 0.2727691384
B106: =Res!B110 -> 100 | C106: =Res!C110*180/PI() -> 50.00000001 | D106: =Res!E110/(2*Val!$D$5+Val!$D$7) -> 0.2436534661 | E106: =Res!F110 -> 0.0001091866278 | F106: =(Res!J110-Val!$D$13)/(Val!$D$13-Res!$J$738) -> -0.03805397912 | G106: =Res!K110/Val!$D$14 -> 0.8292515142 | H106: =Res!L110/Res!$L$739 -> 0.2642257311 | I106: =Res!M110/Res!$M$739 -> 0.2769745049
B107: =Res!B111 -> 101 | C107: =Res!C111*180/PI() -> 50.50000001 | D107: =Res!E111/(2*Val!$D$5+Val!$D$7) -> 0.2474294421 | E107: =Res!F111 -> 0.0001098179991 | F107: =(Res!J111-Val!$D$13)/(Val!$D$13-Res!$J$738) -> -0.0384923513 | G107: =Res!K111/Val!$D$14 -> 0.8302117177 | H107: =Res!L111/Res!$L$739 -> 0.2679499315 | I107: =Res!M111/Res!$M$739 -> 0.2812036299
B108: =Res!B112 -> 102 | C108: =Res!C112*180/PI() -> 51.00000001 | D108: =Res!E112/(2*Val!$D$5+Val!$D$7) -> 0.2512269842 | E108: =Res!F112 -> 0.0001104374557 | F108: =(Res!J112-Val!$D$13)/(Val!$D$13-Res!$J$738) -> -0.03892484054 | G108: =Res!K112/Val!$D$14 -> 0.831141554 | H108: =Res!L112/Res!$L$739 -> 0.271697643 | I108: =Res!M112/Res!$M$739 -> 0.2854560686
B109: =Res!B113 -> 103 | C109: =Res!C113*180/PI() -> 51.50000001 | D109: =Res!E113/(2*Val!$D$5+Val!$D$7) -> 0.255045681 | E109: =Res!F113 -> 0.000111044963 | F109: =(Res!J113-Val!$D$13)/(Val!$D$13-Res!$J$738) -> -0.03935128484 | G109: =Res!K113/Val!$D$14 -> 0.8320416605 | H109: =Res!L113/Res!$L$739 -> 0.2754685626 | I109: =Res!M113/Res!$M$739 -> 0.2897313755
B110: =Res!B114 -> 104 | C110: =Res!C114*180/PI() -> 52.00000001 | D110: =Res!E114/(2*Val!$D$5+Val!$D$7) -> 0.2588851198 | E110: =Res!F114 -> 0.0001116404884 | F110: =(Res!J114-Val!$D$13)/(Val!$D$13-Res!$J$738) -> -0.03977152586 | G110: =Res!K114/Val!$D$14 -> 0.8329126602 | H110: =Res!L114/Res!$L$739 -> 0.2792623861 | I110: =Res!M114/Res!$M$739 -> 0.2940291044
B111: =Res!B115 -> 105 | C111: =Res!C115*180/PI() -> 52.50000001 | D111: =Res!E115/(2*Val!$D$5+Val!$D$7) -> 0.2627448869 | E111: =Res!F115 -> 0.0001122240013 | F111: =(Res!J115-Val!$D$13)/(Val!$D$13-Res!$J$738) -> -0.04018540896 | G111: =Res!K115/Val!$D$14 -> 0.8337551618 | H111: =Res!L115/Res!$L$739 -> 0.2830788087 | I111: =Res!M115/Res!$M$739 -> 0.2983488088
B112: =Res!B116 -> 106 | C112: =Res!C116*180/PI() -> 53.00000001 | D112: =Res!E116/(2*Val!$D$5+Val!$D$7) -> 0.2666245677 | E112: =Res!F116 -> 0.0001127954731 | F112: =(Res!J116-Val!$D$13)/(Val!$D$13-Res!$J$738) -> -0.04059278325 | G112: =Res!K116/Val!$D$14 -> 0.8345697598 | H112: =Res!L116/Res!$L$739 -> 0.2869175244 | I112: =Res!M116/Res!$M$739 -> 0.3026900412
B113: =Res!B117 -> 107 | C113: =Res!C117*180/PI() -> 53.50000001 | D113: =Res!E117/(2*Val!$D$5+Val!$D$7) -> 0.2705237464 | E113: =Res!F117 -> 0.0001133548771 | F113: =(Res!J117-Val!$D$13)/(Val!$D$13-Res!$J$738) -> -0.04099350162 | G113: =Res!K117/Val!$D$14 -> 0.8353570347 | H113: =Res!L117/Res!$L$739 -> 0.2907782269 | I113: =Res!M117/Res!$M$739 -> 0.3070523542
B114: =Res!B118 -> 108 | C114: =Res!C118*180/PI() -> 54.00000001 | D114: =Res!E118/(2*Val!$D$5+Val!$D$7) -> 0.2744420064 | E114: =Res!F118 -> 0.0001139021887 | F114: =(Res!J118-Val!$D$13)/(Val!$D$13-Res!$J$738) -> -0.04138742086 | G114: =Res!K118/Val!$D$14 -> 0.8361175536 | H114: =Res!L118/Res!$L$739 -> 0.2946606087 | I114: =Res!M118/Res!$M$739 -> 0.3114352997
B115: =Res!B119 -> 109 | C115: =Res!C119*180/PI() -> 54.50000001 | D115: =Res!E119/(2*Val!$D$5+Val!$D$7) -> 0.2783789305 | E115: =Res!F119 -> 0.0001144373852 | F115: =(Res!J119-Val!$D$13)/(Val!$D$13-Res!$J$738) -> -0.04177440161 | G115: =Res!K119/Val!$D$14 -> 0.83685187 | H115: =Res!L119/Res!$L$739 -> 0.2985643618 | I115: =Res!M119/Res!$M$739 -> 0.3158384292
B116: =Res!B120 -> 110 | C116: =Res!C120*180/PI() -> 55.00000001 | D116: =Res!E120/(2*Val!$D$5+Val!$D$7) -> 0.2823341004 | E116: =Res!F120 -> 0.0001149604458 | F116: =(Res!J120-Val!$D$13)/(Val!$D$13-Res!$J$738) -> -0.04215430848 | G116: =Res!K120/Val!$D$14 -> 0.8375605245 | H116: =Res!L120/Res!$L$739 -> 0.3024891774 | I116: =Res!M120/Res!$M$739 -> 0.3202612942
B117: =Res!B121 -> 111 | C117: =Res!C121*180/PI() -> 55.50000001 | D117: =Res!E121/(2*Val!$D$5+Val!$D$7) -> 0.2863070974 | E117: =Res!F121 -> 0.0001154713519 | F117: =(Res!J121-Val!$D$13)/(Val!$D$13-Res!$J$738) -> -0.04252701003 | G117: =Res!K121/Val!$D$14 -> 0.8382440444 | H117: =Res!L121/Res!$L$739 -> 0.3064347462 | I117: =Res!M121/Res!$M$739 -> 0.3247034459
B118: =Res!B122 -> 112 | C118: =Res!C122*180/PI() -> 56.00000001 | D118: =Res!E122/(2*Val!$D$5+Val!$D$7) -> 0.290297502 | E118: =Res!F122 -> 0.0001159700865 | F118: =(Res!J122-Val!$D$13)/(Val!$D$13-Res!$J$738) -> -0.04289237887 | G118: =Res!K122/Val!$D$14 -> 0.8389029449 | H118: =Res!L122/Res!$L$739 -> 0.310400758 | I118: =Res!M122/Res!$M$739 -> 0.3291644352
B119: =Res!B123 -> 113 | C119: =Res!C123*180/PI() -> 56.50000001 | D119: =Res!E123/(2*Val!$D$5+Val!$D$7) -> 0.2943048943 | E119: =Res!F123 -> 0.0001164566349 | F119: =(Res!J123-Val!$D$13)/(Val!$D$13-Res!$J$738) -> -0.04325029164 | G119: =Res!K123/Val!$D$14 -> 0.8395377285 | H119: =Res!L123/Res!$L$739 -> 0.3143869023 | I119: =Res!M123/Res!$M$739 -> 0.333643813
B120: =Res!B124 -> 114 | C120: =Res!C124*180/PI() -> 57.00000001 | D120: =Res!E124/(2*Val!$D$5+Val!$D$7) -> 0.2983288539 | E120: =Res!F124 -> 0.0001169309843 | F120: =(Res!J124-Val!$D$13)/(Val!$D$13-Res!$J$738) -> -0.04360062905 | G120: =Res!K124/Val!$D$14 -> 0.8401488858 | H120: =Res!L124/Res!$L$739 -> 0.318392868 | I120: =Res!M124/Res!$M$739 -> 0.3381411303
B121: =Res!B125 -> 115 | C121: =Res!C125*180/PI() -> 57.50000001 | D121: =Res!E125/(2*Val!$D$5+Val!$D$7) -> 0.3023689598 | E121: =Res!F125 -> 0.0001173931235 | F121: =(Res!J125-Val!$D$13)/(Val!$D$13-Res!$J$738) -> -0.04394327596 | G121: =Res!K125/Val!$D$14 -> 0.8407368956 | H121: =Res!L125/Res!$L$739 -> 0.3224183432 | I121: =Res!M125/Res!$M$739 -> 0.3426559378
B122: =Res!B126 -> 116 | C122: =Res!C126*180/PI() -> 58.00000001 | D122: =Res!E126/(2*Val!$D$5+Val!$D$7) -> 0.3064247909 | E122: =Res!F126 -> 0.0001178430437 | F122: =(Res!J126-Val!$D$13)/(Val!$D$13-Res!$J$738) -> -0.04427812133 | G122: =Res!K126/Val!$D$14 -> 0.8413022249 | H122: =Res!L126/Res!$L$739 -> 0.3264630159 | I122: =Res!M126/Res!$M$739 -> 0.3471877866
B123: =Res!B127 -> 117 | C123: =Res!C127*180/PI() -> 58.50000001 | D123: =Res!E127/(2*Val!$D$5+Val!$D$7) -> 0.3104959257 | E123: =Res!F127 -> 0.0001182807378 | F123: =(Res!J127-Val!$D$13)/(Val!$D$13-Res!$J$738) -> -0.04460505831 | G123: =Res!K127/Val!$D$14 -> 0.8418453297 | H123: =Res!L127/Res!$L$739 -> 0.3305265734 | I123: =Res!M127/Res!$M$739 -> 0.3517362277
B124: =Res!B128 -> 118 | C124: =Res!C128*180/PI() -> 59.00000001 | D124: =Res!E128/(2*Val!$D$5+Val!$D$7) -> 0.3145819426 | E124: =Res!F128 -> 0.0001187062005 | F124: =(Res!J128-Val!$D$13)/(Val!$D$13-Res!$J$738) -> -0.04492398422 | G124: =Res!K128/Val!$D$14 -> 0.842366655 | H124: =Res!L128/Res!$L$739 -> 0.3346087026 | I124: =Res!M128/Res!$M$739 -> 0.3563008122
B125: =Res!B129 -> 119 | C125: =Res!C129*180/PI() -> 59.50000001 | D125: =Res!E129/(2*Val!$D$5+Val!$D$7) -> 0.3186824196 | E125: =Res!F129 -> 0.0001191194287 | F125: =(Res!J129-Val!$D$13)/(Val!$D$13-Res!$J$738) -> -0.04523480059 | G125: =Res!K129/Val!$D$14 -> 0.8428666349 | H125: =Res!L129/Res!$L$739 -> 0.3387090901 | I125: =Res!M129/Res!$M$739 -> 0.3608810918
B126: =Res!B130 -> 120 | C126: =Res!C130*180/PI() -> 60.00000001 | D126: =Res!E130/(2*Val!$D$5+Val!$D$7) -> 0.3227969349 | E126: =Res!F130 -> 0.0001195204211 | F126: =(Res!J130-Val!$D$13)/(Val!$D$13-Res!$J$738) -> -0.04553741316 | G126: =Res!K130/Val!$D$14 -> 0.8433456931 | H126: =Res!L130/Res!$L$739 -> 0.342827422 | I126: =Res!M130/Res!$M$739 -> 0.365476618
B127: =Res!B131 -> 121 | C127: =Res!C131*180/PI() -> 60.50000001 | D127: =Res!E131/(2*Val!$D$5+Val!$D$7) -> 0.3269250666 | E127: =Res!F131 -> 0.0001199091781 | F127: =(Res!J131-Val!$D$13)/(Val!$D$13-Res!$J$738) -> -0.04583173192 | G127: =Res!K131/Val!$D$14 -> 0.843804243 | H127: =Res!L131/Res!$L$739 -> 0.346963384 | I127: =Res!M131/Res!$M$739 -> 0.370086943
B128: =Res!B132 -> 122 | C128: =Res!C132*180/PI() -> 61.00000001 | D128: =Res!E132/(2*Val!$D$5+Val!$D$7) -> 0.3310663928 | E128: =Res!F132 -> 0.0001202857023 | F128: =(Res!J132-Val!$D$13)/(Val!$D$13-Res!$J$738) -> -0.0461176711 | G128: =Res!K132/Val!$D$14 -> 0.8442426881 | H128: =Res!L132/Res!$L$739 -> 0.3511166618 | I128: =Res!M132/Res!$M$739 -> 0.3747116192
B129: =Res!B133 -> 123 | C129: =Res!C133*180/PI() -> 61.50000001 | D129: =Res!E133/(2*Val!$D$5+Val!$D$7) -> 0.3352204917 | E129: =Res!F133 -> 0.0001206499979 | F129: =(Res!J133-Val!$D$13)/(Val!$D$13-Res!$J$738) -> -0.04639514919 | G129: =Res!K133/Val!$D$14 -> 0.8446614222 | H129: =Res!L133/Res!$L$739 -> 0.3552869404 | I129: =Res!M133/Res!$M$739 -> 0.3793501994
B130: =Res!B134 -> 124 | C130: =Res!C134*180/PI() -> 62.00000001 | D130: =Res!E134/(2*Val!$D$5+Val!$D$7) -> 0.3393869418 | E130: =Res!F134 -> 0.0001210020711 | F130: =(Res!J134-Val!$D$13)/(Val!$D$13-Res!$J$738) -> -0.04666408891 | G130: =Res!K134/Val!$D$14 -> 0.8450608296 | H130: =Res!L134/Res!$L$739 -> 0.3594739048 | I130: =Res!M134/Res!$M$739 -> 0.3840022369
B131: =Res!B135 -> 125 | C131: =Res!C135*180/PI() -> 62.50000001 | D131: =Res!E135/(2*Val!$D$5+Val!$D$7) -> 0.3435653218 | E131: =Res!F135 -> 0.00012134193 | F131: =(Res!J135-Val!$D$13)/(Val!$D$13-Res!$J$738) -> -0.0469244173 | G131: =Res!K135/Val!$D$14 -> 0.8454412852 | H131: =Res!L135/Res!$L$739 -> 0.3636772398 | I131: =Res!M135/Res!$M$739 -> 0.3886672856
B132: =Res!B136 -> 126 | C132: =Res!C136*180/PI() -> 63.00000001 | D132: =Res!E136/(2*Val!$D$5+Val!$D$7) -> 0.3477552105 | E132: =Res!F136 -> 0.0001216695844 | F132: =(Res!J136-Val!$D$13)/(Val!$D$13-Res!$J$738) -> -0.0471760656 | G132: =Res!K136/Val!$D$14 -> 0.8458031551 | H132: =Res!L136/Res!$L$739 -> 0.3678966297 | I132: =Res!M136/Res!$M$739 -> 0.3933448998
B133: =Res!B137 -> 127 | C133: =Res!C137*180/PI() -> 63.50000001 | D133: =Res!E137/(2*Val!$D$5+Val!$D$7) -> 0.3519561874 | E133: =Res!F137 -> 0.0001219850462 | F133: =(Res!J137-Val!$D$13)/(Val!$D$13-Res!$J$738) -> -0.04741896938 | G133: =Res!K137/Val!$D$14 -> 0.8461467966 | H133: =Res!L137/Res!$L$739 -> 0.3721317589 | I133: =Res!M137/Res!$M$739 -> 0.3980346347
B134: =Res!B138 -> 128 | C134: =Res!C138*180/PI() -> 64.00000001 | D134: =Res!E138/(2*Val!$D$5+Val!$D$7) -> 0.3561678323 | E134: =Res!F138 -> 0.0001222883287 | F134: =(Res!J138-Val!$D$13)/(Val!$D$13-Res!$J$738) -> -0.04765306843 | G134: =Res!K138/Val!$D$14 -> 0.8464725585 | H134: =Res!L138/Res!$L$739 -> 0.3763823114 | I134: =Res!M138/Res!$M$739 -> 0.4027360459
B135: =Res!B139 -> 129 | C135: =Res!C139*180/PI() -> 64.50000001 | D135: =Res!E139/(2*Val!$D$5+Val!$D$7) -> 0.3603897255 | E135: =Res!F139 -> 0.0001225794474 | F135: =(Res!J139-Val!$D$13)/(Val!$D$13-Res!$J$738) -> -0.04787830681 | G135: =Res!K139/Val!$D$14 -> 0.8467807813 | H135: =Res!L139/Res!$L$739 -> 0.3806479713 | I135: =Res!M139/Res!$M$739 -> 0.4074486897
B136: =Res!B140 -> 130 | C136: =Res!C140*180/PI() -> 65.00000001 | D136: =Res!E140/(2*Val!$D$5+Val!$D$7) -> 0.3646214477 | E136: =Res!F140 -> 0.0001228584195 | F136: =(Res!J140-Val!$D$13)/(Val!$D$13-Res!$J$738) -> -0.04809463282 | G136: =Res!K140/Val!$D$14 -> 0.8470717972 | H136: =Res!L140/Res!$L$739 -> 0.3849284225 | I136: =Res!M140/Res!$M$739 -> 0.4121721233
B137: =Res!B141 -> 131 | C137: =Res!C141*180/PI() -> 65.50000001 | D137: =Res!E141/(2*Val!$D$5+Val!$D$7) -> 0.3688625805 | E137: =Res!F141 -> 0.0001231252637 | F137: =(Res!J141-Val!$D$13)/(Val!$D$13-Res!$J$738) -> -0.04830199902 | G137: =Res!K141/Val!$D$14 -> 0.8473459307 | H137: =Res!L141/Res!$L$739 -> 0.3892233485 | I137: =Res!M141/Res!$M$739 -> 0.4169059046
B138: =Res!B142 -> 132 | C138: =Res!C142*180/PI() -> 66.00000001 | D138: =Res!E142/(2*Val!$D$5+Val!$D$7) -> 0.373112706 | E138: =Res!F142 -> 0.0001233800008 | F138: =(Res!J142-Val!$D$13)/(Val!$D$13-Res!$J$738) -> -0.04850036217 | G138: =Res!K142/Val!$D$14 -> 0.8476034988 | H138: =Res!L142/Res!$L$739 -> 0.3935324333 | I138: =Res!M142/Res!$M$739 -> 0.4216495925
B139: =Res!B143 -> 133 | C139: =Res!C143*180/PI() -> 66.50000001 | D139: =Res!E143/(2*Val!$D$5+Val!$D$7) -> 0.3773714072 | E139: =Res!F143 -> 0.0001236226533 | F139: =(Res!J143-Val!$D$13)/(Val!$D$13-Res!$J$738) -> -0.04868968325 | G139: =Res!K143/Val!$D$14 -> 0.8478448108 | H139: =Res!L143/Res!$L$739 -> 0.3978553603 | I139: =Res!M143/Res!$M$739 -> 0.4264027465
B140: =Res!B144 -> 134 | C140: =Res!C144*180/PI() -> 67.00000001 | D140: =Res!E144/(2*Val!$D$5+Val!$D$7) -> 0.3816382676 | E140: =Res!F144 -> 0.0001238532454 | F140: =(Res!J144-Val!$D$13)/(Val!$D$13-Res!$J$738) -> -0.04886992744 | G140: =Res!K144/Val!$D$14 -> 0.8480701687 | H140: =Res!L144/Res!$L$739 -> 0.4021918133 | I140: =Res!M144/Res!$M$739 -> 0.4311649273
B141: =Res!B145 -> 135 | C141: =Res!C145*180/PI() -> 67.50000001 | D141: =Res!E145/(2*Val!$D$5+Val!$D$7) -> 0.385912872 | E141: =Res!F145 -> 0.0001240718028 | F141: =(Res!J145-Val!$D$13)/(Val!$D$13-Res!$J$738) -> -0.04904106409 | G141: =Res!K145/Val!$D$14 -> 0.8482798677 | H141: =Res!L145/Res!$L$739 -> 0.4065414757 | I141: =Res!M145/Res!$M$739 -> 0.4359356965
B142: =Res!B146 -> 136 | C142: =Res!C146*180/PI() -> 68.00000001 | D142: =Res!E146/(2*Val!$D$5+Val!$D$7) -> 0.3901948057 | E142: =Res!F146 -> 0.0001242783534 | F142: =(Res!J146-Val!$D$13)/(Val!$D$13-Res!$J$738) -> -0.04920306669 | G142: =Res!K146/Val!$D$14 -> 0.8484741961 | H142: =Res!L146/Res!$L$739 -> 0.4109040312 | I142: =Res!M146/Res!$M$739 -> 0.4407146165
B143: =Res!B147 -> 137 | C143: =Res!C147*180/PI() -> 68.50000001 | D143: =Res!E147/(2*Val!$D$5+Val!$D$7) -> 0.3944836552 | E143: =Res!F147 -> 0.0001244729263 | F143: =(Res!J147-Val!$D$13)/(Val!$D$13-Res!$J$738) -> -0.04935591287 | G143: =Res!K147/Val!$D$14 -> 0.8486534352 | H143: =Res!L147/Res!$L$739 -> 0.4152791636 | I143: =Res!M147/Res!$M$739 -> 0.445501251
B144: =Res!B148 -> 138 | C144: =Res!C148*180/PI() -> 69.00000001 | D144: =Res!E148/(2*Val!$D$5+Val!$D$7) -> 0.3987790081 | E144: =Res!F148 -> 0.0001246555526 | F144: =(Res!J148-Val!$D$13)/(Val!$D$13-Res!$J$738) -> -0.04949958438 | G144: =Res!K148/Val!$D$14 -> 0.8488178601 | H144: =Res!L148/Res!$L$739 -> 0.4196665564 | I144: =Res!M148/Res!$M$739 -> 0.4502951648
B145: =Res!B149 -> 139 | C145: =Res!C149*180/PI() -> 69.50000001 | D145: =Res!E149/(2*Val!$D$5+Val!$D$7) -> 0.403080453 | E145: =Res!F149 -> 0.0001248262649 | F145: =(Res!J149-Val!$D$13)/(Val!$D$13-Res!$J$738) -> -0.049634067 | G145: =Res!K149/Val!$D$14 -> 0.8489677396 | H145: =Res!L149/Res!$L$739 -> 0.4240658934 | I145: =Res!M149/Res!$M$739 -> 0.4550959237
B146: =Res!B150 -> 140 | C146: =Res!C150*180/PI() -> 70.00000001 | D146: =Res!E150/(2*Val!$D$5+Val!$D$7) -> 0.4073875795 | E146: =Res!F150 -> 0.0001249850974 | F146: =(Res!J150-Val!$D$13)/(Val!$D$13-Res!$J$738) -> -0.04975935061 | G146: =Res!K150/Val!$D$14 -> 0.8491033363 | H146: =Res!L150/Res!$L$739 -> 0.4284768587 | I146: =Res!M150/Res!$M$739 -> 0.4599030947
B147: =Res!B151 -> 141 | C147: =Res!C151*180/PI() -> 70.50000001 | D147: =Res!E151/(2*Val!$D$5+Val!$D$7) -> 0.4116999787 | E147: =Res!F151 -> 0.0001251320862 | F147: =(Res!J151-Val!$D$13)/(Val!$D$13-Res!$J$738) -> -0.04987542907 | G147: =Res!K151/Val!$D$14 -> 0.8492249066 | H147: =Res!L151/Res!$L$739 -> 0.432899136 | I147: =Res!M151/Res!$M$739 -> 0.464716246
B148: =Res!B152 -> 142 | C148: =Res!C152*180/PI() -> 71.00000001 | D148: =Res!E152/(2*Val!$D$5+Val!$D$7) -> 0.4160172428 | E148: =Res!F152 -> 0.0001252672688 | F148: =(Res!J152-Val!$D$13)/(Val!$D$13-Res!$J$738) -> -0.04998230022 | G148: =Res!K152/Val!$D$14 -> 0.8493327014 | H148: =Res!L152/Res!$L$739 -> 0.4373324097 | I148: =Res!M152/Res!$M$739 -> 0.4695349473
B149: =Res!B153 -> 143 | C149: =Res!C153*180/PI() -> 71.50000001 | D149: =Res!E153/(2*Val!$D$5+Val!$D$7) -> 0.4203389654 | E149: =Res!F153 -> 0.0001253906842 | F149: =(Res!J153-Val!$D$13)/(Val!$D$13-Res!$J$738) -> -0.05007996586 | G149: =Res!K153/Val!$D$14 -> 0.8494269658 | H149: =Res!L153/Res!$L$739 -> 0.441776364 | I149: =Res!M153/Res!$M$739 -> 0.4743587693
B150: =Res!B154 -> 144 | C150: =Res!C154*180/PI() -> 72.00000001 | D150: =Res!E154/(2*Val!$D$5+Val!$D$7) -> 0.4246647414 | E150: =Res!F154 -> 0.0001255023733 | F150: =(Res!J154-Val!$D$13)/(Val!$D$13-Res!$J$738) -> -0.0501684317 | G150: =Res!K154/Val!$D$14 -> 0.8495079395 | H150: =Res!L154/Res!$L$739 -> 0.4462306834 | I150: =Res!M154/Res!$M$739 -> 0.4791872842
B151: =Res!B155 -> 145 | C151: =Res!C155*180/PI() -> 72.50000001 | D151: =Res!E155/(2*Val!$D$5+Val!$D$7) -> 0.4289941672 | E151: =Res!F155 -> 0.0001256023781 | F151: =(Res!J155-Val!$D$13)/(Val!$D$13-Res!$J$738) -> -0.0502477073 | G151: =Res!K155/Val!$D$14 -> 0.8495758566 | H151: =Res!L155/Res!$L$739 -> 0.4506950526 | I151: =Res!M155/Res!$M$739 -> 0.4840200654
B152: =Res!B156 -> 146 | C152: =Res!C156*180/PI() -> 73.00000001 | D152: =Res!E156/(2*Val!$D$5+Val!$D$7) -> 0.4333268406 | E152: =Res!F156 -> 0.0001256907426 | F152: =(Res!J156-Val!$D$13)/(Val!$D$13-Res!$J$738) -> -0.05031780605 | G152: =Res!K156/Val!$D$14 -> 0.8496309463 | H152: =Res!L156/Res!$L$739 -> 0.4551691564 | I152: =Res!M156/Res!$M$739 -> 0.488856688
B153: =Res!B157 -> 147 | C153: =Res!C157*180/PI() -> 73.50000001 | D153: =Res!E157/(2*Val!$D$5+Val!$D$7) -> 0.437662361 | E153: =Res!F157 -> 0.000125767512 | F153: =(Res!J157-Val!$D$13)/(Val!$D$13-Res!$J$738) -> -0.05037874516 | G153: =Res!K157/Val!$D$14 -> 0.8496734326 | H153: =Res!L157/Res!$L$739 -> 0.4596526802 | I153: =Res!M157/Res!$M$739 -> 0.4936967282
B154: =Res!B158 -> 148 | C154: =Res!C158*180/PI() -> 74.00000001 | D154: =Res!E158/(2*Val!$D$5+Val!$D$7) -> 0.4420003294 | E154: =Res!F158 -> 0.0001258327332 | F154: =(Res!J158-Val!$D$13)/(Val!$D$13-Res!$J$738) -> -0.05043054552 | G154: =Res!K158/Val!$D$14 -> 0.8497035345 | H154: =Res!L158/Res!$L$739 -> 0.4641453092 | I154: =Res!M158/Res!$M$739 -> 0.498539764
B155: =Res!B159 -> 149 | C155: =Res!C159*180/PI() -> 74.50000001 | D155: =Res!E159/(2*Val!$D$5+Val!$D$7) -> 0.4463403484 | E155: =Res!F159 -> 0.0001258864544 | F155: =(Res!J159-Val!$D$13)/(Val!$D$13-Res!$J$738) -> -0.05047323178 | G155: =Res!K159/Val!$D$14 -> 0.8497214663 | H155: =Res!L159/Res!$L$739 -> 0.4686467292 | I155: =Res!M159/Res!$M$739 -> 0.5033853747
B156: =Res!B160 -> 150 | C156: =Res!C160*180/PI() -> 75.00000001 | D156: =Res!E160/(2*Val!$D$5+Val!$D$7) -> 0.4506820222 | E156: =Res!F160 -> 0.0001259287255 | F156: =(Res!J160-Val!$D$13)/(Val!$D$13-Res!$J$738) -> -0.05050683219 | G156: =Res!K160/Val!$D$14 -> 0.8497274377 | H156: =Res!L160/Res!$L$739 -> 0.4731566261 | I156: =Res!M160/Res!$M$739 -> 0.5082331413
B157: =Res!B161 -> 151 | C157: =Res!C161*180/PI() -> 75.50000001 | D157: =Res!E161/(2*Val!$D$5+Val!$D$7) -> 0.455024957 | E157: =Res!F161 -> 0.0001259595975 | F157: =(Res!J161-Val!$D$13)/(Val!$D$13-Res!$J$738) -> -0.05053137862 | G157: =Res!K161/Val!$D$14 -> 0.8497216538 | H157: =Res!L161/Res!$L$739 -> 0.4776746864 | I157: =Res!M161/Res!$M$739 -> 0.5130826464
B158: =Res!B162 -> 152 | C158: =Res!C162*180/PI() -> 76.00000001 | D158: =Res!E162/(2*Val!$D$5+Val!$D$7) -> 0.4593687606 | E158: =Res!F162 -> 0.0001259791231 | F158: =(Res!J162-Val!$D$13)/(Val!$D$13-Res!$J$738) -> -0.05054690648 | G158: =Res!K162/Val!$D$14 -> 0.8497043152 | H158: =Res!L162/Res!$L$739 -> 0.4822005967 | I158: =Res!M162/Res!$M$739 -> 0.5179334742
B159: =Res!B163 -> 153 | C159: =Res!C163*180/PI() -> 76.50000001 | D159: =Res!E163/(2*Val!$D$5+Val!$D$7) -> 0.4637130426 | E159: =Res!F163 -> 0.0001259873563 | F159: =(Res!J163-Val!$D$13)/(Val!$D$13-Res!$J$738) -> -0.05055345468 | G159: =Res!K163/Val!$D$14 -> 0.8496756184 | H159: =Res!L163/Res!$L$739 -> 0.486734044 | I159: =Res!M163/Res!$M$739 -> 0.5227852105
B160: =Res!B164 -> 154 | C160: =Res!C164*180/PI() -> 77.00000001 | D160: =Res!E164/(2*Val!$D$5+Val!$D$7) -> 0.4680574146 | E160: =Res!F164 -> 0.0001259843525 | F160: =(Res!J164-Val!$D$13)/(Val!$D$13-Res!$J$738) -> -0.05055106557 | G160: =Res!K164/Val!$D$14 -> 0.8496357555 | H160: =Res!L164/Res!$L$739 -> 0.4912747157 | I160: =Res!M164/Res!$M$739 -> 0.5276374429
B161: =Res!B165 -> 155 | C161: =Res!C165*180/PI() -> 77.50000001 | D161: =Res!E165/(2*Val!$D$5+Val!$D$7) -> 0.4724014901 | E161: =Res!F165 -> 0.0001259701684 | F161: =(Res!J165-Val!$D$13)/(Val!$D$13-Res!$J$738) -> -0.0505397849 | G161: =Res!K165/Val!$D$14 -> 0.8495849147 | H161: =Res!L165/Res!$L$739 -> 0.4958222998 | I161: =Res!M165/Res!$M$739 -> 0.5324897607
B162: =Res!B166 -> 156 | C162: =Res!C166*180/PI() -> 78.00000001 | D162: =Res!E166/(2*Val!$D$5+Val!$D$7) -> 0.4767448846 | E162: =Res!F166 -> 0.0001259448621 | F162: =(Res!J166-Val!$D$13)/(Val!$D$13-Res!$J$738) -> -0.05051966174 | G162: =Res!K166/Val!$D$14 -> 0.8495232802 | H162: =Res!L166/Res!$L$739 -> 0.5003764844 | I162: =Res!M166/Res!$M$739 -> 0.537341755
B163: =Res!B167 -> 157 | C163: =Res!C167*180/PI() -> 78.50000001 | D163: =Res!E167/(2*Val!$D$5+Val!$D$7) -> 0.4810872155 | E163: =Res!F167 -> 0.000125908493 | F163: =(Res!J167-Val!$D$13)/(Val!$D$13-Res!$J$738) -> -0.05049074844 | G163: =Res!K167/Val!$D$14 -> 0.8494510324 | H163: =Res!L167/Res!$L$739 -> 0.5049369582 | I163: =Res!M167/Res!$M$739 -> 0.5421930187
B164: =Res!B168 -> 158 | C164: =Res!C168*180/PI() -> 79.00000001 | D164: =Res!E168/(2*Val!$D$5+Val!$D$7) -> 0.4854281025 | E164: =Res!F168 -> 0.0001258611218 | F164: =(Res!J168-Val!$D$13)/(Val!$D$13-Res!$J$738) -> -0.05045310055 | G164: =Res!K168/Val!$D$14 -> 0.8493683478 | H164: =Res!L168/Res!$L$739 -> 0.5095034106 | I164: =Res!M168/Res!$M$739 -> 0.5470431465
B165: =Res!B169 -> 159 | C165: =Res!C169*180/PI() -> 79.50000001 | D165: =Res!E169/(2*Val!$D$5+Val!$D$7) -> 0.4897671672 | E165: =Res!F169 -> 0.0001258028104 | F165: =(Res!J169-Val!$D$13)/(Val!$D$13-Res!$J$738) -> -0.05040677681 | G165: =Res!K169/Val!$D$14 -> 0.8492753993 | H165: =Res!L169/Res!$L$739 -> 0.514075531 | I165: =Res!M169/Res!$M$739 -> 0.5518917351
B166: =Res!B170 -> 160 | C166: =Res!C170*180/PI() -> 80.00000001 | D166: =Res!E170/(2*Val!$D$5+Val!$D$7) -> 0.4941040334 | E166: =Res!F170 -> 0.000125733622 | F166: =(Res!J170-Val!$D$13)/(Val!$D$13-Res!$J$738) -> -0.05035183902 | G166: =Res!K170/Val!$D$14 -> 0.8491723565 | H166: =Res!L170/Res!$L$739 -> 0.5186530098 | I166: =Res!M170/Res!$M$739 -> 0.556738383
B167: =Res!B171 -> 161 | C167: =Res!C171*180/PI() -> 80.50000001 | D167: =Res!E171/(2*Val!$D$5+Val!$D$7) -> 0.4984383271 | E167: =Res!F171 -> 0.000125653621 | F167: =(Res!J171-Val!$D$13)/(Val!$D$13-Res!$J$738) -> -0.05028835206 | G167: =Res!K171/Val!$D$14 -> 0.8490593851 | H167: =Res!L171/Res!$L$739 -> 0.5232355377 | I167: =Res!M171/Res!$M$739 -> 0.5615826906
B168: =Res!B172 -> 162 | C168: =Res!C172*180/PI() -> 81.00000001 | D168: =Res!E172/(2*Val!$D$5+Val!$D$7) -> 0.5027696768 | E168: =Res!F172 -> 0.0001255628731 | F168: =(Res!J172-Val!$D$13)/(Val!$D$13-Res!$J$738) -> -0.05021638373 | G168: =Res!K172/Val!$D$14 -> 0.8489366477 | H168: =Res!L172/Res!$L$739 -> 0.5278228059 | I168: =Res!M172/Res!$M$739 -> 0.5664242605
B169: =Res!B173 -> 163 | C169: =Res!C173*180/PI() -> 81.50000001 | D169: =Res!E173/(2*Val!$D$5+Val!$D$7) -> 0.5070977129 | E169: =Res!F173 -> 0.0001254614451 | F169: =(Res!J173-Val!$D$13)/(Val!$D$13-Res!$J$738) -> -0.05013600478 | G169: =Res!K173/Val!$D$14 -> 0.8488043036 | H169: =Res!L173/Res!$L$739 -> 0.5324145063 | I169: =Res!M173/Res!$M$739 -> 0.5712626971
B170: =Res!B174 -> 164 | C170: =Res!C174*180/PI() -> 82.00000001 | D170: =Res!E174/(2*Val!$D$5+Val!$D$7) -> 0.5114220683 | E170: =Res!F174 -> 0.0001253494048 | F170: =(Res!J174-Val!$D$13)/(Val!$D$13-Res!$J$738) -> -0.05004728878 | G170: =Res!K174/Val!$D$14 -> 0.8486625089 | H170: =Res!L174/Res!$L$739 -> 0.5370103314 | I170: =Res!M174/Res!$M$739 -> 0.576097607
B171: =Res!B175 -> 165 | C171: =Res!C175*180/PI() -> 82.50000001 | D171: =Res!E175/(2*Val!$D$5+Val!$D$7) -> 0.5157423782 | E171: =Res!F175 -> 0.0001252268214 | F171: =(Res!J175-Val!$D$13)/(Val!$D$13-Res!$J$738) -> -0.0499503121 | G171: =Res!K175/Val!$D$14 -> 0.8485114165 | H171: =Res!L175/Res!$L$739 -> 0.5416099743 | I171: =Res!M175/Res!$M$739 -> 0.5809285987
B172: =Res!B176 -> 166 | C172: =Res!C176*180/PI() -> 83.00000001 | D172: =Res!E176/(2*Val!$D$5+Val!$D$7) -> 0.5200582804 | E172: =Res!F176 -> 0.0001250937651 | F172: =(Res!J176-Val!$D$13)/(Val!$D$13-Res!$J$738) -> -0.0498451538 | G172: =Res!K176/Val!$D$14 -> 0.8483511763 | H172: =Res!L176/Res!$L$739 -> 0.5462131287 | I172: =Res!M176/Res!$M$739 -> 0.585755283
B173: =Res!B177 -> 167 | C173: =Res!C177*180/PI() -> 83.50000001 | D173: =Res!E177/(2*Val!$D$5+Val!$D$7) -> 0.5243694149 | E173: =Res!F177 -> 0.0001249503071 | F173: =(Res!J177-Val!$D$13)/(Val!$D$13-Res!$J$738) -> -0.04973189559 | G173: =Res!K177/Val!$D$14 -> 0.8481819353 | H173: =Res!L177/Res!$L$739 -> 0.5508194891 | I173: =Res!M177/Res!$M$739 -> 0.5905772727
B174: =Res!B178 -> 168 | C174: =Res!C178*180/PI() -> 84.00000001 | D174: =Res!E178/(2*Val!$D$5+Val!$D$7) -> 0.5286754242 | E174: =Res!F178 -> 0.0001247965197 | F174: =(Res!J178-Val!$D$13)/(Val!$D$13-Res!$J$738) -> -0.04961062178 | G174: =Res!K178/Val!$D$14 -> 0.8480038374 | H174: =Res!L178/Res!$L$739 -> 0.5554287505 | I174: =Res!M178/Res!$M$739 -> 0.5953941828
B175: =Res!B179 -> 169 | C175: =Res!C179*180/PI() -> 84.50000001 | D175: =Res!E179/(2*Val!$D$5+Val!$D$7) -> 0.5329759535 | E175: =Res!F179 -> 0.0001246324763 | F175: =(Res!J179-Val!$D$13)/(Val!$D$13-Res!$J$738) -> -0.04948141916 | G175: =Res!K179/Val!$D$14 -> 0.847817024 | H175: =Res!L179/Res!$L$739 -> 0.5600406088 | I175: =Res!M179/Res!$M$739 -> 0.6002056305
B176: =Res!B180 -> 170 | C176: =Res!C180*180/PI() -> 85.00000001 | D176: =Res!E180/(2*Val!$D$5+Val!$D$7) -> 0.5372706504 | E176: =Res!F180 -> 0.0001244582514 | F176: =(Res!J180-Val!$D$13)/(Val!$D$13-Res!$J$738) -> -0.04934437699 | G176: =Res!K180/Val!$D$14 -> 0.8476216334 | H176: =Res!L180/Res!$L$739 -> 0.5646547607 | I176: =Res!M180/Res!$M$739 -> 0.6050112354
B177: =Res!B181 -> 171 | C177: =Res!C181*180/PI() -> 85.50000001 | D177: =Res!E181/(2*Val!$D$5+Val!$D$7) -> 0.5415591651 | E177: =Res!F181 -> 0.0001242739202 | F177: =(Res!J181-Val!$D$13)/(Val!$D$13-Res!$J$738) -> -0.04919958687 | G177: =Res!K181/Val!$D$14 -> 0.8474178016 | H177: =Res!L181/Res!$L$739 -> 0.5692709033 | I177: =Res!M181/Res!$M$739 -> 0.6098106191
B178: =Res!B182 -> 172 | C178: =Res!C182*180/PI() -> 86.00000001 | D178: =Res!E182/(2*Val!$D$5+Val!$D$7) -> 0.5458411503 | E178: =Res!F182 -> 0.000124079559 | F178: =(Res!J182-Val!$D$13)/(Val!$D$13-Res!$J$738) -> -0.04904714273 | G178: =Res!K182/Val!$D$14 -> 0.8472056617 | H178: =Res!L182/Res!$L$739 -> 0.5738887348 | I178: =Res!M182/Res!$M$739 -> 0.6146034058
B179: =Res!B183 -> 173 | C179: =Res!C183*180/PI() -> 86.50000001 | D179: =Res!E183/(2*Val!$D$5+Val!$D$7) -> 0.5501162616 | E179: =Res!F183 -> 0.0001238752452 | F179: =(Res!J183-Val!$D$13)/(Val!$D$13-Res!$J$738) -> -0.04888714072 | G179: =Res!K183/Val!$D$14 -> 0.8469853443 | H179: =Res!L183/Res!$L$739 -> 0.5785079543 | I179: =Res!M183/Res!$M$739 -> 0.6193892216
B180: =Res!B184 -> 174 | C180: =Res!C184*180/PI() -> 87.00000001 | D180: =Res!E184/(2*Val!$D$5+Val!$D$7) -> 0.5543841572 | E180: =Res!F184 -> 0.0001236610568 | F180: =(Res!J184-Val!$D$13)/(Val!$D$13-Res!$J$738) -> -0.04871967915 | G180: =Res!K184/Val!$D$14 -> 0.8467569776 | H180: =Res!L184/Res!$L$739 -> 0.5831282614 | I180: =Res!M184/Res!$M$739 -> 0.6241676954
B181: =Res!B185 -> 175 | C181: =Res!C185*180/PI() -> 87.50000001 | D181: =Res!E185/(2*Val!$D$5+Val!$D$7) -> 0.5586444978 | E181: =Res!F185 -> 0.000123437073 | F181: =(Res!J185-Val!$D$13)/(Val!$D$13-Res!$J$738) -> -0.04854485841 | G181: =Res!K185/Val!$D$14 -> 0.8465206873 | H181: =Res!L185/Res!$L$739 -> 0.5877493568 | I181: =Res!M185/Res!$M$739 -> 0.6289384582
B182: =Res!B186 -> 176 | C182: =Res!C186*180/PI() -> 88.00000001 | D182: =Res!E186/(2*Val!$D$5+Val!$D$7) -> 0.5628969471 | E182: =Res!F186 -> 0.0001232033736 | F182: =(Res!J186-Val!$D$13)/(Val!$D$13-Res!$J$738) -> -0.04836278093 | G182: =Res!K186/Val!$D$14 -> 0.8462765968 | H182: =Res!L186/Res!$L$739 -> 0.592370942 | I182: =Res!M186/Res!$M$739 -> 0.6337011436
B183: =Res!B187 -> 177 | C183: =Res!C187*180/PI() -> 88.50000001 | D183: =Res!E187/(2*Val!$D$5+Val!$D$7) -> 0.5671411714 | E183: =Res!F187 -> 0.0001229600395 | F183: =(Res!J187-Val!$D$13)/(Val!$D$13-Res!$J$738) -> -0.04817355108 | G183: =Res!K187/Val!$D$14 -> 0.8460248269 | H183: =Res!L187/Res!$L$739 -> 0.5969927196 | I183: =Res!M187/Res!$M$739 -> 0.6384553874
B184: =Res!B188 -> 178 | C184: =Res!C188*180/PI() -> 89.00000001 | D184: =Res!E188/(2*Val!$D$5+Val!$D$7) -> 0.57137684 | E184: =Res!F188 -> 0.000122707152 | F184: =(Res!J188-Val!$D$13)/(Val!$D$13-Res!$J$738) -> -0.04797727508 | G184: =Res!K188/Val!$D$14 -> 0.8457654966 | H184: =Res!L188/Res!$L$739 -> 0.6016143928 | I184: =Res!M188/Res!$M$739 -> 0.6432008281
B185: =Res!B189 -> 179 | C185: =Res!C189*180/PI() -> 89.50000001 | D185: =Res!E189/(2*Val!$D$5+Val!$D$7) -> 0.5756036248 | E185: =Res!F189 -> 0.0001224447937 | F185: =(Res!J189-Val!$D$13)/(Val!$D$13-Res!$J$738) -> -0.04777406099 | G185: =Res!K189/Val!$D$14 -> 0.8454987224 | H185: =Res!L189/Res!$L$739 -> 0.6062356661 | I185: =Res!M189/Res!$M$739 -> 0.6479371066
B186: =Res!B190 -> 180 | C186: =Res!C190*180/PI() -> 90.00000001 | D186: =Res!E190/(2*Val!$D$5+Val!$D$7) -> 0.5798212006 | E186: =Res!F190 -> 0.0001221730476 | F186: =(Res!J190-Val!$D$13)/(Val!$D$13-Res!$J$738) -> -0.04756401858 | G186: =Res!K190/Val!$D$14 -> 0.8452246185 | H186: =Res!L190/Res!$L$739 -> 0.6108562448 | I186: =Res!M190/Res!$M$739 -> 0.6526638664
B187: =Res!B191 -> 181 | C187: =Res!C191*180/PI() -> 90.50000001 | D187: =Res!E191/(2*Val!$D$5+Val!$D$7) -> 0.5840292452 | E187: =Res!F191 -> 0.0001218919976 | F187: =(Res!J191-Val!$D$13)/(Val!$D$13-Res!$J$738) -> -0.04734725928 | G187: =Res!K191/Val!$D$14 -> 0.8449432974 | H187: =Res!L191/Res!$L$739 -> 0.6154758351 | I187: =Res!M191/Res!$M$739 -> 0.6573807534
B188: =Res!B192 -> 182 | C188: =Res!C192*180/PI() -> 91.00000001 | D188: =Res!E192/(2*Val!$D$5+Val!$D$7) -> 0.5882274393 | E188: =Res!F192 -> 0.0001216017282 | F188: =(Res!J192-Val!$D$13)/(Val!$D$13-Res!$J$738) -> -0.0471238961 | G188: =Res!K192/Val!$D$14 -> 0.8446548691 | H188: =Res!L192/Res!$L$739 -> 0.6200941446 | I188: =Res!M192/Res!$M$739 -> 0.6620874162
B189: =Res!B193 -> 183 | C189: =Res!C193*180/PI() -> 91.50000001 | D189: =Res!E193/(2*Val!$D$5+Val!$D$7) -> 0.5924154663 | E189: =Res!F193 -> 0.0001213023245 | F189: =(Res!J193-Val!$D$13)/(Val!$D$13-Res!$J$738) -> -0.04689404359 | G189: =Res!K193/Val!$D$14 -> 0.8443594419 | H189: =Res!L193/Res!$L$739 -> 0.6247108817 | I189: =Res!M193/Res!$M$739 -> 0.6667835061
B190: =Res!B194 -> 184 | C190: =Res!C194*180/PI() -> 92.00000001 | D190: =Res!E194/(2*Val!$D$5+Val!$D$7) -> 0.5965930129 | E190: =Res!F194 -> 0.0001209938726 | F190: =(Res!J194-Val!$D$13)/(Val!$D$13-Res!$J$738) -> -0.0466578177 | G190: =Res!K194/Val!$D$14 -> 0.8440571219 | H190: =Res!L194/Res!$L$739 -> 0.6293257559 | I190: =Res!M194/Res!$M$739 -> 0.6714686767
B191: =Res!B195 -> 185 | C191: =Res!C195*180/PI() -> 92.50000001 | D191: =Res!E195/(2*Val!$D$5+Val!$D$7) -> 0.6007597683 | E191: =Res!F195 -> 0.000120676459 | F191: =(Res!J195-Val!$D$13)/(Val!$D$13-Res!$J$738) -> -0.0464153358 | G191: =Res!K195/Val!$D$14 -> 0.8437480135 | H191: =Res!L195/Res!$L$739 -> 0.6339384779 | I191: =Res!M195/Res!$M$739 -> 0.6761425846
B192: =Res!B196 -> 186 | C192: =Res!C196*180/PI() -> 93.00000001 | D192: =Res!E196/(2*Val!$D$5+Val!$D$7) -> 0.6049154253 | E192: =Res!F196 -> 0.0001203501706 | F192: =(Res!J196-Val!$D$13)/(Val!$D$13-Res!$J$738) -> -0.04616671652 | G192: =Res!K196/Val!$D$14 -> 0.8434322189 | H192: =Res!L196/Res!$L$739 -> 0.6385487596 | I192: =Res!M196/Res!$M$739 -> 0.680804889
B193: =Res!B197 -> 187 | C193: =Res!C197*180/PI() -> 93.50000001 | D193: =Res!E197/(2*Val!$D$5+Val!$D$7) -> 0.6090596791 | E193: =Res!F197 -> 0.0001200150954 | F193: =(Res!J197-Val!$D$13)/(Val!$D$13-Res!$J$738) -> -0.04591207972 | G193: =Res!K197/Val!$D$14 -> 0.8431098388 | H193: =Res!L197/Res!$L$739 -> 0.6431563138 | I193: =Res!M197/Res!$M$739 -> 0.6854552516
B194: =Res!B198 -> 188 | C194: =Res!C198*180/PI() -> 94.00000001 | D194: =Res!E198/(2*Val!$D$5+Val!$D$7) -> 0.6131922284 | E194: =Res!F198 -> 0.0001196713215 | F194: =(Res!J198-Val!$D$13)/(Val!$D$13-Res!$J$738) -> -0.04565154644 | G194: =Res!K198/Val!$D$14 -> 0.8427809717 | H194: =Res!L198/Res!$L$739 -> 0.6477608549 | I194: =Res!M198/Res!$M$739 -> 0.6900933371
B195: =Res!B199 -> 189 | C195: =Res!C199*180/PI() -> 94.50000001 | D195: =Res!E199/(2*Val!$D$5+Val!$D$7) -> 0.6173127747 | E195: =Res!F199 -> 0.0001193189377 | F195: =(Res!J199-Val!$D$13)/(Val!$D$13-Res!$J$738) -> -0.04538523878 | G195: =Res!K199/Val!$D$14 -> 0.8424457147 | H195: =Res!L199/Res!$L$739 -> 0.6523620982 | I195: =Res!M199/Res!$M$739 -> 0.6947188129
B196: =Res!B200 -> 190 | C196: =Res!C200*180/PI() -> 95.00000001 | D196: =Res!E200/(2*Val!$D$5+Val!$D$7) -> 0.6214210227 | E196: =Res!F200 -> 0.0001189580332 | F196: =(Res!J200-Val!$D$13)/(Val!$D$13-Res!$J$738) -> -0.04511327986 | G196: =Res!K200/Val!$D$14 -> 0.8421041629 | H196: =Res!L200/Res!$L$739 -> 0.6569597604 | I196: =Res!M200/Res!$M$739 -> 0.699331349
B197: =Res!B201 -> 191 | C197: =Res!C201*180/PI() -> 95.50000001 | D197: =Res!E201/(2*Val!$D$5+Val!$D$7) -> 0.6255166801 | E197: =Res!F201 -> 0.000118588698 | F197: =(Res!J201-Val!$D$13)/(Val!$D$13-Res!$J$738) -> -0.04483579375 | G197: =Res!K201/Val!$D$14 -> 0.8417564098 | H197: =Res!L201/Res!$L$739 -> 0.6615535594 | I197: =Res!M201/Res!$M$739 -> 0.7039306184
B198: =Res!B202 -> 192 | C198: =Res!C202*180/PI() -> 96.00000001 | D198: =Res!E202/(2*Val!$D$5+Val!$D$7) -> 0.6295994577 | E198: =Res!F202 -> 0.0001182110221 | F198: =(Res!J202-Val!$D$13)/(Val!$D$13-Res!$J$738) -> -0.04455290538 | G198: =Res!K202/Val!$D$14 -> 0.8414025471 | H198: =Res!L202/Res!$L$739 -> 0.6661432145 | I198: =Res!M202/Res!$M$739 -> 0.7085162969
B199: =Res!B203 -> 193 | C199: =Res!C203*180/PI() -> 96.50000001 | D199: =Res!E203/(2*Val!$D$5+Val!$D$7) -> 0.6336690696 | E199: =Res!F203 -> 0.0001178250963 | F199: =(Res!J203-Val!$D$13)/(Val!$D$13-Res!$J$738) -> -0.04426474049 | G199: =Res!K203/Val!$D$14 -> 0.8410426652 | H199: =Res!L203/Res!$L$739 -> 0.6707284462 | I199: =Res!M203/Res!$M$739 -> 0.713088063
B200: =Res!B204 -> 194 | C200: =Res!C204*180/PI() -> 97.00000001 | D200: =Res!E204/(2*Val!$D$5+Val!$D$7) -> 0.6377252327 | E200: =Res!F204 -> 0.0001174310115 | F200: =(Res!J204-Val!$D$13)/(Val!$D$13-Res!$J$738) -> -0.04397142557 | G200: =Res!K204/Val!$D$14 -> 0.8406768525 | H200: =Res!L204/Res!$L$739 -> 0.6753089765 | I200: =Res!M204/Res!$M$739 -> 0.7176455983
B201: =Res!B205 -> 195 | C201: =Res!C205*180/PI() -> 97.50000001 | D201: =Res!E205/(2*Val!$D$5+Val!$D$7) -> 0.6417676673 | E201: =Res!F205 -> 0.0001170288592 | F201: =(Res!J205-Val!$D$13)/(Val!$D$13-Res!$J$738) -> -0.04367308775 | G201: =Res!K205/Val!$D$14 -> 0.8403051961 | H201: =Res!L205/Res!$L$739 -> 0.6798845287 | I201: =Res!M205/Res!$M$739 -> 0.7221885871
B202: =Res!B206 -> 196 | C202: =Res!C206*180/PI() -> 98.00000001 | D202: =Res!E206/(2*Val!$D$5+Val!$D$7) -> 0.6457960968 | E202: =Res!F206 -> 0.0001166187311 | F202: =(Res!J206-Val!$D$13)/(Val!$D$13-Res!$J$738) -> -0.04336985477 | G202: =Res!K206/Val!$D$14 -> 0.8399277813 | H202: =Res!L206/Res!$L$739 -> 0.6844548275 | I202: =Res!M206/Res!$M$739 -> 0.7267167167
B203: =Res!B207 -> 197 | C203: =Res!C207*180/PI() -> 98.50000001 | D203: =Res!E207/(2*Val!$D$5+Val!$D$7) -> 0.6498102478 | E203: =Res!F207 -> 0.0001162007193 | F203: =(Res!J207-Val!$D$13)/(Val!$D$13-Res!$J$738) -> -0.0430618549 | G203: =Res!K207/Val!$D$14 -> 0.8395446922 | H203: =Res!L207/Res!$L$739 -> 0.6890195991 | I203: =Res!M207/Res!$M$739 -> 0.7312296773
B204: =Res!B208 -> 198 | C204: =Res!C208*180/PI() -> 99.00000001 | D204: =Res!E208/(2*Val!$D$5+Val!$D$7) -> 0.65380985 | E204: =Res!F208 -> 0.0001157749163 | F204: =(Res!J208-Val!$D$13)/(Val!$D$13-Res!$J$738) -> -0.04274921688 | G204: =Res!K208/Val!$D$14 -> 0.8391560111 | H204: =Res!L208/Res!$L$739 -> 0.6935785712 | I204: =Res!M208/Res!$M$739 -> 0.735727162
... 523 more rows

Sheet dm (2) (hidden)
B5: i | C5: j(i) [-°] | D5: j(i) [-°] | E5: x(i)/(2r+xo) | F5: dx(i) [m] | G5: (p(i)-pext)/(pext-pmin) | H5: T(i)/TF | I5: m(i)/mmax | J5: Q(i)/Qmax
B6: =Res!B10 -> 0 | C6: 0 | D6: =Res!C10*180/PI() -> 0 | E6: =Res!E10/(2*Val!$D$5+Val!$D$7) -> 0.03448275862 | F6: =Res!F10 -> 0 | G6: =(Res!J10-Val!$D$13)/(Val!$D$13-Res!$J$738) -> 0 | H6: =Res!K10/Val!$D$14 -> 0.57316622 | I6: =Res!L10/Res!$L$739 -> 0.05363569729 | J6: =Res!M10/Res!$M$739 -> 0.03886090694
B7: =Res!B11 -> 1 | C7: 0.5 | D7: =Res!C11*180/PI() -> 0.5000000001 | E7: =Res!E11/(2*Val!$D$5+Val!$D$7) -> 0.03450590619 | F7: =Res!F11 -> 1.342545508e-06 | G7: =(Res!J11-Val!$D$13)/(Val!$D$13-Res!$J$738) -> -5.792169579e-06 | H7: =Res!K11/Val!$D$14 -> 0.5731303042 | I7: =Res!L11/Res!$L$739 -> 0.05378302641 | J7: =Res!M11/Res!$M$739 -> 0.0389652101
B8: =Res!B12 -> 2 | C8: 1 | D8: =Res!C12*180/PI() -> 1 | E8: =Res!E12/(2*Val!$D$5+Val!$D$7) -> 0.03457534607 | F8: =Res!F12 -> 2.68492563e-06 | G8: =(Res!J12-Val!$D$13)/(Val!$D$13-Res!$J$738) -> -2.316575338e-05 | H8: =Res!K12/Val!$D$14 -> 0.5717783094 | I8: =Res!L12/Res!$L$739 -> 0.05409047043 | J8: =Res!M12/Res!$M$739 -> 0.03909550687
B9: =Res!B13 -> 3 | C9: 1.5 | D9: =Res!C13*180/PI() -> 1.5 | E9: =Res!E13/(2*Val!$D$5+Val!$D$7) -> 0.03469106968 | F9: =Res!F13 -> 4.026975015e-06 | G9: =(Res!J13-Val!$D$13)/(Val!$D$13-Res!$J$738) -> -5.211197847e-05 | H9: =Res!K13/Val!$D$14 -> 0.571145795 | I9: =Res!L13/Res!$L$739 -> 0.05440295536 | J9: =Res!M13/Res!$M$739 -> 0.03927786651
B10: =Res!B14 -> 4 | C10: 2 | D10: =Res!C14*180/PI() -> 2 | E10: =Res!E14/(2*Val!$D$5+Val!$D$7) -> 0.03485306278 | F10: =Res!F14 -> 5.368528373e-06 | G10: =(Res!J14-Val!$D$13)/(Val!$D$13-Res!$J$738) -> -9.261622957e-05 | H10: =Res!K14/Val!$D$14 -> 0.5708437497 | I10: =Res!L14/Res!$L$739 -> 0.05475657297 | J10: =Res!M14/Res!$M$739 -> 0.03951226472
B11: =Res!B15 -> 5 | C11: 2.5 | D11: =Res!C15*180/PI() -> 2.5 | E11: =Res!E15/(2*Val!$D$5+Val!$D$7) -> 0.03506130541 | F11: =Res!F15 -> 6.70942051e-06 | G11: =(Res!J15-Val!$D$13)/(Val!$D$13-Res!$J$738) -> -0.0001446580584 | H11: =Res!K15/Val!$D$14 -> 0.5708665679 | I11: =Res!L15/Res!$L$739 -> 0.05515127258 | J11: =Res!M15/Res!$M$739 -> 0.03979867019
B12: =Res!B16 -> 6 | C12: 3 | D12: =Res!C16*180/PI() -> 3 | E12: =Res!E16/(2*Val!$D$5+Val!$D$7) -> 0.03531577194 | F12: =Res!F16 -> 8.04948636e-06 | G12: =(Res!J16-Val!$D$13)/(Val!$D$13-Res!$J$738) -> -0.000208211197 | H12: =Res!K16/Val!$D$14 -> 0.5712072937 | I12: =Res!L16/Res!$L$739 -> 0.05558699969 | J12: =Res!M16/Res!$M$739 -> 0.04013704461
B13: =Res!B17 -> 7 | C13: 3.5 | D13: =Res!C17*180/PI() -> 3.5 | E13: =Res!E17/(2*Val!$D$5+Val!$D$7) -> 0.03561643101 | F13: =Res!F17 -> 9.388561014e-06 | G13: =(Res!J17-Val!$D$13)/(Val!$D$13-Res!$J$738) -> -0.0002832435741 | H13: =Res!K17/Val!$D$14 -> 0.5718577161 | I13: =Res!L17/Res!$L$739 -> 0.05606369661 | J13: =Res!M17/Res!$M$739 -> 0.04052734269
B14: =Res!B18 -> 8 | C14: 4 | D14: =Res!C18*180/PI() -> 4.000000001 | E14: =Res!E18/(2*Val!$D$5+Val!$D$7) -> 0.03596324562 | F14: =Res!F18 -> 1.072647976e-05 | G14: =(Res!J18-Val!$D$13)/(Val!$D$13-Res!$J$738) -> -0.0003697173365 | H14: =Res!K18/Val!$D$14 -> 0.5728084743 | I14: =Res!L18/Res!$L$739 -> 0.05658130302 | J14: =Res!M18/Res!$M$739 -> 0.04096951214
B15: =Res!B19 -> 9 | C15: 4.5 | D15: =Res!C19*180/PI() -> 4.500000001 | E15: =Res!E19/(2*Val!$D$5+Val!$D$7) -> 0.03635617306 | F15: =Res!F19 -> 1.206307809e-05 | G15: =(Res!J19-Val!$D$13)/(Val!$D$13-Res!$J$738) -> -0.0004675888726 | H15: =Res!K19/Val!$D$14 -> 0.5740491711 | I15: =Res!L19/Res!$L$739 -> 0.05713975654 | J15: =Res!M19/Res!$M$739 -> 0.04146349372
B16: =Res!B20 -> 10 | C16: 5 | D16: =Res!C20*180/PI() -> 5.000000001 | E16: =Res!E20/(2*Val!$D$5+Val!$D$7) -> 0.03679516497 | F16: =Res!F20 -> 1.339819178e-05 | G16: =(Res!J20-Val!$D$13)/(Val!$D$13-Res!$J$738) -> -0.0005768088408 | H16: =Res!K20/Val!$D$14 -> 0.5755684922 | I16: =Res!L20/Res!$L$739 -> 0.0577389931 | J16: =Res!M20/Res!$M$739 -> 0.04200922127
B17: =Res!B21 -> 11 | C17: 5.5 | D17: =Res!C21*180/PI() -> 5.500000001 | E17: =Res!E21/(2*Val!$D$5+Val!$D$7) -> 0.03728016734 | F17: =Res!F21 -> 1.473165687e-05 | G17: =(Res!J21-Val!$D$13)/(Val!$D$13-Res!$J$738) -> -0.000697322201 | H17: =Res!K21/Val!$D$14 -> 0.5773543288 | I17: =Res!L21/Res!$L$739 -> 0.05837894742 | J17: =Res!M21/Res!$M$739 -> 0.04260662168
B18: =Res!B22 -> 12 | C18: 6 | D18: =Res!C22*180/PI() -> 6.000000001 | E18: =Res!E22/(2*Val!$D$5+Val!$D$7) -> 0.03781112048 | F18: =Res!F22 -> 1.606330971e-05 | G18: =(Res!J22-Val!$D$13)/(Val!$D$13-Res!$J$738) -> -0.0008290682497 | H18: =Res!K22/Val!$D$14 -> 0.5793939021 | I18: =Res!L22/Res!$L$739 -> 0.05905955322 | J18: =Res!M22/Res!$M$739 -> 0.04325561496
B19: =Res!B23 -> 13 | C19: 6.5 | D19: =Res!C23*180/PI() -> 6.500000001 | E19: =Res!E23/(2*Val!$D$5+Val!$D$7) -> 0.03838795909 | F19: =Res!F23 -> 1.739298702e-05 | G19: =(Res!J23-Val!$D$13)/(Val!$D$13-Res!$J$738) -> -0.0009719806591 | H19: =Res!K23/Val!$D$14 -> 0.5816738872 | I19: =Res!L23/Res!$L$739 -> 0.05978074352 | J19: =Res!M23/Res!$M$739 -> 0.04395611422
B20: =Res!B24 -> 14 | C20: 7 | D20: =Res!C24*180/PI() -> 7.000000001 | E20: =Res!E24/(2*Val!$D$5+Val!$D$7) -> 0.03901061224 | F20: =Res!F24 -> 1.87205259e-05 | G20: =(Res!J24-Val!$D$13)/(Val!$D$13-Res!$J$738) -> -0.001125987519 | H20: =Res!K24/Val!$D$14 -> 0.5841805349 | I20: =Res!L24/Res!$L$739 -> 0.06054245074 | J20: =Res!M24/Res!$M$739 -> 0.04470802576
B21: =Res!B25 -> 15 | C21: 7.5 | D21: =Res!C25*180/PI() -> 7.500000001 | E21: =Res!E25/(2*Val!$D$5+Val!$D$7) -> 0.03967900339 | F21: =Res!F25 -> 2.004576383e-05 | G21: =(Res!J25-Val!$D$13)/(Val!$D$13-Res!$J$738) -> -0.001291011385 | H21: =Res!K25/Val!$D$14 -> 0.5868997897 | I21: =Res!L25/Res!$L$739 -> 0.06134460684 | J21: =Res!M25/Res!$M$739 -> 0.04551124902
B22: =Res!B26 -> 16 | C22: 8 | D22: =Res!C26*180/PI() -> 8.000000001 | E22: =Res!E26/(2*Val!$D$5+Val!$D$7) -> 0.0403930504 | F22: =Res!F26 -> 2.136853876e-05 | G22: =(Res!J26-Val!$D$13)/(Val!$D$13-Res!$J$738) -> -0.001466969323 | H22: =Res!K26/Val!$D$14 -> 0.5898174025 | I22: =Res!L26/Res!$L$739 -> 0.0621871433 | J22: =Res!M26/Res!$M$739 -> 0.04636567668
B23: =Res!B27 -> 17 | C23: 8.5 | D23: =Res!C27*180/PI() -> 8.500000001 | E23: =Res!E27/(2*Val!$D$5+Val!$D$7) -> 0.04115266555 | F23: =Res!F27 -> 2.268868911e-05 | G23: =(Res!J27-Val!$D$13)/(Val!$D$13-Res!$J$738) -> -0.001653772967 | H23: =Res!K27/Val!$D$14 -> 0.5929190375 | I23: =Res!L27/Res!$L$739 -> 0.06306999113 | J23: =Res!M27/Res!$M$739 -> 0.04727119466
B24: =Res!B28 -> 18 | C24: 9 | D24: =Res!C28*180/PI() -> 9.000000001 | E24: =Res!E28/(2*Val!$D$5+Val!$D$7) -> 0.04195775556 | F24: =Res!F28 -> 2.40060538e-05 | G24: =(Res!J28-Val!$D$13)/(Val!$D$13-Res!$J$738) -> -0.001851328574 | H24: =Res!K28/Val!$D$14 -> 0.5961903718 | I24: =Res!L28/Res!$L$739 -> 0.06399308078 | J24: =Res!M28/Res!$M$739 -> 0.04822768215
B25: =Res!B29 -> 19 | C25: 9.5 | D25: =Res!C29*180/PI() -> 9.500000001 | E25: =Res!E29/(2*Val!$D$5+Val!$D$7) -> 0.04280822161 | F25: =Res!F29 -> 2.532047227e-05 | G25: =(Res!J29-Val!$D$13)/(Val!$D$13-Res!$J$738) -> -0.002059537081 | H25: =Res!K29/Val!$D$14 -> 0.5996171861 | I25: =Res!L29/Res!$L$739 -> 0.06495634201 | J25: =Res!M29/Res!$M$739 -> 0.04923501166
B26: =Res!B30 -> 20 | C26: 10 | D26: =Res!C30*180/PI() -> 10 | E26: =Res!E30/(2*Val!$D$5+Val!$D$7) -> 0.04370395933 | F26: =Res!F30 -> 2.663178455e-05 | G26: =(Res!J30-Val!$D$13)/(Val!$D$13-Res!$J$738) -> -0.002278294172 | H26: =Res!K30/Val!$D$14 -> 0.6031854488 | I26: =Res!L30/Res!$L$739 -> 0.06595970375 | J26: =Res!M30/Res!$M$739 -> 0.05029304905
B27: =Res!B31 -> 21 | C27: 10.5 | D27: =Res!C31*180/PI() -> 10.5 | E27: =Res!E31/(2*Val!$D$5+Val!$D$7) -> 0.04464485887 | F27: =Res!F31 -> 2.793983125e-05 | G27: =(Res!J31-Val!$D$13)/(Val!$D$13-Res!$J$738) -> -0.002507490341 | H27: =Res!K31/Val!$D$14 -> 0.6068813901 | I27: =Res!L31/Res!$L$739 -> 0.0670030939 | J27: =Res!M31/Res!$M$739 -> 0.05140165358
B28: =Res!B32 -> 22 | C28: 11 | D28: =Res!C32*180/PI() -> 11 | E28: =Res!E32/(2*Val!$D$5+Val!$D$7) -> 0.04563080488 | F28: =Res!F32 -> 2.924445361e-05 | G28: =(Res!J32-Val!$D$13)/(Val!$D$13-Res!$J$738) -> -0.002747010964 | H28: =Res!K32/Val!$D$14 -> 0.6106915677 | I28: =Res!L32/Res!$L$739 -> 0.06808643916 | J28: =Res!M32/Res!$M$739 -> 0.05256067795
B29: =Res!B33 -> 23 | C29: 11.5 | D29: =Res!C33*180/PI() -> 11.5 | E29: =Res!E33/(2*Val!$D$5+Val!$D$7) -> 0.04666167656 | F29: =Res!F33 -> 3.054549352e-05 | G29: =(Res!J33-Val!$D$13)/(Val!$D$13-Res!$J$738) -> -0.002996736367 | H29: =Res!K33/Val!$D$14 -> 0.6146029238 | I29: =Res!L33/Res!$L$739 -> 0.06920966474 | J29: =Res!M33/Res!$M$739 -> 0.05376996834
B30: =Res!B34 -> 24 | C30: 12 | D30: =Res!C34*180/PI() -> 12 | E30: =Res!E34/(2*Val!$D$5+Val!$D$7) -> 0.04773734765 | F30: =Res!F34 -> 3.184279356e-05 | G30: =(Res!J34-Val!$D$13)/(Val!$D$13-Res!$J$738) -> -0.003256541908 | H30: =Res!K34/Val!$D$14 -> 0.6186028341 | I30: =Res!L34/Res!$L$739 -> 0.07037269422 | J30: =Res!M34/Res!$M$739 -> 0.05502936445
B31: =Res!B35 -> 25 | C31: 12.5 | D31: =Res!C35*180/PI() -> 12.5 | E31: =Res!E35/(2*Val!$D$5+Val!$D$7) -> 0.0488576865 | F31: =Res!F35 -> 3.313619704e-05 | G31: =(Res!J35-Val!$D$13)/(Val!$D$13-Res!$J$738) -> -0.00352629805 | H31: =Res!K35/Val!$D$14 -> 0.6226791476 | I31: =Res!L35/Res!$L$739 -> 0.07157544926 | J31: =Res!M35/Res!$M$739 -> 0.05633869956
B32: =Res!B36 -> 26 | C32: 13 | D32: =Res!C36*180/PI() -> 13 | E32: =Res!E36/(2*Val!$D$5+Val!$D$7) -> 0.05002255604 | F32: =Res!F36 -> 3.442554798e-05 | G32: =(Res!J36-Val!$D$13)/(Val!$D$13-Res!$J$738) -> -0.003805870445 | H32: =Res!K36/Val!$D$14 -> 0.6268202191 | I32: =Res!L36/Res!$L$739 -> 0.07281784937 | J32: =Res!M36/Res!$M$739 -> 0.05769780058
B33: =Res!B37 -> 27 | C33: 13.5 | D33: =Res!C37*180/PI() -> 13.5 | E33: =Res!E37/(2*Val!$D$5+Val!$D$7) -> 0.05123181386 | F33: =Res!F37 -> 3.571069121e-05 | G33: =(Res!J37-Val!$D$13)/(Val!$D$13-Res!$J$738) -> -0.004095120017 | H33: =Res!K37/Val!$D$14 -> 0.6310149349 | I33: =Res!L37/Res!$L$739 -> 0.07409981169 | J33: =Res!M37/Res!$M$739 -> 0.0591064881
B34: =Res!B38 -> 28 | C34: 14 | D34: =Res!C38*180/PI() -> 14 | E34: =Res!E38/(2*Val!$D$5+Val!$D$7) -> 0.05248531219 | F34: =Res!F38 -> 3.699147235e-05 | G34: =(Res!J38-Val!$D$13)/(Val!$D$13-Res!$J$738) -> -0.004393903051 | H34: =Res!K38/Val!$D$14 -> 0.6352527305 | I34: =Res!L38/Res!$L$739 -> 0.0754212508 | J34: =Res!M38/Res!$M$739 -> 0.06056457644
B35: =Res!B39 -> 29 | C35: 14.5 | D35: =Res!C39*180/PI() -> 14.5 | E35: =Res!E39/(2*Val!$D$5+Val!$D$7) -> 0.05378289798 | F35: =Res!F39 -> 3.826773784e-05 | G35: =(Res!J39-Val!$D$13)/(Val!$D$13-Res!$J$738) -> -0.004702071282 | H35: =Res!K39/Val!$D$14 -> 0.6395236032 | I35: =Res!L39/Res!$L$739 -> 0.07678207843 | J35: =Res!M39/Res!$M$739 -> 0.06207187368
B36: =Res!B40 -> 30 | C36: 15 | D36: =Res!C40*180/PI() -> 15 | E36: =Res!E40/(2*Val!$D$5+Val!$D$7) -> 0.05512441287 | F36: =Res!F40 -> 3.9539335e-05 | G36: =(Res!J40-Val!$D$13)/(Val!$D$13-Res!$J$738) -> -0.005019471988 | H36: =Res!K40/Val!$D$14 -> 0.6438181179 | I36: =Res!L40/Res!$L$739 -> 0.07818220335 | J36: =Res!M40/Res!$M$739 -> 0.06362818177
B37: =Res!B41 -> 31 | C37: 15.5 | D37: =Res!C41*180/PI() -> 15.5 | E37: =Res!E41/(2*Val!$D$5+Val!$D$7) -> 0.05650969326 | F37: =Res!F41 -> 4.080611203e-05 | G37: =(Res!J41-Val!$D$13)/(Val!$D$13-Res!$J$738) -> -0.005345948082 | H37: =Res!K41/Val!$D$14 -> 0.6481274092 | I37: =Res!L41/Res!$L$739 -> 0.07962153111 | J37: =Res!M41/Res!$M$739 -> 0.06523329655
B38: =Res!B42 -> 32 | C38: 16 | D38: =Res!C42*180/PI() -> 16 | E38: =Res!E42/(2*Val!$D$5+Val!$D$7) -> 0.05793857035 | F38: =Res!F42 -> 4.206791805e-05 | G38: =(Res!J42-Val!$D$13)/(Val!$D$13-Res!$J$738) -> -0.005681338215 | H38: =Res!K42/Val!$D$14 -> 0.6524431775 | I38: =Res!L42/Res!$L$739 -> 0.08109996391 | J38: =Res!M42/Res!$M$739 -> 0.06688700782
B39: =Res!B43 -> 33 | C39: 16.5 | D39: =Res!C43*180/PI() -> 16.5 | E39: =Res!E43/(2*Val!$D$5+Val!$D$7) -> 0.05941087013 | F39: =Res!F43 -> 4.332460313e-05 | G39: =(Res!J43-Val!$D$13)/(Val!$D$13-Res!$J$738) -> -0.006025476871 | H39: =Res!K43/Val!$D$14 -> 0.6567576822 | I39: =Res!L43/Res!$L$739 -> 0.08261740042 | J39: =Res!M43/Res!$M$739 -> 0.0685890994
B40: =Res!B44 -> 34 | C40: 17 | D40: =Res!C44*180/PI() -> 17 | E40: =Res!E44/(2*Val!$D$5+Val!$D$7) -> 0.06092641344 | F40: =Res!F44 -> 4.457601831e-05 | G40: =(Res!J44-Val!$D$13)/(Val!$D$13-Res!$J$738) -> -0.006378194472 | H40: =Res!K44/Val!$D$14 -> 0.6610637313 | I40: =Res!L44/Res!$L$739 -> 0.08417373567 | J40: =Res!M44/Res!$M$739 -> 0.07033934919
B41: =Res!B45 -> 35 | C41: 17.5 | D41: =Res!C45*180/PI() -> 17.5 | E41: =Res!E45/(2*Val!$D$5+Val!$D$7) -> 0.06248501601 | F41: =Res!F45 -> 4.582201563e-05 | G41: =(Res!J45-Val!$D$13)/(Val!$D$13-Res!$J$738) -> -0.006739317482 | H41: =Res!K45/Val!$D$14 -> 0.6653546676 | I41: =Res!L45/Res!$L$739 -> 0.08576886087 | J41: =Res!M45/Res!$M$739 -> 0.07213752922
B42: =Res!B46 -> 36 | C42: 18 | D42: =Res!C46*180/PI() -> 18 | E42: =Res!E46/(2*Val!$D$5+Val!$D$7) -> 0.06408648849 | F42: =Res!F46 -> 4.706244816e-05 | G42: =(Res!J46-Val!$D$13)/(Val!$D$13-Res!$J$738) -> -0.007108668514 | H42: =Res!K46/Val!$D$14 -> 0.6696243531 | I42: =Res!L46/Res!$L$739 -> 0.08740266333 | J42: =Res!M46/Res!$M$739 -> 0.07398340575
B43: =Res!B47 -> 37 | C43: 18.5 | D43: =Res!C47*180/PI() -> 18.5 | E43: =Res!E47/(2*Val!$D$5+Val!$D$7) -> 0.06573063645 | F43: =Res!F47 -> 4.829717004e-05 | G43: =(Res!J47-Val!$D$13)/(Val!$D$13-Res!$J$738) -> -0.007486066438 | H43: =Res!K47/Val!$D$14 -> 0.6738671514 | I43: =Res!L47/Res!$L$739 -> 0.08907502639 | J43: =Res!M47/Res!$M$739 -> 0.07587673932
B44: =Res!B48 -> 38 | C44: 19 | D44: =Res!C48*180/PI() -> 19 | E44: =Res!E48/(2*Val!$D$5+Val!$D$7) -> 0.06741726049 | F44: =Res!F48 -> 4.952603646e-05 | G44: =(Res!J48-Val!$D$13)/(Val!$D$13-Res!$J$738) -> -0.007871326492 | H44: =Res!K48/Val!$D$14 -> 0.678077908 | I44: =Res!L48/Res!$L$739 -> 0.09078582927 | J44: =Res!M48/Res!$M$739 -> 0.0778172848
B45: =Res!B49 -> 39 | C45: 19.5 | D45: =Res!C49*180/PI() -> 19.5 | E45: =Res!E49/(2*Val!$D$5+Val!$D$7) -> 0.06914615622 | F45: =Res!F49 -> 5.074890375e-05 | G45: =(Res!J49-Val!$D$13)/(Val!$D$13-Res!$J$738) -> -0.008264260396 | H45: =Res!K49/Val!$D$14 -> 0.6822519301 | I45: =Res!L49/Res!$L$739 -> 0.09253494707 | J45: =Res!M49/Res!$M$739 -> 0.07980479148
B46: =Res!B50 -> 40 | C46: 20 | D46: =Res!C50*180/PI() -> 20 | E46: =Res!E50/(2*Val!$D$5+Val!$D$7) -> 0.0709171143 | F46: =Res!F50 -> 5.196562937e-05 | G46: =(Res!J50-Val!$D$13)/(Val!$D$13-Res!$J$738) -> -0.008664676465 | H46: =Res!K50/Val!$D$14 -> 0.6863849653 | I46: =Res!L50/Res!$L$739 -> 0.09432225068 | J46: =Res!M50/Res!$M$739 -> 0.08183900312
B47: =Res!B51 -> 41 | C47: 20.5 | D47: =Res!C51*180/PI() -> 20.5 | E47: =Res!E51/(2*Val!$D$5+Val!$D$7) -> 0.07272992051 | F47: =Res!F51 -> 5.317607192e-05 | G47: =(Res!J51-Val!$D$13)/(Val!$D$13-Res!$J$738) -> -0.009072379725 | H47: =Res!K51/Val!$D$14 -> 0.6904731797 | I47: =Res!L51/Res!$L$739 -> 0.09614760674 | J47: =Res!M51/Res!$M$739 -> 0.08391965805
B48: =Res!B52 -> 42 | C48: 21 | D48: =Res!C52*180/PI() -> 21 | E48: =Res!E52/(2*Val!$D$5+Val!$D$7) -> 0.07458435577 | F48: =Res!F52 -> 5.438009122e-05 | G48: =(Res!J52-Val!$D$13)/(Val!$D$13-Res!$J$738) -> -0.009487172033 | H48: =Res!K52/Val!$D$14 -> 0.6945131356 | I48: =Res!L52/Res!$L$739 -> 0.0980108776 | J48: =Res!M52/Res!$M$739 -> 0.08604648921
B49: =Res!B53 -> 43 | C49: 21.5 | D49: =Res!C53*180/PI() -> 21.5 | E49: =Res!E53/(2*Val!$D$5+Val!$D$7) -> 0.0764801962 | F49: =Res!F53 -> 5.557754827e-05 | G49: =(Res!J53-Val!$D$13)/(Val!$D$13-Res!$J$738) -> -0.009908852193 | H49: =Res!K53/Val!$D$14 -> 0.6985017696 | I49: =Res!L53/Res!$L$739 -> 0.09991192132 | J49: =Res!M53/Res!$M$739 -> 0.08821922426
B50: =Res!B54 -> 44 | C50: 22 | D50: =Res!C54*180/PI() -> 22 | E50: =Res!E54/(2*Val!$D$5+Val!$D$7) -> 0.07841721312 | F50: =Res!F54 -> 5.676830533e-05 | G50: =(Res!J54-Val!$D$13)/(Val!$D$13-Res!$J$738) -> -0.01033721608 | H50: =Res!K54/Val!$D$14 -> 0.7024363702 | I50: =Res!L54/Res!$L$739 -> 0.1018505917 | J50: =Res!M54/Res!$M$739 -> 0.09043758562
B51: =Res!B55 -> 45 | C51: 22.5 | D51: =Res!C55*180/PI() -> 22.5 | E51: =Res!E55/(2*Val!$D$5+Val!$D$7) -> 0.08039517316 | F51: =Res!F55 -> 5.795222592e-05 | G51: =(Res!J55-Val!$D$13)/(Val!$D$13-Res!$J$738) -> -0.01077205676 | H51: =Res!K55/Val!$D$14 -> 0.7063145566 | I51: =Res!L55/Res!$L$739 -> 0.1038267381 | J51: =Res!M55/Res!$M$739 -> 0.09270129054
B52: =Res!B56 -> 46 | C52: 23 | D52: =Res!C56*180/PI() -> 23 | E52: =Res!E56/(2*Val!$D$5+Val!$D$7) -> 0.08241383822 | F52: =Res!F56 -> 5.912917482e-05 | G52: =(Res!J56-Val!$D$13)/(Val!$D$13-Res!$J$738) -> -0.01121316461 | H52: =Res!K56/Val!$D$14 -> 0.7101342569 | I52: =Res!L56/Res!$L$739 -> 0.1058402057 | J52: =Res!M56/Res!$M$739 -> 0.09501005122
B53: =Res!B57 -> 47 | C53: 23.5 | D53: =Res!C57*180/PI() -> 23.5 | E53: =Res!E57/(2*Val!$D$5+Val!$D$7) -> 0.08447296561 | F53: =Res!F57 -> 6.029901816e-05 | G53: =(Res!J57-Val!$D$13)/(Val!$D$13-Res!$J$738) -> -0.01166032746 | H53: =Res!K57/Val!$D$14 -> 0.7138936876 | I53: =Res!L57/Res!$L$739 -> 0.1078908355 | J53: =Res!M57/Res!$M$739 -> 0.09736357484
B54: =Res!B58 -> 48 | C54: 24 | D54: =Res!C58*180/PI() -> 24 | E54: =Res!E58/(2*Val!$D$5+Val!$D$7) -> 0.086572308 | F54: =Res!F58 -> 6.146162338e-05 | G54: =(Res!J58-Val!$D$13)/(Val!$D$13-Res!$J$738) -> -0.01211333069 | H54: =Res!K58/Val!$D$14 -> 0.7175913336 | I54: =Res!L58/Res!$L$739 -> 0.1099784639 | J54: =Res!M58/Res!$M$739 -> 0.09976156367
B55: =Res!B59 -> 49 | C55: 24.5 | D55: =Res!C59*180/PI() -> 24.5 | E55: =Res!E59/(2*Val!$D$5+Val!$D$7) -> 0.08871161355 | F55: =Res!F59 -> 6.261685928e-05 | G55: =(Res!J59-Val!$D$13)/(Val!$D$13-Res!$J$738) -> -0.01257195739 | H55: =Res!K59/Val!$D$14 -> 0.7212259286 | I55: =Res!L59/Res!$L$739 -> 0.1121029233 | J55: =Res!M59/Res!$M$739 -> 0.1022037151
B56: =Res!B60 -> 50 | C56: 25 | D56: =Res!C60*180/PI() -> 25 | E56: =Res!E60/(2*Val!$D$5+Val!$D$7) -> 0.09089062589 | F56: =Res!F60 -> 6.376459604e-05 | G56: =(Res!J60-Val!$D$13)/(Val!$D$13-Res!$J$738) -> -0.01303598844 | H56: =Res!K60/Val!$D$14 -> 0.724796437 | I56: =Res!L60/Res!$L$739 -> 0.1142640421 | J56: =Res!M60/Res!$M$739 -> 0.1046897219
B57: =Res!B61 -> 51 | C57: 25.5 | D57: =Res!C61*180/PI() -> 25.5 | E57: =Res!E61/(2*Val!$D$5+Val!$D$7) -> 0.09310908422 | F57: =Res!F61 -> 6.490470524e-05 | G57: =(Res!J61-Val!$D$13)/(Val!$D$13-Res!$J$738) -> -0.01350520269 | H57: =Res!K61/Val!$D$14 -> 0.7283020355 | I57: =Res!L61/Res!$L$739 -> 0.116461644 | J57: =Res!M61/Res!$M$739 -> 0.1072192719
B58: =Res!B62 -> 52 | C58: 26 | D58: =Res!C62*180/PI() -> 26 | E58: =Res!E62/(2*Val!$D$5+Val!$D$7) -> 0.09536672333 | F58: =Res!F62 -> 6.603705989e-05 | G58: =(Res!J62-Val!$D$13)/(Val!$D$13-Res!$J$738) -> -0.01397937707 | H58: =Res!K62/Val!$D$14 -> 0.7317420969 | I58: =Res!L62/Res!$L$739 -> 0.1186955492 | J58: =Res!M62/Res!$M$739 -> 0.1097920484
B59: =Res!B63 -> 53 | C59: 26.5 | D59: =Res!C63*180/PI() -> 26.5 | E59: =Res!E63/(2*Val!$D$5+Val!$D$7) -> 0.09766327364 | F59: =Res!F63 -> 6.716153446e-05 | G59: =(Res!J63-Val!$D$13)/(Val!$D$13-Res!$J$738) -> -0.0144582867 | H59: =Res!K63/Val!$D$14 -> 0.7351161735 | I59: =Res!L63/Res!$L$739 -> 0.1209655733 | J59: =Res!M63/Res!$M$739 -> 0.1124077305
B60: =Res!B64 -> 54 | C60: 27 | D60: =Res!C64*180/PI() -> 27 | E60: =Res!E64/(2*Val!$D$5+Val!$D$7) -> 0.09999846129 | F60: =Res!F64 -> 6.827800487e-05 | G60: =(Res!J64-Val!$D$13)/(Val!$D$13-Res!$J$738) -> -0.01494170505 | H60: =Res!K64/Val!$D$14 -> 0.7384239822 | I60: =Res!L64/Res!$L$739 -> 0.1232715284 | J60: =Res!M64/Res!$M$739 -> 0.1150659923
B61: =Res!B65 -> 55 | C61: 27.5 | D61: =Res!C65*180/PI() -> 27.5 | E61: =Res!E65/(2*Val!$D$5+Val!$D$7) -> 0.1023720082 | F61: =Res!F65 -> 6.938634853e-05 | G61: =(Res!J65-Val!$D$13)/(Val!$D$13-Res!$J$738) -> -0.01542940404 | H61: =Res!K65/Val!$D$14 -> 0.7416653901 | I61: =Res!L65/Res!$L$739 -> 0.1256132222 | J61: =Res!M65/Res!$M$739 -> 0.1177665039
B62: =Res!B66 -> 56 | C62: 28 | D62: =Res!C66*180/PI() -> 28 | E62: =Res!E66/(2*Val!$D$5+Val!$D$7) -> 0.1047836319 | F62: =Res!F66 -> 7.048644436e-05 | G62: =(Res!J66-Val!$D$13)/(Val!$D$13-Res!$J$738) -> -0.01592115421 | H62: =Res!K66/Val!$D$14 -> 0.7448404009 | I62: =Res!L66/Res!$L$739 -> 0.1279904588 | J62: =Res!M66/Res!$M$739 -> 0.1205089311
B63: =Res!B67 -> 57 | C63: 28.5 | D63: =Res!C67*180/PI() -> 28.5 | E63: =Res!E67/(2*Val!$D$5+Val!$D$7) -> 0.1072330461 | F63: =Res!F67 -> 7.157817283e-05 | G63: =(Res!J67-Val!$D$13)/(Val!$D$13-Res!$J$738) -> -0.0164167248 | H63: =Res!K67/Val!$D$14 -> 0.7479491425 | I63: =Res!L67/Res!$L$739 -> 0.1304030384 | J63: =Res!M67/Res!$M$739 -> 0.1232929354
B64: =Res!B68 -> 58 | C64: 29 | D64: =Res!C68*180/PI() -> 29 | E64: =Res!E68/(2*Val!$D$5+Val!$D$7) -> 0.1097199601 | F64: =Res!F68 -> 7.266141594e-05 | G64: =(Res!J68-Val!$D$13)/(Val!$D$13-Res!$J$738) -> -0.01691588393 | H64: =Res!K68/Val!$D$14 -> 0.7509918549 | I64: =Res!L68/Res!$L$739 -> 0.1328507574 | J64: =Res!M68/Res!$M$739 -> 0.1261181742
B65: =Res!B69 -> 59 | C65: 29.5 | D65: =Res!C69*180/PI() -> 29.5 | E65: =Res!E69/(2*Val!$D$5+Val!$D$7) -> 0.1122440793 | F65: =Res!F69 -> 7.373605728e-05 | G65: =(Res!J69-Val!$D$13)/(Val!$D$13-Res!$J$738) -> -0.01741839869 | H65: =Res!K69/Val!$D$14 -> 0.7539688792 | I65: =Res!L69/Res!$L$739 -> 0.1353334086 | J65: =Res!M69/Res!$M$739 -> 0.1289843008
B66: =Res!B70 -> 60 | C66: 30 | D66: =Res!C70*180/PI() -> 30 | E66: =Res!E70/(2*Val!$D$5+Val!$D$7) -> 0.1148051052 | F66: =Res!F70 -> 7.480198199e-05 | G66: =(Res!J70-Val!$D$13)/(Val!$D$13-Res!$J$738) -> -0.01792403532 | H66: =Res!K70/Val!$D$14 -> 0.7568806474 | I66: =Res!L70/Res!$L$739 -> 0.137850781 | J66: =Res!M70/Res!$M$739 -> 0.1318909648
B67: =Res!B71 -> 61 | C67: 30.5 | D67: =Res!C71*180/PI() -> 30.5 | E67: =Res!E71/(2*Val!$D$5+Val!$D$7) -> 0.1174027352 | F67: =Res!F71 -> 7.585907687e-05 | G67: =(Res!J71-Val!$D$13)/(Val!$D$13-Res!$J$738) -> -0.01843255927 | H67: =Res!K71/Val!$D$14 -> 0.7597276726 | I67: =Res!L71/Res!$L$739 -> 0.1404026601 | J67: =Res!M71/Res!$M$739 -> 0.1348378115
B68: =Res!B72 -> 62 | C68: 31 | D68: =Res!C72*180/PI() -> 31 | E68: =Res!E72/(2*Val!$D$5+Val!$D$7) -> 0.1200366629 | F68: =Res!F72 -> 7.690723032e-05 | G68: =(Res!J72-Val!$D$13)/(Val!$D$13-Res!$J$738) -> -0.01894373542 | H68: =Res!K72/Val!$D$14 -> 0.7625105401 | I68: =Res!L72/Res!$L$739 -> 0.1429888282 | J68: =Res!M72/Res!$M$739 -> 0.1378244829
B69: =Res!B73 -> 63 | C69: 31.5 | D69: =Res!C73*180/PI() -> 31.5 | E69: =Res!E73/(2*Val!$D$5+Val!$D$7) -> 0.1227065781 | F69: =Res!F73 -> 7.794633238e-05 | G69: =(Res!J73-Val!$D$13)/(Val!$D$13-Res!$J$738) -> -0.01945732811 | H69: =Res!K73/Val!$D$14 -> 0.7652298994 | I69: =Res!L73/Res!$L$739 -> 0.1456090637 | J69: =Res!M73/Res!$M$739 -> 0.1408506168
B70: =Res!B74 -> 64 | C70: 32 | D70: =Res!C74*180/PI() -> 32 | E70: =Res!E74/(2*Val!$D$5+Val!$D$7) -> 0.1254121668 | F70: =Res!F74 -> 7.897627477e-05 | G70: =(Res!J74-Val!$D$13)/(Val!$D$13-Res!$J$738) -> -0.01997310136 | H70: =Res!K74/Val!$D$14 -> 0.7678864562 | I70: =Res!L74/Res!$L$739 -> 0.148263142 | J70: =Res!M74/Res!$M$739 -> 0.1439158478
B71: =Res!B75 -> 65 | C71: 32.5 | D71: =Res!C75*180/PI() -> 32.5 | E71: =Res!E75/(2*Val!$D$5+Val!$D$7) -> 0.1281531112 | F71: =Res!F75 -> 7.999695087e-05 | G71: =(Res!J75-Val!$D$13)/(Val!$D$13-Res!$J$738) -> -0.02049081895 | H71: =Res!K75/Val!$D$14 -> 0.7704809655 | I71: =Res!L75/Res!$L$739 -> 0.1509508352 | J71: =Res!M75/Res!$M$739 -> 0.1470198068
B72: =Res!B76 -> 66 | C72: 33 | D72: =Res!C76*180/PI() -> 33 | E72: =Res!E76/(2*Val!$D$5+Val!$D$7) -> 0.1309290901 | F72: =Res!F76 -> 8.100825577e-05 | G72: =(Res!J76-Val!$D$13)/(Val!$D$13-Res!$J$738) -> -0.02101024454 | H72: =Res!K76/Val!$D$14 -> 0.7730142251 | I72: =Res!L76/Res!$L$739 -> 0.153671912 | J72: =Res!M76/Res!$M$739 -> 0.1501621211
B73: =Res!B77 -> 67 | C73: 33.5 | D73: =Res!C77*180/PI() -> 33.5 | E73: =Res!E77/(2*Val!$D$5+Val!$D$7) -> 0.1337397786 | F73: =Res!F77 -> 8.201008627e-05 | G73: =(Res!J77-Val!$D$13)/(Val!$D$13-Res!$J$738) -> -0.02153114184 | H73: =Res!K77/Val!$D$14 -> 0.7754870699 | I73: =Res!L77/Res!$L$739 -> 0.1564261383 | J73: =Res!M77/Res!$M$739 -> 0.1533424148
B74: =Res!B78 -> 68 | C74: 34 | D74: =Res!C78*180/PI() -> 34 | E74: =Res!E78/(2*Val!$D$5+Val!$D$7) -> 0.1365848481 | F74: =Res!F78 -> 8.30023409e-05 | G74: =(Res!J78-Val!$D$13)/(Val!$D$13-Res!$J$738) -> -0.02205327471 | H74: =Res!K78/Val!$D$14 -> 0.7779003658 | I74: =Res!L78/Res!$L$739 -> 0.1592132765 | J74: =Res!M78/Res!$M$739 -> 0.1565603087
B75: =Res!B79 -> 69 | C75: 34.5 | D75: =Res!C79*180/PI() -> 34.5 | E75: =Res!E79/(2*Val!$D$5+Val!$D$7) -> 0.1394639667 | F75: =Res!F79 -> 8.398491992e-05 | G75: =(Res!J79-Val!$D$13)/(Val!$D$13-Res!$J$738) -> -0.02257640728 | H75: =Res!K79/Val!$D$14 -> 0.7802550052 | I75: =Res!L79/Res!$L$739 -> 0.1620330865 | J75: =Res!M79/Res!$M$739 -> 0.1598154203
B76: =Res!B80 -> 70 | C76: 35 | D76: =Res!C80*180/PI() -> 35 | E76: =Res!E80/(2*Val!$D$5+Val!$D$7) -> 0.1423767992 | F76: =Res!F80 -> 8.495772536e-05 | G76: =(Res!J80-Val!$D$13)/(Val!$D$13-Res!$J$738) -> -0.02310030409 | H76: =Res!K80/Val!$D$14 -> 0.7825519022 | I76: =Res!L80/Res!$L$739 -> 0.1648853249 | J76: =Res!M80/Res!$M$739 -> 0.163107364
B77: =Res!B81 -> 71 | C77: 35.5 | D77: =Res!C81*180/PI() -> 35.5 | E77: =Res!E81/(2*Val!$D$5+Val!$D$7) -> 0.1453230068 | F77: =Res!F81 -> 8.592066104e-05 | G77: =(Res!J81-Val!$D$13)/(Val!$D$13-Res!$J$738) -> -0.02362473021 | H77: =Res!K81/Val!$D$14 -> 0.7847919885 | I77: =Res!L81/Res!$L$739 -> 0.1677697458 | J77: =Res!M81/Res!$M$739 -> 0.1664357513
B78: =Res!B82 -> 72 | C78: 36 | D78: =Res!C82*180/PI() -> 36 | E78: =Res!E82/(2*Val!$D$5+Val!$D$7) -> 0.1483022475 | F78: =Res!F82 -> 8.687363253e-05 | G78: =(Res!J82-Val!$D$13)/(Val!$D$13-Res!$J$738) -> -0.02414945136 | H78: =Res!K82/Val!$D$14 -> 0.7869762093 | I78: =Res!L82/Res!$L$739 -> 0.1706861003 | J78: =Res!M82/Res!$M$739 -> 0.1698001905
B79: =Res!B83 -> 73 | C79: 36.5 | D79: =Res!C83*180/PI() -> 36.5 | E79: =Res!E83/(2*Val!$D$5+Val!$D$7) -> 0.1513141762 | F79: =Res!F83 -> 8.781654723e-05 | G79: =(Res!J83-Val!$D$13)/(Val!$D$13-Res!$J$738) -> -0.02467423404 | H79: =Res!K83/Val!$D$14 -> 0.7891055204 | I79: =Res!L83/Res!$L$739 -> 0.173634137 | J79: =Res!M83/Res!$M$739 -> 0.1732002871
B80: =Res!B84 -> 74 | C80: 37 | D80: =Res!C84*180/PI() -> 37 | E80: =Res!E84/(2*Val!$D$5+Val!$D$7) -> 0.1543584445 | F80: =Res!F84 -> 8.874931434e-05 | G80: =(Res!J84-Val!$D$13)/(Val!$D$13-Res!$J$738) -> -0.02519884563 | H80: =Res!K84/Val!$D$14 -> 0.7911808845 | I80: =Res!L84/Res!$L$739 -> 0.1766136016 | J80: =Res!M84/Res!$M$739 -> 0.176635644
B81: =Res!B85 -> 75 | C81: 37.5 | D81: =Res!C85*180/PI() -> 37.5 | E81: =Res!E85/(2*Val!$D$5+Val!$D$7) -> 0.1574347009 | F81: =Res!F85 -> 8.96718449e-05 | G81: =(Res!J85-Val!$D$13)/(Val!$D$13-Res!$J$738) -> -0.02572305454 | H81: =Res!K85/Val!$D$14 -> 0.7932032685 | I81: =Res!L85/Res!$L$739 -> 0.1796242374 | J81: =Res!M85/Res!$M$739 -> 0.180105861
B82: =Res!B86 -> 76 | C82: 38 | D82: =Res!C86*180/PI() -> 38 | E82: =Res!E86/(2*Val!$D$5+Val!$D$7) -> 0.160542591 | F82: =Res!F86 -> 9.058405177e-05 | G82: =(Res!J86-Val!$D$13)/(Val!$D$13-Res!$J$738) -> -0.0262466303 | H82: =Res!K86/Val!$D$14 -> 0.7951736412 | I82: =Res!L86/Res!$L$739 -> 0.1826657855 | J82: =Res!M86/Res!$M$739 -> 0.1836105356
B83: =Res!B87 -> 77 | C83: 38.5 | D83: =Res!C87*180/PI() -> 38.50000001 | E83: =Res!E87/(2*Val!$D$5+Val!$D$7) -> 0.1636817572 | F83: =Res!F87 -> 9.148584968e-05 | G83: =(Res!J87-Val!$D$13)/(Val!$D$13-Res!$J$738) -> -0.02676934371 | H83: =Res!K87/Val!$D$14 -> 0.7970929707 | I83: =Res!L87/Res!$L$739 -> 0.1857379841 | J83: =Res!M87/Res!$M$739 -> 0.1871492626
B84: =Res!B88 -> 78 | C84: 39 | D84: =Res!C88*180/PI() -> 39.00000001 | E84: =Res!E88/(2*Val!$D$5+Val!$D$7) -> 0.1668518393 | F84: =Res!F88 -> 9.237715521e-05 | G84: =(Res!J88-Val!$D$13)/(Val!$D$13-Res!$J$738) -> -0.02729096692 | H84: =Res!K88/Val!$D$14 -> 0.7989622223 | I84: =Res!L88/Res!$L$739 -> 0.1888405694 | J84: =Res!M88/Res!$M$739 -> 0.1907216343
B85: =Res!B89 -> 79 | C85: 39.5 | D85: =Res!C89*180/PI() -> 39.50000001 | E85: =Res!E89/(2*Val!$D$5+Val!$D$7) -> 0.170052474 | F85: =Res!F89 -> 9.325788681e-05 | G85: =(Res!J89-Val!$D$13)/(Val!$D$13-Res!$J$738) -> -0.02781127354 | H85: =Res!K89/Val!$D$14 -> 0.800782357 | I85: =Res!L89/Res!$L$739 -> 0.1919732752 | J85: =Res!M89/Res!$M$739 -> 0.1943272406
B86: =Res!B90 -> 80 | C86: 40 | D86: =Res!C90*180/PI() -> 40.00000001 | E86: =Res!E90/(2*Val!$D$5+Val!$D$7) -> 0.1732832952 | F86: =Res!F90 -> 9.412796483e-05 | G86: =(Res!J90-Val!$D$13)/(Val!$D$13-Res!$J$738) -> -0.02833003879 | H86: =Res!K90/Val!$D$14 -> 0.8025543294 | I86: =Res!L90/Res!$L$739 -> 0.1951358332 | J86: =Res!M90/Res!$M$739 -> 0.1979656691
B87: =Res!B91 -> 81 | C87: 40.5 | D87: =Res!C91*180/PI() -> 40.50000001 | E87: =Res!E91/(2*Val!$D$5+Val!$D$7) -> 0.1765439344 | F87: =Res!F91 -> 9.49873115e-05 | G87: =(Res!J91-Val!$D$13)/(Val!$D$13-Res!$J$738) -> -0.02884703959 | H87: =Res!K91/Val!$D$14 -> 0.8042790865 | I87: =Res!L91/Res!$L$739 -> 0.1983279727 | J87: =Res!M91/Res!$M$739 -> 0.2016365053
B88: =Res!B92 -> 82 | C88: 41 | D88: =Res!C92*180/PI() -> 41.00000001 | E88: =Res!E92/(2*Val!$D$5+Val!$D$7) -> 0.1798340201 | F88: =Res!F92 -> 9.583585094e-05 | G88: =(Res!J92-Val!$D$13)/(Val!$D$13-Res!$J$738) -> -0.02936205467 | H88: =Res!K92/Val!$D$14 -> 0.8059575666 | I88: =Res!L92/Res!$L$739 -> 0.2015494212 | J88: =Res!M92/Res!$M$739 -> 0.2053393323
B89: =Res!B93 -> 83 | C89: 41.5 | D89: =Res!C93*180/PI() -> 41.50000001 | E89: =Res!E93/(2*Val!$D$5+Val!$D$7) -> 0.1831531784 | F89: =Res!F93 -> 9.667350922e-05 | G89: =(Res!J93-Val!$D$13)/(Val!$D$13-Res!$J$738) -> -0.02987486465 | H89: =Res!K93/Val!$D$14 -> 0.8075906974 | I89: =Res!L93/Res!$L$739 -> 0.2047999041 | J89: =Res!M93/Res!$M$739 -> 0.2090737312
B90: =Res!B94 -> 84 | C90: 42 | D90: =Res!C94*180/PI() -> 42.00000001 | E90: =Res!E94/(2*Val!$D$5+Val!$D$7) -> 0.1865010328 | F90: =Res!F94 -> 9.750021429e-05 | G90: =(Res!J94-Val!$D$13)/(Val!$D$13-Res!$J$738) -> -0.03038525219 | H90: =Res!K94/Val!$D$14 -> 0.809179396 | I90: =Res!L94/Res!$L$739 -> 0.2080791447 | J90: =Res!M94/Res!$M$739 -> 0.2128392811
B91: =Res!B95 -> 85 | C91: 42.5 | D91: =Res!C95*180/PI() -> 42.50000001 | E91: =Res!E95/(2*Val!$D$5+Val!$D$7) -> 0.1898772044 | F91: =Res!F95 -> 9.831589605e-05 | G91: =(Res!J95-Val!$D$13)/(Val!$D$13-Res!$J$738) -> -0.03089300207 | H91: =Res!K95/Val!$D$14 -> 0.8107245674 | I91: =Res!L95/Res!$L$739 -> 0.2113868648 | J91: =Res!M95/Res!$M$739 -> 0.2166355591
B92: =Res!B96 -> 86 | C92: 43 | D92: =Res!C96*180/PI() -> 43.00000001 | E92: =Res!E96/(2*Val!$D$5+Val!$D$7) -> 0.1932813119 | F92: =Res!F96 -> 9.912048633e-05 | G92: =(Res!J96-Val!$D$13)/(Val!$D$13-Res!$J$738) -> -0.03139790127 | H92: =Res!K96/Val!$D$14 -> 0.8122271037 | I92: =Res!L96/Res!$L$739 -> 0.2147227838 | J92: =Res!M96/Res!$M$739 -> 0.2204621406
B93: =Res!B97 -> 87 | C93: 43.5 | D93: =Res!C97*180/PI() -> 43.50000001 | E93: =Res!E97/(2*Val!$D$5+Val!$D$7) -> 0.1967129717 | F93: =Res!F97 -> 9.991391891e-05 | G93: =(Res!J97-Val!$D$13)/(Val!$D$13-Res!$J$738) -> -0.03189973913 | H93: =Res!K97/Val!$D$14 -> 0.813687884 | I93: =Res!L97/Res!$L$739 -> 0.2180866199 | J93: =Res!M97/Res!$M$739 -> 0.2243185991
B94: =Res!B98 -> 88 | C94: 44 | D94: =Res!C98*180/PI() -> 44.00000001 | E94: =Res!E98/(2*Val!$D$5+Val!$D$7) -> 0.200171798 | F94: =Res!F98 -> 0.0001006961295 | G94: =(Res!J98-Val!$D$13)/(Val!$D$13-Res!$J$738) -> -0.03239830736 | H94: =Res!K98/Val!$D$14 -> 0.8151077733 | I94: =Res!L98/Res!$L$739 -> 0.2214780893 | J94: =Res!M98/Res!$M$739 -> 0.2282045064
B95: =Res!B99 -> 89 | C95: 44.5 | D95: =Res!C99*180/PI() -> 44.50000001 | E95: =Res!E99/(2*Val!$D$5+Val!$D$7) -> 0.2036574027 | F95: =Res!F99 -> 0.0001014670558 | G95: =(Res!J99-Val!$D$13)/(Val!$D$13-Res!$J$738) -> -0.03289340022 | H95: =Res!K99/Val!$D$14 -> 0.8164876223 | I95: =Res!L99/Res!$L$739 -> 0.2248969064 | J95: =Res!M99/Res!$M$739 -> 0.2321194325
B96: =Res!B100 -> 90 | C96: 45 | D96: =Res!C100*180/PI() -> 45.00000001 | E96: =Res!E100/(2*Val!$D$5+Val!$D$7) -> 0.2071693956 | F96: =Res!F100 -> 0.0001022266374 | G96: =(Res!J100-Val!$D$13)/(Val!$D$13-Res!$J$738) -> -0.03338481455 | H96: =Res!K100/Val!$D$14 -> 0.8178282671 | I96: =Res!L100/Res!$L$739 -> 0.2283427844 | J96: =Res!M100/Res!$M$739 -> 0.2360629462
B97: =Res!B101 -> 91 | C97: 45.5 | D97: =Res!C101*180/PI() -> 45.50000001 | E97: =Res!E101/(2*Val!$D$5+Val!$D$7) -> 0.2107073845 | F97: =Res!F101 -> 0.000102974816 | G97: =(Res!J101-Val!$D$13)/(Val!$D$13-Res!$J$738) -> -0.03387234989 | H97: =Res!K101/Val!$D$14 -> 0.8191305288 | I97: =Res!L101/Res!$L$739 -> 0.2318154346 | J97: =Res!M101/Res!$M$739 -> 0.2400346144
B98: =Res!B102 -> 92 | C98: 46 | D98: =Res!C102*180/PI() -> 46.00000001 | E98: =Res!E102/(2*Val!$D$5+Val!$D$7) -> 0.2142709753 | F98: =Res!F102 -> 0.000103711535 | G98: =(Res!J102-Val!$D$13)/(Val!$D$13-Res!$J$738) -> -0.03435580856 | H98: =Res!K102/Val!$D$14 -> 0.8203952132 | I98: =Res!L102/Res!$L$739 -> 0.235314567 | J98: =Res!M102/Res!$M$739 -> 0.2440340029
B99: =Res!B103 -> 93 | C99: 46.5 | D99: =Res!C103*180/PI() -> 46.50000001 | E99: =Res!E103/(2*Val!$D$5+Val!$D$7) -> 0.2178597718 | F99: =Res!F103 -> 0.0001044367401 | G99: =(Res!J103-Val!$D$13)/(Val!$D$13-Res!$J$738) -> -0.03483499574 | H99: =Res!K103/Val!$D$14 -> 0.8216231109 | I99: =Res!L103/Res!$L$739 -> 0.2388398902 | J99: =Res!M103/Res!$M$739 -> 0.248060676
B100: =Res!B104 -> 94 | C100: 47 | D100: =Res!C104*180/PI() -> 47.00000001 | E100: =Res!E104/(2*Val!$D$5+Val!$D$7) -> 0.2214733762 | F100: =Res!F104 -> 0.0001051503788 | G100: =(Res!J104-Val!$D$13)/(Val!$D$13-Res!$J$738) -> -0.03530971957 | H100: =Res!K104/Val!$D$14 -> 0.8228149969 | I100: =Res!L104/Res!$L$739 -> 0.2423911112 | J100: =Res!M104/Res!$M$739 -> 0.2521141966
B101: =Res!B105 -> 95 | C101: 47.5 | D101: =Res!C105*180/PI() -> 47.50000001 | E101: =Res!E105/(2*Val!$D$5+Val!$D$7) -> 0.2251113886 | F101: =Res!F105 -> 0.0001058524006 | G101: =(Res!J105-Val!$D$13)/(Val!$D$13-Res!$J$738) -> -0.03577979121 | H101: =Res!K105/Val!$D$14 -> 0.8239716307 | I101: =Res!L105/Res!$L$739 -> 0.2459679359 | J101: =Res!M105/Res!$M$739 -> 0.2561941267
B102: =Res!B106 -> 96 | C102: 48 | D102: =Res!C106*180/PI() -> 48.00000001 | E102: =Res!E106/(2*Val!$D$5+Val!$D$7) -> 0.2287734076 | F102: =Res!F106 -> 0.000106542757 | G102: =(Res!J106-Val!$D$13)/(Val!$D$13-Res!$J$738) -> -0.03624502495 | H102: =Res!K106/Val!$D$14 -> 0.8250937563 | I102: =Res!L106/Res!$L$739 -> 0.2495700688 | J102: =Res!M106/Res!$M$739 -> 0.2603000268
B103: =Res!B107 -> 97 | C103: 48.5 | D103: =Res!C107*180/PI() -> 48.50000001 | E103: =Res!E107/(2*Val!$D$5+Val!$D$7) -> 0.2324590303 | F103: =Res!F107 -> 0.0001072214015 | G103: =(Res!J107-Val!$D$13)/(Val!$D$13-Res!$J$738) -> -0.03670523822 | H103: =Res!K107/Val!$D$14 -> 0.8261821022 | I103: =Res!L107/Res!$L$739 -> 0.2531972133 | J103: =Res!M107/Res!$M$739 -> 0.2644314566
B104: =Res!B108 -> 98 | C104: 49 | D104: =Res!C108*180/PI() -> 49.00000001 | E104: =Res!E108/(2*Val!$D$5+Val!$D$7) -> 0.2361678519 | F104: =Res!F108 -> 0.0001078882894 | G104: =(Res!J108-Val!$D$13)/(Val!$D$13-Res!$J$738) -> -0.03716025174 | H104: =Res!K108/Val!$D$14 -> 0.8272373812 | I104: =Res!L108/Res!$L$739 -> 0.2568490713 | J104: =Res!M108/Res!$M$739 -> 0.2685879746
B105: =Res!B109 -> 99 | C105: 49.5 | D105: =Res!C109*180/PI() -> 49.50000001 | E105: =Res!E109/(2*Val!$D$5+Val!$D$7) -> 0.2398994664 | F105: =Res!F109 -> 0.0001085433784 | G105: =(Res!J109-Val!$D$13)/(Val!$D$13-Res!$J$738) -> -0.03760988956 | H105: =Res!K109/Val!$D$14 -> 0.8282602911 | I105: =Res!L109/Res!$L$739 -> 0.2605253439 | J105: =Res!M109/Res!$M$739 -> 0.2727691384
B106: =Res!B110 -> 100 | C106: 50 | D106: =Res!C110*180/PI() -> 50.00000001 | E106: =Res!E110/(2*Val!$D$5+Val!$D$7) -> 0.2436534661 | F106: =Res!F110 -> 0.0001091866278 | G106: =(Res!J110-Val!$D$13)/(Val!$D$13-Res!$J$738) -> -0.03805397912 | H106: =Res!K110/Val!$D$14 -> 0.8292515142 | I106: =Res!L110/Res!$L$739 -> 0.2642257311 | J106: =Res!M110/Res!$M$739 -> 0.2769745049
B107: =Res!B111 -> 101 | C107: 50.5 | D107: =Res!C111*180/PI() -> 50.50000001 | E107: =Res!E111/(2*Val!$D$5+Val!$D$7) -> 0.2474294421 | F107: =Res!F111 -> 0.0001098179991 | G107: =(Res!J111-Val!$D$13)/(Val!$D$13-Res!$J$738) -> -0.0384923513 | H107: =Res!K111/Val!$D$14 -> 0.8302117177 | I107: =Res!L111/Res!$L$739 -> 0.2679499315 | J107: =Res!M111/Res!$M$739 -> 0.2812036299
B108: =Res!B112 -> 102 | C108: 51 | D108: =Res!C112*180/PI() -> 51.00000001 | E108: =Res!E112/(2*Val!$D$5+Val!$D$7) -> 0.2512269842 | F108: =Res!F112 -> 0.0001104374557 | G108: =(Res!J112-Val!$D$13)/(Val!$D$13-Res!$J$738) -> -0.03892484054 | H108: =Res!K112/Val!$D$14 -> 0.831141554 | I108: =Res!L112/Res!$L$739 -> 0.271697643 | J108: =Res!M112/Res!$M$739 -> 0.2854560686
B109: =Res!B113 -> 103 | C109: 51.5 | D109: =Res!C113*180/PI() -> 51.50000001 | E109: =Res!E113/(2*Val!$D$5+Val!$D$7) -> 0.255045681 | F109: =Res!F113 -> 0.000111044963 | G109: =(Res!J113-Val!$D$13)/(Val!$D$13-Res!$J$738) -> -0.03935128484 | H109: =Res!K113/Val!$D$14 -> 0.8320416605 | I109: =Res!L113/Res!$L$739 -> 0.2754685626 | J109: =Res!M113/Res!$M$739 -> 0.2897313755
B110: =Res!B114 -> 104 | C110: 52 | D110: =Res!C114*180/PI() -> 52.00000001 | E110: =Res!E114/(2*Val!$D$5+Val!$D$7) -> 0.2588851198 | F110: =Res!F114 -> 0.0001116404884 | G110: =(Res!J114-Val!$D$13)/(Val!$D$13-Res!$J$738) -> -0.03977152586 | H110: =Res!K114/Val!$D$14 -> 0.8329126602 | I110: =Res!L114/Res!$L$739 -> 0.2792623861 | J110: =Res!M114/Res!$M$739 -> 0.2940291044
B111: =Res!B115 -> 105 | C111: 52.5 | D111: =Res!C115*180/PI() -> 52.50000001 | E111: =Res!E115/(2*Val!$D$5+Val!$D$7) -> 0.2627448869 | F111: =Res!F115 -> 0.0001122240013 | G111: =(Res!J115-Val!$D$13)/(Val!$D$13-Res!$J$738) -> -0.04018540896 | H111: =Res!K115/Val!$D$14 -> 0.8337551618 | I111: =Res!L115/Res!$L$739 -> 0.2830788087 | J111: =Res!M115/Res!$M$739 -> 0.2983488088
B112: =Res!B116 -> 106 | C112: 53 | D112: =Res!C116*180/PI() -> 53.00000001 | E112: =Res!E116/(2*Val!$D$5+Val!$D$7) -> 0.2666245677 | F112: =Res!F116 -> 0.0001127954731 | G112: =(Res!J116-Val!$D$13)/(Val!$D$13-Res!$J$738) -> -0.04059278325 | H112: =Res!K116/Val!$D$14 -> 0.8345697598 | I112: =Res!L116/Res!$L$739 -> 0.2869175244 | J112: =Res!M116/Res!$M$739 -> 0.3026900412
B113: =Res!B117 -> 107 | C113: 53.5 | D113: =Res!C117*180/PI() -> 53.50000001 | E113: =Res!E117/(2*Val!$D$5+Val!$D$7) -> 0.2705237464 | F113: =Res!F117 -> 0.0001133548771 | G113: =(Res!J117-Val!$D$13)/(Val!$D$13-Res!$J$738) -> -0.04099350162 | H113: =Res!K117/Val!$D$14 -> 0.8353570347 | I113: =Res!L117/Res!$L$739 -> 0.2907782269 | J113: =Res!M117/Res!$M$739 -> 0.3070523542
B114: =Res!B118 -> 108 | C114: 54 | D114: =Res!C118*180/PI() -> 54.00000001 | E114: =Res!E118/(2*Val!$D$5+Val!$D$7) -> 0.2744420064 | F114: =Res!F118 -> 0.0001139021887 | G114: =(Res!J118-Val!$D$13)/(Val!$D$13-Res!$J$738) -> -0.04138742086 | H114: =Res!K118/Val!$D$14 -> 0.8361175536 | I114: =Res!L118/Res!$L$739 -> 0.2946606087 | J114: =Res!M118/Res!$M$739 -> 0.3114352997
B115: =Res!B119 -> 109 | C115: 54.5 | D115: =Res!C119*180/PI() -> 54.50000001 | E115: =Res!E119/(2*Val!$D$5+Val!$D$7) -> 0.2783789305 | F115: =Res!F119 -> 0.0001144373852 | G115: =(Res!J119-Val!$D$13)/(Val!$D$13-Res!$J$738) -> -0.04177440161 | H115: =Res!K119/Val!$D$14 -> 0.83685187 | I115: =Res!L119/Res!$L$739 -> 0.2985643618 | J115: =Res!M119/Res!$M$739 -> 0.3158384292
B116: =Res!B120 -> 110 | C116: 55 | D116: =Res!C120*180/PI() -> 55.00000001 | E116: =Res!E120/(2*Val!$D$5+Val!$D$7) -> 0.2823341004 | F116: =Res!F120 -> 0.0001149604458 | G116: =(Res!J120-Val!$D$13)/(Val!$D$13-Res!$J$738) -> -0.04215430848 | H116: =Res!K120/Val!$D$14 -> 0.8375605245 | I116: =Res!L120/Res!$L$739 -> 0.3024891774 | J116: =Res!M120/Res!$M$739 -> 0.3202612942
B117: =Res!B121 -> 111 | C117: 55.5 | D117: =Res!C121*180/PI() -> 55.50000001 | E117: =Res!E121/(2*Val!$D$5+Val!$D$7) -> 0.2863070974 | F117: =Res!F121 -> 0.0001154713519 | G117: =(Res!J121-Val!$D$13)/(Val!$D$13-Res!$J$738) -> -0.04252701003 | H117: =Res!K121/Val!$D$14 -> 0.8382440444 | I117: =Res!L121/Res!$L$739 -> 0.3064347462 | J117: =Res!M121/Res!$M$739 -> 0.3247034459
B118: =Res!B122 -> 112 | C118: 56 | D118: =Res!C122*180/PI() -> 56.00000001 | E118: =Res!E122/(2*Val!$D$5+Val!$D$7) -> 0.290297502 | F118: =Res!F122 -> 0.0001159700865 | G118: =(Res!J122-Val!$D$13)/(Val!$D$13-Res!$J$738) -> -0.04289237887 | H118: =Res!K122/Val!$D$14 -> 0.8389029449 | I118: =Res!L122/Res!$L$739 -> 0.310400758 | J118: =Res!M122/Res!$M$739 -> 0.3291644352
B119: =Res!B123 -> 113 | C119: 56.5 | D119: =Res!C123*180/PI() -> 56.50000001 | E119: =Res!E123/(2*Val!$D$5+Val!$D$7) -> 0.2943048943 | F119: =Res!F123 -> 0.0001164566349 | G119: =(Res!J123-Val!$D$13)/(Val!$D$13-Res!$J$738) -> -0.04325029164 | H119: =Res!K123/Val!$D$14 -> 0.8395377285 | I119: =Res!L123/Res!$L$739 -> 0.3143869023 | J119: =Res!M123/Res!$M$739 -> 0.333643813
B120: =Res!B124 -> 114 | C120: 57 | D120: =Res!C124*180/PI() -> 57.00000001 | E120: =Res!E124/(2*Val!$D$5+Val!$D$7) -> 0.2983288539 | F120: =Res!F124 -> 0.0001169309843 | G120: =(Res!J124-Val!$D$13)/(Val!$D$13-Res!$J$738) -> -0.04360062905 | H120: =Res!K124/Val!$D$14 -> 0.8401488858 | I120: =Res!L124/Res!$L$739 -> 0.318392868 | J120: =Res!M124/Res!$M$739 -> 0.3381411303
B121: =Res!B125 -> 115 | C121: 57.5 | D121: =Res!C125*180/PI() -> 57.50000001 | E121: =Res!E125/(2*Val!$D$5+Val!$D$7) -> 0.3023689598 | F121: =Res!F125 -> 0.0001173931235 | G121: =(Res!J125-Val!$D$13)/(Val!$D$13-Res!$J$738) -> -0.04394327596 | H121: =Res!K125/Val!$D$14 -> 0.8407368956 | I121: =Res!L125/Res!$L$739 -> 0.3224183432 | J121: =Res!M125/Res!$M$739 -> 0.3426559378
B122: =Res!B126 -> 116 | C122: 58 | D122: =Res!C126*180/PI() -> 58.00000001 | E122: =Res!E126/(2*Val!$D$5+Val!$D$7) -> 0.3064247909 | F122: =Res!F126 -> 0.0001178430437 | G122: =(Res!J126-Val!$D$13)/(Val!$D$13-Res!$J$738) -> -0.04427812133 | H122: =Res!K126/Val!$D$14 -> 0.8413022249 | I122: =Res!L126/Res!$L$739 -> 0.3264630159 | J122: =Res!M126/Res!$M$739 -> 0.3471877866
B123: =Res!B127 -> 117 | C123: 58.5 | D123: =Res!C127*180/PI() -> 58.50000001 | E123: =Res!E127/(2*Val!$D$5+Val!$D$7) -> 0.3104959257 | F123: =Res!F127 -> 0.0001182807378 | G123: =(Res!J127-Val!$D$13)/(Val!$D$13-Res!$J$738) -> -0.04460505831 | H123: =Res!K127/Val!$D$14 -> 0.8418453297 | I123: =Res!L127/Res!$L$739 -> 0.3305265734 | J123: =Res!M127/Res!$M$739 -> 0.3517362277
B124: =Res!B128 -> 118 | C124: 59 | D124: =Res!C128*180/PI() -> 59.00000001 | E124: =Res!E128/(2*Val!$D$5+Val!$D$7) -> 0.3145819426 | F124: =Res!F128 -> 0.0001187062005 | G124: =(Res!J128-Val!$D$13)/(Val!$D$13-Res!$J$738) -> -0.04492398422 | H124: =Res!K128/Val!$D$14 -> 0.842366655 | I124: =Res!L128/Res!$L$739 -> 0.3346087026 | J124: =Res!M128/Res!$M$739 -> 0.3563008122
B125: =Res!B129 -> 119 | C125: 59.5 | D125: =Res!C129*180/PI() -> 59.50000001 | E125: =Res!E129/(2*Val!$D$5+Val!$D$7) -> 0.3186824196 | F125: =Res!F129 -> 0.0001191194287 | G125: =(Res!J129-Val!$D$13)/(Val!$D$13-Res!$J$738) -> -0.04523480059 | H125: =Res!K129/Val!$D$14 -> 0.8428666349 | I125: =Res!L129/Res!$L$739 -> 0.3387090901 | J125: =Res!M129/Res!$M$739 -> 0.3608810918
B126: =Res!B130 -> 120 | C126: 60 | D126: =Res!C130*180/PI() -> 60.00000001 | E126: =Res!E130/(2*Val!$D$5+Val!$D$7) -> 0.3227969349 | F126: =Res!F130 -> 0.0001195204211 | G126: =(Res!J130-Val!$D$13)/(Val!$D$13-Res!$J$738) -> -0.04553741316 | H126: =Res!K130/Val!$D$14 -> 0.8433456931 | I126: =Res!L130/Res!$L$739 -> 0.342827422 | J126: =Res!M130/Res!$M$739 -> 0.365476618
B127: =Res!B131 -> 121 | C127: 60.5 | D127: =Res!C131*180/PI() -> 60.50000001 | E127: =Res!E131/(2*Val!$D$5+Val!$D$7) -> 0.3269250666 | F127: =Res!F131 -> 0.0001199091781 | G127: =(Res!J131-Val!$D$13)/(Val!$D$13-Res!$J$738) -> -0.04583173192 | H127: =Res!K131/Val!$D$14 -> 0.843804243 | I127: =Res!L131/Res!$L$739 -> 0.346963384 | J127: =Res!M131/Res!$M$739 -> 0.370086943
B128: =Res!B132 -> 122 | C128: 61 | D128: =Res!C132*180/PI() -> 61.00000001 | E128: =Res!E132/(2*Val!$D$5+Val!$D$7) -> 0.3310663928 | F128: =Res!F132 -> 0.0001202857023 | G128: =(Res!J132-Val!$D$13)/(Val!$D$13-Res!$J$738) -> -0.0461176711 | H128: =Res!K132/Val!$D$14 -> 0.8442426881 | I128: =Res!L132/Res!$L$739 -> 0.3511166618 | J128: =Res!M132/Res!$M$739 -> 0.3747116192
B129: =Res!B133 -> 123 | C129: 61.5 | D129: =Res!C133*180/PI() -> 61.50000001 | E129: =Res!E133/(2*Val!$D$5+Val!$D$7) -> 0.3352204917 | F129: =Res!F133 -> 0.0001206499979 | G129: =(Res!J133-Val!$D$13)/(Val!$D$13-Res!$J$738) -> -0.04639514919 | H129: =Res!K133/Val!$D$14 -> 0.8446614222 | I129: =Res!L133/Res!$L$739 -> 0.3552869404 | J129: =Res!M133/Res!$M$739 -> 0.3793501994
B130: =Res!B134 -> 124 | C130: 62 | D130: =Res!C134*180/PI() -> 62.00000001 | E130: =Res!E134/(2*Val!$D$5+Val!$D$7) -> 0.3393869418 | F130: =Res!F134 -> 0.0001210020711 | G130: =(Res!J134-Val!$D$13)/(Val!$D$13-Res!$J$738) -> -0.04666408891 | H130: =Res!K134/Val!$D$14 -> 0.8450608296 | I130: =Res!L134/Res!$L$739 -> 0.3594739048 | J130: =Res!M134/Res!$M$739 -> 0.3840022369
B131: =Res!B135 -> 125 | C131: 62.5 | D131: =Res!C135*180/PI() -> 62.50000001 | E131: =Res!E135/(2*Val!$D$5+Val!$D$7) -> 0.3435653218 | F131: =Res!F135 -> 0.00012134193 | G131: =(Res!J135-Val!$D$13)/(Val!$D$13-Res!$J$738) -> -0.0469244173 | H131: =Res!K135/Val!$D$14 -> 0.8454412852 | I131: =Res!L135/Res!$L$739 -> 0.3636772398 | J131: =Res!M135/Res!$M$739 -> 0.3886672856
B132: =Res!B136 -> 126 | C132: 63 | D132: =Res!C136*180/PI() -> 63.00000001 | E132: =Res!E136/(2*Val!$D$5+Val!$D$7) -> 0.3477552105 | F132: =Res!F136 -> 0.0001216695844 | G132: =(Res!J136-Val!$D$13)/(Val!$D$13-Res!$J$738) -> -0.0471760656 | H132: =Res!K136/Val!$D$14 -> 0.8458031551 | I132: =Res!L136/Res!$L$739 -> 0.3678966297 | J132: =Res!M136/Res!$M$739 -> 0.3933448998
B133: =Res!B137 -> 127 | C133: 63.5 | D133: =Res!C137*180/PI() -> 63.50000001 | E133: =Res!E137/(2*Val!$D$5+Val!$D$7) -> 0.3519561874 | F133: =Res!F137 -> 0.0001219850462 | G133: =(Res!J137-Val!$D$13)/(Val!$D$13-Res!$J$738) -> -0.04741896938 | H133: =Res!K137/Val!$D$14 -> 0.8461467966 | I133: =Res!L137/Res!$L$739 -> 0.3721317589 | J133: =Res!M137/Res!$M$739 -> 0.3980346347
B134: =Res!B138 -> 128 | C134: 64 | D134: =Res!C138*180/PI() -> 64.00000001 | E134: =Res!E138/(2*Val!$D$5+Val!$D$7) -> 0.3561678323 | F134: =Res!F138 -> 0.0001222883287 | G134: =(Res!J138-Val!$D$13)/(Val!$D$13-Res!$J$738) -> -0.04765306843 | H134: =Res!K138/Val!$D$14 -> 0.8464725585 | I134: =Res!L138/Res!$L$739 -> 0.3763823114 | J134: =Res!M138/Res!$M$739 -> 0.4027360459
B135: =Res!B139 -> 129 | C135: 64.5 | D135: =Res!C139*180/PI() -> 64.50000001 | E135: =Res!E139/(2*Val!$D$5+Val!$D$7) -> 0.3603897255 | F135: =Res!F139 -> 0.0001225794474 | G135: =(Res!J139-Val!$D$13)/(Val!$D$13-Res!$J$738) -> -0.04787830681 | H135: =Res!K139/Val!$D$14 -> 0.8467807813 | I135: =Res!L139/Res!$L$739 -> 0.3806479713 | J135: =Res!M139/Res!$M$739 -> 0.4074486897
B136: =Res!B140 -> 130 | C136: 65 | D136: =Res!C140*180/PI() -> 65.00000001 | E136: =Res!E140/(2*Val!$D$5+Val!$D$7) -> 0.3646214477 | F136: =Res!F140 -> 0.0001228584195 | G136: =(Res!J140-Val!$D$13)/(Val!$D$13-Res!$J$738) -> -0.04809463282 | H136: =Res!K140/Val!$D$14 -> 0.8470717972 | I136: =Res!L140/Res!$L$739 -> 0.3849284225 | J136: =Res!M140/Res!$M$739 -> 0.4121721233
B137: =Res!B141 -> 131 | C137: 65.5 | D137: =Res!C141*180/PI() -> 65.50000001 | E137: =Res!E141/(2*Val!$D$5+Val!$D$7) -> 0.3688625805 | F137: =Res!F141 -> 0.0001231252637 | G137: =(Res!J141-Val!$D$13)/(Val!$D$13-Res!$J$738) -> -0.04830199902 | H137: =Res!K141/Val!$D$14 -> 0.8473459307 | I137: =Res!L141/Res!$L$739 -> 0.3892233485 | J137: =Res!M141/Res!$M$739 -> 0.4169059046
B138: =Res!B142 -> 132 | C138: 66 | D138: =Res!C142*180/PI() -> 66.00000001 | E138: =Res!E142/(2*Val!$D$5+Val!$D$7) -> 0.373112706 | F138: =Res!F142 -> 0.0001233800008 | G138: =(Res!J142-Val!$D$13)/(Val!$D$13-Res!$J$738) -> -0.04850036217 | H138: =Res!K142/Val!$D$14 -> 0.8476034988 | I138: =Res!L142/Res!$L$739 -> 0.3935324333 | J138: =Res!M142/Res!$M$739 -> 0.4216495925
B139: =Res!B143 -> 133 | C139: 66.5 | D139: =Res!C143*180/PI() -> 66.50000001 | E139: =Res!E143/(2*Val!$D$5+Val!$D$7) -> 0.3773714072 | F139: =Res!F143 -> 0.0001236226533 | G139: =(Res!J143-Val!$D$13)/(Val!$D$13-Res!$J$738) -> -0.04868968325 | H139: =Res!K143/Val!$D$14 -> 0.8478448108 | I139: =Res!L143/Res!$L$739 -> 0.3978553603 | J139: =Res!M143/Res!$M$739 -> 0.4264027465
B140: =Res!B144 -> 134 | C140: 67 | D140: =Res!C144*180/PI() -> 67.00000001 | E140: =Res!E144/(2*Val!$D$5+Val!$D$7) -> 0.3816382676 | F140: =Res!F144 -> 0.0001238532454 | G140: =(Res!J144-Val!$D$13)/(Val!$D$13-Res!$J$738) -> -0.04886992744 | H140: =Res!K144/Val!$D$14 -> 0.8480701687 | I140: =Res!L144/Res!$L$739 -> 0.4021918133 | J140: =Res!M144/Res!$M$739 -> 0.4311649273
B141: =Res!B145 -> 135 | C141: 67.5 | D141: =Res!C145*180/PI() -> 67.50000001 | E141: =Res!E145/(2*Val!$D$5+Val!$D$7) -> 0.385912872 | F141: =Res!F145 -> 0.0001240718028 | G141: =(Res!J145-Val!$D$13)/(Val!$D$13-Res!$J$738) -> -0.04904106409 | H141: =Res!K145/Val!$D$14 -> 0.8482798677 | I141: =Res!L145/Res!$L$739 -> 0.4065414757 | J141: =Res!M145/Res!$M$739 -> 0.4359356965
B142: =Res!B146 -> 136 | C142: 68 | D142: =Res!C146*180/PI() -> 68.00000001 | E142: =Res!E146/(2*Val!$D$5+Val!$D$7) -> 0.3901948057 | F142: =Res!F146 -> 0.0001242783534 | G142: =(Res!J146-Val!$D$13)/(Val!$D$13-Res!$J$738) -> -0.04920306669 | H142: =Res!K146/Val!$D$14 -> 0.8484741961 | I142: =Res!L146/Res!$L$739 -> 0.4109040312 | J142: =Res!M146/Res!$M$739 -> 0.4407146165
B143: =Res!B147 -> 137 | C143: 68.5 | D143: =Res!C147*180/PI() -> 68.50000001 | E143: =Res!E147/(2*Val!$D$5+Val!$D$7) -> 0.3944836552 | F143: =Res!F147 -> 0.0001244729263 | G143: =(Res!J147-Val!$D$13)/(Val!$D$13-Res!$J$738) -> -0.04935591287 | H143: =Res!K147/Val!$D$14 -> 0.8486534352 | I143: =Res!L147/Res!$L$739 -> 0.4152791636 | J143: =Res!M147/Res!$M$739 -> 0.445501251
B144: =Res!B148 -> 138 | C144: 69 | D144: =Res!C148*180/PI() -> 69.00000001 | E144: =Res!E148/(2*Val!$D$5+Val!$D$7) -> 0.3987790081 | F144: =Res!F148 -> 0.0001246555526 | G144: =(Res!J148-Val!$D$13)/(Val!$D$13-Res!$J$738) -> -0.04949958438 | H144: =Res!K148/Val!$D$14 -> 0.8488178601 | I144: =Res!L148/Res!$L$739 -> 0.4196665564 | J144: =Res!M148/Res!$M$739 -> 0.4502951648
B145: =Res!B149 -> 139 | C145: 69.5 | D145: =Res!C149*180/PI() -> 69.50000001 | E145: =Res!E149/(2*Val!$D$5+Val!$D$7) -> 0.403080453 | F145: =Res!F149 -> 0.0001248262649 | G145: =(Res!J149-Val!$D$13)/(Val!$D$13-Res!$J$738) -> -0.049634067 | H145: =Res!K149/Val!$D$14 -> 0.8489677396 | I145: =Res!L149/Res!$L$739 -> 0.4240658934 | J145: =Res!M149/Res!$M$739 -> 0.4550959237
B146: =Res!B150 -> 140 | C146: 70 | D146: =Res!C150*180/PI() -> 70.00000001 | E146: =Res!E150/(2*Val!$D$5+Val!$D$7) -> 0.4073875795 | F146: =Res!F150 -> 0.0001249850974 | G146: =(Res!J150-Val!$D$13)/(Val!$D$13-Res!$J$738) -> -0.04975935061 | H146: =Res!K150/Val!$D$14 -> 0.8491033363 | I146: =Res!L150/Res!$L$739 -> 0.4284768587 | J146: =Res!M150/Res!$M$739 -> 0.4599030947
B147: =Res!B151 -> 141 | C147: 70.5 | D147: =Res!C151*180/PI() -> 70.50000001 | E147: =Res!E151/(2*Val!$D$5+Val!$D$7) -> 0.4116999787 | F147: =Res!F151 -> 0.0001251320862 | G147: =(Res!J151-Val!$D$13)/(Val!$D$13-Res!$J$738) -> -0.04987542907 | H147: =Res!K151/Val!$D$14 -> 0.8492249066 | I147: =Res!L151/Res!$L$739 -> 0.432899136 | J147: =Res!M151/Res!$M$739 -> 0.464716246
B148: =Res!B152 -> 142 | C148: 71 | D148: =Res!C152*180/PI() -> 71.00000001 | E148: =Res!E152/(2*Val!$D$5+Val!$D$7) -> 0.4160172428 | F148: =Res!F152 -> 0.0001252672688 | G148: =(Res!J152-Val!$D$13)/(Val!$D$13-Res!$J$738) -> -0.04998230022 | H148: =Res!K152/Val!$D$14 -> 0.8493327014 | I148: =Res!L152/Res!$L$739 -> 0.4373324097 | J148: =Res!M152/Res!$M$739 -> 0.4695349473
B149: =Res!B153 -> 143 | C149: 71.5 | D149: =Res!C153*180/PI() -> 71.50000001 | E149: =Res!E153/(2*Val!$D$5+Val!$D$7) -> 0.4203389654 | F149: =Res!F153 -> 0.0001253906842 | G149: =(Res!J153-Val!$D$13)/(Val!$D$13-Res!$J$738) -> -0.05007996586 | H149: =Res!K153/Val!$D$14 -> 0.8494269658 | I149: =Res!L153/Res!$L$739 -> 0.441776364 | J149: =Res!M153/Res!$M$739 -> 0.4743587693
B150: =Res!B154 -> 144 | C150: 72 | D150: =Res!C154*180/PI() -> 72.00000001 | E150: =Res!E154/(2*Val!$D$5+Val!$D$7) -> 0.4246647414 | F150: =Res!F154 -> 0.0001255023733 | G150: =(Res!J154-Val!$D$13)/(Val!$D$13-Res!$J$738) -> -0.0501684317 | H150: =Res!K154/Val!$D$14 -> 0.8495079395 | I150: =Res!L154/Res!$L$739 -> 0.4462306834 | J150: =Res!M154/Res!$M$739 -> 0.4791872842
B151: =Res!B155 -> 145 | C151: 72.5 | D151: =Res!C155*180/PI() -> 72.50000001 | E151: =Res!E155/(2*Val!$D$5+Val!$D$7) -> 0.4289941672 | F151: =Res!F155 -> 0.0001256023781 | G151: =(Res!J155-Val!$D$13)/(Val!$D$13-Res!$J$738) -> -0.0502477073 | H151: =Res!K155/Val!$D$14 -> 0.8495758566 | I151: =Res!L155/Res!$L$739 -> 0.4506950526 | J151: =Res!M155/Res!$M$739 -> 0.4840200654
B152: =Res!B156 -> 146 | C152: 73 | D152: =Res!C156*180/PI() -> 73.00000001 | E152: =Res!E156/(2*Val!$D$5+Val!$D$7) -> 0.4333268406 | F152: =Res!F156 -> 0.0001256907426 | G152: =(Res!J156-Val!$D$13)/(Val!$D$13-Res!$J$738) -> -0.05031780605 | H152: =Res!K156/Val!$D$14 -> 0.8496309463 | I152: =Res!L156/Res!$L$739 -> 0.4551691564 | J152: =Res!M156/Res!$M$739 -> 0.488856688
B153: =Res!B157 -> 147 | C153: 73.5 | D153: =Res!C157*180/PI() -> 73.50000001 | E153: =Res!E157/(2*Val!$D$5+Val!$D$7) -> 0.437662361 | F153: =Res!F157 -> 0.000125767512 | G153: =(Res!J157-Val!$D$13)/(Val!$D$13-Res!$J$738) -> -0.05037874516 | H153: =Res!K157/Val!$D$14 -> 0.8496734326 | I153: =Res!L157/Res!$L$739 -> 0.4596526802 | J153: =Res!M157/Res!$M$739 -> 0.4936967282
B154: =Res!B158 -> 148 | C154: 74 | D154: =Res!C158*180/PI() -> 74.00000001 | E154: =Res!E158/(2*Val!$D$5+Val!$D$7) -> 0.4420003294 | F154: =Res!F158 -> 0.0001258327332 | G154: =(Res!J158-Val!$D$13)/(Val!$D$13-Res!$J$738) -> -0.05043054552 | H154: =Res!K158/Val!$D$14 -> 0.8497035345 | I154: =Res!L158/Res!$L$739 -> 0.4641453092 | J154: =Res!M158/Res!$M$739 -> 0.498539764
B155: =Res!B159 -> 149 | C155: 74.5 | D155: =Res!C159*180/PI() -> 74.50000001 | E155: =Res!E159/(2*Val!$D$5+Val!$D$7) -> 0.4463403484 | F155: =Res!F159 -> 0.0001258864544 | G155: =(Res!J159-Val!$D$13)/(Val!$D$13-Res!$J$738) -> -0.05047323178 | H155: =Res!K159/Val!$D$14 -> 0.8497214663 | I155: =Res!L159/Res!$L$739 -> 0.4686467292 | J155: =Res!M159/Res!$M$739 -> 0.5033853747
B156: =Res!B160 -> 150 | C156: 75 | D156: =Res!C160*180/PI() -> 75.00000001 | E156: =Res!E160/(2*Val!$D$5+Val!$D$7) -> 0.4506820222 | F156: =Res!F160 -> 0.0001259287255 | G156: =(Res!J160-Val!$D$13)/(Val!$D$13-Res!$J$738) -> -0.05050683219 | H156: =Res!K160/Val!$D$14 -> 0.8497274377 | I156: =Res!L160/Res!$L$739 -> 0.4731566261 | J156: =Res!M160/Res!$M$739 -> 0.5082331413
B157: =Res!B161 -> 151 | C157: 75.5 | D157: =Res!C161*180/PI() -> 75.50000001 | E157: =Res!E161/(2*Val!$D$5+Val!$D$7) -> 0.455024957 | F157: =Res!F161 -> 0.0001259595975 | G157: =(Res!J161-Val!$D$13)/(Val!$D$13-Res!$J$738) -> -0.05053137862 | H157: =Res!K161/Val!$D$14 -> 0.8497216538 | I157: =Res!L161/Res!$L$739 -> 0.4776746864 | J157: =Res!M161/Res!$M$739 -> 0.5130826464
B158: =Res!B162 -> 152 | C158: 76 | D158: =Res!C162*180/PI() -> 76.00000001 | E158: =Res!E162/(2*Val!$D$5+Val!$D$7) -> 0.4593687606 | F158: =Res!F162 -> 0.0001259791231 | G158: =(Res!J162-Val!$D$13)/(Val!$D$13-Res!$J$738) -> -0.05054690648 | H158: =Res!K162/Val!$D$14 -> 0.8497043152 | I158: =Res!L162/Res!$L$739 -> 0.4822005967 | J158: =Res!M162/Res!$M$739 -> 0.5179334742
B159: =Res!B163 -> 153 | C159: 76.5 | D159: =Res!C163*180/PI() -> 76.50000001 | E159: =Res!E163/(2*Val!$D$5+Val!$D$7) -> 0.4637130426 | F159: =Res!F163 -> 0.0001259873563 | G159: =(Res!J163-Val!$D$13)/(Val!$D$13-Res!$J$738) -> -0.05055345468 | H159: =Res!K163/Val!$D$14 -> 0.8496756184 | I159: =Res!L163/Res!$L$739 -> 0.486734044 | J159: =Res!M163/Res!$M$739 -> 0.5227852105
B160: =Res!B164 -> 154 | C160: 77 | D160: =Res!C164*180/PI() -> 77.00000001 | E160: =Res!E164/(2*Val!$D$5+Val!$D$7) -> 0.4680574146 | F160: =Res!F164 -> 0.0001259843525 | G160: =(Res!J164-Val!$D$13)/(Val!$D$13-Res!$J$738) -> -0.05055106557 | H160: =Res!K164/Val!$D$14 -> 0.8496357555 | I160: =Res!L164/Res!$L$739 -> 0.4912747157 | J160: =Res!M164/Res!$M$739 -> 0.5276374429
B161: =Res!B165 -> 155 | C161: 77.5 | D161: =Res!C165*180/PI() -> 77.50000001 | E161: =Res!E165/(2*Val!$D$5+Val!$D$7) -> 0.4724014901 | F161: =Res!F165 -> 0.0001259701684 | G161: =(Res!J165-Val!$D$13)/(Val!$D$13-Res!$J$738) -> -0.0505397849 | H161: =Res!K165/Val!$D$14 -> 0.8495849147 | I161: =Res!L165/Res!$L$739 -> 0.4958222998 | J161: =Res!M165/Res!$M$739 -> 0.5324897607
B162: =Res!B166 -> 156 | C162: 78 | D162: =Res!C166*180/PI() -> 78.00000001 | E162: =Res!E166/(2*Val!$D$5+Val!$D$7) -> 0.4767448846 | F162: =Res!F166 -> 0.0001259448621 | G162: =(Res!J166-Val!$D$13)/(Val!$D$13-Res!$J$738) -> -0.05051966174 | H162: =Res!K166/Val!$D$14 -> 0.8495232802 | I162: =Res!L166/Res!$L$739 -> 0.5003764844 | J162: =Res!M166/Res!$M$739 -> 0.537341755
B163: =Res!B167 -> 157 | C163: 78.5 | D163: =Res!C167*180/PI() -> 78.50000001 | E163: =Res!E167/(2*Val!$D$5+Val!$D$7) -> 0.4810872155 | F163: =Res!F167 -> 0.000125908493 | G163: =(Res!J167-Val!$D$13)/(Val!$D$13-Res!$J$738) -> -0.05049074844 | H163: =Res!K167/Val!$D$14 -> 0.8494510324 | I163: =Res!L167/Res!$L$739 -> 0.5049369582 | J163: =Res!M167/Res!$M$739 -> 0.5421930187
B164: =Res!B168 -> 158 | C164: 79 | D164: =Res!C168*180/PI() -> 79.00000001 | E164: =Res!E168/(2*Val!$D$5+Val!$D$7) -> 0.4854281025 | F164: =Res!F168 -> 0.0001258611218 | G164: =(Res!J168-Val!$D$13)/(Val!$D$13-Res!$J$738) -> -0.05045310055 | H164: =Res!K168/Val!$D$14 -> 0.8493683478 | I164: =Res!L168/Res!$L$739 -> 0.5095034106 | J164: =Res!M168/Res!$M$739 -> 0.5470431465
B165: =Res!B169 -> 159 | C165: 79.5 | D165: =Res!C169*180/PI() -> 79.50000001 | E165: =Res!E169/(2*Val!$D$5+Val!$D$7) -> 0.4897671672 | F165: =Res!F169 -> 0.0001258028104 | G165: =(Res!J169-Val!$D$13)/(Val!$D$13-Res!$J$738) -> -0.05040677681 | H165: =Res!K169/Val!$D$14 -> 0.8492753993 | I165: =Res!L169/Res!$L$739 -> 0.514075531 | J165: =Res!M169/Res!$M$739 -> 0.5518917351
B166: =Res!B170 -> 160 | C166: 80 | D166: =Res!C170*180/PI() -> 80.00000001 | E166: =Res!E170/(2*Val!$D$5+Val!$D$7) -> 0.4941040334 | F166: =Res!F170 -> 0.000125733622 | G166: =(Res!J170-Val!$D$13)/(Val!$D$13-Res!$J$738) -> -0.05035183902 | H166: =Res!K170/Val!$D$14 -> 0.8491723565 | I166: =Res!L170/Res!$L$739 -> 0.5186530098 | J166: =Res!M170/Res!$M$739 -> 0.556738383
B167: =Res!B171 -> 161 | C167: 80.5 | D167: =Res!C171*180/PI() -> 80.50000001 | E167: =Res!E171/(2*Val!$D$5+Val!$D$7) -> 0.4984383271 | F167: =Res!F171 -> 0.000125653621 | G167: =(Res!J171-Val!$D$13)/(Val!$D$13-Res!$J$738) -> -0.05028835206 | H167: =Res!K171/Val!$D$14 -> 0.8490593851 | I167: =Res!L171/Res!$L$739 -> 0.5232355377 | J167: =Res!M171/Res!$M$739 -> 0.5615826906
B168: =Res!B172 -> 162 | C168: 81 | D168: =Res!C172*180/PI() -> 81.00000001 | E168: =Res!E172/(2*Val!$D$5+Val!$D$7) -> 0.5027696768 | F168: =Res!F172 -> 0.0001255628731 | G168: =(Res!J172-Val!$D$13)/(Val!$D$13-Res!$J$738) -> -0.05021638373 | H168: =Res!K172/Val!$D$14 -> 0.8489366477 | I168: =Res!L172/Res!$L$739 -> 0.5278228059 | J168: =Res!M172/Res!$M$739 -> 0.5664242605
B169: =Res!B173 -> 163 | C169: 81.5 | D169: =Res!C173*180/PI() -> 81.50000001 | E169: =Res!E173/(2*Val!$D$5+Val!$D$7) -> 0.5070977129 | F169: =Res!F173 -> 0.0001254614451 | G169: =(Res!J173-Val!$D$13)/(Val!$D$13-Res!$J$738) -> -0.05013600478 | H169: =Res!K173/Val!$D$14 -> 0.8488043036 | I169: =Res!L173/Res!$L$739 -> 0.5324145063 | J169: =Res!M173/Res!$M$739 -> 0.5712626971
B170: =Res!B174 -> 164 | C170: 82 | D170: =Res!C174*180/PI() -> 82.00000001 | E170: =Res!E174/(2*Val!$D$5+Val!$D$7) -> 0.5114220683 | F170: =Res!F174 -> 0.0001253494048 | G170: =(Res!J174-Val!$D$13)/(Val!$D$13-Res!$J$738) -> -0.05004728878 | H170: =Res!K174/Val!$D$14 -> 0.8486625089 | I170: =Res!L174/Res!$L$739 -> 0.5370103314 | J170: =Res!M174/Res!$M$739 -> 0.576097607
B171: =Res!B175 -> 165 | C171: 82.5 | D171: =Res!C175*180/PI() -> 82.50000001 | E171: =Res!E175/(2*Val!$D$5+Val!$D$7) -> 0.5157423782 | F171: =Res!F175 -> 0.0001252268214 | G171: =(Res!J175-Val!$D$13)/(Val!$D$13-Res!$J$738) -> -0.0499503121 | H171: =Res!K175/Val!$D$14 -> 0.8485114165 | I171: =Res!L175/Res!$L$739 -> 0.5416099743 | J171: =Res!M175/Res!$M$739 -> 0.5809285987
B172: =Res!B176 -> 166 | C172: 83 | D172: =Res!C176*180/PI() -> 83.00000001 | E172: =Res!E176/(2*Val!$D$5+Val!$D$7) -> 0.5200582804 | F172: =Res!F176 -> 0.0001250937651 | G172: =(Res!J176-Val!$D$13)/(Val!$D$13-Res!$J$738) -> -0.0498451538 | H172: =Res!K176/Val!$D$14 -> 0.8483511763 | I172: =Res!L176/Res!$L$739 -> 0.5462131287 | J172: =Res!M176/Res!$M$739 -> 0.585755283
B173: =Res!B177 -> 167 | C173: 83.5 | D173: =Res!C177*180/PI() -> 83.50000001 | E173: =Res!E177/(2*Val!$D$5+Val!$D$7) -> 0.5243694149 | F173: =Res!F177 -> 0.0001249503071 | G173: =(Res!J177-Val!$D$13)/(Val!$D$13-Res!$J$738) -> -0.04973189559 | H173: =Res!K177/Val!$D$14 -> 0.8481819353 | I173: =Res!L177/Res!$L$739 -> 0.5508194891 | J173: =Res!M177/Res!$M$739 -> 0.5905772727
B174: =Res!B178 -> 168 | C174: 84 | D174: =Res!C178*180/PI() -> 84.00000001 | E174: =Res!E178/(2*Val!$D$5+Val!$D$7) -> 0.5286754242 | F174: =Res!F178 -> 0.0001247965197 | G174: =(Res!J178-Val!$D$13)/(Val!$D$13-Res!$J$738) -> -0.04961062178 | H174: =Res!K178/Val!$D$14 -> 0.8480038374 | I174: =Res!L178/Res!$L$739 -> 0.5554287505 | J174: =Res!M178/Res!$M$739 -> 0.5953941828
B175: =Res!B179 -> 169 | C175: 84.5 | D175: =Res!C179*180/PI() -> 84.50000001 | E175: =Res!E179/(2*Val!$D$5+Val!$D$7) -> 0.5329759535 | F175: =Res!F179 -> 0.0001246324763 | G175: =(Res!J179-Val!$D$13)/(Val!$D$13-Res!$J$738) -> -0.04948141916 | H175: =Res!K179/Val!$D$14 -> 0.847817024 | I175: =Res!L179/Res!$L$739 -> 0.5600406088 | J175: =Res!M179/Res!$M$739 -> 0.6002056305
B176: =Res!B180 -> 170 | C176: 85 | D176: =Res!C180*180/PI() -> 85.00000001 | E176: =Res!E180/(2*Val!$D$5+Val!$D$7) -> 0.5372706504 | F176: =Res!F180 -> 0.0001244582514 | G176: =(Res!J180-Val!$D$13)/(Val!$D$13-Res!$J$738) -> -0.04934437699 | H176: =Res!K180/Val!$D$14 -> 0.8476216334 | I176: =Res!L180/Res!$L$739 -> 0.5646547607 | J176: =Res!M180/Res!$M$739 -> 0.6050112354
B177: =Res!B181 -> 171 | C177: 85.5 | D177: =Res!C181*180/PI() -> 85.50000001 | E177: =Res!E181/(2*Val!$D$5+Val!$D$7) -> 0.5415591651 | F177: =Res!F181 -> 0.0001242739202 | G177: =(Res!J181-Val!$D$13)/(Val!$D$13-Res!$J$738) -> -0.04919958687 | H177: =Res!K181/Val!$D$14 -> 0.8474178016 | I177: =Res!L181/Res!$L$739 -> 0.5692709033 | J177: =Res!M181/Res!$M$739 -> 0.6098106191
B178: =Res!B182 -> 172 | C178: 86 | D178: =Res!C182*180/PI() -> 86.00000001 | E178: =Res!E182/(2*Val!$D$5+Val!$D$7) -> 0.5458411503 | F178: =Res!F182 -> 0.000124079559 | G178: =(Res!J182-Val!$D$13)/(Val!$D$13-Res!$J$738) -> -0.04904714273 | H178: =Res!K182/Val!$D$14 -> 0.8472056617 | I178: =Res!L182/Res!$L$739 -> 0.5738887348 | J178: =Res!M182/Res!$M$739 -> 0.6146034058
B179: =Res!B183 -> 173 | C179: 86.5 | D179: =Res!C183*180/PI() -> 86.50000001 | E179: =Res!E183/(2*Val!$D$5+Val!$D$7) -> 0.5501162616 | F179: =Res!F183 -> 0.0001238752452 | G179: =(Res!J183-Val!$D$13)/(Val!$D$13-Res!$J$738) -> -0.04888714072 | H179: =Res!K183/Val!$D$14 -> 0.8469853443 | I179: =Res!L183/Res!$L$739 -> 0.5785079543 | J179: =Res!M183/Res!$M$739 -> 0.6193892216
B180: =Res!B184 -> 174 | C180: 87 | D180: =Res!C184*180/PI() -> 87.00000001 | E180: =Res!E184/(2*Val!$D$5+Val!$D$7) -> 0.5543841572 | F180: =Res!F184 -> 0.0001236610568 | G180: =(Res!J184-Val!$D$13)/(Val!$D$13-Res!$J$738) -> -0.04871967915 | H180: =Res!K184/Val!$D$14 -> 0.8467569776 | I180: =Res!L184/Res!$L$739 -> 0.5831282614 | J180: =Res!M184/Res!$M$739 -> 0.6241676954
B181: =Res!B185 -> 175 | C181: 87.5 | D181: =Res!C185*180/PI() -> 87.50000001 | E181: =Res!E185/(2*Val!$D$5+Val!$D$7) -> 0.5586444978 | F181: =Res!F185 -> 0.000123437073 | G181: =(Res!J185-Val!$D$13)/(Val!$D$13-Res!$J$738) -> -0.04854485841 | H181: =Res!K185/Val!$D$14 -> 0.8465206873 | I181: =Res!L185/Res!$L$739 -> 0.5877493568 | J181: =Res!M185/Res!$M$739 -> 0.6289384582
B182: =Res!B186 -> 176 | C182: 88 | D182: =Res!C186*180/PI() -> 88.00000001 | E182: =Res!E186/(2*Val!$D$5+Val!$D$7) -> 0.5628969471 | F182: =Res!F186 -> 0.0001232033736 | G182: =(Res!J186-Val!$D$13)/(Val!$D$13-Res!$J$738) -> -0.04836278093 | H182: =Res!K186/Val!$D$14 -> 0.8462765968 | I182: =Res!L186/Res!$L$739 -> 0.592370942 | J182: =Res!M186/Res!$M$739 -> 0.6337011436
B183: =Res!B187 -> 177 | C183: 88.5 | D183: =Res!C187*180/PI() -> 88.50000001 | E183: =Res!E187/(2*Val!$D$5+Val!$D$7) -> 0.5671411714 | F183: =Res!F187 -> 0.0001229600395 | G183: =(Res!J187-Val!$D$13)/(Val!$D$13-Res!$J$738) -> -0.04817355108 | H183: =Res!K187/Val!$D$14 -> 0.8460248269 | I183: =Res!L187/Res!$L$739 -> 0.5969927196 | J183: =Res!M187/Res!$M$739 -> 0.6384553874
B184: =Res!B188 -> 178 | C184: 89 | D184: =Res!C188*180/PI() -> 89.00000001 | E184: =Res!E188/(2*Val!$D$5+Val!$D$7) -> 0.57137684 | F184: =Res!F188 -> 0.000122707152 | G184: =(Res!J188-Val!$D$13)/(Val!$D$13-Res!$J$738) -> -0.04797727508 | H184: =Res!K188/Val!$D$14 -> 0.8457654966 | I184: =Res!L188/Res!$L$739 -> 0.6016143928 | J184: =Res!M188/Res!$M$739 -> 0.6432008281
B185: =Res!B189 -> 179 | C185: 89.5 | D185: =Res!C189*180/PI() -> 89.50000001 | E185: =Res!E189/(2*Val!$D$5+Val!$D$7) -> 0.5756036248 | F185: =Res!F189 -> 0.0001224447937 | G185: =(Res!J189-Val!$D$13)/(Val!$D$13-Res!$J$738) -> -0.04777406099 | H185: =Res!K189/Val!$D$14 -> 0.8454987224 | I185: =Res!L189/Res!$L$739 -> 0.6062356661 | J185: =Res!M189/Res!$M$739 -> 0.6479371066
B186: =Res!B190 -> 180 | C186: 90 | D186: =Res!C190*180/PI() -> 90.00000001 | E186: =Res!E190/(2*Val!$D$5+Val!$D$7) -> 0.5798212006 | F186: =Res!F190 -> 0.0001221730476 | G186: =(Res!J190-Val!$D$13)/(Val!$D$13-Res!$J$738) -> -0.04756401858 | H186: =Res!K190/Val!$D$14 -> 0.8452246185 | I186: =Res!L190/Res!$L$739 -> 0.6108562448 | J186: =Res!M190/Res!$M$739 -> 0.6526638664
B187: =Res!B191 -> 181 | C187: 90.5 | D187: =Res!C191*180/PI() -> 90.50000001 | E187: =Res!E191/(2*Val!$D$5+Val!$D$7) -> 0.5840292452 | F187: =Res!F191 -> 0.0001218919976 | G187: =(Res!J191-Val!$D$13)/(Val!$D$13-Res!$J$738) -> -0.04734725928 | H187: =Res!K191/Val!$D$14 -> 0.8449432974 | I187: =Res!L191/Res!$L$739 -> 0.6154758351 | J187: =Res!M191/Res!$M$739 -> 0.6573807534
B188: =Res!B192 -> 182 | C188: 91 | D188: =Res!C192*180/PI() -> 91.00000001 | E188: =Res!E192/(2*Val!$D$5+Val!$D$7) -> 0.5882274393 | F188: =Res!F192 -> 0.0001216017282 | G188: =(Res!J192-Val!$D$13)/(Val!$D$13-Res!$J$738) -> -0.0471238961 | H188: =Res!K192/Val!$D$14 -> 0.8446548691 | I188: =Res!L192/Res!$L$739 -> 0.6200941446 | J188: =Res!M192/Res!$M$739 -> 0.6620874162
B189: =Res!B193 -> 183 | C189: 91.5 | D189: =Res!C193*180/PI() -> 91.50000001 | E189: =Res!E193/(2*Val!$D$5+Val!$D$7) -> 0.5924154663 | F189: =Res!F193 -> 0.0001213023245 | G189: =(Res!J193-Val!$D$13)/(Val!$D$13-Res!$J$738) -> -0.04689404359 | H189: =Res!K193/Val!$D$14 -> 0.8443594419 | I189: =Res!L193/Res!$L$739 -> 0.6247108817 | J189: =Res!M193/Res!$M$739 -> 0.6667835061
B190: =Res!B194 -> 184 | C190: 92 | D190: =Res!C194*180/PI() -> 92.00000001 | E190: =Res!E194/(2*Val!$D$5+Val!$D$7) -> 0.5965930129 | F190: =Res!F194 -> 0.0001209938726 | G190: =(Res!J194-Val!$D$13)/(Val!$D$13-Res!$J$738) -> -0.0466578177 | H190: =Res!K194/Val!$D$14 -> 0.8440571219 | I190: =Res!L194/Res!$L$739 -> 0.6293257559 | J190: =Res!M194/Res!$M$739 -> 0.6714686767
B191: =Res!B195 -> 185 | C191: 92.5 | D191: =Res!C195*180/PI() -> 92.50000001 | E191: =Res!E195/(2*Val!$D$5+Val!$D$7) -> 0.6007597683 | F191: =Res!F195 -> 0.000120676459 | G191: =(Res!J195-Val!$D$13)/(Val!$D$13-Res!$J$738) -> -0.0464153358 | H191: =Res!K195/Val!$D$14 -> 0.8437480135 | I191: =Res!L195/Res!$L$739 -> 0.6339384779 | J191: =Res!M195/Res!$M$739 -> 0.6761425846
B192: =Res!B196 -> 186 | C192: 93 | D192: =Res!C196*180/PI() -> 93.00000001 | E192: =Res!E196/(2*Val!$D$5+Val!$D$7) -> 0.6049154253 | F192: =Res!F196 -> 0.0001203501706 | G192: =(Res!J196-Val!$D$13)/(Val!$D$13-Res!$J$738) -> -0.04616671652 | H192: =Res!K196/Val!$D$14 -> 0.8434322189 | I192: =Res!L196/Res!$L$739 -> 0.6385487596 | J192: =Res!M196/Res!$M$739 -> 0.680804889
B193: =Res!B197 -> 187 | C193: 93.5 | D193: =Res!C197*180/PI() -> 93.50000001 | E193: =Res!E197/(2*Val!$D$5+Val!$D$7) -> 0.6090596791 | F193: =Res!F197 -> 0.0001200150954 | G193: =(Res!J197-Val!$D$13)/(Val!$D$13-Res!$J$738) -> -0.04591207972 | H193: =Res!K197/Val!$D$14 -> 0.8431098388 | I193: =Res!L197/Res!$L$739 -> 0.6431563138 | J193: =Res!M197/Res!$M$739 -> 0.6854552516
B194: =Res!B198 -> 188 | C194: 94 | D194: =Res!C198*180/PI() -> 94.00000001 | E194: =Res!E198/(2*Val!$D$5+Val!$D$7) -> 0.6131922284 | F194: =Res!F198 -> 0.0001196713215 | G194: =(Res!J198-Val!$D$13)/(Val!$D$13-Res!$J$738) -> -0.04565154644 | H194: =Res!K198/Val!$D$14 -> 0.8427809717 | I194: =Res!L198/Res!$L$739 -> 0.6477608549 | J194: =Res!M198/Res!$M$739 -> 0.6900933371
B195: =Res!B199 -> 189 | C195: 94.5 | D195: =Res!C199*180/PI() -> 94.50000001 | E195: =Res!E199/(2*Val!$D$5+Val!$D$7) -> 0.6173127747 | F195: =Res!F199 -> 0.0001193189377 | G195: =(Res!J199-Val!$D$13)/(Val!$D$13-Res!$J$738) -> -0.04538523878 | H195: =Res!K199/Val!$D$14 -> 0.8424457147 | I195: =Res!L199/Res!$L$739 -> 0.6523620982 | J195: =Res!M199/Res!$M$739 -> 0.6947188129
B196: =Res!B200 -> 190 | C196: 95 | D196: =Res!C200*180/PI() -> 95.00000001 | E196: =Res!E200/(2*Val!$D$5+Val!$D$7) -> 0.6214210227 | F196: =Res!F200 -> 0.0001189580332 | G196: =(Res!J200-Val!$D$13)/(Val!$D$13-Res!$J$738) -> -0.04511327986 | H196: =Res!K200/Val!$D$14 -> 0.8421041629 | I196: =Res!L200/Res!$L$739 -> 0.6569597604 | J196: =Res!M200/Res!$M$739 -> 0.699331349
B197: =Res!B201 -> 191 | C197: 95.5 | D197: =Res!C201*180/PI() -> 95.50000001 | E197: =Res!E201/(2*Val!$D$5+Val!$D$7) -> 0.6255166801 | F197: =Res!F201 -> 0.000118588698 | G197: =(Res!J201-Val!$D$13)/(Val!$D$13-Res!$J$738) -> -0.04483579375 | H197: =Res!K201/Val!$D$14 -> 0.8417564098 | I197: =Res!L201/Res!$L$739 -> 0.6615535594 | J197: =Res!M201/Res!$M$739 -> 0.7039306184
B198: =Res!B202 -> 192 | C198: 96 | D198: =Res!C202*180/PI() -> 96.00000001 | E198: =Res!E202/(2*Val!$D$5+Val!$D$7) -> 0.6295994577 | F198: =Res!F202 -> 0.0001182110221 | G198: =(Res!J202-Val!$D$13)/(Val!$D$13-Res!$J$738) -> -0.04455290538 | H198: =Res!K202/Val!$D$14 -> 0.8414025471 | I198: =Res!L202/Res!$L$739 -> 0.6661432145 | J198: =Res!M202/Res!$M$739 -> 0.7085162969
B199: =Res!B203 -> 193 | C199: 96.5 | D199: =Res!C203*180/PI() -> 96.50000001 | E199: =Res!E203/(2*Val!$D$5+Val!$D$7) -> 0.6336690696 | F199: =Res!F203 -> 0.0001178250963 | G199: =(Res!J203-Val!$D$13)/(Val!$D$13-Res!$J$738) -> -0.04426474049 | H199: =Res!K203/Val!$D$14 -> 0.8410426652 | I199: =Res!L203/Res!$L$739 -> 0.6707284462 | J199: =Res!M203/Res!$M$739 -> 0.713088063
B200: =Res!B204 -> 194 | C200: 97 | D200: =Res!C204*180/PI() -> 97.00000001 | E200: =Res!E204/(2*Val!$D$5+Val!$D$7) -> 0.6377252327 | F200: =Res!F204 -> 0.0001174310115 | G200: =(Res!J204-Val!$D$13)/(Val!$D$13-Res!$J$738) -> -0.04397142557 | H200: =Res!K204/Val!$D$14 -> 0.8406768525 | I200: =Res!L204/Res!$L$739 -> 0.6753089765 | J200: =Res!M204/Res!$M$739 -> 0.7176455983
B201: =Res!B205 -> 195 | C201: 97.5 | D201: =Res!C205*180/PI() -> 97.50000001 | E201: =Res!E205/(2*Val!$D$5+Val!$D$7) -> 0.6417676673 | F201: =Res!F205 -> 0.0001170288592 | G201: =(Res!J205-Val!$D$13)/(Val!$D$13-Res!$J$738) -> -0.04367308775 | H201: =Res!K205/Val!$D$14 -> 0.8403051961 | I201: =Res!L205/Res!$L$739 -> 0.6798845287 | J201: =Res!M205/Res!$M$739 -> 0.7221885871
B202: =Res!B206 -> 196 | C202: 98 | D202: =Res!C206*180/PI() -> 98.00000001 | E202: =Res!E206/(2*Val!$D$5+Val!$D$7) -> 0.6457960968 | F202: =Res!F206 -> 0.0001166187311 | G202: =(Res!J206-Val!$D$13)/(Val!$D$13-Res!$J$738) -> -0.04336985477 | H202: =Res!K206/Val!$D$14 -> 0.8399277813 | I202: =Res!L206/Res!$L$739 -> 0.6844548275 | J202: =Res!M206/Res!$M$739 -> 0.7267167167
B203: =Res!B207 -> 197 | C203: 98.5 | D203: =Res!C207*180/PI() -> 98.50000001 | E203: =Res!E207/(2*Val!$D$5+Val!$D$7) -> 0.6498102478 | F203: =Res!F207 -> 0.0001162007193 | G203: =(Res!J207-Val!$D$13)/(Val!$D$13-Res!$J$738) -> -0.0430618549 | H203: =Res!K207/Val!$D$14 -> 0.8395446922 | I203: =Res!L207/Res!$L$739 -> 0.6890195991 | J203: =Res!M207/Res!$M$739 -> 0.7312296773
B204: =Res!B208 -> 198 | C204: 99 | D204: =Res!C208*180/PI() -> 99.00000001 | E204: =Res!E208/(2*Val!$D$5+Val!$D$7) -> 0.65380985 | F204: =Res!F208 -> 0.0001157749163 | G204: =(Res!J208-Val!$D$13)/(Val!$D$13-Res!$J$738) -> -0.04274921688 | H204: =Res!K208/Val!$D$14 -> 0.8391560111 | I204: =Res!L208/Res!$L$739 -> 0.6935785712 | J204: =Res!M208/Res!$M$739 -> 0.735727162
... 523 more rows

Sheet k-trans
B3: Heat transfer coefficient
B5: Rohr | E5: Gewählt
B6: Luft ruhend / pipe - air light moved | C6: aa=ar [W/(m²K)] | D6: 5 … 17 | E6: 24 | F6: light moving air!
B7: Luft bewegt / pipe - air moved | C7: ai=av [W/(m²K)] | D7: 45 … 220 | E7: 130 | F7: High changing speed of air in the cylinder !!
B8: Lambda Messing / brass --> Kupfer | C8: 1-Ms [W/(mK)] | D8: 95 … 120…380 | E8: 110
B9: Lambda Alu / aluminium | C9: 2-Alu [W/(mK)] | D9: 210 … 235 | E9: 220
B10: Lambda Stahl / steel | C10: 3-St [W/(mK)] | D10: 40 … 60 | E10: 50
B11: Lambda gewählt / chosen | C11: l - gew [W/(mK)] | E11: =IF(Input!E6=1,'k-trans'!E8,IF(Input!E6=2,'k-trans'!E9,IF(Input!E6=3,'k-trans'!E10))) -> 110
B12: Außendurchmesser Rohr / Zylinder Outer diameter of pipe / cylinder | C12: Da [mm] | E12: =Val!D3 -> 0.028
B13: Innendurchmesser Rohr / Zylinder Inner diameter of pipe / Zylinder | C13: Di [mm] | E13: =Val!D2 -> 0.026
B14: Wärmedurchgangszahl Heat transfer coefficient | C14: k [kg/s³/K] | D14: 3 … 30 | E14: =1*IF(Input!E6=1,1/(1/E7+(E12-E13)/(2*E11)+1/E6),IF(Input!E6=2,1/(1/E7+(E12-E13)/(2*E11)+1/E6),IF(Input!E6=3,1/(1/E7+(E12-E13)*(2*E11)+1/E6)))) -> 20.25600952
B16: Quellen / sources: | C16: Handbuch Maschinenbau 21. Auflage, 2013, Springer Vieweg Verlag, F33 ff
C17: Technische Formeln, VEB Fachbuchverlag Leipzig, 17. Auflage, 1975
C18: https://www.schweizer-fn.de/stoff/wuebergang_gase/wuebergang_gase.php
C19: Gerthsen Physik, Springer-Verlag, 21. Auflage, 1995
C20: https://de.wikipedia.org/wiki/W%C3%A4rmeleitf%C3%A4higkeit

Sheet check (hidden)
C1: M | K1: B
D4: (rayon*COS(B61)+(bielle^2-((rayon*SIN(B61))^2))^0,5)
D5: (rayon*COS(B61)+(bielle^2-rayon^2*SIN(B61)^2))^0,5)
C15: (rayon*COS(B61)+(bielle^2-(rayon^2*(SIN(B61))^2))^0,5)
C17: r [mm] | D17: l [mm] | E17: index n2p | F17: n [min-1] | J17: w [s-1] | K17: l =r / l [-] | L17: diff.-time dt [s]
C18: 14 | D18: 54 | E18: 360 | F18: 800 | J18: =F18*PI()/30 -> 83.7758041 | K18: =C18/D18 -> 0.2592592593 | L18: =2*PI()/E18/J18 -> 0.0002083333333
F21: Meunier | G21: exactly | H21: exactly | I21: exactly | J21: approached | K21: exactly ? | M21: Bladt | N21: approached | O21: approached | P21: approached | Q21: approached ?
F22: exaktctly | G22: (l + r)-xp | J22: dx=xi-xi-1 | K22: dx=vx*dt | M22: approached | N22: ( l + r)-x | P22: dx=xi-xi-1 | Q22: vx*dt
B23: index | C23: angle j [-°] | D23: angle j [rad] | E23: diff-time. dt [s] | F23: pos.xp(j) [mm] | G23: x(j) [mm] | H23: pos.x(j) [mm] | I23: vx(j) [mm/s] | J23: dx(j) [mm] | K23: dx(j) [mm] | M23: x(j) [mm] | N23: pos.xp(j) [mm] | O23: vx(j) [mm/s] | P23: dx(j) [mm] | Q23: dx(j) [mm]
B24: 0 | C24: =B24 -> 0 | D24: =C24*PI()/180 -> 0 | E24: =$L$18 -> 0.0002083333333 | F24: =$C$18*COS(D24)+($D$18^2-$C$18^2*SIN(D24)^2)^0.5 -> 68 | G24: =($C$18+$D$18)-F24 -> 0 | H24: =$C$18*(1-COS(D24))+$D$18*(1-(1-$K$18^2*SIN(D24)^2)^0.5) -> 0 | I24: =$J$18*($C$18*SIN(D24)+$C$18^2*SIN(D24)*COS(D24)/(($D$18^2-$C$18^2*SIN(D24)^2)^0.5)) -> 0 | J24: =F383-F24 -> -0.002685038715 | K24: =I24*$L$18 -> 0 | M24: =$C$18*(1-COS(D24)+$K$18/4*(1-COS(2*D24))) -> 0 | N24: =($D$18+$C$18)-M24 -> 68 | O24: =$C$18*$J$18*(SIN(D24)+$K$18/2*SIN(2*D24)) -> 0 | P24: =M24-M383 -> -0.002685035886 | Q24: =O24*$L$18 -> 0
B25: 1 | C25: =B25 -> 1 | D25: =C25*PI()/180 -> 0.01745329252 | E25: 0.0002083333333 | F25: =$C$18*COS(D25)+($D$18^2-$C$18^2*(SIN(D25))^2)^0.5 -> 67.99731496 | G25: =($C$18+$D$18)-F25 -> 0.002685038715 | H25: 0.002685038715 | I25: =$J$18*($C$18*SIN(D25)+$C$18^2*SIN(D25)*COS(D25)/(($D$18^2-$C$18^2*SIN(D25)^2)^0.5)) -> 25.77534036 | J25: =-(F25-F24) -> 0.002685038715 | K25: =I25*$L$18 -> 0.005369862575 | M25: 0.002685035886 | N25: =($D$18+$C$18)-M25 -> 67.99731496 | O25: =$C$18*$J$18*(SIN(D25)+$K$18/2*SIN(2*D25)) -> 25.77528604 | P25: =M25-M24 -> 0.002685035886 | Q25: =O25*$L$18 -> 0.005369851259
B26: 2 | C26: 2 | D26: 0.03490658504 | E26: 0.0002083333333 | F26: =$C$18*COS(D26)+($D$18^2-$C$18^2*(SIN(D26))^2)^0.5 -> 67.98926113 | G26: 0.01073886581 | H26: 0.01073886581 | I26: 51.53830652 | J26: =-(F26-F25) -> 0.008053827097 | K26: 0.01073714719 | M26: 0.01073882057 | N26: 67.98926118 | O26: 51.53787237 | P26: =M26-M25 -> 0.008053784685 | Q26: 0.01073705674
B27: 3 | C27: 3 | D27: 0.05235987756 | E27: 0.0002083333333 | F27: 67.97584239 | G27: 0.02415761497 | H27: 0.02415761497 | I27: 77.27653217 | J27: 0.01341874916 | K27: 0.01609927754 | M27: 0.02415738616 | N27: 67.97584261 | O27: 77.27506904 | P27: 0.01341856559 | Q27: 0.01609897272
B28: 4 | C28: 4 | D28: 0.06981317008 | E28: 0.0002083333333 | F28: 67.95706515 | G28: 0.04293484506 | H28: 0.04293484506 | I28: 102.9776668 | J28: 0.01877723009 | K28: 0.02145368058 | M28: 0.04293412287 | N28: 67.95706588 | O28: 102.9742056 | P28: 0.01877673672 | Q28: 0.02145295951
B29: 5 | C29: 5 | D29: 0.0872664626 | E29: 0.0002083333333 | F29: 67.93293846 | G29: 0.06706154426 | H29: 0.06706154426 | I29: 128.6293835 | J29: 0.0241266992 | K29: 0.02679778823 | M29: 0.06705978417 | N29: 67.93294022 | O29: 128.6226411 | P29: 0.02412566129 | Q29: 0.02679638355
B30: 6 | C30: 6 | D30: 0.1047197551 | E30: 0.0002083333333 | F30: 67.90347386 | G30: 0.0965261358 | H30: 0.0965261358 | I30: 154.2193871 | J30: 0.02946459154 | K30: 0.03212903897 | M30: 0.09652249381 | N30: 67.90347751 | O30: 154.2077732 | P30: 0.02946270964 | Q30: 0.03212661941
B31: 7 | C31: 7 | D31: 0.1221730476 | E31: 0.0002083333333 | F31: 67.86868551 | G31: 0.1313144853 | H31: 0.1313144853 | I31: 179.7354215 | J31: 0.03478834955 | K31: 0.03744487948 | M31: 0.131307755 | N31: 67.86869224 | O31: 179.7170486 | P31: 0.03478526122 | Q31: 0.03744105179
B32: 8 | C32: 8 | D32: 0.1396263402 | E32: 0.0002083333333 | F32: 67.82859009 | G32: 0.1714099101 | H32: 0.1714099101 | I32: 205.1652783 | J32: 0.04009542473 | K32: 0.04274276632 | M32: 0.1713984617 | N32: 67.82860154 | O32: 205.1379721 | P32: 0.04009070664 | Q32: 0.04273707751
B33: 9 | C33: 9 | D33: 0.1570796327 | E33: 0.0002083333333 | F33: 67.78320681 | G33: 0.2167931893 | H33: 0.2167931893 | I33: 230.4968041 | J33: 0.04538327922 | K33: 0.04802016752 | M33: 0.2167749113 | N33: 67.78322509 | O33: 230.4581164 | P33: 0.04537644965 | Q33: 0.04801210758
B34: 10 | C34: 10 | D34: 0.1745329252 | E34: 0.0002083333333 | F34: 67.73255742 | G34: 0.2674425768 | H34: 0.2674425768 | I34: 255.7179083 | J34: 0.05064938749 | K34: 0.05327456424 | M34: 0.2674148204 | N34: 67.73258518 | O34: 255.6651316 | P34: 0.05063990912 | Q34: 0.05326356909
B35: 11 | C35: 11 | D35: 0.1919862177 | E35: 0.0002083333333 | F35: 67.67666619 | G35: 0.3233338147 | H35: 0.3233338147 | I35: 280.8165714 | J35: 0.05589123794 | K35: 0.05850345239 | M35: 0.3232933415 | N35: 67.67670666 | O35: 280.7467545 | P35: 0.05587852103 | Q35: 0.0584889072
B36: 12 | C36: 12 | D36: 0.2094395102 | E36: 0.0002083333333 | F36: 67.61555985 | G36: 0.3844401493 | H36: 0.3844401493 | I36: 305.7808525 | J36: 0.06110633454 | K36: 0.06370434426 | M36: 0.3843830819 | N36: 67.61561692 | O36: 305.6908181 | P36: 0.06108974039 | Q36: 0.06368558711
B37: 13 | C37: 13 | D37: 0.2268928028 | E37: 0.0002083333333 | F37: 67.54926765 | G37: 0.4507323477 | H37: 0.4507323477 | I37: 330.5988968 | J37: 0.06629219845 | K37: 0.06887477017 | M37: 0.4506541251 | N37: 67.54934587 | O37: 330.4852605 | P37: 0.0662710432 | Q37: 0.06885109594
B38: 14 | C38: 14 | D38: 0.2443460953 | E38: 0.0002083333333 | F38: 67.47782128 | G38: 0.5221787174 | H38: 0.5221787174 | I38: 355.2589442 | J38: 0.07144636965 | K38: 0.07401228004 | M38: 0.5220740534 | N38: 67.47792595 | O38: 355.1181344 | P38: 0.07141992836 | Q38: 0.07398294467
B39: 15 | C39: 15 | D39: 0.2617993878 | E39: 0.0002083333333 | F39: 67.40125487 | G39: 0.5987451259 | H39: 0.5987451259 | I39: 379.7493361 | J39: 0.07656640855 | K39: 0.07911444503 | M39: 0.598607973 | N39: 67.40139203 | O39: 379.5776159 | P39: 0.07653391953 | Q39: 0.07907866997
B40: 16 | C40: 16 | D40: 0.2792526803 | E40: 0.0002083333333 | F40: 67.31960498 | G40: 0.6803950235 | H40: 0.6803950235 | I40: 404.0585239 | J40: 0.08164989761 | K40: 0.08417885914 | M40: 0.68021854 | N40: 67.31978146 | O40: 403.8520132 | P40: 0.08161056702 | Q40: 0.08413583607
B41: 17 | C41: 17 | D41: 0.2967059728 | E41: 0.0002083333333 | F41: 67.23291053 | G41: 0.7670894664 | H41: 0.7670894664 | I41: 428.175076 | J41: 0.08669444291 | K41: 0.08920314084 | M41: 0.7668659896 | N41: 67.23313401 | O41: 427.9297756 | P41: 0.08664744959 | Q41: 0.08915203659
B42: 18 | C42: 18 | D42: 0.3141592654 | E42: 0.0002083333333 | F42: 67.14121286 | G42: 0.8587871423 | H42: 0.8587871423 | I42: 452.0876861 | J42: 0.09169767581 | K42: 0.09418493461 | M42: 0.8585081659 | N42: 67.14149183 | O42: 451.7995022 | P42: 0.09164217629 | Q42: 0.0941248963
B43: 19 | C43: 19 | D43: 0.3316125579 | E43: 0.0002083333333 | F43: 67.0445556 | G43: 0.9554443967 | H43: 0.9554443967 | I43: 475.7851804 | J43: 0.09665725448 | K43: 0.09912191257 | M43: 0.9551005541 | N43: 67.04489945 | O43: 475.4499499 | P43: 0.09659238822 | Q43: 0.09905207289
B44: 20 | C44: 20 | D44: 0.3490658504 | E44: 0.0002083333333 | F44: 66.94298474 | G44: 1.057015262 | H44: 1.057015262 | I44: 499.256525 | J44: 0.1015708655 | K44: 0.104011776 | M44: 1.056596314 | N44: 66.94340369 | O44: 498.8700418 | P44: 0.1014957602 | Q44: 0.1039312587
B45: 21 | C45: 21 | D45: 0.3665191429 | E45: 0.0002083333333 | F45: 66.83654851 | G45: 1.163451488 | H45: 1.163451488 | I45: 522.4908342 | J45: 0.1064362254 | K45: 0.1088522571 | M45: 1.162946317 | N45: 66.83705368 | O45: 522.0488756 | P45: 0.1063500027 | Q45: 0.1087601824
B46: 22 | C46: 22 | D46: 0.3839724354 | E46: 0.0002083333333 | F46: 66.72529743 | G46: 1.27470257 | H46: 1.27470257 | I46: 545.4773769 | J46: 0.1112510824 | K46: 0.1136411202 | M46: 1.27409918 | N46: 66.72590082 | O46: 544.9757311 | P46: 0.1111528632 | Q46: 0.1135366106
B47: 23 | C47: 23 | D47: 0.401425728 | E47: 0.0002083333333 | F47: 66.60928421 | G47: 1.390715788 | H47: 1.390715788 | I47: 568.2055851 | J47: 0.1160132177 | K47: 0.1183761636 | M47: 1.390001308 | N47: 66.60999869 | O47: 567.6400782 | P47: 0.1159021279 | Q47: 0.1182583496
B48: 24 | C48: 24 | D48: 0.4188790205 | E48: 0.0002083333333 | F48: 66.48856377 | G48: 1.511436235 | H48: 1.511436235 | I48: 590.6650602 | J48: 0.120720447 | K48: 0.1230552209 | M48: 1.510596932 | N48: 66.48940307 | O48: 590.0315843 | P48: 0.1205956236 | Q48: 0.1229232467
B49: 25 | C49: 25 | D49: 0.436332313 | E49: 0.0002083333333 | F49: 66.36319314 | G49: 1.636806857 | H49: 1.636806857 | I49: 612.8455811 | J49: 0.1253706225 | K49: 0.1276761627 | M49: 1.63582815 | N49: 66.36417185 | O49: 612.1401218 | P49: 0.1252312188 | Q49: 0.127529192
B50: 26 | C50: 26 | D50: 0.4537856055 | E50: 0.0002083333333 | F50: 66.23323151 | G50: 1.766768491 | H50: 1.766768491 | I50: 634.737111 | J50: 0.1299616337 | K50: 0.1322368981 | M50: 1.765634976 | N50: 66.23436502 | O50: 633.9557748 | P50: 0.1298068256 | Q50: 0.1320741198
B51: 27 | C51: 27 | D51: 0.471238898 | E51: 0.0002083333333 | F51: 66.0987401 | G51: 1.901259901 | H51: 1.901259901 | I51: 656.3298046 | J51: 0.1344914095 | K51: 0.136735376 | M51: 1.899955377 | N51: 66.10004462 | O51: 655.4688466 | P51: 0.1343204008 | Q51: 0.1365560097
B52: 28 | C52: 28 | D52: 0.4886921906 | E52: 0.0002083333333 | F52: 65.95978218 | G52: 2.04021782 | H52: 2.04021782 | I52: 677.6140152 | J52: 0.1389579194 | K52: 0.1411695865 | M52: 2.038725325 | N52: 65.96127468 | O52: 676.6698657 | P52: 0.1387699477 | Q52: 0.1409728887
B53: 29 | C53: 29 | D53: 0.5061454831 | E53: 0.0002083333333 | F53: 65.81642301 | G53: 2.183576995 | H53: 2.183576995 | I53: 698.5803015 | J53: 0.143359175 | K53: 0.1455375628 | M53: 2.181878842 | N53: 65.81812116 | O53: 697.5495929 | P53: 0.1431535172 | Q53: 0.1453228319
B54: 30 | C54: 30 | D54: 0.5235987756 | E54: 0.0002083333333 | F54: =$C$18*COS(D54)+($D$18^2-$C$18^2*(SIN(D54))^2)^0.5 -> 65.66872977 | G54: 2.331270226 | H54: 2.331270226 | I54: 719.2194347 | J54: 0.1476932312 | K54: 0.1498373822 | M54: 2.329348051 | N54: 65.67065195 | O54: 718.099027 | P54: 0.147469209 | Q54: 0.149603964
B55: 31 | C55: 31 | D55: 0.5410520681 | E55: 0.0002083333333 | F55: =$C$18*COS(D55)+($D$18^2-$C$18^2*SIN(D55)^2)^0.5 -> 65.51677159 | G55: 2.483228414 | H55: 2.483228414 | I55: 739.5224049 | J55: 0.1519581881 | K55: 0.1540671677 | M55: 2.481063224 | N55: 65.51893678 | O55: 738.3094109 | P55: 0.1517151732 | Q55: 0.1538144606
B56: 32 | C56: 32 | D56: 0.5585053606 | E56: 0.0002083333333 | F56: 65.36061939 | G56: 2.639380606 | H56: =$C$18*(1-COS(D56))+$D$18*(1-(1-$K$18^2*SIN(D56)^2)^0.5) -> 2.639380606 | I56: 759.4804279 | J56: 0.1561521921 | K56: 0.1582250891 | M56: 2.636952835 | N56: 65.36304716 | O56: 758.1722376 | P56: 0.1558896115 | Q56: 0.1579525495
B57: 33 | C57: 33 | D57: 0.5759586532 | E57: 0.0002083333333 | F57: 65.20034596 | G57: 2.799654043 | H57: 2.799654043 | I57: 779.0849517 | J57: 0.1602734371 | K57: 0.1623093649 | M57: 2.796943613 | N57: 65.20305639 | O57: 777.6792552 | P57: 0.159990778 | Q57: 0.1620165115
B58: 34 | C58: 34 | D58: 0.5934119457 | E58: 0.0002083333333 | F58: 65.03602579 | G58: 2.96397421 | H58: 2.96397421 | I58: 798.327663 | J58: 0.1643201663 | K58: 0.1663182631 | M58: 2.960960594 | N58: 65.03903941 | O58: 796.8224724 | P58: 0.1640169805 | Q58: 0.1660046818
B59: 35 | C59: 35 | D59: 0.6108652382 | E59: 0.0002083333333 | F59: 64.86773512 | G59: 3.132264883 | H59: 3.132264883 | I59: 817.2004929 | J59: 0.1682906731 | K59: 0.1702501027 | M59: 3.128927176 | N59: 64.87107282 | O59: 815.5941633 | P59: 0.1679665819 | Q59: 0.1699154507
B60: 36 | C60: 36 | D60: 0.6283185307 | E60: 0.0002083333333 | F60: 64.69555181 | G60: 3.304448185 | H60: 3.304448185 | I60: 835.6956235 | J60: 0.1721833025 | K60: 0.1741032549 | M60: 3.300765176 | N60: 64.69923482 | O60: 833.9868721 | P60: 0.1718380006 | Q60: 0.173747265
B61: 37 | C61: 37 | D61: 0.6457718232 | E61: 0.0002083333333 | F61: 64.51955536 | G61: 3.480444638 | H61: 3.480444638 | I61: 853.8054936 | J61: 0.1759964525 | K61: 0.1778761445 | M61: 3.476394888 | N61: 64.52360511 | O61: 851.9934175 | P61: 0.1756297119 | Q61: 0.1774986286
B62: 38 | C62: 38 | D62: 0.6632251158 | E62: 0.0002083333333 | F62: 64.33982679 | G62: 3.660173213 | H62: 3.660173213 | I62: 871.5228043 | J62: 0.1797285749 | K62: 0.1815672509 | M62: 3.655735137 | N62: 64.34426486 | O62: 869.6068968 | P62: 0.1793402485 | Q62: 0.1811681035
B63: 39 | C63: 39 | D63: 0.6806784083 | E63: 0.0002083333333 | F63: 64.15644861 | G63: 3.84355139 | H63: 3.84355139 | I63: 888.8405247 | J63: 0.183378177 | K63: 0.1851751093 | M63: 3.838703339 | N63: 64.16129666 | O63: 886.8206898 | P63: 0.1829682018 | Q63: 0.1847543104
B64: 40 | C64: 40 | D64: 0.6981317008 | E64: 0.0002083333333 | F64: 63.96950479 | G64: 4.030495212 | H64: 4.030495212 | I64: 905.7518973 | J64: 0.1869438224 | K64: 0.1886983119 | M64: 4.025215561 | N64: 63.97478444 | O64: 903.6284622 | P64: 0.1865122224 | Q64: 0.1882559296
B65: 41 | C65: 41 | D65: 0.7155849933 | E65: 0.0002083333333 | F65: 63.77908066 | G65: 4.220919344 | H65: 4.220919344 | I65: 922.2504429 | J65: 0.1904241323 | K65: 0.1921355089 | M65: 4.215186582 | N65: 63.78481342 | O65: 920.0241688 | P65: 0.1899710205 | Q65: 0.1916717018
B66: 42 | C66: 42 | D66: 0.7330382858 | E66: 0.0002083333333 | F66: 63.58526287 | G66: 4.41473713 | H66: 4.41473713 | I66: 938.3299657 | J66: 0.1938177861 | K66: 0.1954854095 | M66: 4.408529949 | N66: 63.59147005 | O66: 936.002057 | P66: 0.1933433673 | Q66: 0.1950004285
B67: 43 | C67: 43 | D67: 0.7504915784 | E67: 0.0002083333333 | F67: 63.38813935 | G67: 4.611860654 | H67: 4.611860654 | I67: 953.9845582 | J67: 0.1971235232 | K67: 0.198746783 | M67: 4.605158044 | N67: 63.39484196 | O67: 951.5566686 | P67: 0.1966280949 | Q67: 0.1982409726
B68: 44 | C68: 44 | D68: 0.7679448709 | E68: 0.0002083333333 | F68: 63.1877992 | G68: 4.812200797 | H68: 4.812200797 | I68: 969.2086051 | J68: 0.200340143 | K68: 0.2019184594 | M68: 4.804982141 | N68: 63.19501786 | O68: 966.682843 | P68: 0.1998240971 | Q68: 0.201392259
B69: 45 | C69: 45 | D69: 0.7853981634 | E69: 0.0002083333333 | F69: 62.9843327 | G69: 5.015667303 | H69: 5.015667303 | I69: 983.9967882 | J69: 0.2034665067 | K69: 0.2049993309 | M69: 5.007912471 | N69: 62.99208753 | O69: 981.3757189 | P69: 0.20293033 | Q69: 0.2044532748
B70: 46 | C70: 46 | D70: 0.8028514559 | E70: 0.0002083333333 | F70: 62.77783116 | G70: 5.222168841 | H70: 5.222168841 | I70: 998.34409 | J70: 0.2065015376 | K70: 0.2079883521 | M70: 5.213858283 | N70: 62.78614172 | O70: 995.6307359 | P70: 0.205945812 | Q70: 0.20742307
B71: 47 | C71: 47 | D71: 0.8203047484 | E71: 0.0002083333333 | F71: 62.56838694 | G71: 5.431613063 | H71: 5.431613063 | I71: 1012.245797 | J71: 0.2094442218 | K71: 0.2108845411 | M71: 5.422727908 | N71: 62.57727209 | O71: 1009.443637 | P71: 0.2088696247 | Q71: 0.2103007576
B72: 48 | C72: 48 | D72: 0.837758041 | E72: 0.0002083333333 | F72: 62.35609333 | G72: 5.643906672 | H72: 5.643906672 | I72: 1025.697505 | J72: 0.2122936096 | K72: 0.2136869801 | M72: 5.63442882 | N72: 62.36557118 | O72: 1022.810467 | P72: 0.2117009127 | Q72: 0.213085514
B73: 49 | C73: 49 | D73: 0.8552113335 | E73: 0.0002083333333 | F73: 62.14104451 | G73: 5.858955488 | H73: 5.858955488 | I73: 1038.695118 | J73: 0.2150488156 | K73: 0.2163948162 | M73: 5.848867704 | N73: 62.1511323 | O73: 1035.727578 | P73: 0.214438884 | Q73: 0.2157765788
B74: 50 | C74: 50 | D74: 0.872664626 | E74: 0.0002083333333 | F74: 61.92333549 | G74: 6.076664507 | H74: 6.076664507 | I74: 1051.234857 | J74: 0.2177090193 | K74: 0.2190072618 | M74: 6.065950514 | N74: 61.93404949 | O74: 1048.191627 | P74: 0.2170828102 | Q74: 0.2183732556
B75: 51 | C75: 51 | D75: 0.8901179185 | E75: 0.0002083333333 | F75: 61.70306203 | G75: 6.296937973 | H75: 6.296937973 | I75: 1063.313257 | J75: 0.2202734661 | K75: 0.2215235951 | M75: 6.285582541 | N75: 61.71441746 | O75: 1060.199574 | P75: 0.2196320266 | Q75: 0.2208749113
B76: 52 | C76: 52 | D76: 0.907571211 | E76: 0.0002083333333 | F76: 61.48032056 | G76: 6.519679441 | H76: 6.519679441 | I76: 1074.927172 | J76: 0.2227414675 | K76: 0.2239431609 | M76: 6.507668473 | N76: 61.49233153 | O76: 1071.748688 | P76: 0.2220859319 | Q76: 0.2232809767
B77: 53 | C77: 53 | D77: 0.9250245036 | E77: 0.0002083333333 | F77: 61.25520816 | G77: 6.744791842 | H77: 6.744791842 | I77: 1086.073778 | J77: 0.2251124015 | K77: 0.2262653705 | M77: 6.732112462 | N77: 61.26788754 | O77: 1082.836541 | P77: 0.2244439888 | Q77: 0.2255909461
B78: 54 | C78: 54 | D78: 0.9424777961 | E78: 0.0002083333333 | F78: 61.02782244 | G78: 6.972177555 | H78: 6.972177555 | I78: 1096.750571 | J78: 0.2273857129 | K78: 0.2284897024 | M78: 6.958818185 | N78: 61.04118181 | O78: 1093.461011 | P78: 0.2267057233 | Q78: 0.2278043773
B79: 55 | C79: 55 | D79: 0.9599310886 | E79: 0.0002083333333 | F79: 60.79826153 | G79: 7.201738469 | H79: 7.201738469 | I79: 1106.955371 | J79: 0.2295609138 | K79: 0.2306157023 | M79: 7.18768891 | N79: 60.81231109 | O79: 1103.62028 | P79: 0.228870725 | Q79: 0.2299208916
B80: 56 | C80: 56 | D80: 0.9773843811 | E80: 0.0002083333333 | F80: 60.56662395 | G80: 7.433376053 | H80: 7.433376053 | I80: 1116.686321 | J80: 0.2316375838 | K80: 0.2326429835 | M80: 7.418627557 | N80: 60.58137244 | O80: 1113.31283 | P80: 0.2309386465 | Q80: 0.231940173
B81: 57 | C81: 57 | D81: 0.9948376736 | E81: 0.0002083333333 | F81: 60.33300858 | G81: 7.666991423 | H81: 7.666991423 | I81: 1125.941889 | J81: 0.2336153698 | K81: 0.2345712268 | M81: 7.65153676 | N81: 60.34846324 | O81: 1122.537449 | P81: 0.2329092034 | Q81: 0.2338619685
B82: 58 | C82: 58 | D82: 1.012290966 | E82: 0.0002083333333 | F82: 60.09751459 | G82: 7.902485409 | H82: 7.902485409 | I82: 1134.720866 | J82: 0.2354939865 | K82: 0.2364001805 | M82: 7.886318934 | N82: 60.11368107 | O82: 1131.293219 | P82: 0.2347821739 | Q82: 0.2356860874
B83: 59 | C83: 59 | D83: 1.029744259 | E83: 0.0002083333333 | F83: 59.86024138 | G83: 8.139758625 | H83: 8.139758625 | I83: 1143.02237 | J83: 0.2372732158 | K83: 0.2381296604 | M83: 8.122876332 | N83: 59.87712367 | O83: 1139.579525 | P83: 0.2365573984 | Q83: 0.237412401
B84: 60 | C84: 60 | D84: 1.047197551 | E84: 0.0002083333333 | F84: 59.62128847 | G84: 8.378711532 | H84: 8.378711532 | I84: 1150.845839 | J84: 0.2389529074 | K84: 0.2397595498 | M84: 8.361111111 | N84: 59.63888889 | O84: 1147.396042 | P84: 0.2382347788 | Q84: 0.2390408421
B85: 61 | C85: 61 | D85: 1.064650844 | E85: 0.0002083333333 | F85: 59.38075549 | G85: 8.61924451 | H85: 8.61924451 | I85: 1158.191035 | J85: 0.240532978 | K85: 0.2412897989 | M85: 8.60092539 | N85: 59.39907461 | O85: 1154.742742 | P85: 0.2398142785 | Q85: 0.2405714045
B86: 62 | C86: 62 | D86: 1.082104136 | E86: 0.0002083333333 | F86: 59.13874208 | G86: 8.861257922 | H86: 8.861257922 | I86: 1165.058039 | J86: 0.2420134113 | K86: 0.2427204249 | M86: 8.842221311 | N86: 59.15777869 | O86: 1161.619882 | P86: 0.2412959215 | Q86: 0.2420041421
B87: 63 | C87: 63 | D87: 1.099557429 | E87: 0.0002083333333 | F87: 58.89534782 | G87: 9.104652179 | H87: 9.104652179 | I87: 1171.447254 | J87: 0.2433942578 | K87: 0.2440515113 | M87: 9.084901103 | N87: 58.9150989 | O87: 1168.02801 | P87: 0.2426797918 | Q87: 0.2433391689
B88: 64 | C88: 64 | D88: 1.117010721 | E88: =$L$18 -> 0.0002083333333 | F88: 58.65067219 | G88: 9.349327813 | H88: 9.349327813 | I88: 1177.359396 | J88: 0.244675634 | K88: 0.2452832075 | M88: =$C$18*(1-COS(D88)+$K$18/4*(1-COS(2*D88))) -> 9.328867136 | N88: 58.67113286 | O88: 1173.967956 | P88: 0.2439660326 | Q88: 0.2445766574
B89: 65 | C89: =B89 -> 65 | D89: =C89*PI()/180 -> 1.134464014 | E89: 0.0002083333333 | F89: =$C$18*COS(D89)+($D$18^2-$C$18^2*SIN(D89)^2)^0.5 -> 58.40481446 | G89: =($C$18+$D$18)-F89 -> 9.595185535 | H89: =$C$18*(1-COS(D89))+$D$18*(1-(1-$K$18^2*SIN(D89)^2)^0.5) -> 9.595185535 | I89: =$J$18*($C$18*SIN(D89)+$C$18^2*SIN(D89)*COS(D89)/(($D$18^2-$C$18^2*SIN(D89)^2)^0.5)) -> 1182.795496 | J89: 0.2458577219 | K89: =I89*$L$18 -> 0.2464157283 | M89: 9.574021981 | N89: =($D$18+$C$18)-M89 -> 58.42597802 | O89: =$C$18*$J$18*(SIN(D89)+$K$18/2*SIN(2*D89)) -> 1179.440827 | P89: 0.2451548459 | Q89: =O89*$L$18 -> 0.2457168389
B90: 66 | C90: 66 | D90: 1.151917306 | E90: 0.0002083333333 | F90: 58.1578737 | G90: 9.842126304 | H90: 9.842126304 | I90: 1187.756895 | J90: =-(F90-F89) -> 0.2469407688 | K90: 0.2474493532 | M90: 9.820268473 | N90: 58.17973153 | O90: 1184.448008 | P90: =M90-M89 -> 0.2462464916 | Q90: 0.2467600016
B91: 67 | C91: 67 | D91: 1.169370599 | E91: 0.0002083333333 | F91: 57.90994861 | G91: 10.09005139 | H91: 10.09005139 | I91: 1192.245243 | J91: 0.2479250862 | K91: 0.2483844256 | M91: 10.06750976 | N91: 57.93249024 | O91: 1188.991155 | P91: 0.2472412865 | Q91: 0.2477064907
B92: 68 | C92: 68 | D92: 1.186823891 | E92: 0.0002083333333 | F92: 57.66113756 | G92: 10.33886244 | H92: 10.33886244 | I92: 1196.26249 | J92: 0.2488110491 | K92: 0.2492213521 | M92: 10.31564936 | N92: 57.68435064 | O92: 1193.072192 | P92: 0.2481396033 | Q92: 0.2485567067
B93: 69 | C93: 69 | D93: 1.204277184 | E93: 0.0002083333333 | F93: 57.41153847 | G93: 10.58846153 | H93: 10.58846153 | I93: 1199.810886 | J93: 0.2495990953 | K93: 0.2499606014 | M93: 10.56459123 | N93: 57.43540877 | O93: 1196.693305 | P93: 0.2489418703 | Q93: 0.2493111051
B94: 70 | C94: 70 | D94: 1.221730476 | E94: 0.0002083333333 | F94: 57.16124874 | G94: 10.83875126 | H94: 10.83875126 | I94: 1202.892976 | J94: 0.2502897243 | K94: 0.2506027034 | M94: 10.8142398 | N94: 57.1857602 | O94: 1199.856935 | P94: 0.2496485697 | Q94: 0.2499701948
B95: 71 | C95: 71 | D95: 1.239183769 | E95: 0.0002083333333 | F95: 56.91036524 | G95: 11.08963476 | H95: 11.08963476 | I95: 1205.511593 | J95: 0.2508834962 | K95: 0.2511482485 | M95: 11.06450004 | N95: 56.93549996 | O95: 1202.56578 | P95: 0.250260237 | Q95: 0.2505345376
B96: 72 | C96: 72 | D96: 1.256637061 | E96: 0.0002083333333 | F96: 56.65898421 | G96: 11.34101579 | H96: 11.34101579 | I96: 1207.669851 | J96: 0.2513810308 | K96: 0.2515978856 | M96: 11.3152775 | N96: 56.6847225 | O96: 1204.822783 | P96: 0.2507774596 | Q96: 0.2510047465
B97: 73 | C97: 73 | D97: 1.274090354 | E97: 0.0002083333333 | F97: 56.40720121 | G97: 11.59279879 | H97: 11.59279879 | I97: 1209.371144 | J97: 0.2517830061 | K97: 0.2519523216 | M97: 11.56647838 | N97: 56.43352162 | O97: 1206.631129 | P97: 0.2512008761 | Q97: 0.2513814852
B98: 74 | C98: 74 | D98: 1.291543646 | E98: 0.0002083333333 | F98: 56.15511105 | G98: 11.84488895 | H98: 11.84488895 | I98: 1210.619136 | J98: 0.2520901573 | K98: 0.2522123199 | M98: 11.81800955 | N98: 56.18199045 | O98: 1207.994239 | P98: 0.2515311746 | Q98: 0.2516654664
B99: 75 | C99: 75 | D99: 1.308996939 | E99: 0.0002083333333 | F99: 55.90280778 | G99: 12.09719222 | H99: 12.09719222 | I99: 1211.417754 | J99: 0.2523032755 | K99: 0.2523786988 | M99: 12.06977864 | N99: 55.93022136 | O99: 1208.915764 | P99: 0.2517690921 | Q99: 0.2518574509
B100: 76 | C100: 76 | D100: 1.326450232 | E100: 0.0002083333333 | F100: 55.65038457 | G100: 12.34961543 | H100: 12.34961543 | I100: 1211.771185 | J100: 0.2524232058 | K100: 0.2524523303 | M100: 12.32169406 | N100: 55.67830594 | O100: 1209.399581 | P100: 0.2519154128 | Q100: 0.2519582461
B101: 77 | C101: 77 | D101: 1.343903524 | E101: 0.0002083333333 | F101: 55.39793372 | G101: 12.60206628 | H101: 12.60206628 | I101: 1211.683863 | J101: 0.2524508464 | K101: 0.2524341382 | M101: 12.57366502 | N101: 55.42633498 | O101: 1209.449783 | P101: 0.2519709668 | Q101: 0.2519687049
B102: 78 | C102: 78 | D102: 1.361356817 | E102: 0.0002083333333 | F102: 55.14554658 | G102: 12.85445342 | H102: 12.85445342 | I102: 1211.160465 | J102: 0.2523871464 | K102: 0.252325097 | M102: 12.82560165 | N102: 55.17439835 | O102: 1209.070676 | P102: 0.2519366293 | Q102: 0.2518897241
B103: 79 | C103: 79 | D103: 1.378810109 | E103: 0.0002083333333 | F103: 54.89331347 | G103: 13.10668653 | H103: 13.10668653 | I103: 1210.205903 | J103: 0.2522331049 | K103: 0.2521262297 | M103: 13.07741497 | N103: 54.92258503 | O103: 1208.266769 | P103: 0.2518133186 | Q103: 0.2517222435
B104: 80 | C104: 80 | D104: 1.396263402 | E104: 0.0002083333333 | F104: 54.6413237 | G104: 13.3586763 | H104: 13.3586763 | I104: 1208.825312 | J104: 0.2519897687 | K104: 0.2518386066 | M104: 13.32901696 | N104: 54.67098304 | O104: 1207.042771 | P104: 0.2516019951 | Q104: 0.251467244
B105: 81 | C105: 81 | D105: 1.413716694 | E105: 0.0002083333333 | F105: 54.38966547 | G105: 13.61033453 | H105: 13.61033453 | I105: 1207.024046 | J105: 0.2516582305 | K105: 0.2514633429 | M105: 13.58032062 | N105: 54.41967938 | O105: 1205.403582 | P105: 0.2513036597 | Q105: 0.2511257463
B106: 82 | C106: 82 | D106: 1.431169987 | E106: 0.0002083333333 | F106: 54.13842584 | G106: 13.86157416 | H106: 13.86157416 | I106: 1204.807668 | J106: 0.2512396276 | K106: 0.2510015974 | M106: 13.83123998 | N106: 54.16876002 | O106: 1203.354286 | P106: 0.2509193527 | Q106: 0.2506988096
B107: 83 | C107: 83 | D107: 1.448623279 | E107: 0.0002083333333 | F107: 53.88769071 | G107: 14.11230929 | H107: 14.11230929 | I107: 1202.181938 | J107: 0.2507351396 | K107: 0.2504545704 | M107: 14.08169013 | N107: 53.91830987 | O107: 1200.900145 | P107: 0.2504501518 | Q107: 0.2501875301
B108: 84 | C108: 84 | D108: 1.466076572 | E108: 0.0002083333333 | F108: 53.63754472 | G108: 14.36245528 | H108: 14.36245528 | I108: 1199.152806 | J108: 0.2501459867 | K108: 0.2498235013 | M108: 14.3315873 | N108: 53.6684127 | O108: 1198.046589 | P108: 0.249897171 | Q108: 0.2495930394
B109: 85 | C109: 85 | D109: 1.483529864 | E109: 0.0002083333333 | F109: 53.38807129 | G109: 14.61192871 | H109: 14.61192871 | I109: 1195.726404 | J109: 0.2494734273 | K109: 0.2491096675 | M109: 14.58084886 | N109: 53.41915114 | O109: 1194.799213 | P109: 0.2492615588 | Q109: 0.2489165027
B110: 86 | C110: 86 | D110: 1.500983157 | E110: 0.0002083333333 | F110: 53.13935253 | G110: 14.86064747 | H110: 14.86064747 | I110: 1191.909032 | J110: 0.2487187567 | K110: 0.2483143817 | M110: 14.82939336 | N110: 53.17060664 | O110: 1191.163766 | P110: 0.248544497 | Q110: 0.248159118
B111: 87 | C111: 87 | D111: 1.518436449 | E111: 0.0002083333333 | F111: 52.89146923 | G111: 15.10853077 | H111: 15.10853077 | I111: 1187.707151 | J111: 0.2478833043 | K111: 0.2474389898 | M111: 15.07714055 | N111: 52.92285945 | O111: 1187.146145 | P111: 0.2477471988 | Q111: 0.2473221136
B112: 88 | C112: 88 | D112: 1.535889742 | E112: 0.0002083333333 | F112: 52.6445008 | G112: 15.3554992 | H112: 15.3554992 | I112: 1183.127372 | J112: 0.2469684321 | K112: 0.2464848692 | M112: 15.32401146 | N112: 52.67598854 | O112: 1182.752387 | P112: 0.2468709074 | Q112: 0.2464067472
B113: 89 | C113: 89 | D113: 1.553343034 | E113: 0.0002083333333 | F113: 52.39852527 | G113: 15.60147473 | H113: 15.60147473 | I113: 1178.176447 | J113: 0.2459755321 | K113: 0.2454534265 | M113: 15.56992836 | N113: 52.43007164 | O113: 1177.98866 | P113: 0.2459168945 | Q113: 0.2454143041
B114: 90 | C114: 90 | D114: 1.570796327 | E114: 0.0002083333333 | F114: 52.15361924 | G114: 15.84638076 | H114: 15.84638076 | I114: 1172.861257 | J114: 0.2449060246 | K114: 0.2443460953 | M114: 15.81481481 | N114: 52.18518519 | O114: 1172.861257 | P114: 0.2448864582 | Q114: 0.2443460953
B115: 91 | C115: 91 | D115: 1.588249619 | E115: 0.0002083333333 | F115: 51.90985789 | G115: 16.09014211 | H115: 16.09014211 | I115: 1167.188802 | J115: 0.2437613557 | K115: 0.2431643338 | M115: 16.05859574 | N115: 51.94140426 | O115: 1167.37659 | P115: 0.243780922 | Q115: 0.2432034563
B116: 92 | C116: 92 | D116: 1.605702912 | E116: 0.0002083333333 | F116: 51.66731489 | G116: 16.33268511 | H116: 16.33268511 | I116: 1161.166192 | J116: 0.2425429954 | K116: 0.2419096232 | M116: 16.30119737 | N116: 51.69880263 | O116: 1161.541177 | P116: 0.242601633 | Q116: 0.2419877452
B117: 93 | C117: 93 | D117: 1.623156204 | E117: 0.0002083333333 | F117: 51.42606246 | G117: 16.57393754 | H117: 16.57393754 | I117: 1154.800633 | J117: 0.2412524351 | K117: 0.2405834651 | M117: 16.54254733 | N117: 51.45745267 | O117: 1155.361638 | P117: 0.2413499597 | Q117: 0.2407003413
B118: 94 | C118: 94 | D118: 1.640609497 | E118: 0.0002083333333 | F118: 51.18617127 | G118: 16.81382873 | H118: 16.81382873 | I118: 1148.099421 | J118: 0.2398911857 | K118: 0.2391873793 | M118: 16.78257462 | N118: 51.21742538 | O118: 1148.844686 | P118: 0.2400272912 | Q118: 0.2393426429
B119: 95 | C119: 95 | D119: 1.658062789 | E119: 0.0002083333333 | F119: 50.94771049 | G119: 17.05228951 | H119: 17.05228951 | I119: 1141.069928 | J119: 0.2384607754 | K119: 0.2377229017 | M119: 17.02120966 | N119: 50.97879034 | O119: 1141.997119 | P119: 0.2386350351 | Q119: 0.2379160665
B120: 96 | C120: 96 | D120: 1.675516082 | E120: 0.0002083333333 | F120: 50.71074775 | G120: 17.28925225 | H120: 17.28925225 | I120: 1133.719595 | J120: 0.2369627472 | K120: 0.2361915823 | M120: 17.25838427 | N120: 50.74161573 | O120: 1134.825812 | P120: 0.2371746158 | Q120: 0.2364220442
B121: 97 | C121: 97 | D121: 1.692969374 | E121: 0.0002083333333 | F121: 50.47534909 | G121: 17.52465091 | H121: 17.52465091 | I121: 1126.055917 | J121: 0.2353986572 | K121: 0.2345949827 | M121: 17.49403174 | N121: 50.50596826 | O121: 1127.33771 | P121: 0.2356474729 | Q121: 0.2348620229
B122: 98 | C122: 98 | D122: 1.710422667 | E122: 0.0002083333333 | F122: 50.24157902 | G122: 17.75842098 | H122: 17.75842098 | I122: 1118.086437 | J122: 0.2337700719 | K122: 0.2329346743 | M122: 17.7280868 | N122: 50.2719132 | O122: 1119.539818 | P122: 0.2340550597 | Q122: 0.2332374621
B123: 99 | C123: 99 | D123: 1.727875959 | E123: 0.0002083333333 | F123: 50.00950045 | G123: 17.99049955 | H123: 17.99049955 | I123: 1109.818732 | J123: 0.2320785666 | K123: 0.2312122358 | M123: 17.96048565 | N123: 50.03951435 | O123: 1111.439196 | P123: 0.2323988415 | Q123: 0.2315498325
B124: 100 | C124: 100 | D124: 1.745329252 | E124: 0.0002083333333 | F124: 49.77917473 | G124: 18.22082527 | H124: 18.22082527 | I124: 1101.260407 | J124: 0.2303257231 | K124: 0.2294292515 | M124: 18.19116594 | N124: 49.80883406 | O124: 1103.042948 | P124: 0.2306802938 | Q124: 0.2298006141
B125: 101 | C125: 101 | D125: 1.762782545 | E125: 0.0002083333333 | F125: 49.5506616 | G125: 18.4493384 | H125: 18.4493384 | I125: 1092.419083 | J125: 0.2285131272 | K125: 0.2275873089 | M125: 18.42006684 | N125: 49.57993316 | O125: 1094.358216 | P125: 0.2289009008 | Q125: 0.2279912951
B126: 102 | C126: 102 | D126: 1.780235837 | E126: 0.0002083333333 | F126: 49.32401923 | G126: 18.67598077 | H126: 18.67598077 | I126: 1083.302384 | J126: 0.2266423674 | K126: 0.2256879967 | M126: 18.64712899 | N126: 49.35287101 | O126: 1085.392174 | P126: 0.2270621538 | Q126: 0.2261233696
B127: 103 | C127: 103 | D127: 1.79768913 | E127: 0.0002083333333 | F127: 49.0993042 | G127: 18.9006958 | H127: 18.9006958 | I127: 1073.917935 | J127: 0.2247150323 | K127: 0.2237329032 | M127: 18.87229454 | N127: 49.12770546 | O127: 1076.152015 | P127: 0.2251655494 | Q127: 0.2241983365
B128: 104 | C128: 104 | D128: 1.815142422 | E128: 0.0002083333333 | F128: 48.87657149 | G128: 19.12342851 | H128: 19.12342851 | I128: 1064.273346 | J128: 0.2227327088 | K128: 0.2217236137 | M128: 19.09550713 | N128: 48.90449287 | O128: 1066.64495 | P128: 0.2232125883 | Q128: 0.2222176979
B129: 105 | C129: 105 | D129: 1.832595715 | E129: 0.0002083333333 | F129: 48.65587451 | G129: 19.34412549 | H129: 19.34412549 | I129: 1054.376204 | J129: 0.2206969803 | K129: 0.2196617091 | M129: 19.31671191 | N129: 48.68328809 | O129: 1056.878194 | P129: 0.2212047733 | Q129: 0.2201829571
B130: 106 | C130: 106 | D130: 1.850049007 | E130: 0.0002083333333 | F130: 48.43726509 | G130: 19.56273491 | H130: 19.56273491 | I130: 1044.234067 | J130: 0.2186094245 | K130: 0.217548764 | M130: 19.53585551 | N130: 48.46414449 | O130: 1046.858964 | P130: 0.2191436079 | Q130: 0.2180956175
B131: 107 | C131: 107 | D131: 1.8675023 | E131: 0.0002083333333 | F131: 48.22079348 | G131: 19.77920652 | H131: 19.77920652 | I131: 1033.854453 | J131: 0.216471612 | K131: 0.2153863444 | M131: 19.75288611 | N131: 48.24711389 | O131: 1036.594468 | P131: 0.2170305947 | Q131: 0.2159571808
B132: 108 | C132: 108 | D132: 1.884955592 | E132: 0.0002083333333 | F132: 48.00650837 | G132: 19.99349163 | H132: 19.99349163 | I132: 1023.244832 | J132: 0.2142851042 | K132: 0.2131760067 | M132: 19.96775334 | N132: 48.03224666 | O132: 1026.0919 | P132: 0.2148672342 | Q132: 0.2137691458
B133: 109 | C133: 109 | D133: 1.902408885 | E133: 0.0002083333333 | F133: 47.79445692 | G133: 20.20554308 | H133: 20.20554308 | I133: 1012.412618 | J133: 0.2120514515 | K133: 0.2109192955 | M133: 20.18040836 | N133: 47.81959164 | O133: 1015.358431 | P133: 0.2126550227 | Q133: 0.2115330064
B134: 110 | C134: 110 | D134: 1.919862177 | E134: 0.0002083333333 | F134: 47.58468473 | G134: 20.41531527 | H134: 20.41531527 | I134: 1001.365161 | J134: 0.2097721921 | K134: 0.2086177419 | M134: 20.39080382 | N134: 47.60919618 | O134: 1004.401202 | P134: 0.2103954513 | Q134: 0.2092502505
B135: 111 | C135: 111 | D135: 1.93731547 | E135: 0.0002083333333 | F135: 47.37723588 | G135: 20.62276412 | H135: 20.62276412 | I135: 990.1097392 | J135: 0.2074488498 | K135: 0.2062728623 | M135: 20.59889382 | N135: 47.40110618 | O135: 993.2273212 | P135: 0.2080900044 | Q135: 0.2069223586
B136: 112 | C136: 112 | D136: 1.954768762 | E136: 0.0002083333333 | F136: 47.17215295 | G136: 20.82784705 | H136: 20.82784705 | I136: 978.6535529 | J136: 0.2050829331 | K136: 0.2038861569 | M136: 20.80463398 | N136: 47.19536602 | O136: 981.8438506 | P136: 0.205740158 | Q136: 0.2045508022
B137: 113 | C137: 113 | D137: 1.972222055 | E137: 0.0002083333333 | F137: 46.96947701 | G137: 21.03052299 | H137: 21.03052299 | I137: 967.0037166 | J137: 0.202675933 | K137: 0.2014591076 | M137: 21.00798136 | N137: 46.99201864 | O137: 970.2578043 | P137: 0.2033473787 | Q137: 0.2021370426
B138: 114 | C138: 114 | D138: 1.989675347 | E138: 0.0002083333333 | F138: 46.76924769 | G138: 21.23075231 | H138: 21.23075231 | I138: 955.1672527 | J138: 0.2002293223 | K138: 0.1989931776 | M138: 21.20889448 | N138: 46.79110552 | O138: 958.4761404 | P138: 0.200913122 | Q138: 0.1996825292
B139: 115 | C139: 115 | D139: 2.00712864 | E139: 0.0002083333333 | F139: 46.57150314 | G139: 21.42849686 | H139: 21.42849686 | I139: 943.1510853 | J139: 0.1977445539 | K139: 0.1964898094 | M139: 21.40733331 | N139: 46.59266669 | O139: 946.5057547 | P139: 0.198438831 | Q139: 0.1971886989
B140: 116 | C140: 116 | D140: 2.024581932 | E140: 0.0002083333333 | F140: 46.37628008 | G140: 21.62371992 | H140: 21.62371992 | I140: 930.9620344 | J140: 0.1952230595 | K140: 0.1939504238 | M140: 21.60325925 | N140: 46.39674075 | O140: 934.3534748 | P140: 0.1959259354 | Q140: 0.1946569739
B141: 117 | C141: 117 | D141: 2.042035225 | E141: 0.0002083333333 | F141: 46.18361383 | G141: 21.81638617 | H141: 21.81638617 | I141: 918.6068104 | J141: 0.1926662487 | K141: 0.1913764188 | M141: 21.7966351 | N141: 46.2033649 | O141: 922.026054 | P141: 0.19337585 | Q141: 0.1920887613
B142: 118 | C142: 118 | D142: 2.059488517 | E142: 0.0002083333333 | F142: 45.99353832 | G142: 22.00646168 | H142: 22.00646168 | I142: 906.0920084 | J142: 0.1900755075 | K142: 0.1887691684 | M142: 21.98742507 | N142: 46.01257493 | O142: 909.5301656 | P142: 0.1907899735 | Q142: 0.1894854512
B143: 119 | C143: 119 | D143: 2.07694181 | E143: 0.0002083333333 | F143: 45.80608612 | G143: 22.19391388 | H143: 22.19391388 | I143: 893.4241042 | J143: 0.1874521975 | K143: 0.1861300217 | M143: 22.17559476 | N143: 45.82440524 | O143: 896.8723973 | P143: 0.1881696874 | Q143: 0.1868484161
B144: 120 | C144: 120 | D144: 2.094395102 | E144: 0.0002083333333 | F144: 45.62128847 | G144: 22.37871153 | H144: 22.37871153 | I144: 880.6094491 | J144: 0.1847976551 | K144: 0.1834603019 | M144: 22.36111111 | N144: 45.63888889 | O144: 884.0592457 | P144: 0.1855163546 | Q144: 0.1841790095
B145: 121 | C145: 121 | D145: 2.111848395 | E145: 0.0002083333333 | F145: 45.43917528 | G145: 22.56082472 | H145: 22.56082472 | I145: 867.6542663 | J145: 0.1821131901 | K145: 0.1807613055 | M145: 22.54394243 | N145: 45.45605757 | O145: 871.0971112 | P145: 0.1828313187 | Q145: 0.1814785648
B146: 122 | C146: 122 | D146: 2.129301687 | E146: 0.0002083333333 | F146: 45.25977519 | G146: 22.74022481 | H146: 22.74022481 | I146: 854.5646465 | J146: 0.1794000853 | K146: 0.1780343013 | M146: 22.72405833 | N146: 45.27594167 | O146: 857.9922933 | P146: 0.1801159027 | Q146: 0.1787483944
B147: 123 | C147: 123 | D147: 2.14675498 | E147: 0.0002083333333 | F147: 45.0831156 | G147: 22.9168844 | H147: 22.9168844 | I147: 841.346545 | J147: 0.1766595954 | K147: 0.1752805302 | M147: 22.90142974 | N147: 45.09857026 | O147: 844.750985 | P147: 0.1773714079 | Q147: 0.1759897885
B148: 124 | C148: 124 | D148: 2.164208272 | E148: 0.0002083333333 | F148: 44.90922265 | G148: 23.09077735 | H148: 23.09077735 | I148: 828.0057786 | J148: 0.1738929469 | K148: 0.1725012039 | M148: 23.07602885 | N148: 44.92397115 | O148: 831.3792692 | P148: 0.1745991133 | Q148: 0.1732040144
B149: 125 | C149: 125 | D149: 2.181661565 | E149: 0.0002083333333 | F149: 44.73812131 | G149: 23.26187869 | H149: 23.26187869 | I149: 814.5480221 | J149: 0.1711013368 | K149: 0.1696975046 | M149: 23.24782913 | N149: 44.75217087 | O149: 817.8831136 | P149: 0.1718002741 | Q149: 0.1703923153
B150: 126 | C150: 126 | D150: 2.199114858 | E150: 0.0002083333333 | F150: 44.56983538 | G150: 23.43016462 | H150: 23.43016462 | I150: 800.9788071 | J150: 0.1682859325 | K150: 0.1668705848 | M150: 23.41680525 | N150: 44.58319475 | O150: 804.2683672 | P150: 0.1689761214 | Q150: 0.1675559098
B151: 127 | C151: 127 | D151: 2.21656815 | E151: 0.0002083333333 | F151: 44.40438751 | G151: 23.59561249 | H151: 23.59561249 | I151: 787.3035186 | J151: 0.1654478712 | K151: 0.1640215664 | M151: 23.58293311 | N151: 44.41706689 | O151: 790.5407557 | P151: 0.1661278607 | Q151: 0.1646959908
B152: 128 | C152: 128 | D152: 2.234021443 | E152: =$L$18 -> 0.0002083333333 | F152: 44.24179925 | G152: 23.75820075 | H152: 23.75820075 | I152: 773.5273943 | J152: 0.1625882594 | K152: 0.1611515405 | M152: =$C$18*(1-COS(D152)+$K$18/4*(1-COS(2*D152))) -> 23.74618978 | N152: 44.25381022 | O152: 776.7058785 | P152: 0.1632566721 | Q152: 0.1618137247
B153: 129 | C153: =B153 -> 129 | D153: =C153*PI()/180 -> 2.251474735 | E153: 0.0002083333333 | F153: =$C$18*COS(D153)+($D$18^2-$C$18^2*SIN(D153)^2)^0.5 -> 44.08209108 | G153: =($C$18+$D$18)-F153 -> 23.91790892 | H153: =$C$18*(1-COS(D153))+$D$18*(1-(1-$K$18^2*SIN(D153)^2)^0.5) -> 23.91790892 | I153: =$J$18*($C$18*SIN(D153)+$C$18^2*SIN(D153)*COS(D153)/(($D$18^2-$C$18^2*SIN(D153)^2)^0.5)) -> 759.6555224 | J153: 0.1597081728 | K153: =I153*$L$18 -> 0.1582615672 | M153: 23.90655349 | N153: =($D$18+$C$18)-M153 -> 44.09344651 | O153: =$C$18*$J$18*(SIN(D153)+$K$18/2*SIN(2*D153)) -> 762.7692048 | P153: 0.1603637084 | Q153: =O153*$L$18 -> 0.158910251
B154: 130 | C154: 130 | D154: 2.268928028 | E154: 0.0002083333333 | F154: 43.92528242 | G154: 24.07471758 | H154: 24.07471758 | I154: 745.6928409 | J154: =-(F154-F153) -> 0.1568086557 | K154: 0.1553526752 | M154: 24.06400359 | N154: 43.93599641 | O154: 748.7360707 | P154: =M154-M153 -> 0.1574500953 | Q154: 0.1559866814
B155: 131 | C155: 131 | D155: 2.28638132 | E155: 0.0002083333333 | F155: 43.7713917 | G155: 24.2286083 | H155: 24.2286083 | I155: 731.6441366 | J155: 0.1538907212 | K155: 0.1524258618 | M155: 24.21852052 | N155: 43.78147948 | O155: 734.611676 | P155: 0.1545169303 | Q155: 0.1530440992
B156: 132 | C156: 132 | D156: 2.303834613 | E156: 0.0002083333333 | F156: 43.62043635 | G156: 24.37956365 | H156: 24.37956365 | I156: 717.5140443 | J156: 0.1509553508 | K156: 0.1494820926 | M156: 24.3700858 | N156: 43.6299142 | O156: 720.4010817 | P156: 0.1515652823 | Q156: 0.1500835587
B157: 133 | C157: 133 | D157: 2.321287905 | E157: 0.0002083333333 | F157: 43.47243286 | G157: 24.52756714 | H157: 24.52756714 | I157: 703.3070469 | J157: 0.1480034941 | K157: 0.1465223014 | M157: 24.51868199 | N157: 43.48131801 | O157: 706.1092075 | P157: 0.148596191 | Q157: 0.1471060849
B158: 134 | C158: 134 | D158: 2.338741198 | E158: 0.0002083333333 | F158: 43.32739679 | G158: 24.67260321 | H158: 24.67260321 | I158: 689.0274754 | J158: 0.1450360693 | K158: 0.1435473907 | M158: 24.66429266 | N158: 43.33570734 | O158: 691.7408295 | P158: 0.1456106664 | Q158: 0.1441126728
B159: 135 | C159: 135 | D159: 2.35619449 | E159: 0.0002083333333 | F159: 43.18534282 | G159: 24.81465718 | H159: 24.81465718 | I159: 674.6795087 | J159: 0.1420539628 | K159: 0.140558231 | M159: 24.80690234 | N159: 43.19309766 | O159: 677.3005781 | P159: 0.1426096884 | Q159: 0.1411042871
B160: 136 | C160: 136 | D160: 2.373647783 | E160: 0.0002083333333 | F160: 43.04628479 | G160: 24.95371521 | H160: 24.95371521 | I160: 660.2671745 | J160: 0.1390580295 | K160: 0.1375556613 | M160: 24.94649655 | N160: 43.05350345 | O160: 662.7929366 | P160: 0.1395942063 | Q160: 0.1380818618
B161: 137 | C161: 137 | D161: 2.391101075 | E161: 0.0002083333333 | F161: 42.9102357 | G161: 25.0897643 | H161: 25.0897643 | I161: 645.79435 | J161: 0.1360490928 | K161: 0.1345404896 | M161: 25.08306169 | N161: 42.91693831 | O161: 648.2222396 | P161: 0.1365651388 | Q161: 0.1350462999
B162: 138 | C162: 138 | D162: 2.408554368 | E162: 0.0002083333333 | F162: 42.77720776 | G162: 25.22279224 | H162: 25.22279224 | I162: 631.2647629 | J162: 0.1330279448 | K162: 0.1315134923 | M162: 25.21658506 | N162: 42.78341494 | O162: 633.5926716 | P162: 0.1335233732 | Q162: 0.1319984733
B163: 139 | C163: 139 | D163: 2.42600766 | E163: 0.0002083333333 | F163: 42.64721241 | G163: 25.35278759 | H163: 25.35278759 | I163: 616.6819924 | J163: 0.1299953467 | K163: 0.1284754151 | M163: 25.34705483 | N163: 42.65294517 | O163: 618.9082664 | P163: 0.1304697656 | Q163: 0.1289392222
B164: 140 | C164: 140 | D164: 2.443460953 | E164: 0.0002083333333 | F164: 42.52026038 | G164: 25.47973962 | H164: 25.47973962 | I164: 602.0494709 | J164: 0.1269520288 | K164: 0.1254269731 | M164: 25.47445997 | N164: 42.52554003 | O164: 604.172906 | P164: 0.1274051406 | Q164: 0.1258693554
B165: 141 | C165: 141 | D165: 2.460914245 | E165: 0.0002083333333 | F165: 42.39636169 | G165: 25.60363831 | H165: 25.60363831 | I165: 587.3704855 | J165: 0.1238986911 | K165: 0.1223688512 | M165: 25.59879026 | N165: 42.40120974 | O165: 589.3903204 | P165: 0.1243302911 | Q165: 0.1227896501
B166: 142 | C166: 142 | D166: 2.478367538 | E166: 0.0002083333333 | F166: 42.27552569 | G166: 25.72447431 | H166: 25.72447431 | I166: 572.6481798 | J166: 0.1208360032 | K166: 0.1193017041 | M166: 25.72003624 | N166: 42.27996376 | O166: 574.5640873 | P166: 0.1212459783 | Q166: 0.1197008515
B167: 143 | C167: 143 | D167: 2.49582083 | E167: 0.0002083333333 | F167: 42.15776108 | G167: 25.84223892 | H167: 25.84223892 | I167: 557.8855559 | J167: 0.1177646055 | K167: 0.1162261575 | M167: 25.83818917 | N167: 42.16181083 | O167: 559.697632 | P167: 0.1181529318 | Q167: 0.1166036733
B168: 144 | C168: 144 | D168: 2.513274123 | E168: 0.0002083333333 | F168: 42.04307597 | G168: 25.95692403 | H168: 25.95692403 | I168: 543.0854766 | J168: 0.1146851087 | K168: 0.1131428076 | M168: 25.95324102 | N168: 42.04675898 | O168: 544.794228 | P168: 0.1150518493 | Q168: 0.1134987975
B169: 145 | C169: 145 | D169: 2.530727415 | E169: 0.0002083333333 | F169: 41.93147788 | G169: 26.06852212 | H169: 26.06852212 | I169: 528.2506677 | J169: 0.1115980951 | K169: 0.1100522224 | M169: 26.06518442 | N169: 41.93481558 | O169: 529.8569973 | P169: 0.111943397 | Q169: 0.1103868744
B170: 146 | C170: 146 | D170: 2.548180708 | E170: 0.0002083333333 | F170: 41.82297376 | G170: 26.17702624 | H170: 26.17702624 | I170: 513.3837207 | J170: 0.1085041183 | K170: 0.1069549418 | M170: 26.17401263 | N170: 41.82598737 | O170: 514.8889113 | P170: 0.1088282095 | Q170: 0.1072685232
B171: 147 | C171: 147 | D171: 2.565634 | E171: 0.0002083333333 | F171: 41.71757005 | G171: 26.28242995 | H171: 26.28242995 | I171: 498.4870951 | J171: 0.1054037046 | K171: 0.1038514781 | M171: 26.27971952 | N171: 41.72028048 | O171: 499.8927916 | P171: 0.1057068904 | Q171: 0.1041443316
B172: 148 | C172: 148 | D172: 2.583087293 | E172: 0.0002083333333 | F172: 41.6152727 | G172: 26.3847273 | H172: 26.3847273 | I172: 483.5631212 | J172: 0.1022973528 | K172: 0.1007423169 | M172: 26.38229953 | N172: 41.61770047 | O172: 484.8713115 | P172: 0.102580012 | Q172: 0.1010148566
B173: 149 | C173: 149 | D173: 2.600540585 | E173: 0.0002083333333 | F173: 41.51608717 | G173: 26.48391283 | H173: 26.48391283 | I173: 468.6140034 | J173: 0.09918553522 | K173: 0.09762791737 | M173: 26.48174764 | N173: 41.51825236 | O173: 469.8269973 | P173: 0.09944811579 | Q173: 0.09788062444
B174: 150 | C174: 150 | D174: 2.617993878 | E174: 0.0002083333333 | F174: 41.42001847 | G174: 26.57998153 | H174: 26.57998153 | I174: 453.6418227 | J174: 0.09606869821 | K174: 0.09450871306 | M174: 26.57805936 | N174: 41.42194064 | O174: 454.7622304 | P174: 0.09631171309 | Q174: 0.09474213133
B175: 151 | C175: 151 | D175: 2.635447171 | E175: 0.0002083333333 | F175: 41.32707121 | G175: 26.67292879 | H175: 26.67292879 | I175: 438.64854 | J175: 0.09294726276 | K175: 0.09138511251 | M175: 26.67123064 | N175: 41.32876936 | O175: 439.6792487 | P175: 0.09317128498 | Q175: 0.09159984347
B176: 152 | C176: 152 | D176: 2.652900463 | E176: 0.0002083333333 | F176: 41.23724958 | G176: 26.76275042 | H176: 26.76275042 | I176: 423.6359997 | J176: 0.08982162518 | K176: 0.08825749993 | M176: 26.76125792 | N176: 41.23874208 | O176: 424.5801491 | P176: 0.09002728299 | Q176: 0.08845419773
B177: 153 | C177: 153 | D177: 2.670353756 | E177: 0.0002083333333 | F177: 41.15055742 | G177: 26.84944258 | H177: 26.84944258 | I177: 408.6059321 | J177: 0.08669215778 | K177: 0.08512623586 | M177: 26.84813805 | N177: 41.15186195 | O177: 409.4668901 | P177: 0.0868801295 | Q177: 0.08530560211
B178: 154 | C178: 154 | D178: 2.687807048 | E178: 0.0002083333333 | F178: 41.06699821 | G178: 26.93300179 | H178: 26.93300179 | I178: 393.5599579 | J178: 0.08355920956 | K178: 0.08199165789 | M178: 26.93186827 | N178: 41.06813173 | O178: 394.341294 | P178: 0.08373021828 | Q178: 0.08215443625
B179: 155 | C179: 155 | D179: 2.705260341 | E179: 0.0002083333333 | F179: 40.98657511 | G179: 27.01342489 | H179: 27.01342489 | I179: 378.4995906 | J179: 0.08042310694 | K179: 0.07885408138 | M179: 27.01244619 | N179: 40.98755381 | O179: 379.2050499 | P179: 0.08057791507 | Q179: 0.07900105206
B180: 156 | C180: 156 | D180: 2.722713633 | E180: 0.0002083333333 | F180: 40.90929095 | G180: 27.09070905 | H180: 27.09070905 | I180: 363.426241 | J180: 0.07728415449 | K180: 0.07571380022 | M180: 27.08986975 | N180: 40.91013025 | O180: 364.0597169 | P180: 0.07742355817 | Q180: 0.07584577435
B181: 157 | C181: 157 | D181: 2.740166926 | E181: 0.0002083333333 | F181: 40.83514832 | G181: 27.16485168 | H181: 27.16485168 | I181: 348.3412202 | J181: 0.07414263566 | K181: 0.07257108754 | M181: 27.1641372 | N181: 40.8358628 | O181: 348.9067271 | P181: 0.0742674591 | Q181: 0.07268890148
B182: 158 | C182: 158 | D182: 2.757620218 | E182: 0.0002083333333 | F182: 40.7641495 | G182: 27.2358505 | H182: 27.2358505 | I182: 333.2457434 | J182: 0.07099881353 | K182: 0.06942619654 | M182: 27.23524711 | N182: 40.76475289 | O182: 333.7473893 | P182: 0.0711099033 | Q182: 0.0695307061
B183: 159 | C183: 159 | D183: 2.775073511 | E183: 0.0002083333333 | F183: 40.69629657 | G183: 27.30370343 | H183: 27.30370343 | I183: 318.1409336 | J183: 0.06785293163 | K183: 0.06627936117 | M183: 27.30319826 | N183: 40.69680174 | O183: 318.5828922 | P183: 0.06795115088 | Q183: 0.06637143588
B184: 160 | C184: 160 | D184: 2.792526803 | E184: 0.0002083333333 | F184: 40.63159136 | G184: 27.36840864 | H184: 27.36840864 | I184: 303.0278256 | J184: 0.06470521464 | K184: 0.06313079701 | M184: 27.3679897 | N184: 40.6320103 | O184: 303.4143089 | P184: 0.06479143737 | Q184: 0.06321131435
B185: 161 | C185: 161 | D185: 2.809980096 | E185: 0.0002083333333 | F185: 40.57003549 | G185: 27.42996451 | H185: 27.42996451 | I185: 287.9073696 | J185: 0.06155586928 | K185: 0.059980702 | M185: 27.42962067 | N185: 40.57037933 | O185: 288.2426001 | P185: 0.06163097454 | Q185: 0.06005054169
B186: 162 | C186: 162 | D186: 2.827433388 | E186: 0.0002083333333 | F186: 40.5116304 | G186: 27.4883696 | H186: 27.4883696 | I186: 272.780435 | J186: 0.058405085 | K186: 0.05682925729 | M186: 27.48809062 | N186: 40.51190938 | O186: 273.0686189 | P186: 0.05846995127 | Q186: 0.0568892956
B187: 163 | C187: 163 | D187: 2.844886681 | E187: 0.0002083333333 | F187: 40.45637737 | G187: 27.54362263 | H187: 27.54362263 | I187: 257.6478144 | J187: 0.05525303489 | K187: 0.053676628 | M187: 27.54339916 | N187: 40.45660084 | O187: 257.8931148 | P187: 0.05530853441 | Q187: 0.05372773225
B188: 164 | C188: 164 | D188: 2.862339973 | E188: 0.0002083333333 | F188: 40.40427749 | G188: 27.59572251 | H188: 27.59572251 | I188: 242.5102275 | J188: 0.05209987639 | K188: 0.05052296407 | M188: 27.59554603 | N188: 40.40445397 | O188: 242.7167383 | P188: 0.05214686972 | Q188: 0.05056598714
B189: 165 | C189: 165 | D189: 2.879793266 | E189: 0.0002083333333 | F189: 40.35533174 | G189: 27.64466826 | H189: 27.64466826 | I189: 227.3683252 | J189: 0.04894575221 | K189: 0.04736840108 | M189: 27.64453111 | N189: 40.35546889 | O189: 227.5400455 | P189: 0.0489850828 | Q189: 0.04740417614
B190: 166 | C190: 166 | D190: 2.897246558 | E190: 0.0002083333333 | F190: 40.30954095 | G190: 27.69045905 | H190: 27.69045905 | I190: 212.2226931 | J190: 0.04579079108 | K190: 0.04421306106 | M190: 27.69035439 | N190: 40.30964561 | O190: 212.3635029 | P190: 0.0458232801 | Q190: 0.04424239643
B191: 167 | C191: 167 | D191: 2.914699851 | E191: 0.0002083333333 | F191: 40.26690584 | G191: 27.73309416 | H191: 27.73309416 | I191: 197.073856 | J191: 0.04263510861 | K191: 0.04105705334 | M191: 27.73301594 | N191: 40.26698406 | O191: 197.1874923 | P191: 0.0426615499 | Q191: 0.04108072757
B192: 168 | C192: 168 | D192: 2.932153143 | E192: 0.0002083333333 | F192: 40.22742703 | G192: 27.77257297 | H192: 27.77257297 | I192: 181.9222817 | J192: 0.03947880811 | K192: 0.03790047536 | M192: 27.7725159 | N192: 40.2274841 | O192: 182.0123161 | P192: 0.03949996336 | Q192: 0.03791923252
B193: 169 | C193: 169 | D193: 2.949606436 | E193: 0.0002083333333 | F193: 40.19110505 | G193: 27.80889495 | H193: 27.80889495 | I193: 166.768385 | J193: 0.03632198145 | K193: 0.03474341354 | M193: 27.80885448 | N193: 40.19114552 | O193: 166.8382019 | P193: 0.0363385756 | Q193: 0.03475795873
B194: 170 | C194: 170 | D194: 2.967059728 | E194: 0.0002083333333 | F194: 40.15794034 | G194: 27.84205966 | H194: 27.84205966 | I194: 151.6125317 | J194: 0.03316470987 | K194: 0.03158594409 | M194: 27.8420319 | N194: 40.1579681 | O194: 151.6653084 | P194: 0.03317742678 | Q194: 0.03159693924
B195: 171 | C195: 171 | D195: 2.984513021 | E195: 0.0002083333333 | F195: 40.12793327 | G195: 27.87206673 | H195: 27.87206673 | I195: 136.4550426 | J195: 0.03000706483 | K195: 0.02842813388 | M195: 27.87204845 | N195: 40.12795155 | O195: 136.4937303 | P195: 0.0300165432 | Q195: 0.02843619382
B196: 172 | C196: 172 | D196: 3.001966313 | E196: 0.0002083333333 | F196: 40.10108417 | G196: 27.89891583 | H196: 27.89891583 | I196: 121.296198 | J196: 0.02684910888 | K196: 0.02527004125 | M196: 27.89890439 | N196: 40.10109561 | O196: 121.3235043 | P196: 0.02685593845 | Q196: 0.02527573006
B197: 173 | C197: 173 | D197: 3.019419606 | E197: 0.0002083333333 | F197: 40.07739327 | G197: 27.92260673 | H197: 27.92260673 | I197: 106.1362412 | J197: 0.02369089646 | K197: 0.02211171691 | M197: 27.9226 | N197: 40.0774 | O197: 106.1546141 | P197: 0.02369561455 | Q197: 0.02211554461
B198: 174 | C198: 174 | D198: 3.036872898 | E198: 0.0002083333333 | F198: 40.05686079 | G198: 27.94313921 | H198: 27.94313921 | I198: 90.97538266 | J198: 0.0205324748 | K198: 0.01895320472 | M198: 27.94313556 | N198: 40.05686444 | O198: 90.98699653 | P198: 0.02053556313 | Q198: 0.01895562428
B199: 175 | C199: 175 | D199: 3.054326191 | E199: 0.0002083333333 | F199: 40.03948691 | G199: 27.96051309 | H199: 27.96051309 | I199: 75.81380453 | J199: 0.01737388472 | K199: 0.01579454261 | M199: 27.96051133 | N199: 40.03948867 | O199: 75.82054699 | P199: 0.01737576662 | Q199: 0.01579594729
B200: 176 | C200: 176 | D200: 3.071779484 | E200: 0.0002083333333 | F200: 40.02527175 | G200: 27.97472825 | H200: 27.97472825 | I200: 60.65166422 | J200: 0.01421516151 | K200: 0.01263576338 | M200: 27.97472753 | N200: 40.02527247 | O200: 60.65512537 | P200: 0.01421619941 | Q200: 0.01263648445
B201: 177 | C201: 177 | D201: 3.089232776 | E201: 0.0002083333333 | F201: 40.01421541 | G201: 27.98578459 | H201: 27.98578459 | I201: 45.48909872 | J201: 0.01105633576 | K201: 0.009476895566 | M201: 27.98578436 | N201: 40.01421564 | O201: 45.49056185 | P201: 0.01105682914 | Q201: 0.009477200386
B202: 178 | C202: 178 | D202: 3.106686069 | E202: 0.0002083333333 | F202: 40.00631798 | G202: 27.99368202 | H202: 27.99368202 | I202: 30.32622865 | J202: 0.007897434248 | K202: 0.006317964301 | M202: 27.99368198 | N202: 40.00631802 | O202: 30.3266628 | P202: 0.00789761782 | Q202: 0.006318054749
B203: 179 | C203: 179 | D203: 3.124139361 | E203: 0.0002083333333 | F203: 40.0015795 | G203: 27.9984205 | H203: 27.9984205 | I203: 15.16316236 | J203: 0.004738480747 | K203: 0.003158992157 | M203: 27.9984205 | N203: 40.0015795 | O203: 15.16321667 | P203: 0.004738523159 | Q203: 0.003159003473
B204: 180 | C204: 180 | D204: 3.141592654 | E204: 0.0002083333333 | F204: 40 | G204: 28 | H204: 28 | I204: 1.064391968e-13 | J204: 0.001579496906 | K204: 2.217483267e-17 | M204: 28 | N204: 40 | O204: 1.064391968e-13 | P204: 0.001579499735 | Q204: 2.217483267e-17
B205: 181 | C205: 181 | D205: 3.159045946 | E205: 0.0002083333333 | F205: 40.0015795 | G205: 27.9984205 | H205: 27.9984205 | I205: -15.16316236 | J205: -0.001579496906 | K205: -0.003158992157 | M205: 27.9984205 | N205: 40.0015795 | O205: -15.16321667 | P205: -0.001579499735 | Q205: -0.003159003473
B206: 182 | C206: 182 | D206: 3.176499239 | E206: 0.0002083333333 | F206: 40.00631798 | G206: 27.99368202 | H206: 27.99368202 | I206: -30.32622865 | J206: -0.004738480747 | K206: -0.006317964301 | M206: 27.99368198 | N206: 40.00631802 | O206: -30.3266628 | P206: -0.004738523159 | Q206: -0.006318054749
B207: 183 | C207: 183 | D207: 3.193952531 | E207: 0.0002083333333 | F207: 40.01421541 | G207: 27.98578459 | H207: 27.98578459 | I207: -45.48909872 | J207: -0.007897434248 | K207: -0.009476895566 | M207: 27.98578436 | N207: 40.01421564 | O207: -45.49056185 | P207: -0.00789761782 | Q207: -0.009477200386
B208: 184 | C208: 184 | D208: 3.211405824 | E208: 0.0002083333333 | F208: 40.02527175 | G208: 27.97472825 | H208: 27.97472825 | I208: -60.65166422 | J208: -0.01105633576 | K208: -0.01263576338 | M208: 27.97472753 | N208: 40.02527247 | O208: -60.65512537 | P208: -0.01105682914 | Q208: -0.01263648445
B209: 185 | C209: 185 | D209: 3.228859116 | E209: 0.0002083333333 | F209: 40.03948691 | G209: 27.96051309 | H209: 27.96051309 | I209: -75.81380453 | J209: -0.01421516151 | K209: -0.01579454261 | M209: 27.96051133 | N209: 40.03948867 | O209: -75.82054699 | P209: -0.01421619941 | Q209: -0.01579594729
B210: 186 | C210: 186 | D210: 3.246312409 | E210: 0.0002083333333 | F210: 40.05686079 | G210: 27.94313921 | H210: 27.94313921 | I210: -90.97538266 | J210: -0.01737388472 | K210: -0.01895320472 | M210: 27.94313556 | N210: 40.05686444 | O210: -90.98699653 | P210: -0.01737576662 | Q210: -0.01895562428
B211: 187 | C211: 187 | D211: 3.263765701 | E211: 0.0002083333333 | F211: 40.07739327 | G211: 27.92260673 | H211: 27.92260673 | I211: -106.1362412 | J211: -0.0205324748 | K211: -0.02211171691 | M211: 27.9226 | N211: 40.0774 | O211: -106.1546141 | P211: -0.02053556313 | Q211: -0.02211554461
B212: 188 | C212: 188 | D212: 3.281218994 | E212: 0.0002083333333 | F212: 40.10108417 | G212: 27.89891583 | H212: 27.89891583 | I212: -121.296198 | J212: -0.02369089646 | K212: -0.02527004125 | M212: 27.89890439 | N212: 40.10109561 | O212: -121.3235043 | P212: -0.02369561455 | Q212: -0.02527573006
B213: 189 | C213: 189 | D213: 3.298672286 | E213: 0.0002083333333 | F213: 40.12793327 | G213: 27.87206673 | H213: 27.87206673 | I213: -136.4550426 | J213: -0.02684910888 | K213: -0.02842813388 | M213: 27.87204845 | N213: 40.12795155 | O213: -136.4937303 | P213: -0.02685593845 | Q213: -0.02843619382
B214: 190 | C214: 190 | D214: 3.316125579 | E214: 0.0002083333333 | F214: 40.15794034 | G214: 27.84205966 | H214: 27.84205966 | I214: -151.6125317 | J214: -0.03000706483 | K214: -0.03158594409 | M214: 27.8420319 | N214: 40.1579681 | O214: -151.6653084 | P214: -0.0300165432 | Q214: -0.03159693924
... 170 more rows
